Workbook

Sheet Input
A4: Tenant Information | AA4: Is Tenant ?
A6: Account ID | D6: Rates updated 7-6-26 | Z6: 1 | AA6: None
A7: Tenant Name | Z7: 2 | AA7: CARE
A8: Address | D8: To make sure your tenant bill is accurate, please confirm the selections in the drop down menu on the left. For help, check the guide. | Z8: 3 | AA8: FERA
Z9: 4 | AA9: DRAH
D11: sdge.com/MHP-guide | AA11: Is tenant located?
A12: Applicable Assistance Discounts | C12: Please make selection. | D12: Select CARE or FERA where applicable. If the tenant is not enorlled in CARE or FERA and your bill includes DRAH Base Services Charges, select "DRAH". Otherwise, choose "None" | Z12: 1 | AA12: Inside SD City Lmts
A13: Mobile Home Park Location | C13: Please make selection. | Z13: 2 | AA13: Outside SD City Lmts
A14: Type of Tenant Service | C14: Please make selection. | Z14: 3 | AA14: Inside Chula Vista City Lmts
A15: City Location | C15: Please make selection.
A17: Electric Meter Data | AA17: E -Medical Baseline Allowances
AA18: 1
A19: Billing Date Range | D19: Disclaimer: If your electricity generation is provided by a Community Choice Aggregator (CCA), SDG&E generation prices are used as a proxy in this calculator. | AA19: 2
A20: Start Date | C20: Days billed exceed utility's standand. Check dates. | AA20: 3
A21: End Date | AA21: 4
A22: Tenant Meter Reads | AA22: None
A23: Start Read | C23: Start read exceeds end read. | AA23: Baseline - Location
A24: End Read | C24: If reads cross 0, check box. | Z24: 1 | AA24: Coastal
E25: =IF(E24=TRUE,CONCATENATE("Total kWh billed is ",Total_kWh_DR,"")) -> FALSE | Z25: 2 | AA25: Mountain
A26: Number of Medical Baseline Allowances | C26: Please make selection. | Z26: 3 | AA26: Desert
Z27: 4 | AA27: Inland
A28: Number of Days Billed | B28: ='DR-CALC '!F16 -> 0
D29: About the percentage of power supplied by the DWR
A30: DWR Percentage | AA30: Service Availability
A31: 1 - 28 days | B31: 1 | AA31: Gas & Electric Baseline
A32: 29 - 35 days | B32: 0 | AA32: Only Electric Baseline
A35: Gas Meter Data | AA35: E -Medical Baseline Allowances
A39: Billing Date Range
A40: Start Date
A41: End Date
A42: Tenant Meter Reads
A43: Start Read | C43: Start read exceeds End read.
A44: End Read | C44: If reads cross 0, check box.
E45: =IF(E43=TRUE,CONCATENATE("Total kWh billed is ",BilledTherms),"") -> 
A46: Number of Medical Baseline Allowances | C46: Please make selection.
A48: Therm Multiplier | C48: Please make selection. | D48: More about Therm Factor.
A50: Add $.21 Inspection Fee | B50: FALSE | D50: What is the Gas Safety Inspection Surcharge?
A52: Miscellaneous Charge or Credit
A53: The free-form fields below are provided to add miscellaneous charges or credits to the tenant's bill. Add a negative sign for credit amounts. Example: -10.23
A54: Charge or Credit Description & Amount
A55: Charge or Credit Description & Amount
A57: Pricing Information
A58: IMPORTANT! Refer to your Mobile Home Billing Packet to determine if you need to update the billing factor pricing information below.
A59: Gas Pricing
A61: Effective | B61: Baseline | D61: Non-Baseline
A62: Date | B62: Sch. GTC | C62: Sch. GPC | D62: Sch. GTC | E62: Sch. GPC
A63: 2026-04-01 | B63: 2.00489 | C63: 0.16874 | D63: 2.37832 | E63: 0.16874
A64: 2026-05-01 | B64: 2.00489 | C64: 0.15947 | D64: 2.37832 | E64: 0.15947
A65: 2026-06-01 | B65: 2.00489 | C65: 0.26781 | D65: 2.37832 | E65: 0.26781
A66: 2026-07-01 | B66: 1.97369 | C66: 0.32485 | D66: 2.34201 | E66: 0.32485
B68: GAS G-PPP | G68: GAS Min Charge | L68: GAS GHG
A69: Rate Effective Dates (Oldest to Newest) | B69: 2025-01-01 | F69: Rate Effective Dates (Oldest to Newest) | G69: 2017-05-01 | L69: 2025-01-01
A70: CARE | B70: 0.07705 | G70: 0.09863 | L70: -54.21
A71: Non-CARE | B71: 0.11541
A73: Rate Effective Dates (Oldest to Newest) | B73: 2026-01-01 | G73: 2020-05-01 | L73: 2026-01-01
A74: CARE | B74: 0.09652 | G74: 0.13151 | L74: -32.58
A75: Non-CARE | B75: 0.14754
B82: G-PUC
A83: Rate Effective Dates (Oldest to Newest) | B83: 2025-01-01
B84: 0.0025
A86: Rate Effective Dates (Oldest to Newest) | B86: 2026-01-01
B87: 0.0035
B89: G-CSI
A90: Rate Effective Dates (Oldest to Newest) | B90: 2025-02-01
B91: -0.00033
A93: Rate Effective Dates (Oldest to Newest) | B93: 2026-01-01
B94: -0.00016
A97: Electric Pricing | AA97: E -Medical Baseline Allowances
B99: Residential Customer Rate Information Schedule DR
B100: Electric Schedule DR UDC DR Prices | D100: Electric Schedule DR-LI UDC DRLI Prices | G100: Electric Schedule DR UDC MED Prices | J100: Electric Schedule DR UDC CARE/MED Prices
A102: Rate Effective Dates (Oldest to Newest) | B102: 2026-01-01 | D102: =B102 -> 2026-01-01 | G102: =UDC_DR_Date1 -> 2026-01-01 | J102: =UDC_DR_Date1 -> 2026-01-01
A104: Baseline | B104: 0.23197 | D104: =UDC_DR_Price1_BL -> 0.23197 | G104: 0.18152 | J104: =UDC_MED_Price1_BL -> 0.18152
A105: 101% - 130% | B105: 0.23197 | D105: =UDC_DR_Price1_130 -> 0.23197 | G105: 0.18152 | J105: =UDC_MED_Price1_130 -> 0.18152
A106: 130% - 400% | B106: 0.34101 | D106: =UDC_DR_Price1_200 -> 0.34101 | G106: 0.25353 | J106: =UDC_MED_Price1_200 -> 0.25353
A107: Above 400% | B107: 0.34101 | D107: =UDC_DR_Price1_over -> 0.34101 | G107: 0.25353 | J107: =UDC_MED_Price1_over -> 0.25353
A109: Rate Effective Dates (Oldest to Newest) | B109: 2026-04-01 | D109: =B109 -> 2026-04-01 | G109: =UDC_DR_Date2 -> 2026-04-01 | J109: =UDC_DR_Date2 -> 2026-04-01
A111: Baseline | B111: 0.23169 | D111: =UDC_DR_Price2_BL -> 0.23169 | G111: 0.12975 | J111: =UDC_MED_Price2_BL -> 0.12975
A112: 101% - 130% | B112: 0.23169 | D112: =UDC_DR_Price2_130 -> 0.23169 | G112: 0.12975 | J112: =UDC_MED_Price2_130 -> 0.12975
A113: 130% - 400% | B113: 0.34061 | D113: =UDC_DR_Price2_200 -> 0.34061 | G113: 0.21078 | J113: =UDC_MED_Price2_200 -> 0.21078
A114: Above 400% | B114: 0.34061 | D114: =UDC_DR_Price2_over -> 0.34061 | G114: 0.21078 | J114: =UDC_MED_Price2_over -> 0.21078
A116: Rate Effective Dates (Oldest to Newest) | B116: 2026-06-01 | D116: =B116 -> 2026-06-01 | G116: =UDC_DR_Date3 -> 2026-06-01 | J116: =UDC_DR_Date3 -> 2026-06-01
A118: Baseline | B118: 0.22285 | D118: =UDC_DR_Price3_BL -> 0.22285 | G118: 0.22285 | J118: =UDC_MED_Price3_BL -> 0.22285
A119: 101% - 130% | B119: 0.22285 | D119: =UDC_DR_Price3_130 -> 0.22285 | G119: 0.22285 | J119: =UDC_MED_Price3_130 -> 0.22285
A120: 130% - 400% | B120: 0.32948 | D120: =UDC_DR_Price3_200 -> 0.32948 | G120: 0.32948 | J120: =UDC_MED_Price3_200 -> 0.32948
A121: Above 400% | B121: 0.32948 | D121: =UDC_DR_Price3_over -> 0.32948 | G121: 0.32948 | J121: =UDC_MED_Price3_over -> 0.32948
B123: Minimum Charge | D123: Mininum Charge (CARE) | G123: BSC Charge Effective date
A124: Rate Effective Dates (Oldest to Newest) | B124: 2025-06-01 | D124: 2025-06-01 | G124: 2025-10-01
A125: Price | B125: 0.402 | D125: 0.201
A127: Rate Effective Dates (Oldest to Newest) | B127: 2025-10-01 | D127: 2025-10-01 | G127: Base Service Charge
A128: Price | B128: 0 | D128: 0 | G128: Rate Effective Dates (Oldest to Newest) | I128: 2018-01-01 | J128: 2025-10-01 | K128: 2026-01-01
G129: None | H129: 1 | I129: 0 | J129: 0.79343 | K129: 0.79343
B130: Dept of Water Resources Bond Charge - DWR-BC + WFF-NBC | G130: CARE | H130: 2 | I130: 0 | J130: 0.19712 | K130: 0.19713
A131: Rate Effective Dates (Oldest to Newest) | B131: 2025-02-01 | G131: FERA | H131: 3 | I131: 0 | J131: 0.39688 | K131: 0.39688
A132: Price | B132: 0.00595 | G132: DRAH | H132: 4 | I132: 0 | J132: 0.39688 | K132: 0.39688
A134: Rate Effective Dates (Oldest to Newest) | B134: 2026-01-01 | D134: DWR-BC+WFF-NBC
A135: Price | B135: 0.00591 | D135: =0+0.00591 -> 0.00591 | E135: HARD Coded so update the WFF in this cell
B137: Care Discount
A138: Rate Effective Dates (Oldest to Newest) | B138: 2024-10-01 | C138: 2025-01-01 | D138: 2025-02-01
A139: Price | B139: -0.31754 | C139: -0.35 | D139: -0.35 | E139: Must be a NEGATIVE value
B147: Care/MED Discount
A148: Rate Effective Dates (Oldest to Newest) | B148: 2020-04-01 | C148: 2025-01-01 | D148: 2025-02-01
A149: Baseline Energy Price | B149: -0.21 | C149: -0.35 | D149: -0.35 | E149: Must be a NEGATIVE value
B160: FERA Discount | G160: Medical Discount
A161: Rate Effective Dates (Oldest to Newest) | B161: 2025-06-01 | F161: Rate Effective Dates (Oldest to Newest) | G161: 2020-01-01
A162: Price | B162: -0.17974 | F162: Price | G162: 0
A164: Rate Effective Dates (Oldest to Newest) | B164: 2025-10-01 | F164: Rate Effective Dates (Oldest to Newest) | G164: 2026-04-01
A165: Price | B165: -0.18 | C165: Must be a NEGATIVE value | F165: Price | G165: -0.2164 | H165: Must be a NEGATIVE value
B169: EECC - Commodity
B170: EECC DR Prices | D170: EECC DR-LI Prices
A171: Rate Effective Dates (Oldest to Newest) | B171: 2025-11-01 | D171: =B171 -> 2025-11-01
A173: Baseline | B173: 0.09636 | D173: 0.09636
A174: 101% - 130% | B174: 0.09636 | D174: 0.09636
A175: 130% - 200% | B175: 0.09636 | D175: 0.09636
A176: Above 400% | B176: 0.09636 | D176: 0.09636
A178: Rate Effective Dates (Oldest to Newest) | B178: 2026-01-01 | D178: =B178 -> 2026-01-01
A180: Baseline | B180: 0.18296 | D180: 0.18296
A181: 101% - 130% | B181: 0.18296 | D181: 0.18296
A182: 130% - 200% | B182: 0.18296 | D182: 0.18296
A183: Above 400% | B183: 0.18296 | D183: 0.18296
A185: Rate Effective Dates (Oldest to Newest) | B185: 2026-04-01 | D185: =B185 -> 2026-04-01
A187: Baseline | B187: 0.18274 | D187: 0.18274
A188: 101% - 130% | B188: 0.18274 | D188: 0.18274
A189: 130% - 200% | B189: 0.18274 | D189: 0.18274
A190: Above 400% | B190: 0.18274 | D190: 0.18274
B192: CA Climate Credit | E192: FERA
A193: Rate Effective Dates (Oldest to Newest) | B193: 2025-02-01
B194: -81.38
C195: Enter as a credit. Use a minus before the amount.
A196: Rate Effective Dates (Oldest to Newest) | B196: 2026-01-01
B197: -49.36
B200: California Solar Initiative + Surcharge for CARE
A201: Rate Effective Dates (Oldest to Newest) | B201: 2025-10-01
B202: 0
C203: Enter as a credit. Use a minus before the amount.
A204: Rate Effective Dates (Oldest to Newest) | B204: 2026-01-01
B205: -0.00864
B214: California Solar Initiative - no longer in use
A215: Rate Effective Dates (Oldest to Newest) | B215: 2018-01-01
B216: -0.00065
C217: Enter as a credit. Use a minus before the amount.
A218: Rate Effective Dates (Oldest to Newest) | B218: 2018-07-01
B219: 0
B221: California Solar Initiative for FERA
A222: Rate Effective Dates (Oldest to Newest) | B222: 2018-07-01
B223: -0.00014
C224: Enter as a credit. Use a minus before the amount.
A225: Rate Effective Dates (Oldest to Newest) | B225: 2020-01-01
B226: 0
B229: DWR Price / DWR Revenue Adjustment Credit
A230: Rate Effective Dates (Oldest to Newest) | B230: 2020-01-01 | D230: 2020-01-01
B231: -8e-05 | D231: -8e-05
A233: Rate Effective Dates (Oldest to Newest) | B233: 2021-02-01 | D233: =DWRdate2 -> 2021-02-01
B234: 0 | D234: 0
B239: E-PUC
A240: Rate Effective Dates (Oldest to Newest) | B240: 2025-01-01
B241: 0.0008
A243: Rate Effective Dates (Oldest to Newest) | B243: 2026-01-01
B244: 0.001
B249: E-State Surcharge
A250: Rate Effective Dates (Oldest to Newest) | B250: 2011-01-01
B251: 0.00029
A253: Rate Effective Dates (Oldest to Newest) | B253: 2019-01-01
B254: 0.0003
B261: San Diego Franchise Fee Differential
B262: Electric | D262: Gas
A263: Rate Effective Dates (Oldest to Newest) | B263: 1995-05-01 | D263: 1995-05-01
B264: 0.019 | D264: 0.01
A266: Rate Effective Dates (Oldest to Newest) | B266: 2003-01-01 | D266: 2003-01-01
B267: 0.0578 | D267: 0.0103
B269: Franchise Fees on Electric Energy Supplied by Others
A270: Rate Effective Dates (Oldest to Newest) | B270: 2001-04-02
B271: 0.03
A273: Rate Effective Dates (Oldest to Newest) | B273: 2003-01-01
B274: 0.0688
B278: Distribution
B279: DIST DR Prices
A280: Rate Effective Dates (Oldest to Newest) | B280: 2025-10-01
A282: Baseline | B282: 0.16192
A283: 101% - 130% | B283: 0.16192
A284: 130% - 200% | B284: 0.16192
A285: Above 400% | B285: 0.16192
A287: Rate Effective Dates (Oldest to Newest) | B287: 2025-11-01
A289: Baseline | B289: 0.16192
A290: 101% - 130% | B290: 0.16192
A291: 130% - 200% | B291: 0.16192
A292: Above 400% | B292: 0.16192
A294: Rate Effective Dates (Oldest to Newest) | B294: 2026-01-01
A296: Baseline | B296: 0.10067
A297: 101% - 130% | B297: 0.10067
A298: 130% - 200% | B298: 0.10067
A299: Above 400% | B299: 0.10067
B302: TRAC Schedule DR
B303: Electric Schedule DR TRAC DR Prices | D303: Electric Schedule DR-LI TRAC DRLI Prices | G303: Electric Schedule DR TRAC MED Prices | J303: Electric Schedule DR TRAC CARE/MED Prices
A305: Rate Effective Dates (Oldest to Newest) | B305: 2025-10-01 | D305: =B305 -> 2025-10-01 | G305: =B305 -> 2025-10-01 | J305: =B305 -> 2025-10-01
A307: Baseline | B307: -0.11047 | D307: =TRAC_DR_Price1_BL -> -0.11047 | G307: -0.20061 | J307: =TRAC_MED_Price1_BL -> -0.20061
A308: 101% - 130% | B308: -0.11047 | D308: =TRAC_DR_Price1_130 -> -0.11047 | G308: -0.20061 | J308: =TRAC_MED_Price1_130 -> -0.20061
A309: 130% - 400% | B309: -0.01357 | D309: =TRAC_DR_Price1_200 -> -0.01357 | G309: -0.20061 | J309: =TRAC_MED_Price1_200 -> -0.20061
A310: Above 400% | B310: -0.01357 | D310: =TRAC_DR_Price1_over -> -0.01357 | G310: -0.20061 | J310: =TRAC_MED_Price1_over -> -0.20061
A312: Rate Effective Dates (Oldest to Newest) | B312: 2025-11-01 | D312: =B312 -> 2025-11-01 | G312: =UDC_DR_Date2 -> 2026-04-01 | J312: =UDC_DR_Date2 -> 2026-04-01
A314: Baseline | B314: 0.02776 | D314: =TRAC_DR_Price2_BL -> 0.02776 | G314: -0.06238 | J314: =TRAC_MED_Price2_BL -> -0.06238
... 8 more rows

Sheet Output
A2: Account ID | B2: =IF(Input!B6="","",Input!B6) -> 
A3: Tenant Name | B3: =IF(Input!B7="","",Input!B7) -> 
A4: Address | B4: =IF(Input!B8="","",Input!B8) -> 
B5: =IF(Input!B9="","",Input!B9) -> 
B6: =IF(Input!B10="","",Input!B10) -> 
A10: TOTAL AMOUNT DUE | C10: =SUM(D165,D28,D30) -> 0
A13: Assistance Program | C13: =IF(CARE?="","",IF(CARE?=1,"No",IF(CARE?=2,"CARE",IF(CARE?=3,"FERA","")))) -> 
B15: Tenant Location | C15: =IF(TAX_LOC="","",IF(TAX_LOC=1,"Inside SD City Limits",IF(TAX_LOC=2,"Outside SD City Limits","Inside Chula Vista City Limits"))) -> 
A17: Number of Electric Medical Baseline Allowances | C17: =IF(InMedBL=5, "No E Medical Baseline",InMedBL) -> 0
A19: Number of Gas Medical Baseline Allowances | C19: =IF(Input!$B$46=5,"No Gas Medical Baseline", Input!B46) -> 0 | D19: =IF(InGMedBL=5, "No G Medical Baseline",InGMedBL) -> 0
A21: Baseline Designation | C21: =IF(InBL_LOC="","",IF(InBL_LOC=1,"Coastal",IF(InBL_LOC=2,"Mountain",IF(InBL_LOC=3,"Desert","Inland")))) -> 
A23: Service at Premise | C23: =IF(InG_E?="","",IF(InG_E?=1,"Gas & Electric","All Electric")) -> 
A25: Current bill includes these additional charges or credits in the Total Amount Due.
A28: =Input!B54 -> 0 | D28: =Input!E54 -> 0
A30: =Input!B55 -> 0 | D30: =Input!E55 -> 0
A39: ELECTRIC SERVICE | F39: =CONCATENATE("For: " &Input!B7) -> For:
A41: Rate | B41: =Rate_DR -> 
A43: Dates | B43: =E_Cust_Start_Date -> 00:00:00 | C43: =E_Cust_End_Date -> 00:00:00
A45: Reads | B45: =InEstartRead -> 0 | C45: =InEendRead -> 0
A47: Total Usage | B47: =Total_kWh_DR -> 0 | N47: Usage
N48: Non-Baseline
C49: =IFERROR(CONCATENATE(Output!N54," ",Output!N55," ",BL_Allow," ",Output!N57," "),"") ->  | N49: Therms @
C51: =IF(D51<=0,"",CONCATENATE($N66 & IF(CARE?=1,"",IF(CARE?=2,": CARE ",IF(CARE?=3,": FERA ",IF(CARE?=4,": DRAH ","")))) &" "&'DR-CALC '!H11," "&$N$67," ",'DR-CALC '!X184," ")) ->  | D51: ='DR-CALC '!Y184 -> 0
C52: =IF(D52<=0,"",CONCATENATE($N66 & IF(CARE?=1,"",IF(CARE?=2,": CARE ",IF(CARE?=3,": FERA ",IF(CARE?=4,": DRAH ","")))) &" "&'DR-CALC '!H12," "&$N$67," ",'DR-CALC '!X186," ")) ->  | D52: ='DR-CALC '!Y186 -> 0
N53: Therms
A54: Electricity Delivery | C54: =CONCATENATE(IF(CARE?=2,"CARE ",""),Output!$N$54," ",MAX('DR-CALC '!$J$68,'DR-CALC '!$V$68)," ",Output!$N$58," ",MAX('DR-CALC '!U104,'DR-CALC '!L98), " ",'DR-CALC '!$H$11," ",Output!$N$59) -> Baseline 0 kWh @ 0 0/0 Days | N54: Baseline
C55: =CONCATENATE(IF(CARE?=2,"CARE ",""),IF(AND(CARE?=2,InE_MedBL<>5),"/ ",""),IF(InE_MedBL=5,"","Medical "),$N$60,MAX('DR-CALC '!$J$69,'DR-CALC '!$V$69)+MAX('DR-CALC '!$J$68,'DR-CALC '!$V$68)," ",Output!$N$58," ",MAX('DR-CALC '!U104,'DR-CALC '!L98), " ",'DR-CALC '!$H$11," ",Output!$N$59) -> Medical 0% - 130% of Baseline 0 kWh @ 0 0/0 Days | D55: =IF(OR('DR-CALC '!$J$69,'DR-CALC '!$V$69)>0,MAX('DR-CALC '!N99,'DR-CALC '!W105),"") + IF(OR('DR-CALC '!$J$68,'DR-CALC '!$V$68)>0,MAX('DR-CALC '!N98,'DR-CALC '!W104),"") -> 0 | N55: Allowance
C56: =CONCATENATE(IF(CARE?=2,"CARE ",""),IF(AND(CARE?=2,InE_MedBL<>5),"/ ",""),IF(InE_MedBL=5,"","Medical "),IF(D57<>"",$N$62,$N$61),IF(D57="",MAX(SUM('DR-CALC '!$J$70:$J$72),SUM('DR-CALC '!$V$70:$V$72)),MAX(SUM('DR-CALC '!$J$70:$J$71),SUM('DR-CALC '!$V$70:$V$71)))," ",Output!$N$58," ",MAX('DR-CALC '!U106,'DR-CALC '!L100), " ",'DR-CALC '!$H$11," ",Output!$N$59) -> Medical More than 130% of Baseline 0 kWh @ 0 0/0 Days | D56: =IF(OR('DR-CALC '!$J$70,'DR-CALC '!$V$70)>0,MAX('DR-CALC '!N100,'DR-CALC '!W106),"")+IF(OR('DR-CALC '!$J$71,'DR-CALC '!$V$71)>0,MAX('DR-CALC '!N103,'DR-CALC '!W109),"")-IF(D57<>"",D57,0) -> 0 | N56: CARE
C57: =IF(D57<>"",'DR-CALC '!L11&CONCATENATE(IF(CARE?=2,"CARE ",""),IF(AND(CARE?=2,InE_MedBL<>5),"/ ",""),IF(InE_MedBL=5,"","Medical "))&"High Usage Charge "&MAX('DR-CALC '!$J$72,'DR-CALC '!$V$72)&" kWh @ "&MAX('DR-CALC '!U108,'DR-CALC '!L102),"") ->  | D57: =IF(End_Date1_DR>=DATEVALUE("11/1/2017"),IF(OR('DR-CALC '!L101<>'DR-CALC '!L102,'DR-CALC '!U107<>'DR-CALC '!U108),MAX('DR-CALC '!N102,'DR-CALC '!W108),""),"") ->  | N57: kWh
N58: kWh @
N59: Days
C60: =CONCATENATE(IF(CARE?=2,"CARE ",""),IF(AND(CARE?=2,InE_MedBL<>5),"/ ",""),IF(InE_MedBL=5,"","Medical "),$N$60,MAX('DR-CALC '!$J$69,'DR-CALC '!$V$69)+MAX('DR-CALC '!$J$68,'DR-CALC '!$V$68)," ",Output!$N$58," ",MAX('DR-CALC '!U117,'DR-CALC '!L111), " ",'DR-CALC '!$H$12," ",Output!$N$59) -> Medical 0% - 130% of Baseline 0 kWh @ 0 Days | D60: =IF(OR(('DR-CALC '!$J$69+'DR-CALC '!$J$68),('DR-CALC '!$Z$69))>0,MAX(('DR-CALC '!Z111),('DR-CALC '!Z117)),"") -> 0 | N60: 0% - 130% of Baseline
C61: =CONCATENATE(IF(CARE?=2,"CARE ",""),IF(AND(CARE?=2,InE_MedBL<>5),"/ ",""),IF(InE_MedBL=5,"","Medical "),IF(D62<>"",$N$62,$N$61),IF(D62="",MAX(SUM('DR-CALC '!$J$70:$J$72),SUM('DR-CALC '!$V$70:$V$72)),MAX(SUM('DR-CALC '!$J$70:$J$71),SUM('DR-CALC '!$V$70:$V$71)))," ",Output!$N$58," ",MAX('DR-CALC '!U119,'DR-CALC '!L113), " ",'DR-CALC '!$H$12," ",Output!$N$59) -> Medical More than 130% of Baseline 0 kWh @ 0 Days | D61: =IF(OR('DR-CALC '!$J$70,'DR-CALC '!$V$70)>0,MAX('DR-CALC '!N113,'DR-CALC '!W119),"")+IF(OR('DR-CALC '!$J$71,'DR-CALC '!$V$71)>0,MAX('DR-CALC '!N116,'DR-CALC '!W122),"")-IF(D62="",0,D62) -> 0 | N61: More than 130% of Baseline
C62: =IF(D62<>"",'DR-CALC '!L12&CONCATENATE(IF(CARE?=2,"CARE ",""),IF(AND(CARE?=2,InE_MedBL<>5),"/ ",""),IF(InE_MedBL=5,"","Medical "))&"High Usage Charge "&MAX('DR-CALC '!$J$72,'DR-CALC '!$V$72)&" kWh @ "&MAX('DR-CALC '!U121,'DR-CALC '!L115),"") ->  | D62: =IF(End_Date2_DR>=DATEVALUE("11/1/2017"),IF(OR('DR-CALC '!L114<>'DR-CALC '!L115,'DR-CALC '!U120<>'DR-CALC '!U121),MAX('DR-CALC '!N115,'DR-CALC '!W121),""),"") ->  | N62: 131% - 400% of Baseline
N63: FERA Discount
C64: =CONCATENATE(IF(CARE?=2,"CARE ",""),Output!$N$54," ",MAX('DR-CALC '!$J$68,'DR-CALC '!$V$68)," ",Output!$N$58," ",MAX('DR-CALC '!L137,'DR-CALC '!U143), " ",'DR-CALC '!$H$13," ",Output!$N$59) -> Baseline 0 kWh @ 0 Days | D64: =MAX('DR-CALC '!N124,'DR-CALC '!W130) -> 0 | N64: Wildfire Fund Charge
C65: =CONCATENATE(IF(CARE?=2,"CARE ",""),$N$60," ",MAX('DR-CALC '!$J$69,'DR-CALC '!$V$69)," ",Output!$N$58," ",MAX('DR-CALC '!L138,'DR-CALC '!U144), " ",'DR-CALC '!$H$13," ",Output!$N$59) -> 0% - 130% of Baseline 0 kWh @ 0 Days | D65: =MAX('DR-CALC '!N125,'DR-CALC '!W131) -> 0 | N65: Electricity Generation
C66: =CONCATENATE(IF(CARE?=2,"CARE ",""),$N$61," ",MAX(SUM('DR-CALC '!$J$70:$J$72),SUM('DR-CALC '!$V$70:$V$72))," ",Output!$N$58," ",MAX('DR-CALC '!L139,'DR-CALC '!U145), " ",'DR-CALC '!$H$13," ",Output!$N$59) -> More than 130% of Baseline 0 kWh @ 0 Days | D66: =MAX('DR-CALC '!N126,'DR-CALC '!W132)+IF(OR('DR-CALC '!$J$71,'DR-CALC '!$V$71)>0,MAX('DR-CALC '!W135,'DR-CALC '!N129),"") -> 0 | N66: Base Service Charge
N67: Days @
C69: =CONCATENATE(IF(CARE?=2,"CARE ",""),Output!$N$54," ",MAX('DR-CALC '!$J$68,'DR-CALC '!$V$68)," ",Output!$N$58," ",MAX('DR-CALC '!L137,'DR-CALC '!U143), " ",'DR-CALC '!$H$13," ",Output!$N$59) -> Baseline 0 kWh @ 0 Days | D69: =MAX('DR-CALC '!N137,'DR-CALC '!W143) -> 0
C70: =CONCATENATE(IF(CARE?=2,"CARE ",""),$N$60," ",MAX('DR-CALC '!$J$69,'DR-CALC '!$V$69)," ",Output!$N$58," ",MAX('DR-CALC '!L138,'DR-CALC '!U144), " ",'DR-CALC '!$H$13," ",Output!$N$59) -> 0% - 130% of Baseline 0 kWh @ 0 Days | D70: =MAX('DR-CALC '!N138,'DR-CALC '!W144) -> 0
C71: =CONCATENATE(IF(CARE?=2,"CARE ",""),$N$61," ",MAX(SUM('DR-CALC '!$J$70:$J$72),SUM('DR-CALC '!$V$70:$V$72))," ",Output!$N$58," ",MAX('DR-CALC '!L139,'DR-CALC '!U145), " ",'DR-CALC '!$H$13," ",Output!$N$59) -> More than 130% of Baseline 0 kWh @ 0 Days | D71: =MAX('DR-CALC '!N139,'DR-CALC '!W145)+IF(OR('DR-CALC '!$J$71,'DR-CALC '!$V$71)>0,MAX('DR-CALC '!N142,'DR-CALC '!W148),"") -> 0
C73: Subtotal: Electricity Delivery | D73: =UDC_Total -> 0
C76: =IF(Rate_DR="DR",CONCATENATE($N$64," ",Total_kWh_DR," ",$N$58," ",'DR-CALC '!L202," ",'DR-CALC '!H11," ",Output!$N$59),"Wild Fire Fund N/A") -> Wild Fire Fund N/A | D76: ='DR-CALC '!P204 -> 0
C77: =IF(Rate_DR="DR",CONCATENATE($N$64," ",Total_kWh_DR," ",$N$58," ",'DR-CALC '!L206," ",'DR-CALC '!H12," ",Output!$N$59),"Wild Fire Fund N/A") -> Wild Fire Fund N/A | D77: ='DR-CALC '!P208 -> 0
C78: =IF(Rate_DR="DR",CONCATENATE($N$64," ",Total_kWh_DR," ",$N$58," ",'DR-CALC '!L210," ",'DR-CALC '!H13," ",Output!$N$59),"Wild Fire Fund N/A") -> Wild Fire Fund N/A | D78: ='DR-CALC '!P212 -> 0
C79: =IF(Rate_DR="DR",CONCATENATE($N$64," ",Total_kWh_DR," ",$N$58," ",'DR-CALC '!L214," ",'DR-CALC '!H14," ",Output!$N$59),"Wild Fire Fund N/A") -> Wild Fire Fund N/A | D79: ='DR-CALC '!P216 -> 0
C80: Subtotal: Wildfire Fund Charge | D80: =DWR_Bond_Chrg -> 0
C81: =IF(D81<=0,"","Subtotal DWR Credit") ->  | D81: =DWR_REV_ADJ -> 0
C82: =IF(D82="","","Residential Care Discount") ->  | D82: =IFERROR(CARE_Discount,) -> 
C83: =IF(D83="","","CA Climate Cred") ->  | D83: =IF(CA_Climate_Cred=0,"",CA_Climate_Cred) -> 
C84: =IF(D84="","","FERA Discount") ->  | D84: =FERA_Discount -> 
C85: =IF(OR(InE_MedBL=0,InE_MedBL=5),"","Medical Discount") ->  | D85: =IF(Medical_Discount=0,"",Medical_Discount) -> 
C86: =IF(D86="","","Minimum Charge") ->  | D86: =IFERROR(IF(IF(CARE_OR_MB?,MAX(0,Min_Chrg_Adj_CARE),MAX(0,Min_Chrg_Adj))<>0,IF(CARE_OR_MB?,MAX(0,Min_Chrg_Adj_CARE),MAX(0,Min_Chrg_Adj)),""),"") -> 
C88: =IF(AND(Rate_DR="DRLI",Units_Med>0),CONCATENATE(N56," ","/"," ","Medical"," ",Output!N65),IF(AND(Rate_DR="DR",Units_Med>0),CONCATENATE("Medical"," ",Output!N65),"")) -> 
B89: =IF(AND(Rate_DR="DRLI",Units_Med=0),CONCATENATE("CARE"," ",Output!N65),IF(AND(Rate_DR="DR",Units_Med=0),Output!N65,"")) -> 
C90: =CONCATENATE(N54," ",MAX('DR-CALC '!$V$68,'DR-CALC '!$J$68)," ",Output!$N$58," ",MAX('DR-CALC '!L275,'DR-CALC '!U275), " ",'DR-CALC '!H11," ",Output!$N$59) -> Baseline 0 kWh @ 0 0/0 Days
C91: =CONCATENATE(IF(CARE?=2,"CARE ",""),IF(AND(CARE?=2,InE_MedBL<>5),"/ ",""),IF(InE_MedBL=5,"","Medical "),$N$60," ",MAX('DR-CALC '!$V$69,'DR-CALC '!$J$69)+MAX('DR-CALC '!$J$68,'DR-CALC '!$V$68)," ",Output!$N$58," ",MAX('DR-CALC '!L275,'DR-CALC '!U275), " ",'DR-CALC '!H11," ",Output!$N$59) -> Medical 0% - 130% of Baseline 0 kWh @ 0 0/0 Days | D91: =MAX('DR-CALC '!N276,'DR-CALC '!W276)+MAX('DR-CALC '!N275,'DR-CALC '!W275) -> 0
C92: =CONCATENATE(IF(CARE?=2,"CARE ",""),IF(AND(CARE?=2,InE_MedBL<>5),"/ ",""),IF(InE_MedBL=5,"","Medical "),$N$61," ",MAX(SUM('DR-CALC '!$J$70:$J$72),SUM('DR-CALC '!$V$70:$V$72))," ",Output!$N$58," ",MAX('DR-CALC '!L277,'DR-CALC '!U277), " ",'DR-CALC '!H11," ",Output!$N$59) -> Medical More than 130% of Baseline 0 kWh @ 0 0/0 Days | D92: =MAX('DR-CALC '!N277,'DR-CALC '!W277)+MAX('DR-CALC '!N280,'DR-CALC '!W280) -> 0
C95: =CONCATENATE($N$54," ",MAX('DR-CALC '!$V$68,'DR-CALC '!$J$68)," ",Output!$N$58," ",MAX('DR-CALC '!L281,'DR-CALC '!U281), " ",'DR-CALC '!$H$12," ",Output!$N$59) -> Baseline 0 kWh @ 0 Days
C96: =CONCATENATE(IF(CARE?=2,"CARE ",""),IF(AND(CARE?=2,InE_MedBL<>5),"/ ",""),IF(InE_MedBL=5,"","Medical "),$N$60," ",MAX('DR-CALC '!$V$69,'DR-CALC '!$J$69)+MAX('DR-CALC '!$V$68,'DR-CALC '!$J$68)," ",Output!$N$58," ",MAX('DR-CALC '!L281,'DR-CALC '!U281), " ",'DR-CALC '!$H$12," ",Output!$N$59) -> Medical 0% - 130% of Baseline 0 kWh @ 0 Days | D96: =MAX('DR-CALC '!N282,'DR-CALC '!W282)+MAX('DR-CALC '!N281,'DR-CALC '!W281) -> 0
C97: =CONCATENATE(IF(CARE?=2,"CARE ",""),IF(AND(CARE?=2,InE_MedBL<>5),"/ ",""),IF(InE_MedBL=5,"","Medical "),$N$61," ",MAX(SUM('DR-CALC '!$J$70:$J$72),SUM('DR-CALC '!$V$70:$V$72))," ",Output!$N$58," ",MAX('DR-CALC '!L283,'DR-CALC '!U283), " ",'DR-CALC '!$H$12," ",Output!$N$59) -> Medical More than 130% of Baseline 0 kWh @ 0 Days | D97: =MAX('DR-CALC '!N283,'DR-CALC '!W283)+MAX('DR-CALC '!N286,'DR-CALC '!W286) -> 0
C100: =CONCATENATE($N$54," ",MAX('DR-CALC '!$V$68,'DR-CALC '!$J$68)," ",Output!$N$58," ",MAX('DR-CALC '!L287,'DR-CALC '!U287), " ",'DR-CALC '!$H$12," ",Output!$N$59) -> Baseline 0 kWh @ 0 Days | D100: =MAX('DR-CALC '!W287,'DR-CALC '!N287) -> 0
C101: =CONCATENATE($N$60," ",MAX('DR-CALC '!$V$69,'DR-CALC '!$J$69)," ",Output!$N$58," ",MAX('DR-CALC '!L288,'DR-CALC '!U288), " ",'DR-CALC '!$H$12," ",Output!$N$59) -> 0% - 130% of Baseline 0 kWh @ 0 Days | D101: =MAX('DR-CALC '!W288,'DR-CALC '!N288) -> 0
C102: =CONCATENATE($N$61," ",MAX(SUM('DR-CALC '!$J$70:$J$72),SUM('DR-CALC '!$V$70:$V$72))," ",Output!$N$58," ",MAX('DR-CALC '!L289,'DR-CALC '!U289), " ",'DR-CALC '!$H$12," ",Output!$N$59) -> More than 130% of Baseline 0 kWh @ 0 Days | D102: =MAX('DR-CALC '!W289,'DR-CALC '!N289)+MAX('DR-CALC '!N292,'DR-CALC '!W292) -> 0
C104: =CONCATENATE($N$54," ",MAX('DR-CALC '!$V$68,'DR-CALC '!$J$68)," ",Output!$N$58," ",MAX('DR-CALC '!L293,'DR-CALC '!U293), " ",'DR-CALC '!$H$12," ",Output!$N$59) -> Baseline 0 kWh @ 0 Days | D104: =MAX('DR-CALC '!N293,'DR-CALC '!W293) -> 0
C105: =CONCATENATE($N$60," ",MAX('DR-CALC '!$V$69,'DR-CALC '!$J$69)," ",Output!$N$58," ",MAX('DR-CALC '!L294,'DR-CALC '!U294), " ",'DR-CALC '!$H$12," ",Output!$N$59) -> 0% - 130% of Baseline 0 kWh @ 0 Days | D105: =MAX('DR-CALC '!N294,'DR-CALC '!W294) -> 0
C106: =CONCATENATE($N$61," ",MAX(SUM('DR-CALC '!$J$70:$J$72),SUM('DR-CALC '!$V$70:$V$72))," ",Output!$N$58," ",MAX('DR-CALC '!L295,'DR-CALC '!U295), " ",'DR-CALC '!$H$12," ",Output!$N$59) -> More than 130% of Baseline 0 kWh @ 0 Days | D106: =MAX('DR-CALC '!N295,'DR-CALC '!W295)+MAX('DR-CALC '!W298,'DR-CALC '!N298) -> 0
C108: Subtotal: Electric Energy Charges | D108: ='DR-CALC '!N306 -> 0
C110: Total Electric Charges | D110: =SUM(D52,D51,ROUND(D108,2),ROUND(SUM(D80:D88),2),ROUND(D73,2)) -> 0
A114: GAS SERVICE | F114: =CONCATENATE("For: " &Input!B7) -> For:
A116: Rate | B116: =Rate_GR -> GR
A118: Dates | B118: =G_Cust_Start_Date -> 00:00:00 | C118: =G_Cust_End_Date -> 00:00:00
A120: Reads | B120: =InGstartRead -> 0 | C120: =InGendRead -> 0
A122: Therm Factor | B122: =Input!B48 -> 0
A124: Total Usage | B124: =BilledTherms -> 0
C126: =CONCATENATE(Output!N54," ",Output!N55," ",G_BSLN," ",Output!N53," ") -> Baseline Allowance 0 Therms
A127: Gas Service
C128: =CONCATENATE(IF(CARE?=2,"CARE ",""),Output!$N$54," ",MAX('GR-CALC'!H75,'GR-CALC'!Q75)," ",$N$49," ",MAX('GR-CALC'!L75,'GR-CALC'!U75), " ",'GR-CALC'!$H$11," ",Output!$N$59) -> Baseline 0 Therms @ 0 / Days | D128: =MAX('GR-CALC'!N75,'GR-CALC'!W75) -> 0
C129: =CONCATENATE(IF(CARE?=2,"CARE ",""),Output!$N$48," ",NonBL," ",$N$49," ",MAX('GR-CALC'!L76,'GR-CALC'!U76), " ",'GR-CALC'!$H$11," ",Output!$N$59) -> Non-Baseline 0 Therms @ 0 / Days | D129: =MAX('GR-CALC'!N76,'GR-CALC'!W76) -> 0
C131: =CONCATENATE(IF(CARE?=2,"CARE ",""),Output!$N$54," ",MAX('GR-CALC'!H75,'GR-CALC'!Q75)," ",$N$49," ",MAX('GR-CALC'!L78,'GR-CALC'!U78), " ",'GR-CALC'!$H$12," ",Output!$N$59) -> Baseline 0 Therms @ 0 Days | D131: =MAX('GR-CALC'!N78,'GR-CALC'!W78) -> 0
C132: =CONCATENATE(IF(CARE?=2,"CARE ",""),Output!$N$48," ",NonBL," ",$N$49," ",MAX('GR-CALC'!L79,'GR-CALC'!U79), " ",'GR-CALC'!$H$12," ",Output!$N$59) -> Non-Baseline 0 Therms @ 0 Days | D132: =MAX('GR-CALC'!N79,'GR-CALC'!W79) -> 0
C134: =CONCATENATE(IF(CARE?=2,"CARE ",""),Output!$N$54," ",MAX('GR-CALC'!H75,'GR-CALC'!Q75)," ",$N$49," ",MAX('GR-CALC'!L81,'GR-CALC'!U81), " ",'GR-CALC'!$H$13," ",Output!$N$59) -> Baseline 0 Therms @ 0 Days | D134: =MAX('GR-CALC'!N81,'GR-CALC'!W81) -> 0
C135: =CONCATENATE(IF(CARE?=2,"CARE ",""),Output!$N$48," ",NonBL," ",$N$49," ",MAX('GR-CALC'!L82,'GR-CALC'!U82), " ",'GR-CALC'!$H$13," ",Output!$N$59) -> Non-Baseline 0 Therms @ 0 Days | D135: =MAX('GR-CALC'!N82,'GR-CALC'!W82) -> 0
C137: =CONCATENATE(IF(CARE?=2,"CARE ",""),Output!$N$54," ",MAX('GR-CALC'!H75,'GR-CALC'!Q75)," ",$N$49," ",MAX('GR-CALC'!L84,'GR-CALC'!U84), " ",'GR-CALC'!$H$14," ",Output!$N$59) -> Baseline 0 Therms @ 0 Days | D137: =MAX('GR-CALC'!N84,'GR-CALC'!W84) -> 0
C138: =CONCATENATE(IF(CARE?=2,"CARE ",""),Output!$N$48," ",NonBL," ",$N$49," ",MAX('GR-CALC'!L85,'GR-CALC'!U85), " ",'GR-CALC'!$H$14," ",Output!$N$59) -> Non-Baseline 0 Therms @ 0 Days | D138: =MAX('GR-CALC'!N85,'GR-CALC'!W85) -> 0
C140: Gas Inspection Surcharge | D140: =IF(Input!$B$50=TRUE,0.21,0) -> 0
C142: California Solar Initiative Credit | D142: ='CARE-FERA'!J87 -> 0
C143: Residential CARE Discount | D143: =IF(G_Min_Chrg_Adj_CARE=0,'GR-CALC'!L101,'GR-CALC'!L101+'GR-CALC'!T101) -> 0
C144: =IF(D144="","","CA Climate Cred") ->  | D144: =IF(CA_Climate_Cred_G=0,"",CA_Climate_Cred_G) -> 
C145: =IF(D145="","","Minimum Charge") ->  | D145: =IF(G_Min_Chrg_Adj>0,G_Min_Chrg_Adj,"") -> 
C147: Gas Energy Charge
C148: =CONCATENATE($N$47,BilledTherms," ",Output!$N$49," ",MAX('GR-CALC'!L131,'GR-CALC'!U131)," ",'GR-CALC'!$H$11," ",Output!$N$59) -> Usage 0 Therms @ 0 / Days | D148: =MAX('GR-CALC'!N131,'GR-CALC'!W131) -> 0
C149: =CONCATENATE($N$47,BilledTherms," ",Output!$N$49," ",MAX('GR-CALC'!L134,'GR-CALC'!U134)," ",'GR-CALC'!$H$12," ",Output!$N$59) -> Usage 0 Therms @ 0 Days | D149: =MAX('GR-CALC'!N134,'GR-CALC'!W134) -> 0
C150: =CONCATENATE($N$47,BilledTherms," ",Output!$N$49," ",MAX('GR-CALC'!L137,'GR-CALC'!U137)," ",'GR-CALC'!$H$13," ",Output!$N$59) -> Usage 0 Therms @ 0 Days | D150: =MAX('GR-CALC'!N137,'GR-CALC'!W137) -> 0
C151: =CONCATENATE($N$47,BilledTherms," ",Output!$N$49," ",MAX('GR-CALC'!U140,'GR-CALC'!L140)," ",'GR-CALC'!$H$14," ",Output!$N$59) -> Usage 0 Therms @ 0 Days | D151: =MAX('GR-CALC'!N140,'GR-CALC'!W140) -> 0
C154: Total Gas Charges | D154: =SUM('GR-CALC'!N147,'GR-CALC'!H92,Output!D142:D145,D140) -> 0
A157: OTHER ACCOUNT CHARGES
C159: Franchise Fees on Electric Energy Supplied by Others | D159: ='TAX CALC'!L44 -> 0
C160: =IF('TAX CALC'!AA40>0,CONCATENATE("City of SD Franchise Fee Differential ",'TAX CALC'!AA40," Gas ",'TAX CALC'!AA30," Electric "),CONCATENATE("City of SD Franchise Fee Differential ",'TAX CALC'!AA30," Electric ")) -> City of SD Franchise Fee Differential 0.01 Gas 0.019 Electric | D160: ='TAX CALC'!L30 -> 
C161: =CONCATENATE("State Surcharge Tax ",'TAX CALC'!H54,"/kWh ") -> State Surcharge Tax 0.00029/kWh | D161: ='TAX CALC'!L53 -> 0
C162: =IF('TAX CALC'!AA91>0,CONCATENATE("State Regulatory Fee ",'TAX CALC'!H85,"/Therm, ",'TAX CALC'!H74,"/kWh "),CONCATENATE("State Regulatory Fee ",'TAX CALC'!H74,"/kWh ")) -> State Regulatory Fee 0.0008/kWh | D162: =SUM('TAX CALC'!L72,'TAX CALC'!L83) -> 0
C163: =IF('TAX CALC'!Z96="Y",CONCATENATE("Public Purpose Program - Gas "),CONCATENATE("Public Purpose Program - Gas ",MAX('TAX CALC'!AA104,'TAX CALC'!AA105),"/ Therm ")) -> Public Purpose Program - Gas 0.14754/ Therm | D163: ='TAX CALC'!L94 -> 
C164: Chula Vista City Tax…………………………...…..……………...…………….. | D164: ='TAX CALC'!L61 -> 
B165: TOTAL AMOUNT DUE | D165: =SUM(D51,D52,D73,D80, D81,D82:D88,D108,D154,D158:D164) -> 0

Sheet CARE-FERA (hidden)
B18: BILL DATES | L18: ='DR-CALC '!L6 -> 0 | M18: ='DR-CALC '!M6 -> 0 | N18: ='DR-CALC '!N6 -> 0 | O18: ='DR-CALC '!O6 -> 0 | P18: ='DR-CALC '!P6 -> 0 | Q18: ='DR-CALC '!Q6 -> 0 | R18: ='DR-CALC '!R6 -> 0
L19: ='DR-CALC '!L7 -> 0 | M19: ='DR-CALC '!M7 -> 0 | N19: ='DR-CALC '!N7 -> 0 | O19: ='DR-CALC '!O7 -> 0 | P19: ='DR-CALC '!P7 -> 0 | Q19: ='DR-CALC '!Q7 -> 0 | R19: ='DR-CALC '!R7 -> 0
B20: ='DR-CALC '!B8 -> Start | D20: ='DR-CALC '!D8 -> End Date | F20: ='DR-CALC '!F8 -> Days | J20: ='DR-CALC '!J8 -> Sum Total
B21: ='DR-CALC '!B9 -> 00:00:00 | C21: ='DR-CALC '!C9 -> - | D21: ='DR-CALC '!D9 -> 00:00:00 | F21: ='DR-CALC '!F9 -> 0 | J21: ='DR-CALC '!J9 -> 0 | L21: ='DR-CALC '!L9 -> 0 | N21: ='DR-CALC '!N9 -> 0 | P21: ='DR-CALC '!P9 -> 0 | Q21: ='DR-CALC '!Q9 -> 0 | R21: ='DR-CALC '!R9 -> 0
B23: ='DR-CALC '!B11 -> 00:00:00 | C23: ='DR-CALC '!C11 -> - | D23: ='DR-CALC '!D11 -> 00:00:00 | E23: ='DR-CALC '!E11 -> = | F23: ='DR-CALC '!F11 -> 0 | H23: ='DR-CALC '!H11 -> 0/0 | J23: ='DR-CALC '!J11 -> 0 | L23: ='DR-CALC '!L11 -> Winter | N23: ='DR-CALC '!N11 -> 0 | P23: ='DR-CALC '!P11 -> 0 | Q23: ='DR-CALC '!Q11 -> 0 | R23: ='DR-CALC '!R11 -> 0
B24: ='DR-CALC '!B12 ->  | C24: ='DR-CALC '!C12 -> - | D24: ='DR-CALC '!D12 ->  | E24: ='DR-CALC '!E12 -> = | F24: ='DR-CALC '!F12 ->  | H24: ='DR-CALC '!H12 ->  | J24: ='DR-CALC '!J12 ->  | L24: ='DR-CALC '!L12 ->  | N24: ='DR-CALC '!N12 -> 0 | P24: ='DR-CALC '!P12 -> 0 | Q24: ='DR-CALC '!Q12 -> 0 | R24: ='DR-CALC '!R12 -> 0
B25: ='DR-CALC '!B13 ->  | C25: ='DR-CALC '!C13 -> - | D25: ='DR-CALC '!D13 ->  | E25: ='DR-CALC '!E13 -> = | F25: ='DR-CALC '!F13 ->  | H25: ='DR-CALC '!H13 ->  | J25: ='DR-CALC '!J13 ->  | L25: ='DR-CALC '!L13 -> 0 | N25: ='DR-CALC '!N13 -> 0 | P25: ='DR-CALC '!P13 -> 0 | Q25: ='DR-CALC '!Q13 -> 0 | R25: ='DR-CALC '!R13 -> 0
B26: ='DR-CALC '!B14 ->  | C26: ='DR-CALC '!C14 -> - | D26: ='DR-CALC '!D14 ->  | E26: ='DR-CALC '!E14 -> = | F26: ='DR-CALC '!F14 ->  | H26: ='DR-CALC '!H14 ->  | J26: ='DR-CALC '!J14 ->  | L26: ='DR-CALC '!L14 -> 0 | N26: ='DR-CALC '!N14 -> 0 | P26: ='DR-CALC '!P14 -> 0 | Q26: ='DR-CALC '!Q14 -> 0 | R26: ='DR-CALC '!R14 -> 0
B27: ='DR-CALC '!B15 ->  | C27: ='DR-CALC '!C15 -> - | D27: ='DR-CALC '!D15 ->  | E27: ='DR-CALC '!E15 -> = | F27: ='DR-CALC '!F15 ->  | H27: ='DR-CALC '!H15 ->  | J27: ='DR-CALC '!J15 ->  | L27: ='DR-CALC '!L15 -> 0 | N27: ='DR-CALC '!N15 -> 0 | P27: ='DR-CALC '!P15 -> 0 | Q27: ='DR-CALC '!Q15 -> 0 | R27: ='DR-CALC '!R15 -> 0
B31: CARE Surcharge Exemption
D32: Total kWh | F32: Factor | J32: Billing Price | L32: = $ | N32: =SUM(L33:L37) -> 0 | AB32: CARE Credit Pice Prorated
B33: ='DR-CALC '!H11 -> 0/0 | D33: =IF($J$23="","",Total_kWh_DR) -> 0 | F33: =Factor1_DR -> 0 | J33: =IF(D33="","",$AE$41) -> 0 | L33: =IF(D33="","",ROUND(D33*F33*J33,2)) -> 0 | R33: Start | T33: End Date | V33: Days | Z33: Sum Total | AB33: Dates & Prices | AD33: Prorate flag | AE33: Prorate %
B34: ='DR-CALC '!H12 ->  | D34: =IF($J$24="","",Total_kWh_DR) ->  | F34: =Factor2_DR ->  | J34: =IF(D34="","",$AE$41) ->  | L34: =IF(D34="","",ROUND(D34*F34*J34,2)) ->  | R34: =E_Cust_Start_Date -> 00:00:00 | S34: - | T34: =E_Cust_End_Date -> 00:00:00 | V34: =Days_Billed_DR -> 0 | Z34: =SUM(Z36:Z40) -> 0 | AB34: =CAREcreditDate1 -> 2025-10-01 | AC34: =CAREcreditDate2 -> 2026-01-01 | AD34: =IF(AND(R34<AC34,T34>AC34),"Y","N") -> N
B35: ='DR-CALC '!H13 ->  | D35: =IF($J$25="","",Total_kWh_DR) ->  | F35: =Factor3_DR ->  | J35: =IF(D35="","",$AE$41) ->  | L35: =IF(D35="","",ROUND(D35*F35*J35,2)) ->  | Z35: Factor | AB35: =IF(CARE?=2,CAREcreditPrice1,0) -> 0 | AC35: =IF(CARE?=2,CAREcreditPrice2,0) -> 0
B36: ='DR-CALC '!H14 ->  | D36: =IF($J$26="","",Total_kWh_DR) ->  | F36: =Factor4_DR ->  | J36: =IF(D36="","",$AE$41) ->  | L36: =IF(D36="","",ROUND(D36*F36*J36,2)) ->  | R36: ='DR-CALC '!$B$11 -> 00:00:00 | S36: - | T36: =End_Date1_DR -> 00:00:00 | U36: = | V36: =Days1 -> 0 | X36: ='DR-CALC '!$H$11 -> 0/0 | Z36: =Factor1_DR -> 0 | AD36: =IF(T36="","",IF(AND(AD34="Y",T36<AC34),1,2)) -> 2 | AE36: =SUMIF(AD36:AD40,1,Z36:Z40) -> 0
B37: ='DR-CALC '!H15 ->  | D37: =IF($J$27="","",Total_kWh_DR) ->  | F37: =Factor5_DR ->  | J37: =IF(D37="","",$AE$41) ->  | L37: =IF(D37="","",ROUND(D37*F37*J37,2)) ->  | R37: ='DR-CALC '!$B$12 ->  | S37: - | T37: =End_Date2_DR ->  | U37: = | V37: =Days2 ->  | X37: ='DR-CALC '!$H$12 ->  | Z37: =Factor2_DR ->  | AA37: =IF(W37<>"",Y37-W37,"") ->  | AD37: =IF(T37="","",IF(AND(AD34="Y",T37<AC34),1,2)) ->  | AE37: =SUMIF(AD36:AD40,2,Z36:Z40) -> 0
R38: ='DR-CALC '!$B$13 ->  | S38: - | T38: =End_Date3_DR ->  | U38: = | V38: =Days3 ->  | X38: ='DR-CALC '!$H$13 ->  | Z38: =Factor3_DR ->  | AA38: =IF(W38<>"",Y38-W38,"") ->  | AD38: =IF(T38="","",IF(AND(AD34="Y",T38<AC34),1,2)) -> 
R39: ='DR-CALC '!$B$14 ->  | S39: - | T39: =End_Date4_DR ->  | U39: = | V39: =Days4 ->  | X39: ='DR-CALC '!$H$14 ->  | Z39: =Factor4_DR ->  | AA39: =IF(W39<>"",Y39-W39,"") ->  | AD39: =IF(T39="","",IF(AND(AD34="Y",T39<AC34),1,2)) -> 
B40: Proration for Care Discount % | F40: Calculate Care/Med Percent (Newest) | L40: Calculate Care/Med Percent (Older) | R40: ='DR-CALC '!$B$15 ->  | S40: - | T40: =End_Date5_DR ->  | U40: = | V40: =Days5 ->  | X40: ='DR-CALC '!$H$15 ->  | Z40: =Factor5_DR ->  | AA40: =IF(W40<>"",Y40-W40,"") ->  | AD40: =IF(T40="","",IF(AND(AD34="Y",T40<AC34),1,2)) -> 
V41: =SUM(V36:V40) -> 0 | AD41: CARE Credit Prorated Price | AE41: =IF(AND(AD34="N",T34<AC34),AB35,IF(AND(AD34="N",T34>AC34),AC35,ROUND(ROUND(AE36*AB35,10)+ROUND(AC35*AE37,10),5))) -> 0
B42: =F23 -> 0 | D42: =ROUND(B42/(Input!$B$28),10) ->  | F42: Consumption Ratio | L42: Consumption Ratio | R42: CARE/MED Discount
B43: =Input!$B$28-B42 -> 0 | D43: =ROUND(B43/(Input!$B$28),10) ->  | F43: =ROUND('DR-CALC '!$V$68/'DR-CALC '!$V$73,10) ->  | G43: x | H43: =$D$43 ->  | I43: x | J43: =HLOOKUP(E_Cust_End_Date,Input!B148:D149,2) ->  | L43: =ROUND('DR-CALC '!$V$68/'DR-CALC '!$V$73,10) ->  | M43: x | N43: =$D$42 ->  | O43: x | P43: =HLOOKUP(E_Cust_Start_Date,Input!B148:D149,2) -> 
F44: =ROUND('DR-CALC '!$V$69/'DR-CALC '!$V$73,10) ->  | G44: x | H44: =$D$43 ->  | I44: x | J44: =HLOOKUP(E_Cust_End_Date,Input!B148:D149,2) ->  | L44: =ROUND('DR-CALC '!$V$69/'DR-CALC '!$V$73,10) ->  | M44: x | N44: =$D$42 ->  | O44: x | P44: =HLOOKUP(E_Cust_Start_Date,Input!B148:D149,2) ->  | R44: =ROUND('DR-CALC '!$V$68/'DR-CALC '!$V$73,10) ->  | T44: 0.03016
F45: =ROUND(SUM('DR-CALC '!$V$70:$V$72)/'DR-CALC '!$V$73,10) ->  | G45: x | H45: =$D$43 ->  | I45: x | J45: =HLOOKUP(E_Cust_End_Date,Input!B148:D149,2) ->  | L45: =ROUND(SUM('DR-CALC '!$V$70:$V$72)/'DR-CALC '!$V$73,10) ->  | M45: x | N45: =$D$42 ->  | O45: x | P45: =HLOOKUP(E_Cust_Start_Date,Input!B148:D149,2) -> 
J46: =IF(ISERR(ROUND(ROUND(F43*H43,10)*J43,5)+ROUND(ROUND(F44*H44,10)*J44,5)+ROUND(ROUND(F45*H45,10)*J45,5))=TRUE,0,ROUND(ROUND(F43*H43,10)*J43,5)+ROUND(ROUND(F44*H44,10)*J44,5)+ROUND(ROUND(F45*H45,10)*J45,5)) -> 0 | P46: =IF(ISERR(ROUND(ROUND(L43*N43,10)*P43,5)+ROUND(ROUND(L44*N44,10)*P44,5)+ROUND(ROUND(L45*N45,10)*P45,5))=TRUE,0,ROUND(ROUND(L43*N43,10)*P43,5)+ROUND(ROUND(L44*N44,10)*P44,5)+ROUND(ROUND(L45*N45,10)*P45,5)) -> 0
B48: Residential Care Discount
B49: UDC | D49: DWR Rev Credit | F49: Commodity | H49: Care Surchrg | J49: Min Chrg | L49: CSI | R49: Total Charges | V49: Summary calc
B50: =UDC_Total -> 0 | C50: + | D50: =DWR_REV_ADJ -> 0 | E50: + | F50: ='DR-CALC '!N306 -> 0 | G50: + | H50: =CARE_Sur_Exmpt -> 0 | I50: + | K50: + | Q50: = | R50: =SUM(B50:N50) -> 0 | V50: =SUM(B50,D50,F50) -> 0
B52: Total Charges | C52: x | D52: Care % Discount | H52: Care Surchrg | J52: CSI | L52: Total
B53: =R50 -> 0 | C53: (x) | D53: =IF(OR(InE_MedBL=0,InE_MedBL=5), HLOOKUP(E_Cust_Start_Date,Input!B138:D139,2),P46) ->  | E53: = | F53: =ROUND(B53*D53*IF(AND(CARE?=2,OR(InE_MedBL=0,InE_MedBL=5)),$D42,1),2) ->  | G53: + | H53: =CARE_Sur_Exmpt -> 0 | K53: = | L53: =IF(CARE?=2,SUM(F53:H53)+F54,"") -> 
A54: Newest % Period | B54: =R50 -> 0 | C54: (x) | D54: =IF(OR(InE_MedBL=0,InE_MedBL=5), HLOOKUP(E_Cust_End_Date,Input!B138:D139,2),J46) ->  | E54: = | F54: =ROUND(B54*D54*IF(AND(CARE?=2,OR(InE_MedBL=0,InE_MedBL=5)),$D43,1),2) -> 
B65: a | D65: =IF(CARE?=1, "YAY","NOOOO") -> NOOOO
A69: CSI - CAL SOLAR INITIATIVE | F69: Only FERA - added to FERA discount line
B70: Factor | D70: Total kWh | F70: Factor | J70: Billing Price | L70: = $ | N70: =SUM(L71:L75) -> 
A71: =MAX(0,(Input!$B$225-1)-E_Cust_Start_Date) -> 43830 | B71: =ROUND(A71/(Input!$B$28),10) ->  | D71: =Total_kWh_DR -> 0 | E71: * | F71: =B71 ->  | J71: =IF(CARE?=3, IF(End_Date1_DR<Input!$B$225,Input!$B$223,Input!$B$226), IF(CARE?=2, IF(End_Date1_DR<Input!$B$218,Input!$B$216,Input!$B$219), "")) ->  | L71: =IF(D71="","",ROUND(D71*F71*J71,2)) -> 
A72: =Input!$B$28-A71 -> -43830 | B72: =ROUND(A72/(Input!$B$28),10) ->  | D72: =D71 -> 0 | E72: * | F72: =B72 ->  | J72: =IF(CARE?=3, IF(End_Date2_DR<Input!$B$225,Input!$B$223,Input!$B$226), IF(CARE?=2, IF(End_Date2_DR<Input!$B$218,Input!$B$216,Input!$B$219), "")) ->  | L72: =IF(D72="","",ROUND(D72*F72*J72,2)) -> 
B73: =B35 ->  | D73: =IF(AND(CARE?=1,InE_MedBL>0,InE_MedBL<>5),"",IF(AND(OR(CARE?=2,CARE?=3),F73<>""),Total_kWh_DR,"")) ->  | F73: =F35 ->  | J73: =IF(OR(D73="",CARE?<>3),"",IF(End_Date3_DR<Input!$B$218,Input!$B$216,Input!$B$219)) ->  | L73: =IF(D73="","",ROUND(D73*F73*J73,2)) -> 
B74: =B36 ->  | D74: =IF(AND(CARE?=1,InE_MedBL>0,InE_MedBL<>5),"",IF(AND(OR(CARE?=2,CARE?=3),F74<>""),Total_kWh_DR,"")) ->  | F74: =F36 ->  | J74: =IF(OR(D74="",CARE?<>3),"",IF(End_Date4_DR<Input!$B$218,Input!$B$216,Input!$B$219)) ->  | L74: =IF(D74="","",ROUND(D74*F74*J74,2)) -> 
B75: =B37 ->  | D75: =IF(AND(CARE?=1,InE_MedBL>0,InE_MedBL<>5),"",IF(AND(OR(CARE?=2,CARE?=3),F75<>""),Total_kWh_DR,"")) ->  | F75: =F37 ->  | J75: =IF(OR(D75="",CARE?<>3),"",IF(End_Date5_DR<Input!$B$218,Input!$B$216,Input!$B$219)) ->  | L75: =IF(D75="","",ROUND(D75*F75*J75,2)) -> 
B77: New FERA Discount | D77: Factor
B78: =MAX(0,(Input!$B$164-1)-E_Cust_Start_Date) -> 45930 | D78: =ROUND(B78/(Input!$B$28),10) ->  | F78: =Input!B162 -> -0.17974 | G78: x | H78: =SUM(UDC_Total,DWR_REV_ADJ,EECC_Total,DWR_Bond_Chrg) -> 0 | I78: x | J78: =D78 ->  | K78: = | L78: =ROUND(F78*H78*J78,2) -> 
B79: =Input!$B$28-B78 -> -45930 | D79: =ROUND(B79/(Input!$B$28),10) ->  | F79: =Input!B165 -> -0.18 | G79: x | H79: =SUM(UDC_Total,DWR_REV_ADJ,EECC_Total,DWR_Bond_Chrg) -> 0 | I79: x | J79: =D79 ->  | K79: = | L79: =ROUND(F79*H79*J79,2) ->  | N79: =IF(CARE?=3,SUM(L78:L79,$N$70),"") -> 
A85: GAS - CSI
B86: Therms | C86: x | D86: Factor | E86: x | F86: Price | H86: = $ | J86: Total
B87: =IF(AND(D87<>"",Rate_GR="GRLI"),BilledTherms,"") ->  | D87: =GFactor1 ->  | F87: =IF(B87="","",IF(End_Date1_GR<Input!$B$93,Input!$B$91,Input!$B$94)) ->  | H87: =IF(B87="","",B87*D87*F87) ->  | J87: =ROUND(SUM(H87:H91),2) -> 0
B88: =IF(AND(D88<>"",Rate_GR="GRLI"),BilledTherms,"") ->  | D88: =GFactor2 ->  | F88: =IF(B88="","",IF(End_Date2_GR<Input!$B$93,Input!$B$91,Input!$B$94)) ->  | H88: =IF(B88="","",B88*D88*F88) -> 
B89: =IF(AND(D89<>"",Rate_GR="GRLI"),BilledTherms,"") ->  | D89: =GFactor3 ->  | F89: =IF(B89="","",IF(End_Date3_GR<Input!$B$93,Input!$B$91,Input!$B$94)) ->  | H89: =IF(B89="","",B89*D89*F89) -> 
B90: =IF(AND(D90<>"",Rate_GR="GRLI"),BilledTherms,"") ->  | D90: =GFactor4 ->  | F90: =IF(B90="","",IF(End_Date4_GR<Input!$B$93,Input!$B$91,Input!$B$94)) ->  | H90: =IF(B90="","",B90*D90*F90) -> 
A91: New change GRC 2026 | B91: =IF(AND(D91<>"",Rate_GR="GRLI"),BilledTherms,"") ->  | D91: =GFactor5 ->  | F91: =IF(B91="","",IF(End_Date4_GR<Input!$B$93,Input!$B$91,Input!$B$94)) ->  | H91: =IF(B91="","",B91*D91*F91) -> 
B93: Residential Medical Discount
B94: UDC | D94: DWR Rev Credit | F94: Commodity | H94: Care Surchrg | J94: DWR Bond Charge | L94: CARE Discount | N94: FERA Discount | R94: Total Charges
B95: =UDC_Total -> 0 | C95: + | D95: =DWR_REV_ADJ -> 0 | E95: + | F95: ='DR-CALC '!N306 -> 0 | G95: + | H95: =CARE_Sur_Exmpt -> 0 | I95: + | J95: =DWR_Bond_Chrg -> 0 | K95: + | L95: =IF(CARE?=2,CARE_Discount,0) -> 0 | M95: + | N95: =IF(CARE?=3,FERA_Discount,0) -> 0 | Q95: = | R95: =SUM(B95:N95) -> 0
A99: Medical Discount | B99: Total Charges | C99: x | D99: Medical % Discount | E99: x | F99: Factor | L99: Total
A100: =IF(E_Cust_End_Date>=B103,MAX(0,(Input!$G$164-1)-E_Cust_Start_Date),0) -> 0 | B100: =R95 -> 0 | C100: (x) | D100: =IF(OR(InE_MedBL=0,InE_MedBL=5),0,Input!G162) -> 0 | E100: (x) | F100: =ROUND(A100/(Input!$B$28),10) ->  | G100: = | H100: =ROUND(B100*D100*F100,2) ->  | K100: = | L100: =IF(OR(InE_MedBL=0,InE_MedBL=5),0,H100+H101) -> 0
A101: =IF(E_Cust_End_Date>=B103,Input!$B$28-A100,0) -> 0 | B101: =R95 -> 0 | C101: (x) | D101: =IF(OR(InE_MedBL=0,InE_MedBL=5),0,Input!G165) -> 0 | E101: (x) | F101: =ROUND(A101/(Input!$B$28),10) ->  | G101: = | H101: =ROUND(B101*D101*F101,2) -> 
A103: Medical Discount Effective Date | B103: 2026-04-01

Sheet TBL-DR (hidden)
A1: DR-LI & * CARE for DS, DT, DTRV * start in row 100
A3: Workpaper Issued | D3: Rate Table for DR, DRLI
A4: DATE | B4: 2 | C4: 3 | D4: 4 | E4: 5 | F4: 6 | G4: 7 | H4: 8 | I4: 9 | J4: 10 | K4: 11 | L4: 12 | M4: 13 | N4: 14 | O4: 15 | P4: 16 | Q4: 17 | R4: 18 | S4: 19 | T4: 20 | U4: 21 | V4: 22 | W4: 23 | X4: 24 | Y4: 25 | Z4: 26 | AA4: 27 | AB4: 28 | AC4: 29 | AD4: 30 | AE4: 31 | AF4: 32 | AG4: 33 | AH4: 34 | AI4: 35 | AJ4: 36 | AK4: 37 | AL4: 38 | AM4: 39 | AN4: 40 | AO4: 41 | AP4: 42 | AQ4: 43 | AR4: 44 | AS4: 45 | AT4: 46 | AU4: 47 | AV4: 48 | AW4: 49 | AX4: 50 | AY4: 51 | AZ4: 52 | BA4: 53 | BB4: 54 | BC4: 55 | BD4: 56 | BE4: 57 | BF4: 58 | BG4: 59 | BH4: 60 | BI4: 61 | BJ4: 62 | BK4: 63 | BL4: 64 | BM4: 65 | BN4: 66 | BO4: 67 | BP4: 68 | BQ4: 69 | BR4: 70 | BS4: 71 | BT4: 72 | BU4: 73 | BV4: 74 | BW4: 75 | BX4: 76 | BY4: 77 | BZ4: 78 | CA4: 79 | CB4: 80 | CC4: 81 | CD4: 82 | CE4: 83 | CF4: 84 | CG4: 85 | CH4: 86 | CI4: 87 | CJ4: 88 | CK4: 89 | CL4: 90 | CM4: 91 | CN4: 92 | CO4: 93 | CP4: 94 | CQ4: 95 | CR4: 96 | CS4: 97 | CT4: 98 | CU4: 99 | CV4: 100 | CW4: 101 | CX4: 102 | CY4: 103 | CZ4: 104 | DA4: 105 | DB4: 106 | DC4: 107 | DD4: 108 | DE4: 109 | DF4: 110 | DG4: 111 | DH4: 112 | DI4: 113 | DJ4: 114 | DK4: 115 | DL4: 116 | DM4: 117 | DN4: 118 | DO4: 119 | DP4: 120 | DQ4: 121 | DR4: 122 | DS4: 123 | DT4: 124 | DU4: 125 | DV4: 126 | DW4: 127 | DX4: 128 | DY4: 129 | DZ4: 130 | EA4: 131 | EB4: 132 | EC4: 133 | ED4: 134 | EE4: 135 | EF4: 136 | EG4: 137 | EH4: 138 | EI4: 139 | EJ4: 140 | EK4: 141 | EL4: 142 | EM4: 143 | EN4: 144 | EO4: 145 | EP4: 146 | EQ4: 147 | ER4: 148 | ES4: 149 | ET4: 150 | EU4: 151 | EV4: 152 | EW4: 153 | EX4: 154 | EY4: 155 | EZ4: 156 | FA4: 157 | FB4: 158 | FC4: 159 | FD4: 160 | FE4: 161 | FF4: 162 | FG4: 163 | FH4: 164 | FI4: 165 | FJ4: 166 | FK4: 167 | FL4: 168 | FM4: 169 | FN4: 170 | FO4: 171 | FP4: 172 | FQ4: 173 | FR4: 174 | FS4: 175 | FT4: 176 | FU4: 177 | FV4: 178 | FW4: 179 | FX4: 180 | FY4: 181 | FZ4: 182 | GA4: 183 | GB4: 184 | GC4: 185 | GD4: 186 | GE4: 187 | GF4: 188 | GG4: 189 | GH4: 190 | GI4: 191 | GJ4: 192 | GK4: 193 | GL4: 194 | GM4: 195 | GN4: 196 | GO4: 197 | GP4: 198 | GQ4: 199 | GR4: 200 | GS4: 201 | GT4: 202 | GU4: 203 | GV4: 204 | GW4: 205 | GX4: 206 | GY4: 207 | GZ4: 208 | HA4: 209 | HB4: 210 | HC4: 211 | HD4: 212 | HE4: 213 | HF4: 214 | HG4: 215 | HH4: 216 | HI4: 217 | HJ4: 218 | HK4: 219 | HL4: 220 | HM4: 221 | HN4: 222 | HO4: 223 | HP4: 224 | HQ4: 225 | HR4: 226 | HS4: 227 | HT4: 228 | HU4: 229 | HV4: 230 | HW4: 231 | HX4: 232 | HY4: 233 | HZ4: 234 | IA4: 235 | IB4: 236 | IC4: 237 | ID4: 238 | IE4: 239 | IF4: 240 | IG4: 241 | IH4: 242 | II4: 243 | IJ4: 244 | IK4: 245 | IT4: 254 | IU4: 255
C5: DR | H5: DR | M5: DR | R5: DR | W5: DR | AB5: DR | AG5: DR | AL5: DR | AQ5: DR | AV5: DR | BA5: DR | BF5: DR | CV5: DR-LI & * CARE for DS, DT, DTRV * | DA5: DR-LI & * CARE for DS, DT, DTRV * | DF5: DR-LI & * CARE for DS, DT, DTRV * | DK5: DR-LI & * CARE for DS, DT, DTRV * | DP5: DR-LI & * CARE for DS, DT, DTRV * | DU5: DR-LI & * CARE for DS, DT, DTRV * | DZ5: DR-LI & * CARE for DS, DT, DTRV * | EE5: DR-LI & * CARE for DS, DT, DTRV * | EJ5: DR-LI & * CARE for DS, DT, DTRV * | EO5: DR-LI & * CARE for DS, DT, DTRV * | ET5: DR-LI & * CARE for DS, DT, DTRV * | EY5: DR-LI & * CARE for DS, DT, DTRV * | FD5: DR-LI & * CARE for DS, DT, DTRV * | FI5: DR-LI & * CARE for DS, DT, DTRV * | FN5: DR & DR-CARE | FS5: MED & CARE-MED | IT5: SUM PTAR | IU5: Compare
B6: Min Bill | C6: Transmission | H6: Distribution | M6: PPP | R6: NUKE DECOMM RATE | W6: FTA BOND PMT (TTA) | AB6: CTC | AG6: RS | AL6: 2006 RDS - FERA | AQ6: TOTAL UDC | AV6: DWR BOND | BA6: EECC | BF6: DA UDC | BP6: CARE | BR6: 100 | CV6: Transmission | DA6: Distribution | DF6: PPP | DK6: NUKE DECOMM RATE | DP6: FTA BOND PMT | DU6: CTC | DZ6: RS | EE6: FERA | EJ6: TOTAL UDC | EO6: DWR BOND | ET6: EECC | EY6: DA UDC | FD6: CARE/MED | FI6: CARE only | FN6: TRAC | FS6: TRAC | IT6: Components | IU6: PTAR Totals
C7: Baseline | D7: 101 - 130 % | E7: 131 - 200 % | F7: 201 - 300 % | G7: Over 300% | H7: Baseline | I7: 101 - 130 % | J7: 131 - 200 % | K7: 201 - 300 % | L7: Over 300% | M7: Baseline | N7: 101 - 130 % | O7: 131 - 200 % | P7: 201 - 300 % | Q7: Over 300% | R7: Baseline | S7: 101 - 130 % | T7: 131 - 200 % | U7: 201 - 300 % | V7: Over 300% | W7: Baseline | X7: 101 - 130 % | Y7: 131 - 200 % | Z7: 201 - 300 % | AA7: Over 300% | AB7: Baseline | AC7: 101 - 130 % | AD7: 131 - 200 % | AE7: 201 - 300 % | AF7: Over 300% | AG7: Baseline | AH7: 101 - 130 % | AI7: 131 - 200 % | AJ7: 201 - 300 % | AK7: Over 300% | AL7: Baseline | AM7: 101 - 130 % | AN7: 131 - 200 % | AO7: 201 - 300 % | AP7: Over 300% | AQ7: Baseline | AR7: 101 - 130 % | AS7: 131 - 200 % | AT7: 201 - 400 % | AU7: Over 400% | AV7: Baseline | AW7: 101 - 130 % | AX7: 131 - 200 % | AY7: 201 - 300 % | AZ7: Over 300% | BA7: Baseline | BB7: 101 - 130 % | BC7: 131 - 200 % | BD7: 201 - 300 % | BE7: Over 300% | BF7: Baseline | BG7: 101 - 130 % | BH7: 131 - 200 % | BI7: 201 - 300 % | BJ7: Over 300% | CV7: Baseline | CW7: 101 - 130 % | CX7: 131 - 200 % | CY7: 201 - 300 % | CZ7: Over 300% | DA7: Baseline | DB7: 101 - 130 % | DC7: 131 - 200 % | DD7: 201 - 300 % | DE7: Over 300% | DF7: Baseline | DG7: 101 - 130 % | DH7: 131 - 200 % | DI7: 201 - 300 % | DJ7: Over 300% | DK7: Baseline | DL7: 101 - 130 % | DM7: 131 - 200 % | DN7: 201 - 300 % | DO7: Over 300% | DP7: Baseline | DQ7: 101 - 130 % | DR7: 131 - 200 % | DS7: 201 - 300 % | DT7: Over 300% | DU7: Baseline | DV7: 101 - 130 % | DW7: 131 - 200 % | DX7: 201 - 300 % | DY7: Over 300% | DZ7: Baseline | EA7: 101 - 130 % | EB7: 131 - 200 % | EC7: 201 - 300 % | ED7: Over 300% | EE7: Baseline | EF7: 101 - 130 % | EG7: 131 - 200 % | EH7: 201 - 300 % | EI7: Over 300% | EJ7: Baseline | EK7: 101 - 130 % | EL7: 131 - 200 % | EM7: 201 - 400 % | EN7: Over 400% | EO7: Baseline | EP7: 101 - 130 % | EQ7: 131 - 200 % | ER7: 201 - 300 % | ES7: Over 300% | ET7: Baseline | EU7: 101 - 130 % | EV7: 131 - 200 % | EW7: 201 - 300 % | EX7: Over 300% | EY7: Baseline | EZ7: 101 - 130 % | FA7: 131 - 200 % | FB7: 201 - 300 % | FC7: Over 300% | FD7: Baseline | FE7: 101 - 130 % | FF7: 131 - 200 % | FG7: 201 - 300 % | FH7: Over 300% | FI7: Baseline | FJ7: 101 - 130 % | FK7: 131 - 200 % | FL7: 201 - 300 % | FM7: Over 300% | FN7: Baseline | FO7: 101 - 130 % | FP7: 131 - 200 % | FQ7: 201 - 300 % | FR7: Over 300% | FS7: Baseline | FT7: 101 - 130 % | FU7: 131 - 200 % | FV7: 201 - 300 % | FW7: Over 300%
A8: 2006-01-01 | B8: 0.17 | C8: 0.00743 | D8: 0.00743 | E8: 0.00743 | H8: 0.04391 | I8: 0.04932 | J8: 0.09193 | M8: 0.0061 | N8: 0.0061 | O8: 0.0061 | R8: 0.00046 | S8: 0.00046 | T8: 0.00046 | W8: 0.0065 | X8: 0.0065 | Y8: 0.0065 | AB8: 0.00178 | AC8: 0.01015 | AD8: 0.01015 | AG8: 0.01088 | AH8: 0.01088 | AI8: 0.01088 | AQ8: 0.07706 | AR8: 0.09084 | AS8: 0.13345 | BA8: 0.04676 | BB8: 0.05315 | BC8: 0.05603 | BD8: 0.06485 | BE8: 0.08293 | CV8: 0.00743 | CW8: 0.00743 | CX8: 0.00743 | DA8: 0.04391 | DB8: 0.04932 | DC8: 0.09193 | DF8: 0.0061 | DG8: 0.0061 | DH8: 0.0061 | DK8: 0.00046 | DL8: 0.00046 | DM8: 0.00046 | DP8: 0.0065 | DQ8: 0.0065 | DR8: 0.0065 | DU8: 0.00178 | DV8: 0.01015 | DW8: 0.01015 | DZ8: 0.01088 | EA8: 0.01088 | EB8: 0.01088 | EJ8: 0.07706 | EK8: 0.09084 | EL8: 0.13345 | ET8: 0.05161 | EU8: 0.058 | EV8: 0.06241 | EY8: 0.07706 | EZ8: 0.09084 | FA8: 0.13345 | IT8: =SUM(C8:L8,AB8:AP8,BA8:BE8,CV8:DE8,DU8:DY8,DZ8:EI8,ET8:EX8) -> 1.00008
A9: 2006-02-01 | B9: 0.17 | C9: 0.00743 | D9: 0.00743 | E9: 0.00743 | F9: 0.00743 | G9: 0.00743 | H9: 0.05547 | I9: 0.06088 | J9: 0.06088 | K9: 0.06088 | L9: 0.06088 | M9: 0.0061 | N9: 0.0061 | O9: 0.0061 | P9: 0.0061 | Q9: 0.0061 | R9: 0.00046 | S9: 0.00046 | T9: 0.00046 | U9: 0.00046 | V9: 0.00046 | W9: 0.0065 | X9: 0.0065 | Y9: 0.0065 | Z9: 0.0065 | AA9: 0.0065 | AB9: 0.00178 | AC9: 0.01015 | AD9: 0.01015 | AE9: 0.01015 | AF9: 0.01015 | AG9: 0.01088 | AH9: 0.01088 | AI9: 0.01088 | AJ9: 0.01088 | AK9: 0.01088 | AL9: -0.01158 | AM9: -0.00519 | AN9: 0.05045 | AO9: 0.05927 | AP9: 0.07735 | AQ9: 0.07704 | AR9: 0.09721 | AS9: 0.15285 | AT9: 0.16167 | AU9: 0.17975 | AV9: 0.00485 | AW9: 0.00485 | AX9: 0.00485 | AY9: 0.00485 | AZ9: 0.00485 | BA9: 0.04678 | BB9: 0.04678 | BC9: 0.04678 | BD9: 0.04678 | BE9: 0.04678 | CV9: 0.00743 | CW9: 0.00743 | CX9: 0.00743 | CY9: 0.00743 | CZ9: 0.00743 | DA9: 0.05547 | DB9: 0.06088 | DC9: 0.06088 | DD9: 0.06088 | DE9: 0.06088 | DF9: 0.0061 | DG9: 0.0061 | DH9: 0.0061 | DI9: 0.0061 | DJ9: 0.0061 | DK9: 0.00046 | DL9: 0.00046 | DM9: 0.00046 | DN9: 0.00046 | DO9: 0.00046 | DP9: 0.0065 | DQ9: 0.0065 | DR9: 0.0065 | DS9: 0.0065 | DT9: 0.0065 | DU9: 0.00178 | DV9: 0.01015 | DW9: 0.01015 | DX9: 0.01015 | DY9: 0.01015 | DZ9: 0.01088 | EA9: 0.01088 | EB9: 0.01088 | EC9: 0.01088 | ED9: 0.01088 | EE9: -0.00673 | EF9: -0.00034 | EG9: 0.04668 | EH9: 0.04668 | EI9: 0.04668 | EJ9: 0.08189 | EK9: 0.10206 | EL9: 0.14908 | EM9: 0.14908 | EN9: 0.14908 | ET9: 0.04678 | EU9: 0.04678 | EV9: 0.04678 | EW9: 0.04678 | EX9: 0.04678 | IT9: 1.63691 | IU9: =IF(IT9=IT8,0,1) -> 1
A10: 2006-05-01 | B10: 0.17 | C10: 0.00743 | D10: 0.00743 | E10: 0.00743 | F10: 0.00743 | G10: 0.00743 | H10: 0.05547 | I10: 0.06861 | J10: 0.06861 | K10: 0.06861 | L10: 0.06861 | M10: 0.0061 | N10: 0.0061 | O10: 0.0061 | P10: 0.0061 | Q10: 0.0061 | R10: 0.00046 | S10: 0.00046 | T10: 0.00046 | U10: 0.00046 | V10: 0.00046 | W10: 0.0065 | X10: 0.0065 | Y10: 0.0065 | Z10: 0.0065 | AA10: 0.0065 | AB10: 0.00178 | AC10: 0.01015 | AD10: 0.01015 | AE10: 0.01015 | AF10: 0.01015 | AG10: 0.01088 | AH10: 0.01088 | AI10: 0.01088 | AJ10: 0.01088 | AK10: 0.01088 | AL10: -0.03335 | AM10: -0.03469 | AN10: 0.03632 | AO10: 0.04539 | AP10: 0.06122 | AQ10: 0.05527 | AR10: 0.07544 | AS10: 0.14645 | AT10: 0.15552 | AU10: 0.17135 | AV10: 0.00485 | AW10: 0.00485 | AX10: 0.00485 | AY10: 0.00485 | AZ10: 0.00485 | BA10: 0.06855 | BB10: 0.06855 | BC10: 0.06855 | BD10: 0.06855 | BE10: 0.06855 | CV10: 0.00743 | CW10: 0.00743 | CX10: 0.00743 | CY10: 0.00743 | CZ10: 0.00743 | DA10: 0.05547 | DB10: 0.06861 | DC10: 0.06861 | DD10: 0.06861 | DE10: 0.06861 | DF10: 0.0061 | DG10: 0.0061 | DH10: 0.0061 | DI10: 0.0061 | DJ10: 0.0061 | DK10: 0.00046 | DL10: 0.00046 | DM10: 0.00046 | DN10: 0.00046 | DO10: 0.00046 | DP10: 0.0065 | DQ10: 0.0065 | DR10: 0.0065 | DS10: 0.0065 | DT10: 0.0065 | DU10: 0.00178 | DV10: 0.01015 | DW10: 0.01015 | DX10: 0.01015 | DY10: 0.01015 | DZ10: 0.01088 | EA10: 0.01088 | EB10: 0.01088 | EC10: 0.01088 | ED10: 0.01088 | EE10: -0.0285 | EF10: -0.02984 | EG10: 0.03059 | EH10: 0.03059 | EI10: 0.03059 | EJ10: 0.06012 | EK10: 0.08029 | EL10: 0.14072 | EM10: 0.14072 | EN10: 0.14072 | ET10: 0.06855 | EU10: 0.06855 | EV10: 0.06855 | EW10: 0.06855 | EX10: 0.06855 | IT10: 1.7215 | IU10: =IF(IT10=IT9,0,1) -> 1
A11: 2006-06-01 | B11: 0.17 | C11: 0.00809 | D11: 0.00809 | E11: 0.00809 | F11: 0.00809 | G11: 0.00809 | H11: 0.05547 | I11: 0.06861 | J11: 0.06861 | K11: 0.06861 | L11: 0.06861 | M11: 0.0061 | N11: 0.0061 | O11: 0.0061 | P11: 0.0061 | Q11: 0.0061 | R11: 0.00046 | S11: 0.00046 | T11: 0.00046 | U11: 0.00046 | V11: 0.00046 | W11: 0.0065 | X11: 0.0065 | Y11: 0.0065 | Z11: 0.0065 | AA11: 0.0065 | AB11: 0.0014 | AC11: 0.0014 | AD11: 0.0014 | AE11: 0.0014 | AF11: 0.0014 | AG11: 0.01088 | AH11: 0.01088 | AI11: 0.01088 | AJ11: 0.01088 | AK11: 0.01088 | AL11: -0.04998 | AM11: -0.04295 | AN11: 0.06485 | AO11: 0.07392 | AP11: 0.08975 | AQ11: 0.03892 | AR11: 0.05909 | AS11: 0.16689 | AT11: 0.17596 | AU11: 0.19179 | AV11: 0.00485 | AW11: 0.00485 | AX11: 0.00485 | AY11: 0.00485 | AZ11: 0.00485 | BA11: 0.0849 | BB11: 0.0849 | BC11: 0.0849 | BD11: 0.0849 | BE11: 0.0849 | CV11: 0.00809 | CW11: 0.00809 | CX11: 0.00809 | CY11: 0.00809 | CZ11: 0.00809 | DA11: 0.05547 | DB11: 0.06861 | DC11: 0.06861 | DD11: 0.06861 | DE11: 0.06861 | DF11: 0.0061 | DG11: 0.0061 | DH11: 0.0061 | DI11: 0.0061 | DJ11: 0.0061 | DK11: 0.00046 | DL11: 0.00046 | DM11: 0.00046 | DN11: 0.00046 | DO11: 0.00046 | DP11: 0.0065 | DQ11: 0.0065 | DR11: 0.0065 | DS11: 0.0065 | DT11: 0.0065 | DU11: 0.0014 | DV11: 0.0014 | DW11: 0.0014 | DX11: 0.0014 | DY11: 0.0014 | DZ11: 0.01088 | EA11: 0.01088 | EB11: 0.01088 | EC11: 0.01088 | ED11: 0.01088 | EE11: -0.04513 | EF11: -0.0381 | EG11: 0.05735 | EH11: 0.05735 | EI11: 0.05735 | EJ11: 0.04377 | EK11: 0.06394 | EL11: 0.15939 | EM11: 0.15939 | EN11: 0.15939 | ET11: 0.0849 | EU11: 0.0849 | EV11: 0.0849 | EW11: 0.0849 | EX11: 0.0849 | IT11: 1.93693 | IU11: 1
A12: 2006-09-01 | B12: 0.17 | C12: 0.00928 | D12: 0.00928 | E12: 0.00928 | F12: 0.00928 | G12: 0.00928 | H12: 0.05547 | I12: 0.06861 | J12: 0.06861 | K12: 0.06861 | L12: 0.06861 | M12: 0.0061 | N12: 0.0061 | O12: 0.0061 | P12: 0.0061 | Q12: 0.0061 | R12: 0.00046 | S12: 0.00046 | T12: 0.00046 | U12: 0.00046 | V12: 0.00046 | W12: 0.0065 | X12: 0.0065 | Y12: 0.0065 | Z12: 0.0065 | AA12: 0.0065 | AB12: 0.0014 | AC12: 0.0014 | AD12: 0.0014 | AE12: 0.0014 | AF12: 0.0014 | AG12: 0.01088 | AH12: 0.01088 | AI12: 0.01088 | AJ12: 0.01088 | AK12: 0.01088 | AL12: -0.05117 | AM12: -0.04414 | AN12: 0.06772 | AO12: 0.07679 | AP12: 0.09262 | AQ12: 0.03892 | AR12: 0.05909 | AS12: 0.17095 | AT12: 0.18002 | AU12: 0.19585 | AV12: 0.00485 | AW12: 0.00485 | AX12: 0.00485 | AY12: 0.00485 | AZ12: 0.00485 | BA12: 0.0849 | BB12: 0.0849 | BC12: 0.0849 | BD12: 0.0849 | BE12: 0.0849 | CV12: 0.00928 | CW12: 0.00928 | CX12: 0.00928 | CY12: 0.00928 | CZ12: 0.00928 | DA12: 0.05547 | DB12: 0.06861 | DC12: 0.06861 | DD12: 0.06861 | DE12: 0.06861 | DF12: 0.0061 | DG12: 0.0061 | DH12: 0.0061 | DI12: 0.0061 | DJ12: 0.0061 | DK12: 0.00046 | DL12: 0.00046 | DM12: 0.00046 | DN12: 0.00046 | DO12: 0.00046 | DP12: 0.0065 | DQ12: 0.0065 | DR12: 0.0065 | DS12: 0.0065 | DT12: 0.0065 | DU12: 0.0014 | DV12: 0.0014 | DW12: 0.0014 | DX12: 0.0014 | DY12: 0.0014 | DZ12: 0.01088 | EA12: 0.01088 | EB12: 0.01088 | EC12: 0.01088 | ED12: 0.01088 | EE12: -0.04632 | EF12: -0.03929 | EG12: 0.06002 | EH12: 0.06002 | EI12: 0.06002 | EJ12: 0.04377 | EK12: 0.06394 | EL12: 0.16325 | EM12: 0.16325 | EN12: 0.16325 | ET12: 0.0849 | EU12: 0.0849 | EV12: 0.0849 | EW12: 0.0849 | EX12: 0.0849 | IT12: 1.96069 | IU12: 1
A13: 2006-10-06 | B13: 0.17 | C13: 0.00928 | D13: 0.00928 | E13: 0.00928 | F13: 0.00928 | G13: 0.00928 | H13: 0.05547 | I13: 0.06861 | J13: 0.06861 | K13: 0.06861 | L13: 0.06861 | M13: 0.0061 | N13: 0.0061 | O13: 0.0061 | P13: 0.0061 | Q13: 0.0061 | R13: 0.00046 | S13: 0.00046 | T13: 0.00046 | U13: 0.00046 | V13: 0.00046 | W13: 0.0065 | X13: 0.0065 | Y13: 0.0065 | Z13: 0.0065 | AA13: 0.0065 | AB13: 0.0014 | AC13: 0.0014 | AD13: 0.0014 | AE13: 0.0014 | AF13: 0.0014 | AG13: 0.01088 | AH13: 0.01088 | AI13: 0.01088 | AJ13: 0.01088 | AK13: 0.01088 | AL13: -0.04681 | AM13: -0.03978 | AN13: 0.06038 | AO13: 0.06945 | AP13: 0.08528 | AQ13: 0.04328 | AR13: 0.06345 | AS13: 0.16361 | AT13: 0.17268 | AU13: 0.18851 | AV13: 0.00485 | AW13: 0.00485 | AX13: 0.00485 | AY13: 0.00485 | AZ13: 0.00485 | BA13: 0.08054 | BB13: 0.08054 | BC13: 0.08054 | BD13: 0.08054 | BE13: 0.08054 | CV13: 0.00928 | CW13: 0.00928 | CX13: 0.00928 | CY13: 0.00928 | CZ13: 0.00928 | DA13: 0.05547 | DB13: 0.06861 | DC13: 0.06861 | DD13: 0.06861 | DE13: 0.06861 | DF13: 0.0061 | DG13: 0.0061 | DH13: 0.0061 | DI13: 0.0061 | DJ13: 0.0061 | DK13: 0.00046 | DL13: 0.00046 | DM13: 0.00046 | DN13: 0.00046 | DO13: 0.00046 | DP13: 0.0065 | DQ13: 0.0065 | DR13: 0.0065 | DS13: 0.0065 | DT13: 0.0065 | DU13: 0.0014 | DV13: 0.0014 | DW13: 0.0014 | DX13: 0.0014 | DY13: 0.0014 | DZ13: 0.01088 | EA13: 0.01088 | EB13: 0.01088 | EC13: 0.01088 | ED13: 0.01088 | EE13: -0.04196 | EF13: -0.03493 | EG13: 0.04944 | EH13: 0.04944 | EI13: 0.04944 | EJ13: 0.04813 | EK13: 0.0683 | EL13: 0.15267 | EM13: 0.15267 | EN13: 0.15267 | ET13: 0.08054 | EU13: 0.08054 | EV13: 0.08054 | EW13: 0.08054 | EX13: 0.08054 | IT13: 1.88077 | IU13: 1
A14: 2006-11-01 | B14: 0.17 | C14: 0.00928 | D14: 0.00928 | E14: 0.00928 | F14: 0.00928 | G14: 0.00928 | H14: 0.05547 | I14: 0.06088 | J14: 0.06088 | K14: 0.06088 | L14: 0.06088 | M14: 0.0061 | N14: 0.0061 | O14: 0.0061 | P14: 0.0061 | Q14: 0.0061 | R14: 0.00046 | S14: 0.00046 | T14: 0.00046 | U14: 0.00046 | V14: 0.00046 | W14: 0.0065 | X14: 0.0065 | Y14: 0.0065 | Z14: 0.0065 | AA14: 0.0065 | AB14: 0.0014 | AC14: 0.0014 | AD14: 0.0014 | AE14: 0.0014 | AF14: 0.0014 | AG14: 0.01088 | AH14: 0.01088 | AI14: 0.01088 | AJ14: 0.01088 | AK14: 0.01088 | AL14: -0.02161 | AM14: -0.00685 | AN14: 0.07764 | AO14: 0.08646 | AP14: 0.10454 | AQ14: 0.06848 | AR14: 0.08865 | AS14: 0.17314 | AT14: 0.18196 | AU14: 0.20004 | AV14: 0.00485 | AW14: 0.00485 | AX14: 0.00485 | AY14: 0.00485 | AZ14: 0.00485 | BA14: 0.05534 | BB14: 0.05534 | BC14: 0.05534 | BD14: 0.05534 | BE14: 0.05534 | CV14: 0.00928 | CW14: 0.00928 | CX14: 0.00928 | CY14: 0.00928 | CZ14: 0.00928 | DA14: 0.05547 | DB14: 0.06088 | DC14: 0.06088 | DD14: 0.06088 | DE14: 0.06088 | DF14: 0.0061 | DG14: 0.0061 | DH14: 0.0061 | DI14: 0.0061 | DJ14: 0.0061 | DK14: 0.00046 | DL14: 0.00046 | DM14: 0.00046 | DN14: 0.00046 | DO14: 0.00046 | DP14: 0.0065 | DQ14: 0.0065 | DR14: 0.0065 | DS14: 0.0065 | DT14: 0.0065 | DU14: 0.0014 | DV14: 0.0014 | DW14: 0.0014 | DX14: 0.0014 | DY14: 0.0014 | DZ14: 0.01088 | EA14: 0.01088 | EB14: 0.01088 | EC14: 0.01088 | ED14: 0.01088 | EE14: -0.01676 | EF14: -0.002 | EG14: 0.06749 | EH14: 0.06749 | EI14: 0.06749 | EJ14: 0.07333 | EK14: 0.0935 | EL14: 0.16299 | EM14: 0.16299 | EN14: 0.16299 | ET14: 0.05534 | EU14: 0.05534 | EV14: 0.05534 | EW14: 0.05534 | EX14: 0.05534 | IT14: 1.79087 | IU14: 1
A15: 2007-01-01 | B15: 0.17 | C15: 0.00869 | D15: 0.00869 | E15: 0.00869 | F15: 0.00869 | G15: 0.00869 | H15: 0.05754 | I15: 0.06295 | J15: 0.06295 | K15: 0.06295 | L15: 0.06295 | M15: 0.00615 | N15: 0.00615 | O15: 0.00615 | P15: 0.00615 | Q15: 0.00615 | R15: 0.00046 | S15: 0.00046 | T15: 0.00046 | U15: 0.00046 | V15: 0.00046 | W15: 0.00513 | X15: 0.00513 | Y15: 0.00513 | Z15: 0.00513 | AA15: 0.00513 | AB15: 0.0014 | AC15: 0.0014 | AD15: 0.0014 | AE15: 0.0014 | AF15: 0.0014 | AG15: 0.00602 | AH15: 0.00602 | AI15: 0.00602 | AJ15: 0.00602 | AK15: 0.00602 | AL15: -0.02052 | AM15: -0.00576 | AN15: 0.07383 | AO15: 0.08265 | AP15: 0.10073 | AQ15: 0.06487 | AR15: 0.08504 | AS15: 0.16463 | AT15: 0.17345 | AU15: 0.19153 | AV15: 0.00469 | AW15: 0.00469 | AX15: 0.00469 | AY15: 0.00469 | AZ15: 0.00469 | BA15: 0.05911 | BB15: 0.05911 | BC15: 0.05911 | BD15: 0.05911 | BE15: 0.05911 | CV15: 0.00869 | CW15: 0.00869 | CX15: 0.00869 | CY15: 0.00869 | CZ15: 0.00869 | DA15: 0.0546 | DB15: 0.06001 | DC15: 0.06001 | DD15: 0.06001 | DE15: 0.06001 | DF15: 0.00615 | DG15: 0.00615 | DH15: 0.00615 | DI15: 0.00615 | DJ15: 0.00615 | DK15: 0.00046 | DL15: 0.00046 | DM15: 0.00046 | DN15: 0.00046 | DO15: 0.00046 | DP15: 0.00513 | DQ15: 0.00513 | DR15: 0.00513 | DS15: 0.00513 | DT15: 0.00513 | DU15: 0.0014 | DV15: 0.0014 | DW15: 0.0014 | DX15: 0.0014 | DY15: 0.0014 | DZ15: 0.00602 | EA15: 0.00602 | EB15: 0.00602 | EC15: 0.00602 | ED15: 0.00602 | EE15: -0.01289 | EF15: 0.00187 | EG15: 0.06292 | EH15: 0.06292 | EI15: 0.06292 | EJ15: 0.06956 | EK15: 0.08973 | EL15: 0.15078 | EM15: 0.15078 | EN15: 0.15078 | ET15: 0.05911 | EU15: 0.05911 | EV15: 0.05911 | EW15: 0.05911 | EX15: 0.05911 | IT15: 1.76485 | IU15: 1
A16: 2007-05-01 | B16: 0.17 | C16: 0.00869 | D16: 0.00869 | E16: 0.00869 | F16: 0.00869 | G16: 0.00869 | H16: 0.05754 | I16: 0.07068 | J16: 0.07068 | K16: 0.07068 | L16: 0.07068 | M16: 0.00615 | N16: 0.00615 | O16: 0.00615 | P16: 0.00615 | Q16: 0.00615 | R16: 0.00046 | S16: 0.00046 | T16: 0.00046 | U16: 0.00046 | V16: 0.00046 | W16: 0.00513 | X16: 0.00513 | Y16: 0.00513 | Z16: 0.00513 | AA16: 0.00513 | AB16: 0.0014 | AC16: 0.0014 | AD16: 0.0014 | AE16: 0.0014 | AF16: 0.0014 | AG16: 0.00602 | AH16: 0.00602 | AI16: 0.00602 | AJ16: 0.00602 | AK16: 0.00602 | AL16: -0.04749 | AM16: -0.04046 | AN16: 0.05475 | AO16: 0.06382 | AP16: 0.07965 | AQ16: 0.0379 | AR16: 0.05807 | AS16: 0.15328 | AT16: 0.16235 | AU16: 0.17818 | AV16: 0.00469 | AW16: 0.00469 | AX16: 0.00469 | AY16: 0.00469 | AZ16: 0.00469 | BA16: 0.08608 | BB16: 0.08608 | BC16: 0.08608 | BD16: 0.08608 | BE16: 0.08608 | CV16: 0.00869 | CW16: 0.00869 | CX16: 0.00869 | CY16: 0.00869 | CZ16: 0.00869 | DA16: 0.0546 | DB16: 0.06774 | DC16: 0.06774 | DD16: 0.06774 | DE16: 0.06774 | DF16: 0.00615 | DG16: 0.00615 | DH16: 0.00615 | DI16: 0.00615 | DJ16: 0.00615 | DK16: 0.00046 | DL16: 0.00046 | DM16: 0.00046 | DN16: 0.00046 | DO16: 0.00046 | DP16: 0.00513 | DQ16: 0.00513 | DR16: 0.00513 | DS16: 0.00513 | DT16: 0.00513 | DU16: 0.0014 | DV16: 0.0014 | DW16: 0.0014 | DX16: 0.0014 | DY16: 0.0014 | DZ16: 0.00602 | EA16: 0.00602 | EB16: 0.00602 | EC16: 0.00602 | ED16: 0.00602 | EE16: -0.03986 | EF16: -0.03283 | EG16: 0.0428 | EH16: 0.0428 | EI16: 0.0428 | EJ16: 0.04259 | EK16: 0.06276 | EL16: 0.13839 | EM16: 0.13839 | EN16: 0.13839 | ET16: 0.08608 | EU16: 0.08608 | EV16: 0.08608 | EW16: 0.08608 | EX16: 0.08608 | IT16: 1.8537 | IU16: 1
A17: 2007-07-01 | B17: 0.17 | C17: 0.00945 | D17: 0.00945 | E17: 0.00945 | F17: 0.00945 | G17: 0.00945 | H17: 0.05754 | I17: 0.07068 | J17: 0.07068 | K17: 0.07068 | L17: 0.07068 | M17: 0.00615 | N17: 0.00615 | O17: 0.00615 | P17: 0.00615 | Q17: 0.00615 | R17: 0.00046 | S17: 0.00046 | T17: 0.00046 | U17: 0.00046 | V17: 0.00046 | W17: 0.00513 | X17: 0.00513 | Y17: 0.00513 | Z17: 0.00513 | AA17: 0.00513 | AB17: 0.00219 | AC17: 0.00219 | AD17: 0.00219 | AE17: 0.00219 | AF17: 0.00219 | AG17: 0.00602 | AH17: 0.00602 | AI17: 0.00602 | AJ17: 0.00602 | AK17: 0.00602 | AL17: -0.0408 | AM17: -0.03377 | AN17: 0.04296 | AO17: 0.05203 | AP17: 0.06786 | AQ17: 0.04614 | AR17: 0.06631 | AS17: 0.14304 | AT17: 0.15211 | AU17: 0.16794 | AV17: 0.00469 | AW17: 0.00469 | AX17: 0.00469 | AY17: 0.00469 | AZ17: 0.00469 | BA17: 0.07784 | BB17: 0.07784 | BC17: 0.07784 | BD17: 0.07784 | BE17: 0.07784 | BF17: 0 | BG17: 0 | BH17: 0.09235 | BI17: 0.09235 | BJ17: 0.09235 | BK17: 0 | BL17: 0 | BM17: 0 | BN17: 0 | BO17: 0 | BP17: 0 | BQ17: 0 | BR17: 0 | BS17: 0 | BT17: 0 | BU17: 0 | BV17: 0 | BW17: 0 | BX17: 0 | BY17: 0 | BZ17: 0 | CA17: 0 | CB17: 0 | CC17: 0 | CD17: 0 | CE17: 0 | CF17: 0 | CG17: 0 | CH17: 0 | CI17: 0 | CJ17: 0 | CK17: 0 | CL17: 0 | CM17: 0 | CN17: 0 | CO17: 0 | CP17: 0 | CQ17: 0 | CR17: 0 | CS17: 0 | CT17: 0 | CU17: 0 | CV17: 0.00945 | CW17: 0.00945 | CX17: 0.00945 | CY17: 0.00945 | CZ17: 0.00945 | DA17: 0.0546 | DB17: 0.06774 | DC17: 0.06774 | DD17: 0.06774 | DE17: 0.06774 | DF17: 0.00615 | DG17: 0.00615 | DH17: 0.00615 | DI17: 0.00615 | DJ17: 0.00615 | DK17: 0.00046 | DL17: 0.00046 | DM17: 0.00046 | DN17: 0.00046 | DO17: 0.00046 | DP17: 0.00513 | DQ17: 0.00513 | DR17: 0.00513 | DS17: 0.00513 | DT17: 0.00513 | DU17: 0.00219 | DV17: 0.00219 | DW17: 0.00219 | DX17: 0.00219 | DY17: 0.00219 | DZ17: 0.00602 | EA17: 0.00602 | EB17: 0.00602 | EC17: 0.00602 | ED17: 0.00602 | EE17: -0.03317 | EF17: -0.02614 | EG17: 0.03219 | EH17: 0.03219 | EI17: 0.03219 | EJ17: 0.05083 | EK17: 0.071 | EL17: 0.12933 | EM17: 0.12933 | EN17: 0.12933 | EO17: 0 | EP17: 0 | EQ17: 0 | ER17: 0 | ES17: 0 | ET17: 0.07784 | EU17: 0.07784 | EV17: 0.07784 | EW17: 0.07784 | EX17: 0.07784 | EY17: 0 | EZ17: 0.08941 | FA17: 0.08941 | FB17: 0.08941 | FC17: 0.08941
A18: 2007-11-01 | B18: 0.17 | C18: 0.00945 | D18: 0.00945 | E18: 0.00945 | F18: 0.00945 | G18: 0.00945 | H18: 0.05754 | I18: 0.06295 | J18: 0.06295 | K18: 0.06295 | L18: 0.06295 | M18: 0.00615 | N18: 0.00615 | O18: 0.00615 | P18: 0.00615 | Q18: 0.00615 | R18: 0.00046 | S18: 0.00046 | T18: 0.00046 | U18: 0.00046 | V18: 0.00046 | W18: 0.00513 | X18: 0.00513 | Y18: 0.00513 | Z18: 0.00513 | AA18: 0.00513 | AB18: 0.00219 | AC18: 0.00219 | AD18: 0.00219 | AE18: 0.00219 | AF18: 0.00219 | AG18: 0.00602 | AH18: 0.00602 | AI18: 0.00602 | AJ18: 0.00602 | AK18: 0.00602 | AL18: -0.01645 | AM18: -0.00169 | AN18: 0.05961 | AO18: 0.06843 | AP18: 0.08651 | AQ18: 0.07049 | AR18: 0.09066 | AS18: 0.15196 | AT18: 0.16078 | AU18: 0.17886 | AV18: 0.00469 | AW18: 0.00469 | AX18: 0.00469 | AY18: 0.00469 | AZ18: 0.00469 | BA18: 0.05349 | BB18: 0.05349 | BC18: 0.05349 | BD18: 0.05349 | BE18: 0.05349 | BF18: 0 | BG18: 0 | BH18: 0.09235 | BI18: 0.09235 | BJ18: 0.09235 | BK18: 0 | BL18: 0 | BM18: 0 | BN18: 0 | BO18: 0 | BP18: 0 | BQ18: 0 | BR18: 0 | BS18: 0 | BT18: 0 | BU18: 0 | BV18: 0 | BW18: 0 | BX18: 0 | BY18: 0 | BZ18: 0 | CA18: 0 | CB18: 0 | CC18: 0 | CD18: 0 | CE18: 0 | CF18: 0 | CG18: 0 | CH18: 0 | CI18: 0 | CJ18: 0 | CK18: 0 | CL18: 0 | CM18: 0 | CN18: 0 | CO18: 0 | CP18: 0 | CQ18: 0 | CR18: 0 | CS18: 0 | CT18: 0 | CU18: 0 | CV18: 0.00945 | CW18: 0.00945 | CX18: 0.00945 | CY18: 0.00945 | CZ18: 0.00945 | DA18: 0.0546 | DB18: 0.06001 | DC18: 0.06001 | DD18: 0.06001 | DE18: 0.06001 | DF18: 0.00615 | DG18: 0.00615 | DH18: 0.00615 | DI18: 0.00615 | DJ18: 0.00615 | DK18: 0.00046 | DL18: 0.00046 | DM18: 0.00046 | DN18: 0.00046 | DO18: 0.00046 | DP18: 0.00513 | DQ18: 0.00513 | DR18: 0.00513 | DS18: 0.00513 | DT18: 0.00513 | DU18: 0.00219 | DV18: 0.00219 | DW18: 0.00219 | DX18: 0.00219 | DY18: 0.00219 | DZ18: 0.00602 | EA18: 0.00602 | EB18: 0.00602 | EC18: 0.00602 | ED18: 0.00602 | EE18: -0.00882 | EF18: 0.00594 | EG18: 0.04986 | EH18: 0.04986 | EI18: 0.04986 | EJ18: 0.07518 | EK18: 0.09535 | EL18: 0.13927 | EM18: 0.13927 | EN18: 0.13927 | EO18: 0 | EP18: 0 | EQ18: 0 | ER18: 0 | ES18: 0 | ET18: 0.05349 | EU18: 0.05349 | EV18: 0.05349 | EW18: 0.05349 | EX18: 0.05349 | EY18: 0 | EZ18: 0.08941 | FA18: 0.08941 | FB18: 0.08941 | FC18: 0.08941
A19: 2008-01-01 | B19: 0.17 | C19: 0.00954 | D19: 0.00954 | E19: 0.00954 | F19: 0.00954 | G19: 0.00954 | H19: 0.05807 | I19: 0.06348 | J19: 0.06348 | K19: 0.06348 | L19: 0.06348 | M19: 0.00623 | N19: 0.00623 | O19: 0.00623 | P19: 0.00623 | Q19: 0.00623 | R19: 0.00046 | S19: 0.00046 | T19: 0.00046 | U19: 0.00046 | V19: 0.00046 | W19: 0 | X19: 0 | Y19: 0 | Z19: 0 | AA19: 0 | AB19: 0.00219 | AC19: 0.00219 | AD19: 0.00219 | AE19: 0.00219 | AF19: 0.00219 | AG19: -0.0009 | AH19: -0.0009 | AI19: -0.0009 | AJ19: -0.0009 | AK19: -0.0009 | AL19: -0.00903 | AM19: 0.00573 | AN19: 0.04477 | AO19: 0.05359 | AP19: 0.07167 | AQ19: 0.06656 | AR19: 0.08673 | AS19: 0.12577 | AT19: 0.13459 | AU19: 0.15267 | AV19: 0.00477 | AW19: 0.00477 | AX19: 0.00477 | AY19: 0.00477 | AZ19: 0.00477 | BA19: 0.05734 | BB19: 0.05734 | BC19: 0.05734 | BD19: 0.05734 | BE19: 0.05734 | BF19: 0 | BG19: 0.081 | BH19: 0.081 | BI19: 0.081 | BJ19: 0.081 | BK19: 0 | BL19: 0 | BM19: 0 | BN19: 0 | BO19: 0 | BP19: 0 | BQ19: 0 | BR19: 0 | BS19: 0 | BT19: 0 | BU19: 0 | BV19: 0 | BW19: 0 | BX19: 0 | BY19: 0 | BZ19: 0 | CA19: 0 | CB19: 0 | CC19: 0 | CD19: 0 | CE19: 0 | CF19: 0 | CG19: 0 | CH19: 0 | CI19: 0 | CJ19: 0 | CK19: 0 | CL19: 0 | CM19: 0 | CN19: 0 | CO19: 0 | CP19: 0 | CQ19: 0 | CR19: 0 | CS19: 0 | CT19: 0 | CU19: 0 | CV19: 0.00954 | CW19: 0.00954 | CX19: 0.00954 | CY19: 0.00954 | CZ19: 0.00954 | DA19: 0.05512 | DB19: 0.06053 | DC19: 0.06053 | DD19: 0.06053 | DE19: 0.06053 | DF19: 0.00623 | DG19: 0.00623 | DH19: 0.00623 | DI19: 0.00623 | DJ19: 0.00623 | DK19: 0.00046 | DL19: 0.00046 | DM19: 0.00046 | DN19: 0.00046 | DO19: 0.00046 | DP19: 0 | DQ19: 0 | DR19: 0 | DS19: 0 | DT19: 0 | DU19: 0.00219 | DV19: 0.00219 | DW19: 0.00219 | DX19: 0.00219 | DY19: 0.00219 | DZ19: -0.0009 | EA19: -0.0009 | EB19: -0.0009 | EC19: -0.0009 | ED19: -0.0009 | EE19: -0.00131 | EF19: 0.01345 | EG19: 0.03282 | EH19: 0.03282 | EI19: 0.03282 | EJ19: 0.07133 | EK19: 0.0915 | EL19: 0.11087 | EM19: 0.11087 | EN19: 0.11087 | EO19: 0 | EP19: 0 | EQ19: 0 | ER19: 0 | ES19: 0 | ET19: 0.05734 | EU19: 0.05734 | EV19: 0.05734 | EW19: 0.05734 | EX19: 0.05734 | EY19: 0 | EZ19: 0.07805 | FA19: 0.07805 | FB19: 0.07805 | FC19: 0.07805 | IT19: =SUM(C19:L19,AB19:AP19,BA19:BE19,CV19:DE19,DU19:DY19,DZ19:EI19,ET19:EX19) -> 1.56826 | IU19: 1
IT20: 0 | IU20: 1
IT21: 0 | IU21: 0
A22: =UDC_DR_Date1 -> 2026-01-01 | H22: =DIST_DR_Price1_BL -> 0.16192 | I22: =DIST_DR_Price1_130 -> 0.16192 | J22: =DIST_DR_Price1_200 -> 0.16192 | K22: =DIST_DR_Price1_over -> 0.16192 | L22: =K22 -> 0.16192 | AN22: =AS22-AR22 -> 0.10904 | AQ22: =UDC_DR_Price1_BL -> 0.23197 | AR22: =UDC_DR_Price1_130 -> 0.23197 | AS22: =UDC_DR_Price1_200 -> 0.34101 | AT22: =UDC_DR_Price1_200 -> 0.34101 | AU22: =UDC_DR_Price1_over -> 0.34101 | AV22: =IF(A22<=BCdate1,BCprice2,BCprice1) -> 0.00595 | AW22: =$AV$22 -> 0.00595 | AX22: =$AV$22 -> 0.00595 | AY22: =$AV$22 -> 0.00595 | AZ22: =$AV$22 -> 0.00595 | BA22: =EECC_DRprice1_BL -> 0.09636 | BB22: =EECC_DRprice1_130 -> 0.09636 | BC22: =EECC_DRprice1_200 -> 0.09636 | BD22: =EECC_DRprice1_over -> 0.09636 | BE22: =BD22 -> 0.09636 | DA22: =DIST_DR_Price1_BL -> 0.16192 | DB22: =DIST_DR_Price1_130 -> 0.16192 | DC22: =DIST_DR_Price1_200 -> 0.16192 | DD22: =DIST_DR_Price1_over -> 0.16192 | DE22: =DD22 -> 0.16192 | EG22: =EL22-EK22 -> 0.10904 | EJ22: =IF(AND(InE_MedBL<5,CARE?=2),UDC_DRLI_MED_Price1_BL,IF(AND(CARE?=2,OR(InE_MedBL=5,InE_MedBL=0)),UDC_DRLI_Price1_BL,IF(AND(OR(CARE?=1,CARE?=3,CARE?=4),InE_MedBL<5),UDC_MED_Price1_BL,UDC_DR_Price1_BL))) -> 0.23197 | EK22: =IF(AND(InE_MedBL<5,CARE?=2),UDC_DRLI_MED_Price1_130,IF(AND(CARE?=2,OR(InE_MedBL=5,InE_MedBL=0)),UDC_DRLI_Price1_130,IF(AND(OR(CARE?=1,CARE?=3,CARE?=4),InE_MedBL<5),UDC_MED_Price1_130,UDC_DR_Price1_130))) -> 0.23197 | EL22: =IF(AND(InE_MedBL<5,CARE?=2),UDC_DRLI_MED_Price1_200,IF(AND(CARE?=2,OR(InE_MedBL=5,InE_MedBL=0)),UDC_DRLI_Price1_200,IF(AND(OR(CARE?=1,CARE?=3,CARE?=4),InE_MedBL<5),UDC_MED_Price1_200,UDC_DR_Price1_200))) -> 0.34101 | EM22: =IF(AND(InE_MedBL<5,CARE?=2),UDC_DRLI_MED_Price1_200,IF(AND(CARE?=2,OR(InE_MedBL=5,InE_MedBL=0)),UDC_DRLI_Price1_200,IF(AND(OR(CARE?=1,CARE?=3,CARE?=4),InE_MedBL<5),UDC_MED_Price1_200,UDC_DR_Price1_200))) -> 0.34101 | EN22: =IF(AND(InE_MedBL<5,CARE?=2),UDC_DRLI_MED_Price1_over,IF(AND(CARE?=2,OR(InE_MedBL=5,InE_MedBL=0)),UDC_DRLI_Price1_over,IF(AND(OR(CARE?=1,CARE?=3,CARE?=4),InE_MedBL<5),UDC_MED_Price1_over,UDC_DR_Price1_over))) -> 0.34101 | EO22: 0 | EP22: 0 | EQ22: 0 | ER22: 0 | ES22: 0 | ET22: =EECC_DRLIprice1_BL -> 0.09636 | EU22: =EECC_DRLIprice1_130 -> 0.09636 | EV22: =EECC_DRLIprice1_200 -> 0.09636 | EW22: =EECC_DRLIprice1_over -> 0.09636 | EX22: =EW22 -> 0.09636 | FD22: =UDC_DRLI_MED_Price1_BL -> 0.18152 | FE22: =UDC_DRLI_MED_Price1_130 -> 0.18152 | FF22: =UDC_DRLI_MED_Price1_200 -> 0.25353 | FG22: =UDC_DRLI_MED_Price1_over -> 0.25353 | FH22: =FG22 -> 0.25353 | FI22: =UDC_DRLI_Price1_BL -> 0.23197 | FJ22: =UDC_DRLI_Price1_130 -> 0.23197 | FK22: =UDC_DRLI_Price1_200 -> 0.34101 | FL22: =UDC_DRLI_Price1_over -> 0.34101 | FM22: =FL22 -> 0.34101 | FN22: =TRAC_DR_Price1_BL -> -0.11047 | FO22: =TRAC_DR_Price1_130 -> -0.11047 | FP22: =TRAC_DR_Price1_200 -> -0.01357 | FQ22: =TRAC_DR_Price1_over -> -0.01357 | FR22: =FQ22 -> -0.01357 | FS22: =TRAC_MED_Price1_BL -> -0.20061 | FT22: =TRAC_MED_Price1_130 -> -0.20061 | FU22: =TRAC_MED_Price1_200 -> -0.20061 | FV22: =TRAC_MED_Price1_over -> -0.20061 | FW22: =FV22 -> -0.20061 | IT22: 2.80088 | IU22: 1
A23: =UDC_DR_Date2 -> 2026-04-01 | H23: =DIST_DR_Price2_BL -> 0.16192 | I23: =DIST_DR_Price2_130 -> 0.16192 | J23: =DIST_DR_Price2_200 -> 0.16192 | K23: =DIST_DR_Price2_over -> 0.16192 | L23: =K23 -> 0.16192 | AN23: =AS23-AR23 -> 0.10892 | AQ23: =UDC_DR_Price2_BL -> 0.23169 | AR23: =UDC_DR_Price2_130 -> 0.23169 | AS23: =UDC_DR_Price2_200 -> 0.34061 | AT23: =UDC_DR_Price2_200 -> 0.34061 | AU23: =UDC_DR_Price2_over -> 0.34061 | AV23: =IF(A23<=BCdate2,BCprice2,BCprice1) -> 0.00595 | AW23: =$AV$23 -> 0.00595 | AX23: =$AV$23 -> 0.00595 | AY23: =$AV$23 -> 0.00595 | AZ23: =$AV$23 -> 0.00595 | BA23: =EECC_DRprice2_BL -> 0.18296 | BB23: =EECC_DRprice2_130 -> 0.18296 | BC23: =EECC_DRprice2_200 -> 0.18296 | BD23: =EECC_DRprice2_over -> 0.18296 | BE23: =BD23 -> 0.18296 | DA23: =DIST_DR_Price2_BL -> 0.16192 | DB23: =DIST_DR_Price2_130 -> 0.16192 | DC23: =DIST_DR_Price2_200 -> 0.16192 | DD23: =DIST_DR_Price2_over -> 0.16192 | DE23: =DD23 -> 0.16192 | EG23: =EL23-EK23 -> 0.10892 | EJ23: =IF(AND(InE_MedBL<5,CARE?=2),UDC_DRLI_MED_Price2_BL,IF(AND(CARE?=2,OR(InE_MedBL=5,InE_MedBL=0)),UDC_DRLI_Price2_BL,IF(AND(OR(CARE?=1,CARE?=3,CARE?=4),InE_MedBL<5),UDC_MED_Price2_BL,UDC_DR_Price2_BL))) -> 0.23169 | EK23: =IF(AND(InE_MedBL<5,CARE?=2),UDC_DRLI_MED_Price2_130,IF(AND(CARE?=2,OR(InE_MedBL=5,InE_MedBL=0)),UDC_DRLI_Price2_130,IF(AND(OR(CARE?=1,CARE?=3,CARE?=4),InE_MedBL<5),UDC_MED_Price2_130,UDC_DR_Price2_130))) -> 0.23169 | EL23: =IF(AND(InE_MedBL<5,CARE?=2),UDC_DRLI_MED_Price2_200,IF(AND(CARE?=2,OR(InE_MedBL=5,InE_MedBL=0)),UDC_DRLI_Price2_200,IF(AND(OR(CARE?=1,CARE?=3,CARE?=4),InE_MedBL<5),UDC_MED_Price2_200,UDC_DR_Price2_200))) -> 0.34061 | EM23: =IF(AND(InE_MedBL<5,CARE?=2),UDC_DRLI_MED_Price2_200,IF(AND(CARE?=2,OR(InE_MedBL=5,InE_MedBL=0)),UDC_DRLI_Price2_200,IF(AND(OR(CARE?=1,CARE?=3,CARE?=4),InE_MedBL<5),UDC_MED_Price2_200,UDC_DR_Price2_200))) -> 0.34061 | EN23: =IF(AND(InE_MedBL<5,CARE?=2),UDC_DRLI_MED_Price2_over,IF(AND(CARE?=2,OR(InE_MedBL=5,InE_MedBL=0)),UDC_DRLI_Price2_over,IF(AND(OR(CARE?=1,CARE?=3,CARE?=4),InE_MedBL<5),UDC_MED_Price2_over,UDC_DR_Price2_over))) -> 0.34061 | EO23: 0 | EP23: 0 | EQ23: 0 | ER23: 0 | ES23: 0 | ET23: =EECC_DRLIprice2_BL -> 0.18296 | EU23: =EECC_DRLIprice2_130 -> 0.18296 | EV23: =EECC_DRLIprice2_200 -> 0.18296 | EW23: =EECC_DRLIprice2_over -> 0.18296 | EX23: =EW23 -> 0.18296 | FD23: =Input!$J$111 -> 0.12975 | FE23: =Input!$J$112 -> 0.12975 | FF23: =Input!$J$113 -> 0.21078 | FG23: =Input!$J$114 -> 0.21078 | FH23: =Input!$J$114 -> 0.21078 | FI23: =UDC_DRLI_Price2_BL -> 0.23169 | FJ23: =UDC_DRLI_Price2_130 -> 0.23169 | FK23: =UDC_DRLI_Price2_200 -> 0.34061 | FL23: =UDC_DRLI_Price2_over -> 0.34061 | FM23: =FL23 -> 0.34061 | FN23: =IF(MB?,TRAC_MED_Price1_BL,TRAC_DR_Price1_BL) -> -0.11047 | FO23: =TRAC_DR_Price2_130 -> 0.02776 | FP23: =TRAC_DR_Price2_200 -> 0.12466 | FQ23: =TRAC_DR_Price2_over -> 0.12466 | FR23: =FQ23 -> 0.12466 | FS23: =TRAC_MED_Price2_BL -> -0.06238 | FT23: =TRAC_MED_Price2_130 -> -0.06238 | FU23: =TRAC_MED_Price2_200 -> 0.00963 | FV23: =TRAC_MED_Price2_over -> 0.00963 | FW23: =FV23 -> 0.00963 | IT23: 3.66664 | IU23: 1
A24: =UDC_DR_Date3 -> 2026-06-01 | H24: =DIST_DR_Price3_BL -> 0.10067 | I24: =DIST_DR_Price3_130 -> 0.10067 | J24: =DIST_DR_Price3_200 -> 0.10067 | K24: =DIST_DR_Price3_over -> 0.10067 | L24: =K24 -> 0.10067 | AN24: =AS24-AR24 -> 0.10663 | AQ24: =UDC_DR_Price3_BL -> 0.22285 | AR24: =UDC_DR_Price3_130 -> 0.22285 | AS24: =UDC_DR_Price3_200 -> 0.32948 | AT24: =UDC_DR_Price3_200 -> 0.32948 | AU24: =UDC_DR_Price3_over -> 0.32948 | AV24: =IF(A24>=BCdate2,BCprice2,BCprice1) -> 0.00591 | AW24: =$AV$24 -> 0.00591 | AX24: =$AV$24 -> 0.00591 | AY24: =$AV$24 -> 0.00591 | AZ24: =$AV$24 -> 0.00591 | BA24: =EECC_DRprice3_BL -> 0.18274 | BB24: =EECC_DRprice3_130 -> 0.18274 | BC24: =EECC_DRprice3_200 -> 0.18274 | BD24: =EECC_DRprice3_over -> 0.18274 | BE24: =BD24 -> 0.18274 | DA24: =DIST_DR_Price3_BL -> 0.10067 | DB24: =DIST_DR_Price3_130 -> 0.10067 | DC24: =DIST_DR_Price3_200 -> 0.10067 | DD24: =DIST_DR_Price3_over -> 0.10067 | DE24: =DD24 -> 0.10067 | EG24: =EL24-EK24 -> 0.10663 | EJ24: =IF(AND(InE_MedBL<5,CARE?=2),UDC_DRLI_MED_Price3_BL,IF(AND(CARE?=2,OR(InE_MedBL=5,InE_MedBL=0)),UDC_DRLI_Price3_BL,IF(AND(OR(CARE?=1,CARE?=3,CARE?=4),InE_MedBL<5),UDC_MED_Price3_BL,UDC_DR_Price3_BL))) -> 0.22285 | EK24: =IF(AND(InE_MedBL<5,CARE?=2),UDC_DRLI_MED_Price3_130,IF(AND(CARE?=2,OR(InE_MedBL=5,InE_MedBL=0)),UDC_DRLI_Price3_130,IF(AND(OR(CARE?=1,CARE?=3,CARE?=4),InE_MedBL<5),UDC_MED_Price3_130,UDC_DR_Price3_130))) -> 0.22285 | EL24: =IF(AND(InE_MedBL<5,CARE?=2),UDC_DRLI_MED_Price3_200,IF(AND(CARE?=2,OR(InE_MedBL=5,InE_MedBL=0)),UDC_DRLI_Price3_200,IF(AND(OR(CARE?=1,CARE?=3,CARE?=4),InE_MedBL<5),UDC_MED_Price3_200,UDC_DR_Price3_200))) -> 0.32948 | EM24: =IF(AND(InE_MedBL<5,CARE?=2),UDC_DRLI_MED_Price3_200,IF(AND(CARE?=2,OR(InE_MedBL=5,InE_MedBL=0)),UDC_DRLI_Price3_200,IF(AND(OR(CARE?=1,CARE?=3,CARE?=4),InE_MedBL<5),UDC_MED_Price3_200,UDC_DR_Price3_200))) -> 0.32948 | EN24: =IF(AND(InE_MedBL<5,CARE?=2),UDC_DRLI_MED_Price3_over,IF(AND(CARE?=2,OR(InE_MedBL=5,InE_MedBL=0)),UDC_DRLI_Price3_over,IF(AND(OR(CARE?=1,CARE?=3,CARE?=4),InE_MedBL<5),UDC_MED_Price3_over,UDC_DR_Price3_over))) -> 0.32948 | EO24: 0 | EP24: 0 | EQ24: 0 | ER24: 0 | ES24: 0 | ET24: =EECC_DRLIprice3_BL -> 0.18274 | EU24: =EECC_DRLIprice3_130 -> 0.18274 | EV24: =EECC_DRLIprice3_200 -> 0.18274 | EW24: =EECC_DRLIprice3_over -> 0.18274 | EX24: =EW24 -> 0.18274 | FD24: =Input!$J$118 -> 0.22285 | FE24: =Input!$J$119 -> 0.22285 | FF24: =Input!$J$120 -> 0.32948 | FG24: =Input!$J$121 -> 0.32948 | FH24: =Input!$J$121 -> 0.32948 | FI24: =UDC_DRLI_Price3_BL -> 0.22285 | FJ24: =UDC_DRLI_Price3_130 -> 0.22285 | FK24: =UDC_DRLI_Price3_200 -> 0.32948 | FL24: =UDC_DRLI_Price3_over -> 0.32948 | FM24: =FL24 -> 0.32948 | FN24: =TRAC_DR_Price3_BL -> -0.03643 | FO24: =TRAC_DR_Price3_130 -> -0.03643 | FP24: =TRAC_DR_Price3_200 -> 0.07261 | FQ24: =TRAC_DR_Price3_over -> 0.07261 | FR24: =FQ24 -> 0.07261 | FS24: =TRAC_MED_Price3_BL -> -0.13865 | FT24: =TRAC_MED_Price3_130 -> -0.13865 | FU24: =TRAC_MED_Price3_200 -> -0.05762 | FV24: =TRAC_MED_Price3_over -> -0.05762 | FW24: =FV24 -> -0.05762 | IT24: 3.04736 | IU24: 1
IT25: 0 | IU25: 1
IT26: 0 | IU26: 0
IT27: 0 | IU27: 0
IT28: 0 | IU28: 0
IT29: 0 | IU29: 0
IT30: 0 | IU30: 0
IT31: 0 | IU31: 0
IT32: 0 | IU32: 0
IT33: 0 | IU33: 0
IT34: 0 | IU34: 0
IT35: 0 | IU35: 0
IT36: 0 | IU36: 0
IT37: 0 | IU37: 0
IT38: 0 | IU38: 0
IT39: 0 | IU39: 0
IT40: 0 | IU40: 0
IT41: 0 | IU41: 0
IT42: 0 | IU42: 0
IT43: 0 | IU43: 0
IT44: 0 | IU44: 0
IT45: 0 | IU45: 0
IT46: 0 | IU46: 0
IT47: 0 | IU47: 0
IT48: 0 | IU48: 0
IT49: 0 | IU49: 0
IT50: 0 | IU50: 0
IT51: =SUM(C51:L51,AB51:AP51,BA51:BE51,CV51:DE51,DU51:DY51,DZ51:EI51,ET51:EX51) -> 0 | IU51: 0
IT52: 0 | IU52: 0
IT53: 0 | IU53: 0
IT54: 0 | IU54: 0
IT55: 0 | IU55: 0
IT56: 0 | IU56: 0
IT57: 0 | IU57: 0
IT58: 0 | IU58: 0
IT59: 0 | IU59: 0
IT60: 0 | IU60: 0
IT61: 0 | IU61: 0
IT62: 0 | IU62: 0
IT63: 0 | IU63: 0
IT64: 0 | IU64: 0
IT65: 0 | IU65: 0
IT66: 0 | IU66: 0
IT67: 0 | IU67: 0
IT68: 0 | IU68: 0
IT69: 0 | IU69: 0
IT70: 0 | IU70: 0
IT71: 0 | IU71: 0
IT72: 0 | IU72: 0
IT73: 0 | IU73: 0
IT74: 0 | IU74: =IF(IT74=IT73,0,1) -> 0
IT75: 0 | IU75: 0
IT76: 0 | IU76: 0
IT77: 0 | IU77: 0
IT78: 0 | IU78: 0
IT79: 0 | IU79: 0
IT80: 0 | IU80: 0
IT81: 0 | IU81: 0
IT82: 0 | IU82: 0
IT83: 0 | IU83: 0
IT84: 0 | IU84: 0
IT85: 0 | IU85: 0
IT86: 0 | IU86: 0
IT87: 0 | IU87: 0
IU88: 0
IU89: 0
IU90: 0
IU91: 0
IU92: 0
IU93: 0
IU94: 0
IU95: 0
IU96: 0
IU97: 0
IU98: 0
IU99: 0
IU100: 0
A198: ROUND | B198: =ROUND(B204,2) -> 0.17 | C198: =ROUND(C204,5) -> 0.00954 | D198: 0.00954 | E198: 0.00954 | F198: 0.00954 | G198: 0.00954 | H198: 0.05807 | I198: 0.06348 | J198: 0.06348 | K198: 0.06348 | L198: 0.06348 | M198: 0.00623 | N198: 0.00623 | O198: 0.00623 | P198: 0.00623 | Q198: 0.00623 | R198: 0.00046 | S198: 0.00046 | T198: 0.00046 | U198: 0.00046 | V198: 0.00046 | W198: 0 | X198: 0 | Y198: 0 | Z198: 0 | AA198: 0 | AB198: 0.00219 | AC198: 0.00219 | AD198: 0.00219 | AE198: 0.00219 | AF198: 0.00219 | AG198: -0.0009 | AH198: -0.0009 | AI198: =ROUND(AI204,5) -> -0.0009 | AJ198: -0.0009 | AK198: -0.0009 | AL198: -0.00903 | AM198: 0.00573 | AN198: 0.04477 | AO198: 0.05359 | AP198: 0.07167 | AQ198: 0.06656 | AR198: 0.08673 | AS198: 0.12577 | AT198: 0.13459 | AU198: 0.15267 | AV198: 0.00477 | AW198: 0.00477 | AX198: 0.00477 | AY198: 0.00477 | AZ198: 0.00477 | BA198: 0.05734 | BB198: 0.05734 | BC198: 0.05734 | BD198: 0.05734 | BE198: 0.05734 | BF198: 0 | BG198: 0.081 | BH198: 0.081 | BI198: 0.081 | BJ198: 0.081 | BK198: 0 | BL198: 0 | BM198: 0 | BN198: 0 | BO198: =ROUND(BO204,5) -> 0 | BP198: 0 | BQ198: 0 | BR198: 0 | BS198: 0 | BT198: 0 | BU198: 0 | BV198: 0 | BW198: 0 | BX198: 0 | BY198: 0 | BZ198: 0 | CA198: 0 | CB198: 0 | CC198: 0 | CD198: 0 | CE198: 0 | CF198: 0 | CG198: 0 | CH198: 0 | CI198: 0 | CJ198: 0 | CK198: 0 | CL198: 0 | CM198: 0 | CN198: 0 | CO198: 0 | CP198: 0 | CQ198: 0 | CR198: 0 | CS198: 0 | CT198: 0 | CU198: =ROUND(CU204,5) -> 0 | CV198: 0.00954 | CW198: 0.00954 | CX198: 0.00954 | CY198: 0.00954 | CZ198: 0.00954 | DA198: 0.05512 | DB198: 0.06053 | DC198: 0.06053 | DD198: 0.06053 | DE198: 0.06053 | DF198: 0.00623 | DG198: 0.00623 | DH198: 0.00623 | DI198: 0.00623 | DJ198: 0.00623 | DK198: 0.00046 | DL198: 0.00046 | DM198: 0.00046 | DN198: 0.00046 | DO198: 0.00046 | DP198: 0 | DQ198: 0 | DR198: 0 | DS198: 0 | DT198: 0 | DU198: 0.00219 | DV198: 0.00219 | DW198: 0.00219 | DX198: 0.00219 | DY198: 0.00219 | DZ198: -0.0009 | EA198: =ROUND(EA204,5) -> -0.0009 | EB198: -0.0009 | EC198: -0.0009 | ED198: -0.0009 | EE198: -0.00131 | EF198: 0.01345 | EG198: 0.03282 | EH198: 0.03282 | EI198: 0.03282 | EJ198: 0.07133 | EK198: 0.0915 | EL198: 0.11087 | EM198: 0.11087 | EN198: 0.11087 | EO198: 0 | EP198: 0 | EQ198: 0 | ER198: 0 | ES198: 0 | ET198: 0.05734 | EU198: 0.05734 | EV198: 0.05734 | EW198: 0.05734 | EX198: 0.05734 | EY198: 0 | EZ198: 0.07805 | FA198: 0.07805 | FB198: 0.07805 | FC198: 0.07805
A201: Formulas to pull rates from WorkPapers for DR, DM, DS, DT, DTRV.
A203: WINTER
B204: 0.17 | C204: 0.00954 | D204: 0.00954 | E204: 0.00954 | F204: 0.00954 | G204: 0.00954 | H204: 0.05807 | I204: 0.06348 | J204: 0.06348 | K204: 0.06348 | L204: 0.06348 | M204: 0.00623 | N204: 0.00623 | O204: 0.00623 | P204: 0.00623 | Q204: 0.00623 | R204: 0.00046 | S204: 0.00046 | T204: 0.00046 | U204: 0.00046 | V204: 0.00046 | W204: 0 | X204: 0 | Y204: 0 | Z204: 0 | AA204: 0 | AB204: 0.00219 | AC204: 0.00219 | AD204: 0.00219 | AE204: 0.00219 | AF204: 0.00219 | AG204: -0.0009 | AH204: -0.0009 | AI204: -0.0009 | AJ204: -0.0009 | AK204: -0.0009 | AL204: -0.00903 | AM204: 0.00573 | AN204: 0.04477 | AO204: 0.05359 | AP204: 0.07167 | AQ204: 0.06656 | AR204: 0.08673 | AS204: 0.12577 | AT204: 0.13459 | AU204: 0.15267 | AV204: 0.00477 | AW204: 0.00477 | AX204: 0.00477 | AY204: 0.00477 | AZ204: 0.00477 | BA204: 0.05734 | BB204: 0.05734 | BC204: 0.05734 | BD204: 0.05734 | BE204: 0.05734 | BF204: 0 | BG204: 0.081 | BH204: 0.081 | BI204: 0.081 | BJ204: 0.081 | CV204: 0.00954 | CW204: 0.00954 | CX204: 0.00954 | CY204: 0.00954 | CZ204: 0.00954 | DA204: 0.05512 | DB204: 0.06053 | DC204: 0.06053 | DD204: 0.06053 | DE204: 0.06053 | DF204: 0.00623 | DG204: 0.00623 | DH204: 0.00623 | DI204: 0.00623 | DJ204: 0.00623 | DK204: 0.00046 | DL204: 0.00046 | DM204: 0.00046 | DN204: 0.00046 | DO204: 0.00046 | DP204: 0 | DQ204: 0 | DR204: 0 | DS204: 0 | DT204: 0 | DU204: 0.00219 | DV204: 0.00219 | DW204: 0.00219 | DX204: 0.00219 | DY204: 0.00219 | DZ204: -0.0009 | EA204: -0.0009 | EB204: -0.0009 | EC204: -0.0009 | ED204: -0.0009 | EE204: -0.00131 | EF204: 0.01345 | EG204: 0.03282 | EH204: 0.03282 | EI204: 0.03282 | EJ204: 0.07133 | EK204: 0.0915 | EL204: 0.11087 | EM204: 0.11087 | EN204: 0.11087 | ET204: 0.05734 | EU204: 0.05734 | EV204: 0.05734 | EW204: 0.05734 | EX204: 0.05734 | EY204: 0 | EZ204: 0.07805 | FA204: 0.07805 | FB204: 0.07805 | FC204: 0.07805
A205: SUMMER
B206: 0 | C206: 0.00954 | D206: 0.00954 | E206: 0.00954 | F206: 0.00954 | G206: 0.00954 | H206: 0.05807 | I206: 0.07121 | J206: 0.07121 | K206: 0.07121 | L206: 0.07121 | M206: 0.00623 | N206: 0.00623 | O206: 0.00623 | P206: 0.00623 | Q206: 0.00623 | R206: 0.00046 | S206: 0.00046 | T206: 0.00046 | U206: 0.00046 | V206: 0.00046 | W206: 0 | X206: 0 | Y206: 0 | Z206: 0 | AA206: 0 | AB206: 0.00219 | AC206: 0.00219 | AD206: 0.00219 | AE206: 0.00219 | AF206: 0.00219 | AG206: -0.0009 | AH206: -0.0009 | AI206: -0.0009 | AJ206: -0.0009 | AK206: -0.0009 | AL206: -0.03516 | AM206: -0.02813 | AN206: 0.02611 | AO206: 0.03518 | AP206: 0.05101 | AQ206: 0.04043 | AR206: 0.0606 | AS206: 0.11484 | AT206: 0.12391 | AU206: 0.13974 | AV206: 0.00477 | AW206: 0.00477 | AX206: 0.00477 | AY206: 0.00477 | AZ206: 0.00477 | BA206: 0.08347 | BB206: 0.08347 | BC206: 0.08347 | BD206: 0.08347 | BE206: 0.08347 | BF206: 0 | BG206: 0 | BH206: 0.08873 | BI206: 0.08873 | BJ206: 0.08873 | CV206: 0.00954 | CW206: 0.00954 | CX206: 0.00954 | CY206: 0.00954 | CZ206: 0.00954 | DA206: 0.05512 | DB206: 0.06826 | DC206: 0.06826 | DD206: 0.06826 | DE206: 0.06826 | DF206: 0.00623 | DG206: 0.00623 | DH206: 0.00623 | DI206: 0.00623 | DJ206: 0.00623 | DK206: 0.00046 | DL206: 0.00046 | DM206: 0.00046 | DN206: 0.00046 | DO206: 0.00046 | DP206: 0 | DQ206: 0 | DR206: 0 | DS206: 0 | DT206: 0 | DU206: 0.00219 | DV206: 0.00219 | DW206: 0.00219 | DX206: 0.00219 | DY206: 0.00219 | DZ206: -0.0009 | EA206: -0.0009 | EB206: -0.0009 | EC206: -0.0009 | ED206: -0.0009 | EE206: -0.02744 | EF206: -0.02041 | EG206: 0.01285 | EH206: 0.01285 | EI206: 0.01285 | EJ206: 0.0452 | EK206: 0.06537 | EL206: 0.09863 | EM206: 0.09863 | EN206: 0.09863 | ET206: 0.08347 | EU206: 0.08347 | EV206: 0.08347 | EW206: 0.08347 | EX206: 0.08347 | EY206: 0 | EZ206: 0 | FA206: 0.08578 | FB206: 0.08578 | FC206: 0.08578
A215: DR TOU
A218: DATE | B218: 2 | C218: 3 | D218: 4 | E218: 5 | F218: 6 | G218: 7 | H218: 8 | I218: 9 | J218: 10 | K218: 11 | L218: 12 | M218: 13 | N218: 14 | O218: 15 | P218: 16 | Q218: 17 | R218: 18 | S218: 19 | T218: 20 | U218: 21 | V218: 22 | W218: 23 | X218: 24 | Y218: 25 | Z218: 26 | AA218: 27 | AB218: 28 | AC218: 29 | AD218: 30 | AE218: 31 | AF218: 32 | AG218: 33 | AH218: 34 | AI218: 35 | AJ218: 36 | AK218: 37 | AL218: 38 | AM218: 39 | AN218: 40 | AO218: 41 | AP218: 42 | AQ218: 43 | AR218: 44 | AS218: 45 | AT218: 46 | AU218: 47 | AV218: 48 | AW218: 49 | AX218: 50 | AY218: 51 | AZ218: 52 | BA218: 53 | BB218: 54 | BC218: 55 | BD218: 56 | BE218: 57 | BF218: 58 | BG218: 59 | BH218: 60 | BI218: 61 | BJ218: 62 | BK218: 63 | BL218: 64 | BM218: 65 | BN218: 66 | BO218: 67 | BP218: 68 | BQ218: 69 | BR218: 70 | BS218: 71 | BT218: 72 | BU218: 73 | BV218: 74 | BW218: 75 | BX218: 76 | BY218: 77 | BZ218: 78 | CA218: 79 | CB218: 80 | CC218: 81 | CD218: 82 | CE218: 83 | CF218: 84 | CG218: 85 | CH218: 86 | CI218: 87 | CJ218: 88 | CK218: 89 | CL218: 90 | CM218: 91 | CN218: 92 | CO218: 93 | CP218: 94 | CQ218: 95 | CR218: 96 | CS218: 97 | CT218: 98 | CU218: 99 | CV218: 100 | CW218: 101 | CX218: 102 | CY218: 103 | CZ218: 104 | DA218: 105 | DB218: 106 | DC218: 107 | DD218: 108 | DE218: 109 | DF218: 110 | DG218: 111 | DH218: 112 | DI218: 113 | DJ218: 114 | DK218: 115 | DL218: 116 | DM218: 117 | DN218: 118 | DO218: 119 | DP218: 120 | DQ218: 121 | DR218: 122 | DS218: 123 | DT218: 124 | DU218: 125 | DV218: 126 | DW218: 127 | DX218: 128 | DY218: 129 | DZ218: 130 | EA218: 131 | EB218: 132 | EC218: 133 | ED218: 134 | EE218: 135 | EF218: 136 | EG218: 137 | EH218: 138 | EI218: 139 | EJ218: 140 | EK218: 141 | EL218: 142 | EM218: 143 | EN218: 144 | EO218: 145 | EP218: 146 | EQ218: 147 | ER218: 148 | ES218: 149 | ET218: 150 | EU218: 151 | EV218: 152 | EW218: 153 | EX218: 154 | EY218: 155 | EZ218: 156 | FA218: 157 | FB218: 158 | FC218: 159 | FD218: 160 | FE218: 161 | FF218: 162 | FG218: 163 | FH218: 164 | FI218: 165 | FJ218: 166 | FK218: 167 | FL218: 168 | FM218: 169 | FN218: 170 | FO218: 171 | FP218: 172 | FQ218: 173 | FR218: 174 | FS218: 175 | FT218: 176 | FU218: 177 | FV218: 178 | FW218: 179 | FX218: 180 | FY218: 181 | FZ218: 182 | GA218: 183 | GB218: 184 | GC218: 185 | GD218: 186 | GE218: 187 | GF218: 188 | GG218: 189 | GH218: 190 | GI218: 191 | GJ218: 192 | GK218: 193 | GL218: 194 | GM218: 195 | GN218: 196 | GO218: 197 | GP218: 198 | GQ218: 199 | GR218: 200 | GS218: 201 | GT218: 202 | GU218: 203 | GV218: 204 | GW218: 205 | GX218: 206 | GY218: 207 | GZ218: 208 | HA218: 209 | HB218: 210 | HC218: 211 | HD218: 212 | HE218: 213 | HF218: 214 | HG218: 215 | HH218: 216 | HI218: 217 | HJ218: 218 | HK218: 219 | HL218: 220 | HM218: 221 | HN218: 222 | HO218: 223 | HP218: 224 | HQ218: 225 | HR218: 226 | HS218: 227 | HT218: 228 | HU218: 229 | HV218: 230 | HW218: 231 | HX218: 232 | HY218: 233 | HZ218: 234 | IA218: 235 | IB218: 236 | IC218: 237 | ID218: 238 | IE218: 239 | IF218: 240 | IG218: 241 | IH218: 242 | II218: 243 | IJ218: 244 | IK218: 245 | IT218: 254 | IU218: 255
C220: DR TOU | H220: DR TOU | M220: DR TOU | R220: DR TOU | W220: DR TOU | AB220: DR TOU | AG220: DR TOU | AL220: DR TOU | AQ220: DR TOU | AV220: DR TOU | BA220: DR TOU | BF220: DR TOU | BK220: Meter | BL220: Baseline Adjustment | CV220: DR TOU | DA220: DR TOU | DF220: DR TOU | DK220: DR TOU | DP220: DR TOU | DU220: DR TOU | DZ220: DR TOU | EE220: DR TOU | EJ220: DR TOU | EO220: DR TOU | ET220: DR TOU | EY220: DR TOU | IT220: SUM PTAR | IU220: Compare
B221: Min Bill | C221: Transmission ON PK | H221: Distribution ON PK | M221: PPP ON PK | R221: NUKE DECOMM RATE ON PK | W221: FTA BOND PMT (TTA) | AB221: CTC ON PK | AG221: RS ON PK | AL221: 2006 RDS ON PK | AQ221: TOTAL UDC ON PK | AV221: DWR BOND | BA221: EECC ON PK | BF221: DA UDC ON PK | BK221: Charge | BL221: Baseline | BM221: 101 - 130 % | BV221: DR TOU OFF PEAK | CV221: Transmission OFF PK | DA221: Distribution OFF PK | DF221: PPP OFF PK | DK221: NUKE DECOMM RATE OFF PK | DP221: FTA BOND PMT OFF PK | DU221: CTC OFF PK | DZ221: RS OFF PK | EE221: 2006 RDS OFF PK | EJ221: TOTAL UDC OFF PK | EO221: DWR BOND | ET221: EECC OFF PK | EY221: DA UDC OFF PK | IT221: Components | IU221: PTAR Totals
C222: Baseline | D222: 101 - 130 % | E222: 131 - 200 % | F222: 201 - 300 % | G222: Over 300% | H222: Baseline | I222: 101 - 130 % | J222: 131 - 200 % | K222: 201 - 300 % | L222: Over 300% | M222: Baseline | N222: 101 - 130 % | O222: 131 - 200 % | P222: 201 - 300 % | Q222: Over 300% | R222: Baseline | S222: 101 - 130 % | T222: 131 - 200 % | U222: 201 - 300 % | V222: Over 300% | W222: Baseline | X222: 101 - 130 % | Y222: 131 - 200 % | Z222: 201 - 300 % | AA222: Over 300% | AB222: Baseline | AC222: 101 - 130 % | AD222: 131 - 200 % | AE222: 201 - 300 % | AF222: Over 300% | AG222: Baseline | AH222: 101 - 130 % | AI222: 131 - 200 % | AJ222: 201 - 300 % | AK222: Over 300% | AL222: Baseline | AM222: 101 - 130 % | AN222: 131 - 200 % | AO222: 201 - 300 % | AP222: Over 300% | AQ222: Baseline | AR222: 101 - 130 % | AS222: 131 - 200 % | AT222: 201 - 300 % | AU222: Over 300% | AV222: Baseline | AW222: 101 - 130 % | AX222: 131 - 200 % | AY222: 201 - 300 % | AZ222: Over 300% | BA222: Baseline | BB222: 101 - 130 % | BC222: 131 - 200 % | BD222: 201 - 300 % | BE222: Over 300% | BF222: Baseline | BG222: 101 - 130 % | BH222: 131 - 200 % | BI222: 201 - 300 % | BJ222: Over 300% | CV222: Baseline | CW222: 101 - 130 % | CX222: 131 - 200 % | CY222: 201 - 300 % | CZ222: Over 300% | DA222: Baseline | DB222: 101 - 130 % | DC222: 131 - 200 % | DD222: 201 - 300 % | DE222: Over 300% | DF222: Baseline | DG222: 101 - 130 % | DH222: 131 - 200 % | DI222: 201 - 300 % | DJ222: Over 300% | DK222: Baseline | DL222: 101 - 130 % | DM222: 131 - 200 % | DN222: 201 - 300 % | DO222: Over 300% | DP222: Baseline | DQ222: 101 - 130 % | DR222: 131 - 200 % | DS222: 201 - 300 % | DT222: Over 300% | DU222: Baseline | DV222: 101 - 130 % | DW222: 131 - 200 % | DX222: 201 - 300 % | DY222: Over 300% | DZ222: Baseline | EA222: 101 - 130 % | EB222: 131 - 200 % | EC222: 201 - 300 % | ED222: Over 300% | EE222: Baseline | EF222: 101 - 130 % | EG222: 131 - 200 % | EH222: 201 - 300 % | EI222: Over 300% | EJ222: Baseline | EK222: 101 - 130 % | EL222: 131 - 200 % | EM222: 201 - 300 % | EN222: Over 300% | EO222: Baseline | EP222: 101 - 130 % | EQ222: 131 - 200 % | ER222: 201 - 300 % | ES222: Over 300% | ET222: Baseline | EU222: 101 - 130 % | EV222: 131 - 200 % | EW222: 201 - 300 % | EX222: Over 300% | EY222: Baseline | EZ222: 101 - 130 % | FA222: 131 - 200 % | FB222: 201 - 300 % | FC222: Over 300%
A224: 2006-02-01 | B224: 0.17 | C224: 0.00743 | D224: 0.00743 | E224: 0.00743 | F224: 0.00743 | G224: 0.00743 | H224: 0.06088 | I224: 0.06088 | J224: 0.06088 | K224: 0.06088 | L224: 0.06088 | M224: 0 | N224: 0 | O224: 0 | P224: 0 | Q224: 0 | R224: 0 | S224: 0 | T224: 0 | U224: 0 | V224: 0 | W224: 0 | X224: 0 | Y224: 0 | Z224: 0 | AA224: 0 | AB224: 0.00589 | AC224: 0.00589 | AD224: 0.00589 | AE224: 0.00589 | AF224: 0.00589 | AG224: 0.01088 | AH224: 0.01088 | AI224: 0.01088 | AJ224: 0.01088 | AK224: 0.01088 | AL224: -0.02553 | AM224: -0.02043 | AN224: 0.0319 | AO224: 0.05927 | AP224: 0.07735 | AQ224: 0.07261 | AR224: 0.07771 | AS224: 0.13004 | AT224: 0.15741 | AU224: 0.17549 | AV224: 0.00485 | AW224: 0.00485 | AX224: 0.00485 | AY224: 0.00485 | AZ224: 0.00485 | BA224: 0.05619 | BB224: 0.05619 | BC224: 0.05619 | BD224: 0.05619 | BE224: 0.05619 | BF224: =IF(AL224<=0,AQ224,AQ224-AL224) -> 0.07261 | BG224: =IF(AM224<=0,AR224,AR224-AM224) -> 0.07771 | BH224: =IF(AN224<=0,AS224,AS224-AN224) -> 0.09814 | BI224: =IF(AO224<=0,AT224,AT224-AO224) -> 0.09814 | BJ224: =IF(AP224<=0,AU224,AU224-AP224) -> 0.09814 | BK224: 3.81 | BL224: -0.00541 | BM224: 0 | BN224: 0 | BO224: 0 | BP224: 0 | BQ224: 0 | BR224: 0 | BS224: 0 | BT224: 0 | BU224: 0 | BV224: 0 | BW224: 0 | BX224: 0 | BY224: 0 | BZ224: 0 | CA224: 0 | CB224: 0 | CC224: 0 | CD224: 0 | CE224: 0 | CF224: 0 | CG224: 0 | CH224: 0 | CI224: 0 | CJ224: 0 | CK224: 0 | CL224: 0 | CM224: 0 | CN224: 0 | CO224: 0 | CP224: 0 | CQ224: 0 | CR224: 0 | CS224: 0 | CT224: 0 | CU224: 0 | CV224: 0.00743 | CW224: 0.00743 | CX224: 0.00743 | CY224: 0.00743 | CZ224: 0.00743 | DA224: 0.06088 | DB224: 0.06088 | DC224: 0.06088 | DD224: 0.06088 | DE224: 0.06088 | DF224: 0 | DG224: 0 | DH224: 0 | DI224: 0 | DJ224: 0 | DK224: 0 | DL224: 0 | DM224: 0 | DN224: 0 | DO224: 0 | DP224: 0 | DQ224: 0 | DR224: 0 | DS224: 0 | DT224: 0 | DU224: 0.00449 | DV224: 0.00449 | DW224: 0.00449 | DX224: 0.00449 | DY224: 0.00449 | DZ224: 0.01088 | EA224: 0.01088 | EB224: 0.01088 | EC224: 0.01088 | ED224: 0.01088 | EE224: -0.0199 | EF224: -0.0148 | EG224: 0.03709 | EH224: 0.05927 | EI224: 0.07735 | EJ224: 0.07684 | EK224: 0.08194 | EL224: 0.13383 | EM224: 0.15601 | EN224: 0.17409 | EO224: 0.00485 | EP224: 0.00485 | EQ224: 0.00485 | ER224: 0.00485 | ES224: 0.00485 | ET224: 0.04997 | EU224: 0.04997 | EV224: 0.04997 | EW224: 0.04997 | EX224: 0.04997 | EY224: =IF(EE224<=0,EJ224,EJ224-EE224) -> 0.07684 | EZ224: =IF(EF224<=0,EK224,EK224-EF224) -> 0.08194 | FA224: =IF(EG224<=0,EL224,EL224-EG224) -> 0.09674 | FB224: =IF(EH224<=0,EM224,EM224-EH224) -> 0.09674 | FC224: =IF(EI224<=0,EN224,EN224-EI224) -> 0.09674
A225: 2006-05-01 | B225: 0.17 | C225: 0.00743 | D225: 0.00743 | E225: 0.00743 | F225: 0.00743 | G225: 0.00743 | H225: 0.06861 | I225: 0.06861 | J225: 0.06861 | K225: 0.06861 | L225: 0.06861 | M225: 0 | N225: 0 | O225: 0 | P225: 0 | Q225: 0 | R225: 0 | S225: 0 | T225: 0 | U225: 0 | V225: 0 | W225: 0 | X225: 0 | Y225: 0 | Z225: 0 | AA225: 0 | AB225: 0.01643 | AC225: 0.01643 | AD225: 0.01643 | AE225: 0.01643 | AF225: 0.01643 | AG225: 0.01088 | AH225: 0.01088 | AI225: 0.01088 | AJ225: 0.01088 | AK225: 0.01088 | AL225: -0.08002 | AM225: -0.08265 | AN225: -0.01592 | AO225: 0.04539 | AP225: 0.06122 | AQ225: 0.03639 | AR225: 0.03376 | AS225: 0.10049 | AT225: 0.1618 | AU225: 0.17763 | AV225: 0.00485 | AW225: 0.00485 | AX225: 0.00485 | AY225: 0.00485 | AZ225: 0.00485 | BA225: 0.11515 | BB225: 0.11515 | BC225: 0.11515 | BD225: 0.11515 | BE225: 0.11515 | BF225: 0.03639 | BG225: 0.03376 | BH225: 0.10049 | BI225: 0.11641 | BJ225: 0.11641 | BK225: 3.81 | BL225: -0.01314 | BM225: 0 | BN225: 0 | BO225: 0 | BP225: 0 | BQ225: 0 | BR225: 0 | BS225: 0 | BT225: 0 | BU225: 0 | BV225: 0 | BW225: 0 | BX225: 0 | BY225: 0 | BZ225: 0 | CA225: 0 | CB225: 0 | CC225: 0 | CD225: 0 | CE225: 0 | CF225: 0 | CG225: 0 | CH225: 0 | CI225: 0 | CJ225: 0 | CK225: 0 | CL225: 0 | CM225: 0 | CN225: 0 | CO225: 0 | CP225: 0 | CQ225: 0 | CR225: 0 | CS225: 0 | CT225: 0 | CU225: 0 | CV225: 0.00743 | CW225: 0.00743 | CX225: 0.00743 | CY225: 0.00743 | CZ225: 0.00743 | DA225: 0.06861 | DB225: 0.06861 | DC225: 0.06861 | DD225: 0.06861 | DE225: 0.06861 | DF225: 0 | DG225: 0 | DH225: 0 | DI225: 0 | DJ225: 0 | DK225: 0 | DL225: 0 | DM225: 0 | DN225: 0 | DO225: 0 | DP225: 0 | DQ225: 0 | DR225: 0 | DS225: 0 | DT225: 0 | DU225: 0.00449 | DV225: 0.00449 | DW225: 0.00449 | DX225: 0.00449 | DY225: 0.00449 | DZ225: 0.01088 | EA225: 0.01088 | EB225: 0.01088 | EC225: 0.01088 | ED225: 0.01088 | EE225: -0.02453 | EF225: -0.02716 | EG225: 0.03514 | EH225: 0.04539 | EI225: 0.06122 | EJ225: 0.07994 | EK225: 0.07731 | EL225: 0.13961 | EM225: 0.14986 | EN225: 0.16569 | EO225: 0.00485 | EP225: 0.00485 | EQ225: 0.00485 | ER225: 0.00485 | ES225: 0.00485 | ET225: 0.0546 | EU225: 0.0546 | EV225: 0.0546 | EW225: 0.0546 | EX225: 0.0546 | EY225: =IF(EE225<=0,EJ225,EJ225-EE225) -> 0.07994 | EZ225: =IF(EF225<=0,EK225,EK225-EF225) -> 0.07731 | FA225: =IF(EG225<=0,EL225,EL225-EG225) -> 0.10447 | FB225: =IF(EH225<=0,EM225,EM225-EH225) -> 0.10447 | FC225: =IF(EI225<=0,EN225,EN225-EI225) -> 0.10447
A226: 2006-06-01 | B226: 0.17 | C226: 0.00809 | D226: 0.00809 | E226: 0.00809 | F226: 0.00809 | G226: 0.00809 | H226: 0.06861 | I226: 0.06861 | J226: 0.06861 | K226: 0.06861 | L226: 0.06861 | M226: 0 | N226: 0 | O226: 0 | P226: 0 | Q226: 0 | R226: 0 | S226: 0 | T226: 0 | U226: 0 | V226: 0 | W226: 0 | X226: 0 | Y226: 0 | Z226: 0 | AA226: 0 | AB226: 0.00226 | AC226: 0.00226 | AD226: 0.00226 | AE226: 0.00226 | AF226: 0.00226 | AG226: 0.01088 | AH226: 0.01088 | AI226: 0.01088 | AJ226: 0.01088 | AK226: 0.01088 | AL226: -0.09415 | AM226: -0.09678 | AN226: -0.01467 | AO226: 0.07392 | AP226: 0.08975 | AQ226: 0.00875 | AR226: 0.00612 | AS226: 0.08823 | AT226: 0.17682 | AU226: 0.19265 | AV226: 0.00485 | AW226: 0.00485 | AX226: 0.00485 | AY226: 0.00485 | AZ226: 0.00485 | BA226: 0.14279 | BB226: 0.14279 | BC226: 0.14279 | BD226: 0.14279 | BE226: 0.14279 | BF226: 0.00875 | BG226: 0.00612 | BH226: 0.08823 | BI226: 0.1029 | BJ226: 0.1029 | BK226: 3.81 | BL226: -0.01314 | BM226: 0 | BN226: 0 | BO226: 0 | BP226: 0 | BQ226: 0 | BR226: 0 | BS226: 0 | BT226: 0 | BU226: 0 | BV226: 0 | BW226: 0 | BX226: 0 | BY226: 0 | BZ226: 0 | CA226: 0 | CB226: 0 | CC226: 0 | CD226: 0 | CE226: 0 | CF226: 0 | CG226: 0 | CH226: 0 | CI226: 0 | CJ226: 0 | CK226: 0 | CL226: 0 | CM226: 0 | CN226: 0 | CO226: 0 | CP226: 0 | CQ226: 0 | CR226: 0 | CS226: 0 | CT226: 0 | CU226: 0 | CV226: 0.00809 | CW226: 0.00809 | CX226: 0.00809 | CY226: 0.00809 | CZ226: 0.00809 | DA226: 0.06861 | DB226: 0.06861 | DC226: 0.06861 | DD226: 0.06861 | DE226: 0.06861 | DF226: 0 | DG226: 0 | DH226: 0 | DI226: 0 | DJ226: 0 | DK226: 0 | DL226: 0 | DM226: 0 | DN226: 0 | DO226: 0 | DP226: 0 | DQ226: 0 | DR226: 0 | DS226: 0 | DT226: 0 | DU226: 0.00062 | DV226: 0.00062 | DW226: 0.00062 | DX226: 0.00062 | DY226: 0.00062 | DZ226: 0.01088 | EA226: 0.01088 | EB226: 0.01088 | EC226: 0.01088 | ED226: 0.01088 | EE226: -0.03432 | EF226: -0.03695 | EG226: 0.03903 | EH226: 0.07392 | EI226: 0.08975 | EJ226: 0.06694 | EK226: 0.06431 | EL226: 0.14029 | EM226: 0.17518 | EN226: 0.19101 | EO226: 0.00485 | EP226: 0.00485 | EQ226: 0.00485 | ER226: 0.00485 | ES226: 0.00485 | ET226: 0.0676 | EU226: 0.0676 | EV226: 0.0676 | EW226: 0.0676 | EX226: 0.0676 | EY226: 0.06694 | EZ226: 0.06431 | FA226: 0.10126 | FB226: 0.10126 | FC226: 0.10126
A227: 2006-09-01 | B227: 0.17 | C227: 0.00928 | D227: 0.00928 | E227: 0.00928 | F227: 0.00928 | G227: 0.00928 | H227: 0.06861 | I227: 0.06861 | J227: 0.06861 | K227: 0.06861 | L227: 0.06861 | M227: 0 | N227: 0 | O227: 0 | P227: 0 | Q227: 0 | R227: 0 | S227: 0 | T227: 0 | U227: 0 | V227: 0 | W227: 0 | X227: 0 | Y227: 0 | Z227: 0 | AA227: 0 | AB227: 0.00226 | AC227: 0.00226 | AD227: 0.00226 | AE227: 0.00226 | AF227: 0.00226 | AG227: 0.01088 | AH227: 0.01088 | AI227: 0.01088 | AJ227: 0.01088 | AK227: 0.01088 | AL227: -0.09534 | AM227: -0.09797 | AN227: -0.00048 | AO227: 0.07679 | AP227: 0.09262 | AQ227: 0.00875 | AR227: 0.00612 | AS227: 0.10361 | AT227: 0.18088 | AU227: 0.19671 | AV227: 0.00485 | AW227: 0.00485 | AX227: 0.00485 | AY227: 0.00485 | AZ227: 0.00485 | BA227: 0.14279 | BB227: 0.14279 | BC227: 0.14279 | BD227: 0.14279 | BE227: 0.14279 | BF227: 0.00875 | BG227: 0.00612 | BH227: 0.10361 | BI227: 0.10409 | BJ227: 0.10409 | BK227: 3.81 | BL227: -0.01314 | BM227: 0 | BN227: 0 | BO227: 0 | BP227: 0 | BQ227: 0 | BR227: 0 | BS227: 0 | BT227: 0 | BU227: 0 | BV227: 0 | BW227: 0 | BX227: 0 | BY227: 0 | BZ227: 0 | CA227: 0 | CB227: 0 | CC227: 0 | CD227: 0 | CE227: 0 | CF227: 0 | CG227: 0 | CH227: 0 | CI227: 0 | CJ227: 0 | CK227: 0 | CL227: 0 | CM227: 0 | CN227: 0 | CO227: 0 | CP227: 0 | CQ227: 0 | CR227: 0 | CS227: 0 | CT227: 0 | CU227: 0 | CV227: 0.00928 | CW227: 0.00928 | CX227: 0.00928 | CY227: 0.00928 | CZ227: 0.00928 | DA227: 0.06861 | DB227: 0.06861 | DC227: 0.06861 | DD227: 0.06861 | DE227: 0.06861 | DF227: 0 | DG227: 0 | DH227: 0 | DI227: 0 | DJ227: 0 | DK227: 0 | DL227: 0 | DM227: 0 | DN227: 0 | DO227: 0 | DP227: 0 | DQ227: 0 | DR227: 0 | DS227: 0 | DT227: 0 | DU227: 0.00062 | DV227: 0.00062 | DW227: 0.00062 | DX227: 0.00062 | DY227: 0.00062 | DZ227: 0.01088 | EA227: 0.01088 | EB227: 0.01088 | EC227: 0.01088 | ED227: 0.01088 | EE227: -0.03551 | EF227: -0.03814 | EG227: 0.05152 | EH227: 0.07679 | EI227: 0.09262 | EJ227: 0.06694 | EK227: 0.06431 | EL227: 0.15397 | EM227: 0.17924 | EN227: 0.19507 | EO227: 0.00485 | EP227: 0.00485 | EQ227: 0.00485 | ER227: 0.00485 | ES227: 0.00485 | ET227: 0.0676 | EU227: 0.0676 | EV227: 0.0676 | EW227: 0.0676 | EX227: 0.0676 | EY227: 0.06694 | EZ227: 0.06431 | FA227: 0.10245 | FB227: 0.10245 | FC227: 0.10245
A228: 2007-10-06 | B228: 0.17 | C228: 0.00928 | D228: 0.00928 | E228: 0.00928 | F228: 0.00928 | G228: 0.00928 | H228: 0.06861 | I228: 0.06861 | J228: 0.06861 | K228: 0.06861 | L228: 0.06861 | M228: 0 | N228: 0 | O228: 0 | P228: 0 | Q228: 0 | R228: 0 | S228: 0 | T228: 0 | U228: 0 | V228: 0 | W228: 0 | X228: 0 | Y228: 0 | Z228: 0 | AA228: 0 | AB228: 0.00226 | AC228: 0.00226 | AD228: 0.00226 | AE228: 0.00226 | AF228: 0.00226 | AG228: 0.01088 | AH228: 0.01088 | AI228: 0.01088 | AJ228: 0.01088 | AK228: 0.01088 | AL228: -0.09186 | AM228: -0.09449 | AN228: 0.00186 | AO228: 0.06945 | AP228: 0.08528 | AQ228: 0.01223 | AR228: 0.0096 | AS228: 0.10595 | AT228: 0.17354 | AU228: 0.18937 | AV228: 0.00485 | AW228: 0.00485 | AX228: 0.00485 | AY228: 0.00485 | AZ228: 0.00485 | BA228: 0.13931 | BB228: 0.13931 | BC228: 0.13931 | BD228: 0.13931 | BE228: 0.13931 | BF228: 0.01223 | BG228: 0.0096 | BH228: 0.10409 | BI228: 0.10409 | BJ228: 0.10409 | BK228: 3.81 | BL228: -0.01314 | BM228: 0 | BN228: 0 | BO228: 0 | BP228: 0 | BQ228: 0 | BR228: 0 | BS228: 0 | BT228: 0 | BU228: 0 | BV228: 0 | BW228: 0 | BX228: 0 | BY228: 0 | BZ228: 0 | CA228: 0 | CB228: 0 | CC228: 0 | CD228: 0 | CE228: 0 | CF228: 0 | CG228: 0 | CH228: 0 | CI228: 0 | CJ228: 0 | CK228: 0 | CL228: 0 | CM228: 0 | CN228: 0 | CO228: 0 | CP228: 0 | CQ228: 0 | CR228: 0 | CS228: 0 | CT228: 0 | CU228: 0 | CV228: 0.00928 | CW228: 0.00928 | CX228: 0.00928 | CY228: 0.00928 | CZ228: 0.00928 | DA228: 0.06861 | DB228: 0.06861 | DC228: 0.06861 | DD228: 0.06861 | DE228: 0.06861 | DF228: 0 | DG228: 0 | DH228: 0 | DI228: 0 | DJ228: 0 | DK228: 0 | DL228: 0 | DM228: 0 | DN228: 0 | DO228: 0 | DP228: 0 | DQ228: 0 | DR228: 0 | DS228: 0 | DT228: 0 | DU228: 0.00062 | DV228: 0.00062 | DW228: 0.00062 | DX228: 0.00062 | DY228: 0.00062 | DZ228: 0.01088 | EA228: 0.01088 | EB228: 0.01088 | EC228: 0.01088 | ED228: 0.01088 | EE228: -0.03203 | EF228: -0.03466 | EG228: 0.05399 | EH228: 0.06945 | EI228: 0.08528 | EJ228: 0.07042 | EK228: 0.06779 | EL228: 0.15644 | EM228: 0.1719 | EN228: 0.18773 | EO228: 0.00485 | EP228: 0.00485 | EQ228: 0.00485 | ER228: 0.00485 | ES228: 0.00485 | ET228: 0.06412 | EU228: 0.06412 | EV228: 0.06412 | EW228: 0.06412 | EX228: 0.06412 | EY228: 0.07042 | EZ228: 0.06779 | FA228: 0.10245 | FB228: 0.10245 | FC228: 0.10245
A229: 2006-11-01 | B229: 0.17 | C229: 0.00928 | D229: 0.00928 | E229: 0.00928 | F229: 0.00928 | G229: 0.00928 | H229: 0.06088 | I229: 0.06088 | J229: 0.06088 | K229: 0.06088 | L229: 0.06088 | M229: 0 | N229: 0 | O229: 0 | P229: 0 | Q229: 0 | R229: 0 | S229: 0 | T229: 0 | U229: 0 | V229: 0 | W229: 0 | X229: 0 | Y229: 0 | Z229: 0 | AA229: 0 | AB229: 0.00081 | AC229: 0.00081 | AD229: 0.00081 | AE229: 0.00081 | AF229: 0.00081 | AG229: 0.01088 | AH229: 0.01088 | AI229: 0.01088 | AJ229: 0.01088 | AK229: 0.01088 | AL229: -0.0322 | AM229: -0.0271 | AN229: 0.0478 | AO229: 0.08646 | AP229: 0.10454 | AQ229: 0.06271 | AR229: 0.06781 | AS229: 0.14271 | AT229: 0.18137 | AU229: 0.19945 | AV229: 0.00485 | AW229: 0.00485 | AX229: 0.00485 | AY229: 0.00485 | AZ229: 0.00485 | BA229: 0.06609 | BB229: 0.06609 | BC229: 0.06609 | BD229: 0.06609 | BE229: 0.06609 | BF229: 0.06271 | BG229: 0.06781 | BH229: 0.09491 | BI229: 0.09491 | BJ229: 0.09491 | BK229: 3.81 | BL229: -0.00541 | BM229: 0 | BN229: 0 | BO229: 0 | BP229: 0 | BQ229: 0 | BR229: 0 | BS229: 0 | BT229: 0 | BU229: 0 | BV229: 0 | BW229: 0 | BX229: 0 | BY229: 0 | BZ229: 0 | CA229: 0 | CB229: 0 | CC229: 0 | CD229: 0 | CE229: 0 | CF229: 0 | CG229: 0 | CH229: 0 | CI229: 0 | CJ229: 0 | CK229: 0 | CL229: 0 | CM229: 0 | CN229: 0 | CO229: 0 | CP229: 0 | CQ229: 0 | CR229: 0 | CS229: 0 | CT229: 0 | CU229: 0 | CV229: 0.00928 | CW229: 0.00928 | CX229: 0.00928 | CY229: 0.00928 | CZ229: 0.00928 | DA229: 0.06088 | DB229: 0.06088 | DC229: 0.06088 | DD229: 0.06088 | DE229: 0.06088 | DF229: 0 | DG229: 0 | DH229: 0 | DI229: 0 | DJ229: 0 | DK229: 0 | DL229: 0 | DM229: 0 | DN229: 0 | DO229: 0 | DP229: 0 | DQ229: 0 | DR229: 0 | DS229: 0 | DT229: 0 | DU229: 0.00062 | DV229: 0.00062 | DW229: 0.00062 | DX229: 0.00062 | DY229: 0.00062 | DZ229: 0.01088 | EA229: 0.01088 | EB229: 0.01088 | EC229: 0.01088 | ED229: 0.01088 | EE229: -0.02629 | EF229: -0.02119 | EG229: 0.05294 | EH229: 0.08646 | EI229: 0.10454 | EJ229: 0.06843 | EK229: 0.07353 | EL229: 0.14766 | EM229: 0.18118 | EN229: 0.19926 | EO229: 0.00485 | EP229: 0.00485 | EQ229: 0.00485 | ER229: 0.00485 | ES229: 0.00485 | ET229: 0.05838 | EU229: 0.05838 | EV229: 0.05838 | EW229: 0.05838 | EX229: 0.05838 | EY229: 0.06843 | EZ229: 0.07353 | FA229: 0.09472 | FB229: 0.09472 | FC229: 0.09472
A230: 2007-01-01 | B230: 0.17 | C230: 0.00869 | D230: 0.00869 | E230: 0.00869 | F230: 0.00869 | G230: 0.00869 | H230: 0.06295 | I230: 0.06295 | J230: 0.06295 | K230: 0.06295 | L230: 0.06295 | M230: 0 | N230: 0 | O230: 0 | P230: 0 | Q230: 0 | R230: 0 | S230: 0 | T230: 0 | U230: 0 | V230: 0 | W230: 0 | X230: 0 | Y230: 0 | Z230: 0 | AA230: 0 | AB230: 0.00081 | AC230: 0.00081 | AD230: 0.00081 | AE230: 0.00081 | AF230: 0.00081 | AG230: 0.00602 | AH230: 0.00602 | AI230: 0.00602 | AJ230: 0.00602 | AK230: 0.00602 | AL230: -0.03199 | AM230: -0.02689 | AN230: 0.04339 | AO230: 0.08265 | AP230: 0.10073 | AQ230: 0.05822 | AR230: 0.06332 | AS230: 0.1336 | AT230: 0.17286 | AU230: 0.19094 | AV230: 0.00469 | AW230: 0.00469 | AX230: 0.00469 | AY230: 0.00469 | AZ230: 0.00469 | BA230: 0.07074 | BB230: 0.07074 | BC230: 0.07074 | BD230: 0.07074 | BE230: 0.07074 | BF230: =IF(AL230<=0,AQ230,AQ230-AL230) -> 0.05822 | BG230: 0.06332 | BH230: 0.09021 | BI230: 0.09021 | BJ230: 0.09021 | BK230: 3.81 | BL230: -0.00541 | BM230: 0 | BN230: 0 | BO230: 0 | BP230: 0 | BQ230: 0 | BR230: 0 | BS230: 0 | BT230: 0 | BU230: 0 | BV230: 0 | BW230: 0 | BX230: 0 | BY230: 0 | BZ230: 0 | CA230: 0 | CB230: 0 | CC230: 0 | CD230: 0 | CE230: 0 | CF230: 0 | CG230: 0 | CH230: 0 | CI230: 0 | CJ230: 0 | CK230: 0 | CL230: 0 | CM230: 0 | CN230: 0 | CO230: 0 | CP230: 0 | CQ230: 0 | CR230: 0 | CS230: 0 | CT230: 0 | CU230: 0 | CV230: 0.00869 | CW230: 0.00869 | CX230: 0.00869 | CY230: 0.00869 | CZ230: 0.00869 | DA230: 0.06295 | DB230: 0.06295 | DC230: 0.06295 | DD230: 0.06295 | DE230: 0.06295 | DF230: 0 | DG230: 0 | DH230: 0 | DI230: 0 | DJ230: 0 | DK230: 0 | DL230: 0 | DM230: 0 | DN230: 0 | DO230: 0 | DP230: 0 | DQ230: 0 | DR230: 0 | DS230: 0 | DT230: 0 | DU230: 0.00062 | DV230: 0.00062 | DW230: 0.00062 | DX230: 0.00062 | DY230: 0.00062 | DZ230: 0.00602 | EA230: 0.00602 | EB230: 0.00602 | EC230: 0.00602 | ED230: 0.00602 | EE230: -0.02608 | EF230: -0.02098 | EG230: 0.0486 | EH230: 0.08265 | EI230: 0.10073 | EJ230: 0.06394 | EK230: 0.06904 | EL230: 0.13862 | EM230: 0.17267 | EN230: 0.19075 | EO230: 0.00469 | EP230: 0.00469 | EQ230: 0.00469 | ER230: 0.00469 | ES230: 0.00469 | ET230: 0.06303 | EU230: 0.06303 | EV230: 0.06303 | EW230: 0.06303 | EX230: 0.06303 | EY230: 0.06394 | EZ230: 0.06904 | FA230: 0.09002 | FB230: 0.09002 | FC230: 0.09002
A231: 2007-05-01 | B231: 0.17 | C231: 0.00869 | D231: 0.00869 | E231: 0.00869 | F231: 0.00869 | G231: 0.00869 | H231: 0.07068 | I231: 0.07068 | J231: 0.07068 | K231: 0.07068 | L231: 0.07068 | M231: 0 | N231: 0 | O231: 0 | P231: 0 | Q231: 0 | R231: 0 | S231: 0 | T231: 0 | U231: 0 | V231: 0 | W231: 0 | X231: 0 | Y231: 0 | Z231: 0 | AA231: 0 | AB231: 0.00226 | AC231: 0.00226 | AD231: 0.00226 | AE231: 0.00226 | AF231: 0.00226 | AG231: 0.00602 | AH231: 0.00602 | AI231: 0.00602 | AJ231: 0.00602 | AK231: 0.00602 | AL231: -0.09186 | AM231: -0.09449 | AN231: -0.00326 | AO231: 0.06382 | AP231: 0.07965 | AQ231: 0.00753 | AR231: 0.0049 | AS231: 0.09613 | AT231: 0.16321 | AU231: 0.17904 | AV231: 0.00469 | AW231: 0.00469 | AX231: 0.00469 | AY231: 0.00469 | AZ231: 0.00469 | BA231: 0.14417 | BB231: 0.14417 | BC231: 0.14417 | BD231: 0.14417 | BE231: 0.14417 | BF231: 0.00753 | BG231: 0.0049 | BH231: 0.09613 | BI231: 0.09939 | BJ231: 0.09939 | BK231: 3.81 | BL231: -0.01314 | BM231: 0 | BN231: 0 | BO231: 0 | BP231: 0 | BQ231: 0 | BR231: 0 | BS231: 0 | BT231: 0 | BU231: 0 | BV231: 0 | BW231: 0 | BX231: 0 | BY231: 0 | BZ231: 0 | CA231: 0 | CB231: 0 | CC231: 0 | CD231: 0 | CE231: 0 | CF231: 0 | CG231: 0 | CH231: 0 | CI231: 0 | CJ231: 0 | CK231: 0 | CL231: 0 | CM231: 0 | CN231: 0 | CO231: 0 | CP231: 0 | CQ231: 0 | CR231: 0 | CS231: 0 | CT231: 0 | CU231: 0 | CV231: 0.00869 | CW231: 0.00869 | CX231: 0.00869 | CY231: 0.00869 | CZ231: 0.00869 | DA231: 0.07068 | DB231: 0.07068 | DC231: 0.07068 | DD231: 0.07068 | DE231: 0.07068 | DF231: 0 | DG231: 0 | DH231: 0 | DI231: 0 | DJ231: 0 | DK231: 0 | DL231: 0 | DM231: 0 | DN231: 0 | DO231: 0 | DP231: 0 | DQ231: 0 | DR231: 0 | DS231: 0 | DT231: 0 | DU231: 0.00062 | DV231: 0.00062 | DW231: 0.00062 | DX231: 0.00062 | DY231: 0.00062 | DZ231: 0.00602 | EA231: 0.00602 | EB231: 0.00602 | EC231: 0.00602 | ED231: 0.00602 | EE231: -0.03182 | EF231: -0.03445 | EG231: 0.04965 | EH231: 0.06382 | EI231: 0.07965 | EJ231: 0.06593 | EK231: 0.0633 | EL231: 0.1474 | EM231: 0.16157 | EN231: 0.1774 | EO231: 0.00469 | EP231: 0.00469 | EQ231: 0.00469 | ER231: 0.00469 | ES231: 0.00469 | ET231: 0.06877 | EU231: 0.06877 | EV231: 0.06877 | EW231: 0.06877 | EX231: 0.06877 | EY231: 0.06593 | EZ231: 0.0633 | FA231: 0.09775 | FB231: 0.09775 | FC231: 0.09775
A232: 2007-07-01 | B232: 0.17 | C232: 0.00945 | D232: 0.00945 | E232: 0.00945 | F232: 0.00945 | G232: 0.00945 | H232: 0.07068 | I232: 0.07068 | J232: 0.07068 | K232: 0.07068 | L232: 0.07068 | M232: 0 | N232: 0 | O232: 0 | P232: 0 | Q232: 0 | R232: 0 | S232: 0 | T232: 0 | U232: 0 | V232: 0 | W232: 0 | X232: 0 | Y232: 0 | Z232: 0 | AA232: 0 | AB232: 0.00354 | AC232: 0.00354 | AD232: 0.00354 | AE232: 0.00354 | AF232: 0.00354 | AG232: 0.00602 | AH232: 0.00602 | AI232: 0.00602 | AJ232: 0.00602 | AK232: 0.00602 | AL232: -0.08026 | AM232: -0.08289 | AN232: -0.01075 | AO232: 0.05203 | AP232: 0.06786 | AQ232: 0.02117 | AR232: 0.01854 | AS232: 0.09068 | AT232: 0.15346 | AU232: 0.16929 | AV232: 0.00469 | AW232: 0.00469 | AX232: 0.00469 | AY232: 0.00469 | AZ232: 0.00469 | BA232: 0.13053 | BB232: 0.13053 | BC232: 0.13053 | BD232: 0.13053 | BE232: 0.13053 | BF232: 0.02117 | BG232: 0.01854 | BH232: 0.09068 | BI232: 0.10143 | BJ232: 0.10143 | BK232: 3.81 | BL232: -0.01314 | BM232: 0 | BP232: 0 | BQ232: 0 | BR232: 0 | BS232: 0 | BT232: 0 | BU232: 0 | BV232: 0 | BW232: 0 | BX232: 0 | BY232: 0 | BZ232: 0 | CA232: 0 | CB232: 0 | CC232: 0 | CD232: 0 | CE232: 0 | CF232: 0 | CG232: 0 | CH232: 0 | CI232: 0 | CJ232: 0 | CK232: 0 | CL232: 0 | CM232: 0 | CN232: 0 | CO232: 0 | CP232: 0 | CQ232: 0 | CR232: 0 | CS232: 0 | CT232: 0 | CU232: 0 | CV232: 0.00945 | CW232: 0.00945 | CX232: 0.00945 | CY232: 0.00945 | CZ232: 0.00945 | DA232: 0.07068 | DB232: 0.07068 | DC232: 0.07068 | DD232: 0.07068 | DE232: 0.07068 | DF232: 0 | DG232: 0 | DH232: 0 | DI232: 0 | DJ232: 0 | DK232: 0 | DL232: 0 | DM232: 0 | DN232: 0 | DO232: 0 | DP232: 0 | DQ232: 0 | DR232: 0 | DS232: 0 | DT232: 0 | DU232: 0.00097 | DV232: 0.00097 | DW232: 0.00097 | DX232: 0.00097 | DY232: 0.00097 | DZ232: 0.00602 | EA232: 0.00602 | EB232: 0.00602 | EC232: 0.00602 | ED232: 0.00602 | EE232: -0.02635 | EF232: -0.02898 | EG232: 0.03814 | EH232: 0.05203 | EI232: 0.06786 | EJ232: 0.07251 | EK232: 0.06988 | EL232: 0.137 | EM232: 0.15089 | EN232: 0.16672 | EO232: 0.00469 | EP232: 0.00469 | EQ232: 0.00469 | ER232: 0.00469 | ES232: 0.00469 | ET232: 0.06219 | EU232: 0.06219 | EV232: 0.06219 | EW232: 0.06219 | EX232: 0.06219 | EY232: 0.07251 | EZ232: 0.06988 | FA232: 0.09886 | FB232: 0.09886 | FC232: 0.09886
A233: 2007-11-01 | B233: 0.17 | C233: 0.00945 | D233: 0.00945 | E233: 0.00945 | F233: 0.00945 | G233: 0.00945 | H233: 0.06295 | I233: 0.06295 | J233: 0.06295 | K233: 0.06295 | L233: 0.06295 | M233: 0 | N233: 0 | O233: 0 | P233: 0 | Q233: 0 | R233: 0 | S233: 0 | T233: 0 | U233: 0 | V233: 0 | W233: 0 | X233: 0 | Y233: 0 | Z233: 0 | AA233: 0 | AB233: 0.00127 | AC233: 0.00127 | AD233: 0.00127 | AE233: 0.00127 | AF233: 0.00127 | AG233: 0.00602 | AH233: 0.00602 | AI233: 0.00602 | AJ233: 0.00602 | AK233: 0.00602 | AL233: -0.02644 | AM233: -0.02134 | AN233: 0.03171 | AO233: 0.06843 | AP233: 0.08651 | AQ233: 0.06499 | AR233: 0.07009 | AS233: 0.12314 | AT233: 0.15986 | AU233: 0.17794 | AV233: 0.00469 | AW233: 0.00469 | AX233: 0.00469 | AY233: 0.00469 | AZ233: 0.00469 | BA233: 0.06397 | BB233: 0.06397 | BC233: 0.06397 | BD233: 0.06397 | BE233: 0.06397 | BF233: 0.06499 | BG233: 0.07009 | BH233: 0.09143 | BI233: 0.09143 | BJ233: 0.09143 | BK233: 3.81 | BL233: -0.00541 | BM233: 0 | BP233: 0 | BQ233: 0 | BR233: 0 | BS233: 0 | BT233: 0 | BU233: 0 | BV233: 0 | BW233: 0 | BX233: 0 | BY233: 0 | BZ233: 0 | CA233: 0 | CB233: 0 | CC233: 0 | CD233: 0 | CE233: 0 | CF233: 0 | CG233: 0 | CH233: 0 | CI233: 0 | CJ233: 0 | CK233: 0 | CL233: 0 | CM233: 0 | CN233: 0 | CO233: 0 | CP233: 0 | CQ233: 0 | CR233: 0 | CS233: 0 | CT233: 0 | CU233: 0 | CV233: 0.00945 | CW233: 0.00945 | CX233: 0.00945 | CY233: 0.00945 | CZ233: 0.00945 | DA233: 0.06295 | DB233: 0.06295 | DC233: 0.06295 | DD233: 0.06295 | DE233: 0.06295 | DF233: 0 | DG233: 0 | DH233: 0 | DI233: 0 | DJ233: 0 | DK233: 0 | DL233: 0 | DM233: 0 | DN233: 0 | DO233: 0 | DP233: 0 | DQ233: 0 | DR233: 0 | DS233: 0 | DT233: 0 | DU233: 0.00097 | DV233: 0.00097 | DW233: 0.00097 | DX233: 0.00097 | DY233: 0.00097 | DZ233: 0.00602 | EA233: 0.00602 | EB233: 0.00602 | EC233: 0.00602 | ED233: 0.00602 | EE233: -0.02117 | EF233: -0.01607 | EG233: 0.03653 | EH233: 0.06843 | EI233: 0.08651 | EJ233: 0.06996 | EK233: 0.07506 | EL233: 0.12766 | EM233: 0.15956 | EN233: 0.17764 | EO233: 0.00469 | EP233: 0.00469 | EQ233: 0.00469 | ER233: 0.00469 | ES233: 0.00469 | ET233: 0.05701 | EU233: 0.05701 | EV233: 0.05701 | EW233: 0.05701 | EX233: 0.05701 | EY233: 0.06996 | EZ233: 0.07506 | FA233: 0.09113 | FB233: 0.09113 | FC233: 0.09113
IT234: =SUM(C234:L234,AB234:AP234,BA234:BE234,CV234:DE234,DU234:DY234,DZ234:EI234,ET234:EX234) -> 0 | IU234: =IF(IT234=IT233,0,1) -> 0
IT235: 0 | IU235: 0
IT236: 0 | IU236: 0
IT237: 0 | IU237: 0
IT238: 0 | IU238: 0
IT239: 0 | IU239: 0
IT240: 0 | IU240: 0
IT241: 0 | IU241: 0
IT242: 0 | IU242: 0
IT243: 0 | IU243: 0
IT244: 0 | IU244: 0
IT245: 0 | IU245: 0
IT246: 0 | IU246: 0
IT247: 0 | IU247: 0
IT248: 0 | IU248: 0
IT249: 0 | IU249: 0
IT250: 0 | IU250: 0
IT251: 0 | IU251: 0
IT252: 0 | IU252: 0
IT253: 0 | IU253: 0
IT254: 0 | IU254: 0
IT255: 0 | IU255: 0
IT256: 0 | IU256: 0
IT257: 0 | IU257: 0
IT258: 0 | IU258: 0
IT259: 0 | IU259: 0
IT260: 0 | IU260: 0
IT261: 0 | IU261: 0
IT262: 0 | IU262: 0
IT263: 0 | IU263: 0
IT264: 0 | IU264: 0
IT265: 0 | IU265: 0
IT266: =SUM(C266:L266,AB266:AP266,BA266:BE266,CV266:DE266,DU266:DY266,DZ266:EI266,ET266:EX266) -> 0 | IU266: 0
IT267: 0 | IU267: 0
IT268: 0 | IU268: 0
IT269: 0 | IU269: 0
IT270: 0 | IU270: 0
IT271: 0 | IU271: 0
IT272: 0 | IU272: 0
IT273: 0 | IU273: 0
IT274: 0 | IU274: 0
IT275: 0 | IU275: 0
IT276: 0 | IU276: 0
IT277: 0 | IU277: 0
IT278: 0 | IU278: 0
IT279: 0 | IU279: 0
IT280: 0 | IU280: 0
IT281: 0 | IU281: 0
IT282: 0 | IU282: 0
IT283: 0 | IU283: 0
IT284: 0 | IU284: 0
IT285: 0 | IU285: 0
IT286: 0 | IU286: 0
IT287: 0 | IU287: 0
IT288: 0 | IU288: 0
IT289: 0 | IU289: 0
IT290: 0 | IU290: 0
IT291: 0 | IU291: 0
IT292: 0 | IU292: 0
IT293: 0 | IU293: 0
IT294: 0 | IU294: 0
IT295: 0 | IU295: 0
IT296: 0 | IU296: 0
IT297: 0 | IU297: 0
IT298: 0 | IU298: =IF(IT298=IT297,0,1) -> 0
IT299: 0 | IU299: 0
IT300: 0 | IU300: 0
IT301: 0 | IU301: 0
IT302: 0 | IU302: 0
IU303: 0
IU304: 0
IU305: 0
IU306: 0
IU307: 0
IU308: 0
IU309: 0
IU310: 0
IU311: 0
IU312: 0
IU313: 0
... 9 more rows

Sheet DR-CALC (hidden)
A2: For Rates: DR - DRLI w CARE FERA & Medical | AM2: Determine Prorations:
AN4: End Date | AP4: Start Date | AR4: Num of Days
AN5: =E_Cust_End_Date -> 00:00:00 | AO5: - | AP5: =E_Cust_Start_Date -> 00:00:00 | AQ5: = | AR5: =AN5-AP5 -> 0
B6: Billing Period - Factors
AM7: Electric | AN7: Chng Dates | AO7: > Start Date | AU7: Proration Dates | AY7: 1 | AZ7: 2 | BA7: 3 | BC7: Start Date
B8: Start | D8: End Date | F8: Days | J8: Sum Total | AM8: DR UDC$ | AN8: =IF(AND(Input!B102>E_Cust_Start_Date,Input!B102<=E_Cust_End_Date),Input!B102,0) -> 00:00:00 | AU8: =AP5 -> 00:00:00 | AY8: Chng Dates | AZ8: Chng Dates | BA8: Chng Dates | BC8: Chng Dates
B9: =E_Cust_Start_Date -> 00:00:00 | C9: - | D9: =E_Cust_End_Date -> 00:00:00 | F9: =END_DATE_DR-B9 -> 0 | J9: =SUM(J11:J15) -> 0 | AN9: =IF(AND(Input!B109>E_Cust_Start_Date,Input!B109<=E_Cust_End_Date),Input!B109,0) -> 00:00:00 | AU9: =IF(DMIN($AN$7:$AN$30,"Chng Dates",$BC$8:$BC$9)=0,"",DMIN($AN$7:$AN$30,"Chng Dates",$BC$8:$BC$9)) ->  | AY9: =CONCATENATE(">",AU9) -> > | AZ9: =CONCATENATE(">",AU10) -> > | BA9: =CONCATENATE(">",AU11) -> > | BC9: =CONCATENATE(">",AP5+1) -> >1
J10: Factor | AN10: =IF(AND(Input!B116>E_Cust_Start_Date,Input!B116<=E_Cust_End_Date),Input!B116,0) -> 00:00:00 | AU10: =IF(DMIN($AN$7:$AN$30,"Chng Dates",AY8:AY9)=0,"",DMIN($AN$7:$AN$30,"Chng Dates",AY8:AY9)) -> 
A11: 1 | B11: =START_DATE_DR -> 00:00:00 | C11: - | D11: =IF(AU9="",END_DATE_DR,AU9-1) -> 00:00:00 | E11: = | F11: =End_Date1_DR-B11 -> 0 | H11: =CONCATENATE(F11,"/",$F$9) -> 0/0 | J11: =IF($F$9=0,0,ROUND(F11/$F$9,10)) -> 0 | L11: =IF(AND(MONTH(End_Date1_DR)<11,MONTH(End_Date1_DR)>=6),"Summer ","Winter ") -> Winter | AM11: DWR Bond | AN11: =IF(AND(Input!B131>E_Cust_Start_Date,Input!B131<=E_Cust_End_Date),Input!B131,0) -> 00:00:00 | AU11: =IF(DMIN($AN$7:$AN$30,"Chng Dates",AZ8:AZ9)=0,"",DMIN($AN$7:$AN$30,"Chng Dates",AZ8:AZ9)) -> 
A12: 2 | B12: =IF(End_Date1_DR=END_DATE_DR,"",End_Date1_DR) ->  | C12: - | D12: =IF(End_Date1_DR=END_DATE_DR,"",IF(AU10="",END_DATE_DR,AU10-1)) ->  | E12: = | F12: =IF(B12<>"",D12-B12,"") ->  | H12: =IF(B12<>"",CONCATENATE(F12,"/",$F$9),"") ->  | J12: =IF(B12<>"",ROUND(F12/$F$9,10),"") ->  | L12: =IF(AND(MONTH(End_Date2_DR)<11,MONTH(End_Date2_DR)>=6),"Summer ","Winter ") ->  | AN12: =IF(AND(Input!B134>E_Cust_Start_Date,Input!B134<=E_Cust_End_Date),Input!B134,0) -> 00:00:00 | AU12: =IF(DMIN($AN$7:$AN$30,"Chng Dates",BA8:BA9)=0,"",DMIN($AN$7:$AN$30,"Chng Dates",BA8:BA9)) -> 
A13: 3 | B13: =IF(End_Date2_DR=END_DATE_DR,"",End_Date2_DR) ->  | C13: - | D13: =IF(OR(End_Date2_DR=END_DATE_DR,End_Date2_DR=""),"",IF(AU11="",END_DATE_DR,AU11-1)) ->  | E13: = | F13: =IF(B13<>"",D13-B13,"") ->  | H13: =IF(B13<>"",CONCATENATE(F13,"/",$F$9),"") ->  | J13: =IF(B13<>"",ROUND(F13/$F$9,10),"") ->  | AM13: DR COMM$ | AN13: =IF(AND(Input!B171>E_Cust_Start_Date,Input!B171<=E_Cust_End_Date),Input!B171,0) -> 00:00:00
A14: 4 | B14: =IF(End_Date3_DR=END_DATE_DR,"",End_Date3_DR) ->  | C14: - | D14: =IF(OR(End_Date3_DR="",End_Date3_DR=END_DATE_DR),"",IF(AU12="",END_DATE_DR,AU12-1)) ->  | E14: = | F14: =IF(B14<>"",D14-B14,"") ->  | H14: =IF(B14<>"",CONCATENATE(F14,"/",$F$9),"") ->  | J14: =IF(B14<>"",ROUND(F14/$F$9,10),"") ->  | AN14: =IF(AND(Input!B178>E_Cust_Start_Date,Input!B178<=E_Cust_End_Date),Input!B178,0) -> 00:00:00
A15: 5 | B15: =IF(End_Date4_DR=END_DATE_DR,"",End_Date4_DR) ->  | C15: - | D15: =IF(OR(End_Date4_DR=END_DATE_DR,End_Date4_DR=""),"",IF(End_Date4_DR=END_DATE_DR,"",END_DATE_DR)) ->  | E15: = | F15: =IF(B15<>"",D15-B15,"") ->  | H15: =IF(B15<>"",CONCATENATE(F15,"/",$F$9),"") ->  | J15: =IF(B15<>"",ROUND(F15/$F$9,10),"") ->  | AN15: =IF(AND(Input!B185>E_Cust_Start_Date,Input!B185<=E_Cust_End_Date),Input!B185,0) -> 00:00:00
F16: =SUM(F11:F15) -> 0 | J16: =ROUND(F16/Days_Billed_DR,10) ->  | AM16: CARE SRCHG EXP | AN16: =IF(AND(Input!B201>E_Cust_Start_Date,Input!B201<=E_Cust_End_Date),Input!B201,0) -> 00:00:00
AN17: =IF(AND(Input!B204>E_Cust_Start_Date,Input!B204<=E_Cust_End_Date),Input!B204,0) -> 00:00:00
J18: Meter crosses 0 kWh | S18: =AND(End_Date1_DR<>0,Rate_DR="dm",Units_w_EG>0) ->  | AM18: DRW EECC | AN18: =IF(AND(Input!B230>E_Cust_Start_Date,Input!B230<=E_Cust_End_Date),Input!B230,0) -> 00:00:00
B19: Rate_DR | D19: Heat code | F19: Climate Zone | H19: Total kWh | AN19: =IF(AND(Input!B233>E_Cust_Start_Date,Input!B233<=E_Cust_End_Date),Input!B233,0) -> 00:00:00
B20: =IF(CARE?="","",IF(CARE?=2,"DRLI","DR")) ->  | D20: =IF(InG_E?=2,4,1) -> 1 | F20: =InBL_LOC -> 0 | H20: =MAX(InEendRead-InEstartRead,Q20) -> 0 | J20: =ROUNDUP(InEstartRead,-4) -> 0 | K20: - | L20: =InEstartRead -> 0 | M20: = | N20: =J20-L20 -> 0 | O20: + | P20: =InEendRead -> 0 | Q20: =IF(AND(InEendRead<InEstartRead,Input!E24=TRUE),SUM(P20,N20),"") ->  | AM20: St Reg Tax | AN20: =IF(AND(Input!B240>E_Cust_Start_Date,Input!B240<=E_Cust_End_Date),Input!B240,0) -> 00:00:00
AN21: =IF(AND(Input!B243>E_Cust_Start_Date,Input!B243<=E_Cust_End_Date),Input!B243,0) -> 00:00:00
AM22: St Surchrg | AN22: =IF(AND(Input!B250>E_Cust_Start_Date,Input!B250<=E_Cust_End_Date),Input!B250,0) -> 00:00:00
B23: Total Units | D23: Medical Units | H23: All Electric Units | J23: E&G Units | L23: FERA Units | AN23: =IF(AND(Input!B251>E_Cust_Start_Date,Input!B253<=E_Cust_End_Date),Input!B253,0) -> 00:00:00
B24: =IF(OR(Rate_DR="dr",Rate_DR="drli"),1,VLOOKUP(Billing_Acct,Data_Set,33)) ->  | D24: =IF(InMedBL=5,0,InMedBL) -> 0 | H24: =IF(OR(HeatCD=2,HeatCD=4),1,0) -> 0 | J24: =Units_Total-All_E_Units ->  | L24: =IF(CARE?=3,1,"") ->  | AM24: CSI | AN24: =IF(AND(Input!B215>E_Cust_Start_Date,Input!B215<=E_Cust_End_Date),Input!B215,0) -> 00:00:00
AN25: =IF(AND(Input!B218>E_Cust_Start_Date,Input!B218<=E_Cust_End_Date),Input!B218,0) -> 00:00:00
AM26: SDFFD | AN26: =IF(AND(Input!B263>E_Cust_Start_Date,Input!B263<=E_Cust_End_Date),Input!B263,0) -> 00:00:00
AN27: =IF(AND(Input!B266>E_Cust_Start_Date,Input!B266<=E_Cust_End_Date),Input!B266,0) -> 00:00:00
B28: E&G Baseline Allowance | AM28: FF by others | AN28: =IF(AND(Input!B270>E_Cust_Start_Date,Input!B270<=E_Cust_End_Date),Input!B270,0) -> 00:00:00
F29: Daily Allow | H29: DM - Daily Allow | J29: Days | L29: x No. of Units | N29: Allowance x Days | P29: Whole number | R29: Decimal | AN29: =IF(AND(Input!B273>E_Cust_Start_Date,Input!B273<=E_Cust_End_Date),Input!B273,0) -> 00:00:00
A30: 1 | B30: =$B$11 -> 00:00:00 | C30: - | D30: =End_Date1_DR -> 00:00:00 | F30: =IF(AND(End_Date1_DR<>0,Rate_DR<>"dm"),VLOOKUP(End_Date1_DR,BL_E_G_ALLOW,IF(CL_ZN=1,3,IF(CL_ZN=2,4,IF(CL_ZN=3,5,6)))),0) -> 0 | H30: =IF(AND(End_Date1_DR<>"",Rate_DR="dm",Units_w_EG>0),VLOOKUP(End_Date1_DR,BL_E_G_ALLOW,IF(CL_ZN=1,7,IF(CL_ZN=2,8,IF(CL_ZN=3,9,10)))),"") ->  | I30: x | J30: =D30-B30 -> 0 | L30: =IF(End_Date1_DR="","",Units_w_EG) ->  | N30: =IF(End_Date1_DR="","",IF(Units_w_EG=0,"",IF(Rate_DR="DM",H30*J30*L30,F30*J30*L30))) ->  | P30: =IF(N30="","",TRUNC(N30,0)) ->  | R30: =IF(N30="","",N30-INT(N30)) ->  | AM30: BSC | AN30: =IF(AND(BSC_Effective_date>E_Cust_Start_Date,BSC_Effective_date<=E_Cust_End_Date),BSC_Effective_date,0) -> 00:00:00
A31: 2 | B31: =$B$12 ->  | C31: - | D31: =End_Date2_DR ->  | F31: =IF(AND(End_Date2_DR<>"",Rate_DR<>"dm"),IF(OR(HeatCD=2,HeatCD=4),VLOOKUP(End_Date2_DR,BL_ALL_E_Allow,IF(CL_ZN=1,2,IF(CL_ZN=2,3,IF(CL_ZN=3,4,5)))),VLOOKUP(D31,BL_E_G_ALLOW,IF(CL_ZN=1,3,IF(CL_ZN=2,4,IF(CL_ZN=3,5,6))))),"") ->  | H31: =IF(AND(End_Date2_DR<>"",Rate_DR="dm",Units_w_EG>0),VLOOKUP(End_Date2_DR,BL_E_G_ALLOW,IF(CL_ZN=1,7,IF(CL_ZN=2,8,IF(CL_ZN=3,9,10)))),"") ->  | I31: x | J31: =IF(D31="","",D31-B31) ->  | L31: =IF(End_Date2_DR="","",Units_w_EG) ->  | N31: =IF(End_Date2_DR="","",IF(Units_w_EG=0,"",IF(Rate_DR="DM",H31*J31*L31,F31*J31*L31))) ->  | P31: =IF(N31="","",TRUNC(N31,0)) ->  | R31: =IF(N31="","",N31-INT(N31)) -> 
A32: 3 | B32: =$B$13 ->  | C32: - | D32: =End_Date3_DR ->  | F32: =IF(AND(End_Date3_DR<>"",Rate_DR<>"dm"),IF(OR(HeatCD=2,HeatCD=4),VLOOKUP(End_Date3_DR,BL_ALL_E_Allow,IF(CL_ZN=1,2,IF(CL_ZN=2,3,IF(CL_ZN=3,4,5)))),VLOOKUP(D32,BL_E_G_ALLOW,IF(CL_ZN=1,3,IF(CL_ZN=2,4,IF(CL_ZN=3,5,6))))),"") ->  | H32: =IF(AND(End_Date3_DR<>"",Rate_DR="dm",Units_w_EG>0),VLOOKUP(End_Date3_DR,BL_E_G_ALLOW,IF(CL_ZN=1,7,IF(CL_ZN=2,8,IF(CL_ZN=3,9,10)))),"") ->  | I32: x | J32: =IF(D32="","",D32-B32) ->  | L32: =IF(End_Date3_DR="","",Units_w_EG) ->  | N32: =IF(End_Date3_DR="","",IF(Units_w_EG=0,"",IF(Rate_DR="DM",H32*J32*L32,F32*J32*L32))) ->  | P32: =IF(N32="","",TRUNC(N32,0)) ->  | R32: =IF(N32="","",N32-INT(N32)) ->  | AM32: Baseline
A33: 4 | B33: =$B$14 ->  | C33: - | D33: =End_Date4_DR ->  | F33: =IF(AND(End_Date4_DR<>"",Rate_DR<>"dm"),IF(OR(HeatCD=2,HeatCD=4),VLOOKUP(End_Date4_DR,BL_ALL_E_Allow,IF(CL_ZN=1,2,IF(CL_ZN=2,3,IF(CL_ZN=3,4,5)))),VLOOKUP(D33,BL_E_G_ALLOW,IF(CL_ZN=1,3,IF(CL_ZN=2,4,IF(CL_ZN=3,5,6))))),"") ->  | H33: =IF(AND(End_Date4_DR<>"",Rate_DR="dm",Units_w_EG>0),VLOOKUP(End_Date4_DR,BL_E_G_ALLOW,IF(CL_ZN=1,7,IF(CL_ZN=2,8,IF(CL_ZN=3,9,10)))),"") ->  | I33: x | J33: =IF(D33="","",D33-B33) ->  | L33: =IF(End_Date4_DR="","",Units_w_EG) ->  | N33: =IF(End_Date4_DR="","",IF(Units_w_EG=0,"",IF(Rate_DR="DM",H33*J33*L33,F33*J33*L33))) ->  | P33: =IF(N33="","",TRUNC(N33,0)) ->  | R33: =IF(N33="","",N33-INT(N33)) ->  | S33: Sum & Round
A34: 5 | B34: =$B$15 ->  | C34: - | D34: =End_Date5_DR ->  | F34: =IF(AND(End_Date5_DR<>"",Rate_DR<>"dm"),IF(OR(HeatCD=2,HeatCD=4),VLOOKUP(End_Date5_DR,BL_ALL_E_Allow,IF(CL_ZN=1,2,IF(CL_ZN=2,3,IF(CL_ZN=3,4,5)))),VLOOKUP(D34,BL_E_G_ALLOW,IF(CL_ZN=1,3,IF(CL_ZN=2,4,IF(CL_ZN=3,5,6))))),"") ->  | H34: =IF(AND(End_Date5_DR<>"",Rate_DR="dm",Units_w_EG>0),VLOOKUP(End_Date5_DR,BL_E_G_ALLOW,IF(CL_ZN=1,7,IF(CL_ZN=2,8,IF(CL_ZN=3,9,10)))),"") ->  | I34: x | J34: =IF(D34="","",D34-B34) ->  | L34: =IF(End_Date5_DR="","",Units_w_EG) ->  | N34: =IF(End_Date5_DR="","",IF(Units_w_EG=0,"",IF(Rate_DR="DM",H34*J34*L34,F34*J34*L34))) ->  | P34: =IF(N34="","",TRUNC(N34,0)) ->  | R34: =IF(N34="","",N34-INT(N34)) ->  | S34: BL Total
J35: =SUM(J30:J34) -> 0 | P35: =SUM(P30:P34) ->  | Q35: + | R35: =SUM(R30:R34) ->  | S35: =IF(P44=0,ROUND(SUM(P35:R35),0),ROUND(SUM(P35:R35),1)) -> 
B37: ALL_E Baseline Allowance
F38: Daily Allow | H38: DM - Daily Allow | J38: Days | L38: x No. of Units | N38: Allowance x Days | P38: Whole number | R38: Decimal
A39: 1 | B39: =$B$11 -> 00:00:00 | C39: - | D39: =End_Date1_DR -> 00:00:00 | F39: =IF(AND(End_Date1_DR<>"",Rate_DR<>"dm"),IF(OR(HeatCD=2,HeatCD=4,All_E_Units>0),VLOOKUP(End_Date1_DR,BL_ALL_E_Allow,IF(CL_ZN=1,2,IF(CL_ZN=2,3,IF(CL_ZN=3,4,5))))),"") -> FALSE | H39: =IF(AND(End_Date1_DR<>"",Rate_DR="dm",All_E_Units>0),VLOOKUP(End_Date1_DR,BL_ALL_E_Allow,IF(CL_ZN=1,6,IF(CL_ZN=2,7,IF(CL_ZN=3,8,9)))),"") ->  | I39: x | J39: =D39-B39 -> 0 | L39: =IF(End_Date1_DR="","",All_E_Units) -> 0 | N39: =IF(End_Date1_DR="","",IF(All_E_Units>0,IF(Rate_DR="DM",H39*J39*L39,F39*J39*L39),0)) -> 0 | P39: =IF(N39="","",TRUNC(N39,0)) -> 0 | R39: =IF(N39="","",N39-INT(N39)) -> 0 | W39: =BL_Basic+BL_Med_Total -> 
A40: 2 | B40: =$B$12 ->  | C40: - | D40: =End_Date2_DR ->  | F40: =IF(AND(End_Date2_DR<>"",Rate_DR<>"dm"),IF(OR(HeatCD=2,HeatCD=4,All_E_Units>0),VLOOKUP(End_Date2_DR,BL_ALL_E_Allow,IF(CL_ZN=1,2,IF(CL_ZN=2,3,IF(CL_ZN=3,4,5))))),"") ->  | H40: =IF(AND(End_Date2_DR<>"",Rate_DR="dm",All_E_Units>0),VLOOKUP(End_Date2_DR,BL_ALL_E_Allow,IF(CL_ZN=1,6,IF(CL_ZN=2,7,IF(CL_ZN=3,8,9)))),"") ->  | I40: x | J40: =IF(D40="","",D40-B40) ->  | L40: =IF(End_Date2_DR="","",All_E_Units) ->  | N40: =IF(End_Date2_DR="","",IF(All_E_Units>0,IF(Rate_DR="DM",H40*J40*L40,F40*J40*L40),0)) ->  | P40: =IF(N40="","",TRUNC(N40,0)) ->  | R40: =IF(N40="","",N40-INT(N40)) -> 
A41: 3 | B41: =$B$13 ->  | C41: - | D41: =End_Date3_DR ->  | F41: =IF(AND(End_Date3_DR<>"",Rate_DR<>"dm"),IF(OR(HeatCD=2,HeatCD=4,All_E_Units>0),VLOOKUP(End_Date3_DR,BL_ALL_E_Allow,IF(CL_ZN=1,2,IF(CL_ZN=2,3,IF(CL_ZN=3,4,5))))),"") ->  | H41: =IF(AND(End_Date3_DR<>"",Rate_DR="dm",All_E_Units>0),VLOOKUP(End_Date3_DR,BL_ALL_E_Allow,IF(CL_ZN=1,6,IF(CL_ZN=2,7,IF(CL_ZN=3,8,9)))),"") ->  | I41: x | J41: =IF(D41="","",D41-B41) ->  | L41: =IF(End_Date3_DR="","",All_E_Units) ->  | N41: =IF(End_Date3_DR="","",IF(All_E_Units>0,IF(Rate_DR="DM",H41*J41*L41,F41*J41*L41),0)) ->  | P41: =IF(N41="","",TRUNC(N41,0)) ->  | R41: =IF(N41="","",N41-INT(N41)) -> 
A42: 4 | B42: =$B$14 ->  | C42: - | D42: =End_Date4_DR ->  | F42: =IF(AND(End_Date4_DR<>"",Rate_DR<>"dm"),IF(OR(HeatCD=2,HeatCD=4,All_E_Units>0),VLOOKUP(End_Date4_DR,BL_ALL_E_Allow,IF(CL_ZN=1,2,IF(CL_ZN=2,3,IF(CL_ZN=3,4,5))))),"") ->  | H42: =IF(AND(End_Date4_DR<>"",Rate_DR="dm",All_E_Units>0),VLOOKUP(End_Date4_DR,BL_ALL_E_Allow,IF(CL_ZN=1,6,IF(CL_ZN=2,7,IF(CL_ZN=3,8,9)))),"") ->  | I42: x | J42: =IF(D42="","",D42-B42) ->  | L42: =IF(End_Date4_DR="","",All_E_Units) ->  | N42: =IF(End_Date4_DR="","",IF(All_E_Units>0,IF(Rate_DR="DM",H42*J42*L42,F42*J42*L42),0)) ->  | P42: =IF(N42="","",TRUNC(N42,0)) ->  | R42: =IF(N42="","",N42-INT(N42)) ->  | S42: Sum & Round
A43: 5 | B43: =$B$15 ->  | C43: - | D43: =End_Date5_DR ->  | F43: =IF(AND(End_Date5_DR<>"",Rate_DR<>"dm"),IF(OR(HeatCD=2,HeatCD=4,All_E_Units>0),VLOOKUP(End_Date5_DR,BL_ALL_E_Allow,IF(CL_ZN=1,2,IF(CL_ZN=2,3,IF(CL_ZN=3,4,5))))),"") ->  | H43: =IF(AND(End_Date5_DR<>"",Rate_DR="dm",All_E_Units>0),VLOOKUP(End_Date5_DR,BL_ALL_E_Allow,IF(CL_ZN=1,6,IF(CL_ZN=2,7,IF(CL_ZN=3,8,9)))),"") ->  | I43: x | J43: =IF(D43="","",D43-B43) ->  | L43: =IF(End_Date5_DR="","",All_E_Units) ->  | N43: =IF(End_Date5_DR="","",IF(All_E_Units>0,IF(Rate_DR="DM",H43*J43*L43,F43*J43*L43),0)) ->  | P43: =IF(N43="","",TRUNC(N43,0)) ->  | R43: =IF(N43="","",N43-INT(N43)) ->  | S43: BL Total
J44: =SUM(J39:J43) -> 0 | P44: =SUM(P39:P43) -> 0 | Q44: + | R44: =SUM(R39:R43) -> 0 | S44: =IF(P35=0,ROUND(SUM(P44:R44),0),ROUND(SUM(P44:R44),1)) -> 
B46: =IF(Rate_DR="DM", "DM w/ MEDICAL Electric Baseline Allowance","MEDICAL Electric Baseline Allowance") -> MEDICAL Electric Baseline Allowance
F48: Med - Daily Allow | J48: Days | L48: x No. of Units | N48: Allowance x Days | P48: Whole number | R48: Decimal
A49: 1 | B49: =$B$11 -> 00:00:00 | C49: - | D49: =End_Date1_DR -> 00:00:00 | F49: =IF(End_Date1_DR="","",IF(Units_Med>0,VLOOKUP(End_Date1_DR,BL_E_G_ALLOW,2),0)) -> 0 | I49: x | J49: =D49-B49 -> 0 | L49: =IF(End_Date1_DR="","",Units_Med) -> 0 | N49: =IF(J49="","",F49*J49*L49) -> 0 | P49: =IF(N49="","",TRUNC(N49,0)) -> 0 | R49: =IF(N49="","",N49-INT(N49)) -> 0
A50: 2 | B50: =$B$12 ->  | C50: - | D50: =End_Date2_DR ->  | F50: =IF(End_Date2_DR="","",IF(Units_Med>0,VLOOKUP(End_Date2_DR,BL_E_G_ALLOW,2),0)) ->  | I50: x | J50: =IF(D50="","",D50-B50) ->  | L50: =IF(End_Date2_DR="","",Units_Med) ->  | N50: =IF(J50="","",F50*J50*L50) ->  | P50: =IF(N50="","",TRUNC(N50,0)) ->  | R50: =IF(N50="","",N50-INT(N50)) -> 
A51: 3 | B51: =$B$13 ->  | C51: - | D51: =End_Date3_DR ->  | F51: =IF(End_Date3_DR="","",IF(Units_Med>0,VLOOKUP(End_Date3_DR,BL_E_G_ALLOW,2),0)) ->  | I51: x | J51: =IF(D51="","",D51-B51) ->  | L51: =IF(End_Date3_DR="","",Units_Med) ->  | N51: =IF(J51="","",F51*J51*L51) ->  | P51: =IF(N51="","",TRUNC(N51,0)) ->  | R51: =IF(N51="","",N51-INT(N51)) -> 
A52: 4 | B52: =$B$14 ->  | C52: - | D52: =End_Date4_DR ->  | F52: =IF(End_Date4_DR="","",IF(Units_Med>0,VLOOKUP(End_Date4_DR,BL_E_G_ALLOW,2),0)) ->  | I52: x | J52: =IF(D52="","",D52-B52) ->  | L52: =IF(End_Date4_DR="","",Units_Med) ->  | N52: =IF(J52="","",F52*J52*L52) ->  | P52: =IF(N52="","",TRUNC(N52,0)) ->  | R52: =IF(N52="","",N52-INT(N52)) ->  | S52: Sum & Round
A53: 5 | B53: =$B$15 ->  | C53: - | D53: =End_Date5_DR ->  | F53: =IF(End_Date5_DR="","",IF(Units_Med>0,VLOOKUP(End_Date5_DR,BL_E_G_ALLOW,2),0)) ->  | I53: x | J53: =IF(D53="","",D53-B53) ->  | L53: =IF(End_Date5_DR="","",Units_Med) ->  | N53: =IF(J53="","",F53*J53*L53) ->  | P53: =IF(N53="","",TRUNC(N53,0)) ->  | R53: =IF(N53="","",N53-INT(N53)) ->  | S53: BL Total
J54: =SUM(J49:J53) -> 0 | P54: =SUM(P49:P53) -> 0 | Q54: + | R54: =SUM(R49:R53) -> 0 | S54: =ROUND(SUM(P54:R54),0) -> 0
S58: BL_Allow
S59: =SUM(BL_Basic,BL_ALL_E_Total,BL_Med_Total) -> 
B65: =IF(Rate_DR="drtou", "DR TOU Summer","Baseline") -> Baseline | N65: =IF(Rate_DR="drtou", "DR TOU Winter","Care Baseline") -> Care Baseline
C67: BL Allow | H67: Tiers Delta | J67: =IF(Rate_DR="DRTOU","Tier kWh","kWh Billed @ tier") -> kWh Billed @ tier | L67: Total kWh - Tier | O67: BL Allow | R67: % of BL | T67: Tiers Delta | V67: =IF(Rate_DR="DRTOU","Tier kWh","kWh Billed @ tier") -> kWh Billed @ tier | X67: Total kWh - Tier
B68: =IF(AND(Rate_DR="dr",Units_Med=0),BL_Allow,0) -> 0 | C68: x | D68: 1 | E68: = | F68: =ROUND(B68*D68,0) -> 0 | J68: =IF(Total_kWh_DR>B68,B68,Total_kWh_DR) -> 0 | K68: - | L68: =IF(J68>0,Total_kWh_DR-J68,0) -> 0 | N68: =IF(OR(Rate_DR="drli",Units_Med>0),BL_Allow,0) -> 0 | O68: x | P68: 1 | Q68: = | R68: =ROUND(N68*P68,0) -> 0 | V68: =IF(Total_kWh_DR>N68,N68,Total_kWh_DR) -> 0 | W68: - | X68: =IF(V68>0,Total_kWh_DR-V68,0) -> 0
B69: =IF(AND(Rate_DR="dr",Units_Med=0),BL_Allow,0) -> 0 | C69: x | D69: 1.3 | E69: = | F69: =ROUND(B69*D69,0) -> 0 | H69: =F69-F68 -> 0 | J69: =MIN(H69,L68) -> 0 | K69: - | L69: =L68-J69 -> 0 | N69: =IF(OR(Rate_DR="drli",Units_Med>0),BL_Allow,0) -> 0 | O69: x | P69: 1.3 | Q69: = | R69: =ROUND(N69*P69,0) -> 0 | T69: =R69-R68 -> 0 | V69: =MIN(T69,X68) -> 0 | W69: - | X69: =X68-V69 -> 0 | Y69: T1 | Z69: =SUM(V68:V69) -> 0
B70: =IF(AND(Rate_DR="dr",Units_Med=0),BL_Allow,0) -> 0 | C70: x | D70: 2 | E70: = | F70: =ROUND(B70*D70,0) -> 0 | H70: =F70-F69 -> 0 | J70: =MIN(H70,L69) -> 0 | K70: - | L70: =L69-J70 -> 0 | N70: =IF(OR(Rate_DR="drli",Units_Med>0),BL_Allow,0) -> 0 | O70: x | P70: 2 | Q70: = | R70: =ROUND(N70*P70,0) -> 0 | T70: =R70-R69 -> 0 | V70: =MIN(T70,X69) -> 0 | W70: - | X70: =X69-V70 -> 0 | Y70: T2 | Z70: =SUM(V70:V72) -> 0
B71: =IF(AND(Rate_DR="dr",Units_Med=0),BL_Allow,0) -> 0 | C71: x | D71: 4 | E71: = | F71: =ROUND(B71*D71,0) -> 0 | H71: =F71-F70 -> 0 | J71: =MIN(H71,L70) -> 0 | K71: - | L71: =L70-J71 -> 0 | N71: =IF(OR(Rate_DR="drli",Units_Med>0),BL_Allow,0) -> 0 | O71: x | P71: 4 | Q71: = | R71: =ROUND(N71*P71,0) -> 0 | T71: =R71-R70 -> 0 | V71: =MIN(T71,X70) -> 0 | W71: - | X71: =X70-V71 -> 0
B72: =IF(AND(Rate_DR="dr",Units_Med=0),BL_Allow,0) -> 0 | D72: Over | J72: =MIN(H72,L71) -> 0 | N72: =IF(OR(Rate_DR="drli",Units_Med>0),BL_Allow,0) -> 0 | P72: Over | V72: =MIN(T72,X71) -> 0
J73: =SUM(J68:J72) -> 0 | V73: =SUM(V68:V72) -> 0
H94: =IF(Rate_DR="DRTOU","DR TOU SUMMER","Standard Baseline") -> Standard Baseline | Q94: =IF(Rate_DR="DRTOU","DR TOU WINTER","CARE/Medical Baseline") -> CARE/Medical Baseline
B96: UDC
D97: Billing Segment | H97: kWh | J97: Factor | L97: Price | N97: Total | P97: Totals | Q97: kWh | S97: Factor | U97: Price | W97: Total
A98: 1 | B98: =IF(Rate_DR="drtou","On Peak","Baseline") -> Baseline | D98: =$H$11 -> 0/0 | F98: 1 | H98: =IF(AND(Rate_DR="drtou",AND(Rate_DR="drtou",OR($P$11="W",$P$11=""))),0,IF(J98="","",IF(Rate_DR="drtou",$F$78,$J$68))) ->  | I98: x | J98: =IF($J$68>0,IF(AND(Rate_DR="DRTOU",SeasnlFlag_DRTOU),SeasFactor1_AL,Factor1_DR),"") ->  | K98: x | L98: =IF(J98="","",IF(Rate_DR="drtou",IF($P$11="S",VLOOKUP(End_Date1_DR,MHP_TBLTOU,IF(OR(DA02_DR="da02",DAPC_DR="dapc"),58,43)),0),VLOOKUP(End_Date1_DR,MHP_TBL,IF(OR(DA02_DR="da02",DAPC_DR="dapc"),58,43)))) ->  | M98: = | N98: =IF(J98="","",ROUND(H98*J98*L98,2)) -> 
D99: =$H$11 -> 0/0 | F99: 1.3 | H99: =IF(AND(Rate_DR="drtou",OR($P$11="W",$P$11="")),0,IF(J99="","",IF(Rate_DR="drtou",$F$79,$J$69))) ->  | I99: x | J99: =IF($J$69>0,IF(AND(Rate_DR="DRTOU",SeasnlFlag_DRTOU=1),SeasFactor1_AL,Factor1_DR),"") ->  | K99: x | L99: =IF(J99="","",IF(Rate_DR="drtou",IF($P$11="S",VLOOKUP(End_Date1_DR,MHP_TBLTOU,IF(OR(DA02_DR="da02",DAPC_DR="dapc"),59,44)),0),VLOOKUP(End_Date1_DR,MHP_TBL,IF(OR(DA02_DR="da02",DAPC_DR="dapc"),59,44)))) ->  | M99: = | N99: =IF(J99="","",ROUND(H99*J99*L99,2)) -> 
D100: =$H$11 -> 0/0 | F100: 2 | H100: =IF(AND(Rate_DR="drtou",OR($P$11="W",$P$11="")),0,IF(J100="","",IF(Rate_DR="drtou",$F$80,$J$70))) ->  | I100: x | J100: =IF($J$70>0,IF(AND(Rate_DR="DRTOU",SeasnlFlag_DRTOU=1),SeasFactor1_AL,Factor1_DR),"") ->  | K100: x | L100: =IF(J100="","",IF(Rate_DR="drtou",IF($P$11="S",VLOOKUP(End_Date1_DR,MHP_TBLTOU,IF(OR(DA02_DR="da02",DAPC_DR="dapc"),60,45)),0),VLOOKUP(End_Date1_DR,MHP_TBL,IF(OR(DA02_DR="da02",DAPC_DR="dapc"),60,45)))) ->  | M100: = | N100: =IF(J100="","",ROUND(H100*J100*L100,2)) -> 
D101: =$H$11 -> 0/0 | F101: 4 | H101: =IF(AND(Rate_DR="drtou",OR($P$11="W",$P$11="")),0,IF(J101="","",IF(Rate_DR="drtou",$F$81,$J$71))) ->  | I101: x | J101: =IF($J$71>0,IF(AND(Rate_DR="DRTOU",SeasnlFlag_DRTOU=1),SeasFactor1_AL,Factor1_DR),"") ->  | K101: x | L101: =IF(J101="","",IF(Rate_DR="drtou",IF($P$11="S",VLOOKUP(End_Date1_DR,MHP_TBLTOU,IF(OR(DA02_DR="da02",DAPC_DR="dapc"),61,46)),0),VLOOKUP(End_Date1_DR,MHP_TBL,IF(OR(DA02_DR="da02",DAPC_DR="dapc"),61,46)))) ->  | M101: = | N101: =IF(J101="","",ROUND(H101*J101*L101,2)) -> 
D102: =$H$11 -> 0/0 | F102: Over | H102: =IF(AND(Rate_DR="drtou",OR($P$11="W",$P$11="")),0,IF(J102="","",IF(Rate_DR="drtou",$F$82,$J$72))) ->  | I102: x | J102: =IF($J$72>0,IF(AND(Rate_DR="DRTOU",SeasnlFlag_DRTOU=1),SeasFactor1_AL,Factor1_DR),"") ->  | K102: x | L102: =IF(J102="","",IF(Rate_DR="drtou",IF($P$11="S",VLOOKUP(End_Date1_DR,MHP_TBLTOU,IF(OR(DA02_DR="da02",DAPC_DR="dapc"),62,47)),0),VLOOKUP(End_Date1_DR,MHP_TBL,IF(OR(DA02_DR="da02",DAPC_DR="dapc"),62,47)))) ->  | M102: = | N102: =IF(J102="","",ROUND(H102*J102*L102,2)) -> 
N103: =SUM(N101:N102) -> 0 | P103: =SUM(N98:N102) -> 0 | Z103: t1 baseline
B104: =IF(Rate_DR="drtou","Off Peak", "CARE Baseline") -> CARE Baseline | D104: =$H$11 -> 0/0 | F104: 1 | Q104: =IF(AND(Rate_DR="drtou",OR($P$11="s",$P$11="")),0,IF(S104="","",IF(Rate_DR="drtou",$V$78,$V$68))) ->  | R104: x | S104: =IF($V$68>0,IF(AND(Rate_DR="DRTOU",SeasnlFlag_DRTOU=1),SeasFactor1_AL,Factor1_DR),"") ->  | T104: x | U104: =IF(S104="","",VLOOKUP(End_Date1_DR,MHP_TBL,140)) ->  | V104: = | W104: =IF(S104="","",ROUND(Q104*S104*U104,2)) ->  | Y104: t1 | Z104: =W104 ->  | AB104: =IF(CARE?=3,1,0) -> 0
D105: =$H$11 -> 0/0 | F105: 1.3 | Q105: =IF(AND(Rate_DR="drtou",OR($P$11="s",$P$11="")),0,IF(S105="","",IF(Rate_DR="drtou",$V$79,$V$69))) ->  | R105: x | S105: =IF($V$69>0,IF(AND(Rate_DR="DRTOU",SeasnlFlag_DRTOU=1),SeasFactor1_AL,Factor1_DR),"") ->  | T105: x | U105: =IF(S104="","",VLOOKUP(End_Date1_DR,MHP_TBL,141)) ->  | V105: = | W105: =IF(S105="","",ROUND(Q105*S105*U105,2)) -> 
D106: =$H$11 -> 0/0 | F106: 2 | Q106: =IF(AND(Rate_DR="drtou",OR($P$11="s",$P$11="")),0,IF(S106="","",IF(Rate_DR="drtou",$V$80,$V$70))) ->  | R106: x | S106: =IF($V$70>0,IF(AND(Rate_DR="DRTOU",SeasnlFlag_DRTOU=1),SeasFactor1_AL,Factor1_DR),"") ->  | T106: x | U106: =IF(S104="","",VLOOKUP(End_Date1_DR,MHP_TBL,142)) ->  | V106: = | W106: =IF(S106="","",ROUND(Q106*S106*U106,2)) -> 
D107: =$H$11 -> 0/0 | F107: 4 | Q107: =IF(AND(Rate_DR="drtou",OR($P$11="s",$P$11="")),0,IF(S107="","",IF(Rate_DR="drtou",$V$81,$V$71))) ->  | R107: x | S107: =IF($V$71>0,IF(AND(Rate_DR="DRTOU",SeasnlFlag_DRTOU=1),SeasFactor1_AL,Factor1_DR),"") ->  | T107: x | U107: =IF(S104="","",VLOOKUP(End_Date1_DR,MHP_TBL,143)) ->  | V107: = | W107: =IF(S107="","",ROUND(Q107*S107*U107,2)) -> 
D108: =$H$11 -> 0/0 | F108: Over | Q108: =IF(AND(Rate_DR="drtou",OR($P$11="s",$P$11="")),0,IF(S108="","",IF(Rate_DR="drtou",$V$82,$V$72))) ->  | R108: x | S108: =IF($V$72>0,IF(AND(Rate_DR="DRTOU",SeasnlFlag_DRTOU=1),SeasFactor1_AL,Factor1_DR),"") ->  | T108: x | U108: =IF(S104="","",VLOOKUP(End_Date1_DR,MHP_TBL,144)) ->  | V108: = | W108: =IF(S108="","",ROUND(Q108*S108*U108,2)) -> 
W109: =SUM(W107:W108) -> 0 | X109: =SUM(W104:W108) -> 0
Z110: baseline
A111: 2 | B111: =IF(Rate_DR="drtou","On Peak","Baseline") -> Baseline | D111: =$H$12 ->  | F111: 1 | H111: =IF(AND(Rate_DR="drtou",OR($P$12="W",$P$12="")),0,IF(J111="","",IF(Rate_DR="drtou",$F$78,$J$68))) ->  | I111: x | J111: =IF($J$68>0,IF(AND(Rate_DR="DRTOU",SeasnlFlag_DRTOU=1),SeasFactor2_AL,Factor2_DR),"") ->  | K111: x | L111: =IF(J111="","",IF(Rate_DR="drtou",IF($P$12="S",VLOOKUP(End_Date2_DR,MHP_TBLTOU,IF(OR(DA02_DR="da02",DAPC_DR="dapc"),58,43)),0),VLOOKUP(End_Date2_DR,MHP_TBL,IF(OR(DA02_DR="da02",DAPC_DR="dapc"),58,43)))) ->  | M111: = | N111: =IF(J111="","",ROUND(H111*J111*L111,2)) ->  | Y111: T1` | Z111: =SUM(N111:N112) -> 0
D112: =$H$12 ->  | F112: 1.3 | H112: =IF(AND(Rate_DR="drtou",OR($P$12="W",$P$12="")),0,IF(J112="","",IF(Rate_DR="drtou",$F$79,$J$69))) ->  | I112: x | J112: =IF($J$69>0,IF(AND(Rate_DR="DRTOU",SeasnlFlag_DRTOU=1),SeasFactor2_AL,Factor2_DR),"") ->  | K112: x | L112: =IF(J112="","",IF(Rate_DR="drtou",IF($P$12="S",VLOOKUP(End_Date2_DR,MHP_TBLTOU,IF(OR(DA02_DR="da02",DAPC_DR="dapc"),59,44)),0),VLOOKUP(End_Date2_DR,MHP_TBL,IF(OR(DA02_DR="da02",DAPC_DR="dapc"),59,44)))) ->  | M112: = | N112: =IF(J112="","",ROUND(H112*J112*L112,2)) ->  | Y112: T2 | Z112: =SUM(N113:N115) -> 0
D113: =$H$12 ->  | F113: 2 | H113: =IF(AND(Rate_DR="drtou",OR($P$12="W",$P$12="")),0,IF(J113="","",IF(Rate_DR="drtou",$F$80,$J$70))) ->  | I113: x | J113: =IF($J$70>0,IF(AND(Rate_DR="DRTOU",SeasnlFlag_DRTOU=1),SeasFactor2_AL,Factor2_DR),"") ->  | K113: x | L113: =IF(J113="","",IF(Rate_DR="drtou",IF($P$12="S",VLOOKUP(End_Date2_DR,MHP_TBLTOU,IF(OR(DA02_DR="da02",DAPC_DR="dapc"),60,45)),0),VLOOKUP(End_Date2_DR,MHP_TBL,IF(OR(DA02_DR="da02",DAPC_DR="dapc"),60,45)))) ->  | M113: = | N113: =IF(J113="","",ROUND(H113*J113*L113,2)) -> 
D114: =$H$12 ->  | F114: 4 | H114: =IF(AND(Rate_DR="drtou",OR($P$12="W",$P$12="")),0,IF(J114="","",IF(Rate_DR="drtou",$F$81,$J$71))) ->  | I114: x | J114: =IF($J$71>0,IF(AND(Rate_DR="DRTOU",SeasnlFlag_DRTOU=1),SeasFactor2_AL,Factor2_DR),"") ->  | K114: x | L114: =IF(J114="","",IF(Rate_DR="drtou",IF($P$12="S",VLOOKUP(End_Date2_DR,MHP_TBLTOU,IF(OR(DA02_DR="da02",DAPC_DR="dapc"),61,46)),0),VLOOKUP(End_Date2_DR,MHP_TBL,IF(OR(DA02_DR="da02",DAPC_DR="dapc"),61,46)))) ->  | M114: = | N114: =IF(J114="","",ROUND(H114*J114*L114,2)) -> 
D115: =$H$12 ->  | F115: Over | H115: =IF(AND(Rate_DR="drtou",OR($P$12="W",$P$12="")),0,IF(J115="","",IF(Rate_DR="drtou",$F$82,$J$72))) ->  | I115: x | J115: =IF($J$72>0,IF(AND(Rate_DR="DRTOU",SeasnlFlag_DRTOU=1),SeasFactor2_AL,Factor2_DR),"") ->  | K115: x | L115: =IF(J115="","",IF(Rate_DR="drtou",IF($P$12="S",VLOOKUP(End_Date2_DR,MHP_TBLTOU,IF(OR(DA02_DR="da02",DAPC_DR="dapc"),62,47)),0),VLOOKUP(End_Date2_DR,MHP_TBL,IF(OR(DA02_DR="da02",DAPC_DR="dapc"),62,47)))) ->  | M115: = | N115: =IF(J115="","",ROUND(H115*J115*L115,2)) -> 
N116: =SUM(N114:N115) -> 0 | P116: =SUM(N111:N115) -> 0 | Z116: care baseline
B117: =IF(Rate_DR="drtou","Off Peak", "CARE Baseline") -> CARE Baseline | D117: =$H$12 ->  | F117: 1 | Q117: =IF(AND(Rate_DR="drtou",OR($P$12="s",$P$12="")),0,IF(S117="","",IF(Rate_DR="drtou",$V$78,$V$68))) ->  | R117: x | S117: =IF($V$68>0,IF(AND(Rate_DR="DRTOU",SeasnlFlag_DRTOU=1),SeasFactor2_AL,Factor2_DR),"") ->  | T117: x | U117: =IF(S117="","",VLOOKUP(End_Date2_DR,MHP_TBL,140)) ->  | V117: = | W117: =IF(S117="","",ROUND(Q117*S117*U117,2)) ->  | Y117: T1 | Z117: =SUM(W117:W118) -> 0
D118: =$H$12 ->  | F118: 1.3 | Q118: =IF(AND(Rate_DR="drtou",OR($P$12="s",$P$12="")),0,IF(S118="","",IF(Rate_DR="drtou",$V$79,$V$69))) ->  | R118: x | S118: =IF($V$69>0,IF(AND(Rate_DR="DRTOU",SeasnlFlag_DRTOU=1),SeasFactor2_AL,Factor2_DR),"") ->  | T118: x | U118: =IF(S117="","",VLOOKUP(End_Date2_DR,MHP_TBL,141)) ->  | V118: = | W118: =IF(S118="","",ROUND(Q118*S118*U118,2)) ->  | Y118: T2 | Z118: =SUM(W119:W121) -> 0
D119: =$H$12 ->  | F119: 2 | Q119: =IF(AND(Rate_DR="drtou",OR($P$12="s",$P$12="")),0,IF(S119="","",IF(Rate_DR="drtou",$V$80,$V$70))) ->  | R119: x | S119: =IF($V$70>0,IF(AND(Rate_DR="DRTOU",SeasnlFlag_DRTOU=1),SeasFactor2_AL,Factor2_DR),"") ->  | T119: x | U119: =IF(S117="","",VLOOKUP(End_Date2_DR,MHP_TBL,142)) ->  | V119: = | W119: =IF(S119="","",ROUND(Q119*S119*U119,2)) -> 
D120: =$H$12 ->  | F120: 4 | Q120: =IF(AND(Rate_DR="drtou",OR($P$12="s",$P$12="")),0,IF(S120="","",IF(Rate_DR="drtou",$V$81,$V$71))) ->  | R120: x | S120: =IF($V$71>0,IF(AND(Rate_DR="DRTOU",SeasnlFlag_DRTOU=1),SeasFactor2_AL,Factor2_DR),"") ->  | T120: x | U120: =IF(S117="","",VLOOKUP(End_Date2_DR,MHP_TBL,143)) ->  | V120: = | W120: =IF(S120="","",ROUND(Q120*S120*U120,2)) -> 
D121: =$H$12 ->  | F121: Over | Q121: =IF(AND(Rate_DR="drtou",OR($P$12="s",$P$12="")),0,IF(S121="","",IF(Rate_DR="drtou",$V$82,$V$72))) ->  | R121: x | S121: =IF($V$72>0,IF(AND(Rate_DR="DRTOU",SeasnlFlag_DRTOU=1),SeasFactor2_AL,Factor2_DR),"") ->  | T121: x | U121: =IF(S117="","",VLOOKUP(End_Date2_DR,MHP_TBL,144)) ->  | V121: = | W121: =IF(S121="","",ROUND(Q121*S121*U121,2)) -> 
W122: =SUM(W120:W121) -> 0 | X122: =SUM(W117:W121) -> 0
A124: 3 | B124: =IF(Rate_DR="drtou","On Peak","Baseline") -> Baseline | D124: =$H$13 ->  | F124: 1 | H124: =IF(AND(Rate_DR="drtou",OR($P$13="W",$P$13="")),0,IF(J124="","",IF(Rate_DR="drtou",$F$78,$J$68))) ->  | I124: x | J124: =IF($J$68>0,IF(AND(Rate_DR="DRTOU",SeasnlFlag_DRTOU=1),SeasFactor3_AL,Factor3_DR),"") ->  | K124: x | L124: =IF(J124="","",IF(Rate_DR="drtou",IF($P$13="S",VLOOKUP(End_Date3_DR,MHP_TBLTOU,IF(OR(DA02_DR="da02",DAPC_DR="dapc"),58,43)),0),VLOOKUP(End_Date3_DR,MHP_TBL,IF(OR(DA02_DR="da02",DAPC_DR="dapc"),58,43)))) ->  | M124: = | N124: =IF(J124="","",ROUND(H124*J124*L124,2)) -> 
D125: =$H$13 ->  | F125: 1.3 | H125: =IF(AND(Rate_DR="drtou",OR($P$13="W",$P$13="")),0,IF(J125="","",IF(Rate_DR="drtou",$F$79,$J$69))) ->  | I125: x | J125: =IF($J$69>0,IF(AND(Rate_DR="DRTOU",SeasnlFlag_DRTOU=1),SeasFactor3_AL,Factor3_DR),"") ->  | K125: x | L125: =IF(J125="","",IF(Rate_DR="drtou",IF($P$13="S",VLOOKUP(End_Date3_DR,MHP_TBLTOU,IF(OR(DA02_DR="da02",DAPC_DR="dapc"),59,44)),0),VLOOKUP(End_Date3_DR,MHP_TBL,IF(OR(DA02_DR="da02",DAPC_DR="dapc"),59,44)))) ->  | M125: = | N125: =IF(J125="","",ROUND(H125*J125*L125,2)) -> 
D126: =$H$13 ->  | F126: 2 | H126: =IF(AND(Rate_DR="drtou",OR($P$13="W",$P$13="")),0,IF(J126="","",IF(Rate_DR="drtou",$F$80,$J$70))) ->  | I126: x | J126: =IF($J$70>0,IF(AND(Rate_DR="DRTOU",SeasnlFlag_DRTOU=1),SeasFactor3_AL,Factor3_DR),"") ->  | K126: x | L126: =IF(J126="","",IF(Rate_DR="drtou",IF($P$13="S",VLOOKUP(End_Date3_DR,MHP_TBLTOU,IF(OR(DA02_DR="da02",DAPC_DR="dapc"),60,45)),0),VLOOKUP(End_Date3_DR,MHP_TBL,IF(OR(DA02_DR="da02",DAPC_DR="dapc"),60,45)))) ->  | M126: = | N126: =IF(J126="","",ROUND(H126*J126*L126,2)) -> 
D127: =$H$13 ->  | F127: 4 | H127: =IF(AND(Rate_DR="drtou",OR($P$13="W",$P$13="")),0,IF(J127="","",IF(Rate_DR="drtou",$F$81,$J$71))) ->  | I127: x | J127: =IF($J$71>0,IF(AND(Rate_DR="DRTOU",SeasnlFlag_DRTOU=1),SeasFactor3_AL,Factor3_DR),"") ->  | K127: x | L127: =IF(J127="","",IF(Rate_DR="drtou",IF($P$13="S",VLOOKUP(End_Date3_DR,MHP_TBLTOU,IF(OR(DA02_DR="da02",DAPC_DR="dapc"),61,46)),0),VLOOKUP(End_Date3_DR,MHP_TBL,IF(OR(DA02_DR="da02",DAPC_DR="dapc"),61,46)))) ->  | M127: = | N127: =IF(J127="","",ROUND(H127*J127*L127,2)) -> 
D128: =$H$13 ->  | F128: Over | H128: =IF(AND(Rate_DR="drtou",OR($P$13="W",$P$13="")),0,IF(J128="","",IF(Rate_DR="drtou",$F$82,$J$72))) ->  | I128: x | J128: =IF($J$72>0,IF(AND(Rate_DR="DRTOU",SeasnlFlag_DRTOU=1),SeasFactor3_AL,Factor3_DR),"") ->  | K128: x | L128: =IF(J128="","",IF(Rate_DR="drtou",IF($P$13="S",VLOOKUP(End_Date3_DR,MHP_TBLTOU,IF(OR(DA02_DR="da02",DAPC_DR="dapc"),62,47)),0),VLOOKUP(End_Date3_DR,MHP_TBL,IF(OR(DA02_DR="da02",DAPC_DR="dapc"),62,47)))) ->  | M128: = | N128: =IF(J128="","",ROUND(H128*J128*L128,2)) -> 
N129: =SUM(N127:N128) -> 0 | P129: =SUM(N124:N128) -> 0
B130: =IF(Rate_DR="drtou","Off Peak", "CARE Baseline") -> CARE Baseline | D130: =$H$13 ->  | F130: 1 | Q130: =IF(AND(Rate_DR="drtou",OR($P$13="s",$P$13="")),0,IF(S130="","",IF(Rate_DR="drtou",$V$78,$V$68))) ->  | R130: x | S130: =IF($V$68>0,IF(AND(Rate_DR="DRTOU",SeasnlFlag_DRTOU=1),SeasFactor3_AL,Factor3_DR),"") ->  | T130: x | U130: =IF(S130="","",VLOOKUP(End_Date3_DR,MHP_TBL,140)) ->  | V130: = | W130: =IF(S130="","",ROUND(Q130*S130*U130,2)) -> 
D131: =$H$13 ->  | F131: 1.3 | Q131: =IF(AND(Rate_DR="drtou",OR($P$13="s",$P$13="")),0,IF(S131="","",IF(Rate_DR="drtou",$V$79,$V$69))) ->  | R131: x | S131: =IF($V$69>0,IF(AND(Rate_DR="DRTOU",SeasnlFlag_DRTOU=1),SeasFactor3_AL,Factor3_DR),"") ->  | T131: x | U131: =IF(S130="","",VLOOKUP(End_Date3_DR,MHP_TBL,141)) ->  | V131: = | W131: =IF(S131="","",ROUND(Q131*S131*U131,2)) -> 
D132: =$H$13 ->  | F132: 2 | Q132: =IF(AND(Rate_DR="drtou",OR($P$13="s",$P$13="")),0,IF(S132="","",IF(Rate_DR="drtou",$V$80,$V$70))) ->  | R132: x | S132: =IF($V$70>0,IF(AND(Rate_DR="DRTOU",SeasnlFlag_DRTOU=1),SeasFactor3_AL,Factor3_DR),"") ->  | T132: x | U132: =IF(S130="","",VLOOKUP(End_Date3_DR,MHP_TBL,142)) ->  | V132: = | W132: =IF(S132="","",ROUND(Q132*S132*U132,2)) -> 
D133: =$H$13 ->  | F133: 4 | Q133: =IF(AND(Rate_DR="drtou",OR($P$13="s",$P$13="")),0,IF(S133="","",IF(Rate_DR="drtou",$V$81,$V$71))) ->  | R133: x | S133: =IF($V$71>0,IF(AND(Rate_DR="DRTOU",SeasnlFlag_DRTOU=1),SeasFactor3_AL,Factor3_DR),"") ->  | T133: x | U133: =IF(S130="","",VLOOKUP(End_Date3_DR,MHP_TBL,143)) ->  | V133: = | W133: =IF(S133="","",ROUND(Q133*S133*U133,2)) -> 
D134: =$H$13 ->  | F134: Over | Q134: =IF(AND(Rate_DR="drtou",OR($P$13="s",$P$13="")),0,IF(S134="","",IF(Rate_DR="drtou",$V$82,$V$72))) ->  | R134: x | S134: =IF($V$72>0,IF(AND(Rate_DR="DRTOU",SeasnlFlag_DRTOU=1),SeasFactor3_AL,Factor3_DR),"") ->  | T134: x | U134: =IF(S130="","",VLOOKUP(End_Date3_DR,MHP_TBL,144)) ->  | V134: = | W134: =IF(S134="","",ROUND(Q134*S134*U134,2)) -> 
W135: =SUM(W133:W134) -> 0 | X135: =SUM(W130:W134) -> 0
J136: =H14 -> 
A137: 4 | B137: =IF(Rate_DR="drtou","On Peak","Baseline") -> Baseline | D137: =$H$14 ->  | F137: 1 | H137: =IF(AND(Rate_DR="drtou",OR($P$14="w",$P$14="")),0,IF(J137="","",IF(Rate_DR="drtou",$F$78,$J$68))) ->  | I137: x | J137: =IF($J$68>0,IF(AND(Rate_DR="DRTOU",SeasnlFlag_DRTOU=1),SeasFactor4_AL,Factor4_DR),"") ->  | K137: x | L137: =IF(J137="","",IF(Rate_DR="drtou",IF($P$14="S",VLOOKUP(End_Date4_DR,MHP_TBLTOU,IF(OR(DA02_DR="da02",DAPC_DR="dapc"),58,43)),0),VLOOKUP(End_Date4_DR,MHP_TBL,IF(OR(DA02_DR="da02",DAPC_DR="dapc"),58,43)))) ->  | M137: = | N137: =IF(J137="","",ROUND(H137*J137*L137,2)) -> 
D138: =$H$14 ->  | F138: 1.3 | H138: =IF(AND(Rate_DR="drtou",OR($P$14="w",$P$14="")),0,IF(J138="","",IF(Rate_DR="drtou",$F$79,$J$69))) ->  | I138: x | J138: =IF($J$69>0,IF(AND(Rate_DR="DRTOU",SeasnlFlag_DRTOU=1),SeasFactor4_AL,Factor4_DR),"") ->  | K138: x | L138: =IF(J138="","",IF(Rate_DR="drtou",IF($P$14="S",VLOOKUP(End_Date4_DR,MHP_TBLTOU,IF(OR(DA02_DR="da02",DAPC_DR="dapc"),59,44)),0),VLOOKUP(End_Date4_DR,MHP_TBL,IF(OR(DA02_DR="da02",DAPC_DR="dapc"),59,44)))) ->  | M138: = | N138: =IF(J138="","",ROUND(H138*J138*L138,2)) -> 
D139: =$H$14 ->  | F139: 2 | H139: =IF(AND(Rate_DR="drtou",OR($P$14="w",$P$14="")),0,IF(J139="","",IF(Rate_DR="drtou",$F$80,$J$70))) ->  | I139: x | J139: =IF($J$70>0,IF(AND(Rate_DR="DRTOU",SeasnlFlag_DRTOU=1),SeasFactor4_AL,Factor4_DR),"") ->  | K139: x | L139: =IF(J139="","",IF(Rate_DR="drtou",IF($P$14="S",VLOOKUP(End_Date4_DR,MHP_TBLTOU,IF(OR(DA02_DR="da02",DAPC_DR="dapc"),60,45)),0),VLOOKUP(End_Date4_DR,MHP_TBL,IF(OR(DA02_DR="da02",DAPC_DR="dapc"),60,45)))) ->  | M139: = | N139: =IF(J139="","",ROUND(H139*J139*L139,2)) -> 
D140: =$H$14 ->  | F140: 4 | H140: =IF(AND(Rate_DR="drtou",OR($P$14="w",$P$14="")),0,IF(J140="","",IF(Rate_DR="drtou",$F$81,$J$71))) ->  | I140: x | J140: =IF($J$71>0,IF(AND(Rate_DR="DRTOU",SeasnlFlag_DRTOU=1),SeasFactor4_AL,Factor4_DR),"") ->  | K140: x | L140: =IF(J140="","",IF(Rate_DR="drtou",IF($P$14="S",VLOOKUP(End_Date4_DR,MHP_TBLTOU,IF(OR(DA02_DR="da02",DAPC_DR="dapc"),61,46)),0),VLOOKUP(End_Date4_DR,MHP_TBL,IF(OR(DA02_DR="da02",DAPC_DR="dapc"),61,46)))) ->  | M140: = | N140: =IF(J140="","",ROUND(H140*J140*L140,2)) -> 
D141: =$H$14 ->  | F141: Over | H141: =IF(AND(Rate_DR="drtou",OR($P$14="w",$P$14="")),0,IF(J141="","",IF(Rate_DR="drtou",$F$82,$J$72))) ->  | I141: x | J141: =IF($J$72>0,IF(AND(Rate_DR="DRTOU",SeasnlFlag_DRTOU=1),SeasFactor4_AL,Factor4_DR),"") ->  | K141: x | L141: =IF(J141="","",IF(Rate_DR="drtou",IF($P$14="S",VLOOKUP(End_Date4_DR,MHP_TBLTOU,IF(OR(DA02_DR="da02",DAPC_DR="dapc"),62,47)),0),VLOOKUP(End_Date4_DR,MHP_TBL,IF(OR(DA02_DR="da02",DAPC_DR="dapc"),62,47)))) ->  | M141: = | N141: =IF(J141="","",ROUND(H141*J141*L141,2)) -> 
N142: =SUM(N140:N141) -> 0 | P142: =SUM(N137:N141) -> 0
B143: =IF(Rate_DR="drtou","Off Peak", "CARE Baseline") -> CARE Baseline | D143: =$H$14 ->  | F143: 1 | Q143: =IF(AND(Rate_DR="drtou",OR($P$14="s",$P$14="")),0,IF(S143="","",IF(Rate_DR="drtou",$V$78,$V$68))) ->  | R143: x | S143: =IF($V$68>0,IF(AND(Rate_DR="DRTOU",SeasnlFlag_DRTOU=1),SeasFactor4_AL,Factor4_DR),"") ->  | T143: x | U143: =IF(S143="","",VLOOKUP(End_Date4_DR,MHP_TBL,140)) ->  | V143: = | W143: =IF(S143="","",ROUND(Q143*S143*U143,2)) -> 
D144: =$H$14 ->  | F144: 1.3 | Q144: =IF(AND(Rate_DR="drtou",OR($P$14="s",$P$14="")),0,IF(S144="","",IF(Rate_DR="drtou",$V$79,$V$69))) ->  | R144: x | S144: =IF($V$69>0,IF(AND(Rate_DR="DRTOU",SeasnlFlag_DRTOU=1),SeasFactor4_AL,Factor4_DR),"") ->  | T144: x | U144: =IF(S143="","",VLOOKUP(End_Date4_DR,MHP_TBL,141)) ->  | V144: = | W144: =IF(S144="","",ROUND(Q144*S144*U144,2)) -> 
D145: =$H$14 ->  | F145: 2 | Q145: =IF(AND(Rate_DR="drtou",OR($P$14="s",$P$14="")),0,IF(S145="","",IF(Rate_DR="drtou",$V$80,$V$70))) ->  | R145: x | S145: =IF($V$70>0,IF(AND(Rate_DR="DRTOU",SeasnlFlag_DRTOU=1),SeasFactor4_AL,Factor4_DR),"") ->  | T145: x | U145: =IF(S143="","",VLOOKUP(End_Date4_DR,MHP_TBL,142)) ->  | V145: = | W145: =IF(S145="","",ROUND(Q145*S145*U145,2)) -> 
D146: =$H$14 ->  | F146: 4 | Q146: =IF(AND(Rate_DR="drtou",OR($P$14="s",$P$14="")),0,IF(S146="","",IF(Rate_DR="drtou",$V$81,$V$71))) ->  | R146: x | S146: =IF($V$71>0,IF(AND(Rate_DR="DRTOU",SeasnlFlag_DRTOU=1),SeasFactor4_AL,Factor4_DR),"") ->  | T146: x | U146: =IF(S143="","",VLOOKUP(End_Date4_DR,MHP_TBL,143)) ->  | V146: = | W146: =IF(S146="","",ROUND(Q146*S146*U146,2)) -> 
D147: =$H$14 ->  | F147: Over | Q147: =IF(AND(Rate_DR="drtou",OR($P$14="s",$P$14="")),0,IF(S147="","",IF(Rate_DR="drtou",$V$82,$V$72))) ->  | R147: x | S147: =IF($V$72>0,IF(AND(Rate_DR="DRTOU",SeasnlFlag_DRTOU=1),SeasFactor4_AL,Factor4_DR),"") ->  | T147: x | U147: =IF(S143="","",VLOOKUP(End_Date4_DR,MHP_TBL,144)) ->  | V147: = | W147: =IF(S147="","",ROUND(Q147*S147*U147,2)) -> 
W148: =SUM(W146:W147) -> 0 | X148: =SUM(W143:W147) -> 0
J149: =H15 -> 
A150: 5 | B150: =IF(Rate_DR="drtou","On Peak","Baseline") -> Baseline | D150: =$H$15 ->  | F150: 1 | H150: =IF(AND(Rate_DR="drtou",OR($P$15="w",$P$15="")),0,IF(J150="","",IF(Rate_DR="drtou",$F$78,$J$68))) ->  | I150: x | J150: =IF($J$68>0,IF(AND(Rate_DR="DRTOU",SeasnlFlag_DRTOU=1),SeasFactor5_AL,Factor5_DR),"") ->  | K150: x | L150: =IF(J150="","",IF(Rate_DR="drtou",IF($P$15="S",VLOOKUP(End_Date5_DR,MHP_TBLTOU,IF(OR(DA02_DR="da02",DAPC_DR="dapc"),58,43)),0),VLOOKUP(End_Date5_DR,MHP_TBL,IF(OR(DA02_DR="da02",DAPC_DR="dapc"),58,43)))) ->  | M150: = | N150: =IF(J150="","",ROUND(H150*J150*L150,2)) -> 
D151: =$H$15 ->  | F151: 1.3 | H151: =IF(AND(Rate_DR="drtou",OR($P$15="w",$P$15="")),0,IF(J151="","",IF(Rate_DR="drtou",$F$79,$J$69))) ->  | I151: x | J151: =IF($J$69>0,IF(AND(Rate_DR="DRTOU",SeasnlFlag_DRTOU=1),SeasFactor5_AL,Factor5_DR),"") ->  | K151: x | L151: =IF(J151="","",IF(Rate_DR="drtou",IF($P$15="S",VLOOKUP(End_Date5_DR,MHP_TBLTOU,IF(OR(DA02_DR="da02",DAPC_DR="dapc"),59,44)),0),VLOOKUP(End_Date5_DR,MHP_TBL,IF(OR(DA02_DR="da02",DAPC_DR="dapc"),59,44)))) ->  | M151: = | N151: =IF(J151="","",ROUND(H151*J151*L151,2)) -> 
D152: =$H$15 ->  | F152: 2 | H152: =IF(AND(Rate_DR="drtou",OR($P$15="w",$P$15="")),0,IF(J152="","",IF(Rate_DR="drtou",$F$80,$J$70))) ->  | I152: x | J152: =IF($J$70>0,IF(AND(Rate_DR="DRTOU",SeasnlFlag_DRTOU=1),SeasFactor5_AL,Factor5_DR),"") ->  | K152: x | L152: =IF(J152="","",IF(Rate_DR="drtou",IF($P$15="S",VLOOKUP(End_Date5_DR,MHP_TBLTOU,IF(OR(DA02_DR="da02",DAPC_DR="dapc"),60,45)),0),VLOOKUP(End_Date5_DR,MHP_TBL,IF(OR(DA02_DR="da02",DAPC_DR="dapc"),60,45)))) ->  | M152: = | N152: =IF(J152="","",ROUND(H152*J152*L152,2)) -> 
D153: =$H$15 ->  | F153: 4 | H153: =IF(AND(Rate_DR="drtou",OR($P$15="w",$P$15="")),0,IF(J153="","",IF(Rate_DR="drtou",$F$81,$J$71))) ->  | I153: x | J153: =IF($J$71>0,IF(AND(Rate_DR="DRTOU",SeasnlFlag_DRTOU=1),SeasFactor5_AL,Factor5_DR),"") ->  | K153: x | L153: =IF(J153="","",IF(Rate_DR="drtou",IF($P$15="S",VLOOKUP(End_Date5_DR,MHP_TBLTOU,IF(OR(DA02_DR="da02",DAPC_DR="dapc"),61,46)),0),VLOOKUP(End_Date5_DR,MHP_TBL,IF(OR(DA02_DR="da02",DAPC_DR="dapc"),61,46)))) ->  | M153: = | N153: =IF(J153="","",ROUND(H153*J153*L153,2)) -> 
D154: =$H$15 ->  | F154: Over | H154: =IF(AND(Rate_DR="drtou",OR($P$15="w",$P$15="")),0,IF(J154="","",IF(Rate_DR="drtou",$F$82,$J$72))) ->  | I154: x | J154: =IF($J$72>0,IF(AND(Rate_DR="DRTOU",SeasnlFlag_DRTOU=1),SeasFactor5_AL,Factor5_DR),"") ->  | K154: x | L154: =IF(J154="","",IF(Rate_DR="drtou",IF($P$15="S",VLOOKUP(End_Date5_DR,MHP_TBLTOU,IF(OR(DA02_DR="da02",DAPC_DR="dapc"),62,47)),0),VLOOKUP(End_Date5_DR,MHP_TBL,IF(OR(DA02_DR="da02",DAPC_DR="dapc"),62,47)))) ->  | M154: = | N154: =IF(J154="","",ROUND(H154*J154*L154,2)) -> 
N155: =SUM(N153:N154) -> 0 | P155: =SUM(N150:N154) -> 0
B156: =IF(Rate_DR="drtou","Off Peak", "CARE Baseline") -> CARE Baseline | D156: =$H$15 ->  | F156: 1 | Q156: =IF(AND(Rate_DR="drtou",OR($P$15="s",$P$15="")),0,IF(S156="","",IF(Rate_DR="drtou",$V$78,$V$68))) ->  | R156: x | S156: =IF($V$68>0,IF(AND(Rate_DR="DRTOU",SeasnlFlag_DRTOU=1),SeasFactor5_AL,Factor5_DR),"") ->  | T156: x | U156: =IF(S156="","",VLOOKUP(End_Date5_DR,MHP_TBL,140)) ->  | V156: = | W156: =IF(S156="","",ROUND(Q156*S156*U156,2)) -> 
D157: =$H$15 ->  | F157: 1.3 | Q157: =IF(AND(Rate_DR="drtou",OR($P$15="s",$P$15="")),0,IF(S157="","",IF(Rate_DR="drtou",$V$79,$V$69))) ->  | R157: x | S157: =IF($V$69>0,IF(AND(Rate_DR="DRTOU",SeasnlFlag_DRTOU=1),SeasFactor5_AL,Factor5_DR),"") ->  | T157: x | U157: =IF(S156="","",VLOOKUP(End_Date5_DR,MHP_TBL,141)) ->  | V157: = | W157: =IF(S157="","",ROUND(Q157*S157*U157,2)) -> 
D158: =$H$15 ->  | F158: 2 | Q158: =IF(AND(Rate_DR="drtou",OR($P$15="s",$P$15="")),0,IF(S158="","",IF(Rate_DR="drtou",$V$80,$V$70))) ->  | R158: x | S158: =IF($V$70>0,IF(AND(Rate_DR="DRTOU",SeasnlFlag_DRTOU=1),SeasFactor5_AL,Factor5_DR),"") ->  | T158: x | U158: =IF(S156="","",VLOOKUP(End_Date5_DR,MHP_TBL,142)) ->  | V158: = | W158: =IF(S158="","",ROUND(Q158*S158*U158,2)) -> 
D159: =$H$15 ->  | F159: 4 | Q159: =IF(AND(Rate_DR="drtou",OR($P$15="s",$P$15="")),0,IF(S159="","",IF(Rate_DR="drtou",$V$81,$V$71))) ->  | R159: x | S159: =IF($V$71>0,IF(AND(Rate_DR="DRTOU",SeasnlFlag_DRTOU=1),SeasFactor5_AL,Factor5_DR),"") ->  | T159: x | U159: =IF(S156="","",VLOOKUP(End_Date5_DR,MHP_TBL,143)) ->  | V159: = | W159: =IF(S159="","",ROUND(Q159*S159*U159,2)) -> 
D160: =$H$15 ->  | F160: Over | Q160: =IF(AND(Rate_DR="drtou",OR($P$15="s",$P$15="")),0,IF(S160="","",IF(Rate_DR="drtou",$V$82,$V$72))) ->  | R160: x | S160: =IF($V$72>0,IF(AND(Rate_DR="DRTOU",SeasnlFlag_DRTOU=1),SeasFactor5_AL,Factor5_DR),"") ->  | T160: x | U160: =IF(S156="","",VLOOKUP(End_Date5_DR,MHP_TBL,144)) ->  | V160: = | W160: =IF(S160="","",ROUND(Q160*S160*U160,2)) ->  | X160: =SUM(W156:W160) -> 0
W161: =SUM(W159:W160) -> 0
F164: UDC TOTAL | H164: =SUM(H165:H166) -> 0
F165: UDC Regular | H165: =SUM(P103:P161) -> 0
F166: UDC CARE | H166: =SUM(X109:X160) -> 0 | J166: 35.95 | L166: =UDC_CARE-J166 -> -35.95
J174: =0.17*0.8 -> 0.136 | O174: =MIN_CHG_PRICE_NEW_DT -> 2025-10-01
B175: Note: PLEASE DONT DELETE BELOW DATE | O175: =E_Cust_Start_Date-1 -> -1
J176: =4.35/32 -> 0.1359375
B177: BSC Date | D177: 2025-10-01 | H177: =IF(AND(START_DATE_DR<MIN_CHG_PRICE_NEW_DT,MIN_CHG_PRICE_NEW_DT<END_DATE_DR),MAX(0,MIN_CHG_PRICE_NEW_DT-E_Cust_Start_Date-1),$F$16) -> 0
T178: BSC calc
Q179: =AND(0<InE_MedBL,InE_MedBL<5) -> FALSE
B180: Minimum Charge Adjustment | N180: Regular | P180: CARE or MB or FERA | Q180: =OR(CARE?=2,CARE?=3,AND(0<InE_MedBL,InE_MedBL<5)) -> FALSE
H181: Days | J181: Rate_DR | N181: Min Chrg | O181: x | P181: Min Chrg | T181: BSC Fixed Charge | U181: =IF(AND(E_Cust_Start_Date<BSC_Effective_date,E_Cust_End_Date<BSC_Effective_date),"Old",IF(AND(E_Cust_Start_Date<BSC_Effective_date,E_Cust_End_Date>=BSC_Effective_date),"Split","New")) -> Old | W181: Base Service Charge
D182: =IF(AND(D177<=START_DATE_DR,D177<=END_DATE_DR),TRUE,FALSE) -> FALSE | H182: =IF(AND(START_DATE_DR<MIN_CHG_PRICE_NEW_DT,MIN_CHG_PRICE_NEW_DT<END_DATE_DR),MAX(0,MIN_CHG_PRICE_NEW_DT-E_Cust_Start_Date-1),$F$16) -> 0 | I182: x | J182: =IF(D182,0,IF(NOT(CARE_OR_MB?),MIN_CHG_PRICE_OLD,MIN_CHG_PRICE_CARE_OLD)) -> 0.402 | M182: = | N182: =IF(NOT(CARE_OR_MB?),SUM(H182*J182,H183*J183),0) -> 0 | O182: - | P182: =IF(NOT(CARE_OR_MB?),0,SUM(H182*J182,H183*J183)) -> 0 | U182: =IF(U181="Split",TRUE,FALSE) -> FALSE | W182: =IFERROR(INDEX(BSC_Date,MATCH(E_Cust_Start_Date+1,BSC_Date,1)),0) -> 00:00:00
H183: =Input!$B$28-$H$182 -> 0 | I183: x | J183: =IF(D182,0,IF(NOT(CARE_OR_MB?),MIN_CHG_PRICE_NEW,MIN_CHG_PRICE_CARE_NEW)) -> 0 | W183: Days | X183: Min $ | Y183: Total
F184: DWR REV ADJ | H184: DIST_Total | J184: TRAC_Total | L184: DWR_Bond_Chrg | W184: =IF(W185=0,Days_Billed_DR,Days1) -> 0 | X184: =IFERROR(INDEX(BSC,MATCH(CARE?,BSC_LineItem,0),MATCH(W182,BSC_Date,0)),0) -> 0 | Y184: =ROUND(W184*X184,2) -> 0
F185: =DWR_REV_ADJ -> 0 | G185: + | H185: =IF(BSC?,ROUND(DIST_Total*Factor1_DR,2),DIST_Total) -> 0 | I185: + | J185: =IF(BSC?,ROUND(TRAC_Total*Factor1_DR,2),TRAC_Total) -> 0 | K185: + | L185: =DWR_Bond_Chrg -> 0 | M185: = | N185: =SUM(F185:L185,H187:J187) -> 0 | W185: =IFERROR(IF(AND(U181="Split",OR(OFFSET(INDEX(BSC_Date,MATCH(E_Cust_Start_Date+1,BSC_Date)),0,1)=0,OFFSET(INDEX(BSC_Date,MATCH(E_Cust_Start_Date+1,BSC_Date)),0,1)>E_Cust_End_Date)),W182,IF(OFFSET(INDEX(BSC_Date,MATCH(E_Cust_Start_Date+1,BSC_Date)),0,1)>E_Cust_End_Date,0,OFFSET(INDEX(BSC_Date,MATCH(E_Cust_Start_Date+1,BSC_Date)),0,1))),0) -> 00:00:00
F186: CA Climate Cred | H186: CARE Disc | J186: FERA Disc | W186: =IF(W185=0,0,IF(Days2="",0,Days2)) -> 0 | X186: =IFERROR(INDEX(BSC,MATCH(CARE?,BSC_LineItem,0),MATCH(W185,BSC_Date,0)),0) -> 0 | Y186: =ROUND(W186*X186,2) -> 0
F187: =CA_Climate_Cred -> 0 | H187: =CARE_Discount ->  | J187: =FERA_Discount ->  | Y187: =Y184+Y186 -> 0
N189: =IF(NOT(CARE_OR_MB?),MAX(N182-MAX(0,N185),0),0) -> 0
F192: CARE or MB Min Chrg Adjustment
F194: CARE Base | H194: DIST_Total | J194: TRAC_Total | L194: =H186 -> CARE Disc
F195: =P182 -> 0 | G195: - | H195: =H185 -> 0 | I195: - | J195: =J185 -> 0 | K195: - | L195: 0 | M195: = | N195: =IF(NOT(CARE_OR_MB?),0,F195-MAX(0,SUM(H195:L195))) -> 0
Q198: =IF(F13="","",IF($P14<$Y$12,$X$13,$Y$13))
B200: Wild Fire Fund | Q200: =IF(J202="","",IF(AND(OR(InE_MedBL=0,InE_MedBL=5),Rate_DR="DR"),$AG$212,0))
H201: kWh | J201: Factor | L201: Price | N201: Total
B202: 1 | D202: Baseline | F202: T0 | H202: =IF(J202<>"",$J$68,"") ->  | I202: x | J202: =IF($J$68>0,Factor1_DR,"") ->  | K202: x | L202: =IF(J202="","",IF(AND(OR(InE_MedBL=0,InE_MedBL=5),Rate_DR="DR"),IF($V$207<$AE$205,$AD$206,$AE$206),0)) ->  | M202: = | N202: =IF(J202<>"",ROUND(H202*J202*L202,2),"") -> 
D203: 1.3 | F203: T1 | H203: =IF(J203<>"",$J$69,"") ->  | I203: x | J203: =IF($J$69>0,Factor1_DR,"") ->  | K203: x | L203: =IF(J203="","",IF(AND(OR(InE_MedBL=0,InE_MedBL=5),Rate_DR="DR"),IF($V$207<$AE$205,$AD$206,$AE$206),0)) ->  | M203: = | N203: =IF(J203<>"",ROUND(H203*J203*L203,2),"") ->  | AD203: State Surcharge Tax
D204: Tier 3 - Tier 5 | F204: BT | H204: =IF(J204<>"",SUM($J$70:$J$72),"") ->  | I204: x | J204: =IF(SUM($J$70:$J$72)>0,Factor1_DR,"") ->  | K204: x | L204: =IF(J204="","",IF(AND(OR(InE_MedBL=0,InE_MedBL=5),Rate_DR="DR"),IF($V$207<$AE$205,$AD$206,$AE$206),0)) ->  | M204: = | N204: =IF(J204<>"",ROUND(H204*J204*L204,2),"") ->  | P204: =SUM(N202:N204) -> 0 | T204: Start | V204: End Date | X204: Days | AB204: Sum Total | AD204: Dates & Prices | AF204: Prorate flag | AG204: Prorate %
T205: =E_Cust_Start_Date -> 00:00:00 | U205: - | V205: =E_Cust_End_Date -> 00:00:00 | X205: =Days_Billed_DR -> 0 | AB205: =SUM(AB207:AB211) -> 0 | AD205: =Input!B131 -> 2025-02-01 | AE205: =Input!B134 -> 2026-01-01 | AF205: =IF(AND(T205<AE205,V205>=AE205),"Y","N") -> N
B206: 2 | D206: Baseline | F206: T0 | H206: =IF(J206<>"",$J$68,"") ->  | I206: x | J206: =IF($J$68>0,Factor2_DR,"") ->  | K206: x | L206: =IF(J206="","",IF(AND(OR(InE_MedBL=0,InE_MedBL=5),Rate_DR="DR"),IF($V$208<$AE$205,$AD$206,$AE$206),0)) ->  | M206: = | N206: =IF(J206<>"",ROUND(H206*J206*L206,2),"") ->  | AB206: Factor | AD206: =Input!B132 -> 0.00595 | AE206: =Input!B135 -> 0.00591
D207: 1.3 | F207: T1 | H207: =IF(J207<>"",$J$69,"") ->  | I207: x | J207: =IF($J$69>0,Factor2_DR,"") ->  | K207: x | L207: =IF(J207="","",IF(AND(OR(InE_MedBL=0,InE_MedBL=5),Rate_DR="DR"),IF($V$208<$AE$205,$AD$206,$AE$206),0)) ->  | M207: = | N207: =IF(J207<>"",ROUND(H207*J207*L207,2),"") ->  | T207: =$B$11 -> 00:00:00 | U207: - | V207: =End_Date1_DR -> 00:00:00 | W207: = | X207: =Days1 -> 0 | Z207: =$H$11 -> 0/0 | AB207: =Factor1_DR -> 0 | AF207: =IF(V207="","",IF(AND(AF205="Y",V207<AE205),1,2)) -> 2 | AG207: =ROUND(SUMIF(AF207:AF211,1,AB207:AB211),10) -> 0
D208: Tier 3 - Tier 5 | F208: BT | H208: =IF(J208<>"",SUM($J$70:$J$72),"") ->  | I208: x | J208: =IF(SUM($J$70:$J$72)>0,Factor2_DR,"") ->  | K208: x | L208: =IF(J208="","",IF(AND(OR(InE_MedBL=0,InE_MedBL=5),Rate_DR="DR"),IF($V$208<$AE$205,$AD$206,$AE$206),0)) ->  | M208: = | N208: =IF(J208<>"",ROUND(H208*J208*L208,2),"") ->  | P208: =SUM(N206:N208) -> 0 | T208: =$B$12 ->  | U208: - | V208: =End_Date2_DR ->  | W208: = | X208: =Days2 ->  | Z208: =$H$12 ->  | AB208: =Factor2_DR ->  | AC208: =IF(Y208<>"",AA208-Y208,"") ->  | AF208: =IF(V208="","",IF(AND(AF205="Y",V208<AE205),1,2)) ->  | AG208: =ROUND(SUMIF(AF207:AF211,2,AB207:AB211),10) -> 0
T209: =$B$13 ->  | U209: - | V209: =End_Date3_DR ->  | W209: = | X209: =Days3 ->  | Z209: =$H$13 ->  | AB209: =Factor3_DR ->  | AC209: =IF(Y209<>"",AA209-Y209,"") ->  | AF209: =IF(V209="","",IF(AND(AF205="Y",V209<AE205),1,2)) -> 
B210: 3 | F210: T0 | H210: =IF(J210<>"",$J$68,"") ->  | I210: x | J210: =IF($J$68>0,Factor3_DR,"") ->  | K210: x | L210: =IF(J210="","",IF(AND(OR(InE_MedBL=0,InE_MedBL=5),Rate_DR="DR"),IF($V$209<$AE$205,$AD$206,$AE$206),0)) ->  | M210: = | N210: =IF(J210<>"",ROUND(H210*J210*L210,2),"") ->  | T210: =$B$14 ->  | U210: - | V210: =End_Date4_DR ->  | W210: = | X210: =Days4 ->  | Z210: =$H$14 ->  | AB210: =Factor4_DR ->  | AC210: =IF(Y210<>"",AA210-Y210,"") ->  | AF210: =IF(V210="","",IF(AND(AF205="Y",V210<AE205),1,2)) -> 
F211: T1 | H211: =IF(J211<>"",$J$69,"") ->  | I211: x | J211: =IF($J$69>0,Factor3_DR,"") ->  | K211: x | L211: =IF(J211="","",IF(AND(OR(InE_MedBL=0,InE_MedBL=5),Rate_DR="DR"),IF($V$209<$AE$205,$AD$206,$AE$206),0)) ->  | M211: = | N211: =IF(J211<>"",ROUND(H211*J211*L211,2),"") ->  | T211: =$B$15 ->  | U211: - | V211: =End_Date5_DR ->  | W211: = | X211: =Days5 ->  | Z211: =$H$15 ->  | AB211: =Factor5_DR ->  | AC211: =IF(Y211<>"",AA211-Y211,"") ->  | AF211: =IF(V211="","",IF(AND(AF205="Y",V211<AE205),1,2)) -> 
F212: BT | H212: =IF(J212<>"",SUM($J$70:$J$72),"") ->  | I212: x | J212: =IF(SUM($J$70:$J$72)>0,Factor3_DR,"") ->  | K212: x | L212: =IF(J212="","",IF(AND(OR(InE_MedBL=0,InE_MedBL=5),Rate_DR="DR"),IF($V$209<$AE$205,$AD$206,$AE$206),0)) ->  | M212: = | N212: =IF(J212<>"",ROUND(H212*J212*L212,2),"") ->  | P212: =SUM(N210:N212) -> 0 | X212: =SUM(X207:X211) -> 0 | AF212: DWR Prorated Price | AG212: =IF(AND(AF205="N",V205<AE205),AD206,IF(AND(AF205="N",V205>AE205),AE206,ROUND(ROUND(AG207*AD206,10)+ROUND(AE206*AG208,10),6))) -> 0.00595
B214: 4 | F214: T0 | H214: =IF(J214<>"",$J$68,"") ->  | I214: x | J214: =IF($J$68>0,Factor4_DR,"") ->  | K214: x | L214: =IF(J214="","",IF(AND(OR(InE_MedBL=0,InE_MedBL=5),Rate_DR="DR"),IF($V$210<$AE$205,$AD$206,$AE$206),0)) ->  | M214: = | N214: =IF(J214<>"",ROUND(H214*J214*L214,2),"") -> 
F215: T1 | H215: =IF(J215<>"",$J$69,"") ->  | I215: x | J215: =IF($J$69>0,Factor4_DR,"") ->  | K215: x | L215: =IF(J215="","",IF(AND(OR(InE_MedBL=0,InE_MedBL=5),Rate_DR="DR"),IF($V$210<$AE$205,$AD$206,$AE$206),0)) ->  | M215: = | N215: =IF(J215<>"",ROUND(H215*J215*L215,2),"") -> 
F216: BT | H216: =IF(J216<>"",SUM($J$70:$J$72),"") ->  | I216: x | J216: =IF(SUM($J$70:$J$72)>0,Factor4_DR,"") ->  | K216: x | L216: =IF(J216="","",IF(AND(OR(InE_MedBL=0,InE_MedBL=5),Rate_DR="DR"),IF($V$210<$AE$205,$AD$206,$AE$206),0)) ->  | M216: = | N216: =IF(J216<>"",ROUND(H216*J216*L216,2),"") ->  | P216: =SUM(N214:N216) -> 0
B218: 5 | F218: T0 | H218: =IF(J218<>"",$J$68,"") ->  | I218: x | J218: =IF($J$68>0,Factor5_DR,"") ->  | K218: x | L218: =IF(J218="","",IF(AND(OR(InE_MedBL=0,InE_MedBL=5),Rate_DR="DR"),IF($V$211<$AE$205,$AD$206,$AE$206),0)) ->  | M218: = | N218: =IF(J218<>"",ROUND(H218*J218*L218,2),"") -> 
F219: T1 | H219: =IF(J219<>"",$J$69,"") ->  | I219: x | J219: =IF($J$69>0,Factor5_DR,"") ->  | K219: x | L219: =IF(J219="","",IF(AND(OR(InE_MedBL=0,InE_MedBL=5),Rate_DR="DR"),IF($V$211<$AE$205,$AD$206,$AE$206),0)) ->  | M219: = | N219: =IF(J219<>"",ROUND(H219*J219*L219,2),"") -> 
F220: BT | H220: =IF(J220<>"",SUM($J$70:$J$72),"") ->  | I220: x | J220: =IF(SUM($J$70:$J$72)>0,Factor5_DR,"") ->  | K220: x | L220: =IF(J220="","",IF(AND(OR(InE_MedBL=0,InE_MedBL=5),Rate_DR="DR"),IF($V$211<$AE$205,$AD$206,$AE$206),0)) ->  | M220: = | N220: =IF(J220<>"",ROUND(H220*J220*L220,2),"") ->  | P220: =SUM(N218:N220) -> 0
N221: =SUM(N202:N220) -> 0
B223: DWR Revenue Adjustment | T223: Start | V223: End Date | X223: Days | AB223: Sum Total | AD223: Dates & Prices | AF223: Prorate flag | AG223: Prorate %
H224: kWh | J224: Factor | L224: Price | N224: Total | T224: =E_Cust_Start_Date -> 00:00:00 | U224: - | V224: =E_Cust_End_Date -> 00:00:00 | X224: =Days_Billed_DR -> 0 | AB224: =SUM(AB226:AB230) -> 0 | AD224: =Input!D230 -> 2020-01-01 | AE224: =Input!D233 -> 2021-02-01 | AF224: =IF(AND(T224<AE224,V224>=AE224),"Y","N") -> N
B225: 1 | D225: Billable Unit 1 | F225: Total | H225: =IF(J225<>"",IF($J$73=0,$V$73,$J$73),"") -> 0 | I225: x | J225: =Factor1_DR -> 0 | K225: x | L225: =IF(J225="","",IF($V226<$AE$224,$AD$225,$AE$225)) -> -8e-05 | M225: = | N225: =IF(J225<>"",ROUND(H225*J225*L225,2),"") -> 0 | AB225: Factor | AD225: =Input!D231 -> -8e-05 | AE225: =Input!D234 -> 0
T226: =$B$11 -> 00:00:00 | U226: - | V226: =End_Date1_DR -> 00:00:00 | W226: = | X226: =Days1 -> 0 | Z226: =$H$11 -> 0/0 | AB226: =Factor1_DR -> 0 | AF226: =IF(V226="","",IF(AND(AF224="Y",V226<AE224),1,2)) -> 2 | AG226: =ROUND(SUMIF(AF226:AF230,1,AB226:AB230),10) -> 0
B227: 2 | D227: Billable Unit 2 | F227: Total | H227: =IF(J227<>"",IF($J$73=0,$V$73,$J$73),"") ->  | I227: x | J227: =Factor2_DR ->  | K227: x | L227: =IF(J227="","",IF($V227<$AE$224,$AD$225,$AE$225)) ->  | M227: = | N227: =IF(J227<>"",ROUND(H227*J227*L227,2),"") ->  | T227: =$B$12 ->  | U227: - | V227: =End_Date2_DR ->  | W227: = | X227: =Days2 ->  | Z227: =$H$12 ->  | AB227: =Factor2_DR ->  | AC227: =IF(Y227<>"",AA227-Y227,"") ->  | AF227: =IF(V227="","",IF(AND(AF224="Y",V227<AE224),1,2)) ->  | AG227: =ROUND(SUMIF(AF226:AF230,2,AB226:AB230),10) -> 0
T228: =$B$13 ->  | U228: - | V228: =End_Date3_DR ->  | W228: = | X228: =Days3 ->  | Z228: =$H$13 ->  | AB228: =Factor3_DR ->  | AC228: =IF(Y228<>"",AA228-Y228,"") ->  | AF228: =IF(V228="","",IF(AND(AF224="Y",V228<AE224),1,2)) -> 
B229: 3 | D229: Billable Unit 3 | F229: Total | H229: =IF(J229<>"",IF($J$73=0,$V$73,$J$73),"") ->  | I229: x | J229: =Factor3_DR ->  | K229: x | L229: =IF(J229="","",IF($V228<$AE$224,$AD$225,$AE$225)) ->  | M229: = | N229: =IF(J229<>"",ROUND(H229*J229*L229,2),"") ->  | T229: =$B$14 ->  | U229: - | V229: =End_Date4_DR ->  | W229: = | X229: =Days4 ->  | Z229: =$H$14 ->  | AB229: =Factor4_DR ->  | AC229: =IF(Y229<>"",AA229-Y229,"") ->  | AF229: =IF(V229="","",IF(AND(AF224="Y",V229<AE224),1,2)) -> 
T230: =$B$15 ->  | U230: - | V230: =End_Date5_DR ->  | W230: = | X230: =Days5 ->  | Z230: =$H$15 ->  | AB230: =Factor5_DR ->  | AC230: =IF(Y230<>"",AA230-Y230,"") ->  | AF230: =IF(V230="","",IF(AND(AF224="Y",V230<AE224),1,2)) -> 
B231: 4 | D231: Billable Unit 4 | F231: Total | H231: =IF(J231<>"",IF($J$73=0,$V$73,$J$73),"") ->  | I231: x | J231: =Factor4_DR ->  | K231: x | L231: =IF(J231="","",IF($V229<$AE$224,$AD$225,$AE$225)) ->  | M231: = | N231: =IF(J231<>"",ROUND(H231*J231*L231,2),"") ->  | X231: =SUM(X226:X230) -> 0
B233: 5 | D233: Billable Unit 5 | F233: Total | H233: =IF(J233<>"",IF($J$73=0,$V$73,$J$73),"") ->  | I233: x | J233: =Factor5_DR ->  | K233: x | L233: =IF(J233="","",IF($V230<$AE$224,$AD$225,$AE$225)) ->  | M233: = | N233: =J194=IF(J233<>"",ROUND(H233*J233*L233,2),"") -> FALSE
N234: =SUM(N225:N233) -> 0
B235: CA Climate Credit
B236: Check 1 | C236: =IF(OR(AND(MONTH(T224)=8,MONTH(V224)=9),AND(MONTH(T224)=9,DAY(T224)=1)),1,0) -> 0 | J236: =IF(SUM(C236:C237)>0, CA_CLIM_CRED,0) -> 0 | K236: x | L236: 1 | M236: = | N236: =J236*L236 -> 0
B237: Check 2 | C237: =IF(OR(AND(MONTH(T224)=9,MONTH(V224)=10),AND(MONTH(T224)=10,DAY(T224)=1)),1,0) -> 0
B240: EECC Charges | G240: Standard Baseline - DR rate (& FERA) | Q240: CARE/Medical Baseline - DRLI
H242: kWh | J242: Factor | L242: Price | N242: Total | Q242: kWh | S242: Factor | U242: Price | W242: Total
A243: 1 | B243: =IF(Rate_DR="drtou","Off Baseline","CARE Baseline") -> CARE Baseline | D243: 1 | H243: =IF(AND(Rate_DR="drtou",AND(Rate_DR="drtou",OR($P$11="W",$P$11=""))),0,IF(J243="","",IF(Rate_DR="drtou",$J$78,0))) ->  | I243: x | J243: =IF($J$68>0,IF(AND(Rate_DR="DRTOU",SeasnlFlag_DRTOU=1),SeasFactor1_AL,Factor1_DR),"") ->  | K243: x | L243: =IF(J243="","",IF(Units_CARE>0,VLOOKUP(End_Date1_DR,MHP_TBL,P11s),IF(Rate_DR="drtou",IF($P$11="S",VLOOKUP(End_Date1_DR,MHP_TBLTOU,150),0)))) ->  | M243: = | N243: =IF(J243="","",ROUND(H243*J243*L243,2)) ->  | Q243: =IF(AND(Rate_DR="drtou",OR($P$11="s",$P$11="")),0,IF(S243="","",IF(Rate_DR="drtou",$V$78,$V$68))) ->  | R243: x | S243: =IF($V$68>0,IF(AND(Rate_DR="DRTOU",SeasnlFlag_DRTOU=1),SeasFactor1_AL,Factor1_DR),"") ->  | T243: x | U243: =IF(S243="","",IF(Rate_DR="drtou",IF($P$11="w",IF(Units_CARE=0,VLOOKUP(End_Date1_DR,MHP_TBLTOU,151))),VLOOKUP(End_Date1_DR,MHP_TBL,150))) ->  | V243: = | W243: =IF(S243="","",ROUND(Q243*S243*U243,2)) ->  | Z243: =SUM(W243:W247) -> 0
D244: 1.3 | H244: =IF(AND(Rate_DR="drtou",OR($P$11="W",$P$11="")),0,IF(J244="","",IF(Rate_DR="drtou",$J$79,0))) ->  | I244: x | J244: =IF($J$69>0,IF(AND(Rate_DR="DRTOU",SeasnlFlag_DRTOU=1),SeasFactor1_AL,Factor1_DR),"") ->  | K244: x | L244: =IF(J244="","",IF(Units_CARE>0,VLOOKUP(End_Date1_DR,MHP_TBL,151),IF(Rate_DR="drtou",IF($P$11="S",VLOOKUP(End_Date1_DR,MHP_TBLTOU,151),0)))) ->  | M244: = | N244: =IF(J244="","",ROUND(H244*J244*L244,2)) ->  | Q244: =IF(AND(Rate_DR="drtou",OR($P$11="s",$P$11="")),0,IF(S244="","",IF(Rate_DR="drtou",$V$79,$V$69))) ->  | R244: x | S244: =IF($V$69>0,IF(AND(Rate_DR="DRTOU",SeasnlFlag_DRTOU=1),SeasFactor1_AL,Factor1_DR),"") ->  | T244: x | U244: =IF(S244="","",IF(Rate_DR="drtou",IF($P$11="w",IF(Units_CARE=0,VLOOKUP(End_Date1_DR,MHP_TBLTOU,151))),VLOOKUP(End_Date1_DR,MHP_TBL,151))) ->  | V244: = | W244: =IF(S244="","",ROUND(Q244*S244*U244,2)) -> 
D245: 2 | H245: =IF(AND(Rate_DR="drtou",OR($P$11="W",$P$11="")),0,IF(J245="","",IF(Rate_DR="drtou",$J$80,0))) ->  | I245: x | J245: =IF($J$70>0,IF(AND(Rate_DR="DRTOU",SeasnlFlag_DRTOU=1),SeasFactor1_AL,Factor1_DR),"") ->  | K245: x | L245: =IF(J245="","",IF(Units_CARE>0,VLOOKUP(End_Date1_DR,MHP_TBL,152),IF(Rate_DR="drtou",IF($P$11="S",VLOOKUP(End_Date1_DR,MHP_TBLTOU,152),0)))) ->  | M245: = | Q245: =IF(AND(Rate_DR="drtou",OR($P$11="s",$P$11="")),0,IF(S245="","",IF(Rate_DR="drtou",$V$80,$V$70))) ->  | R245: x | S245: =IF($V$70>0,IF(AND(Rate_DR="DRTOU",SeasnlFlag_DRTOU=1),SeasFactor1_AL,Factor1_DR),"") ->  | T245: x | U245: =IF(S245="","",IF(Rate_DR="drtou",IF($P$11="w",IF(Units_CARE=0,VLOOKUP(End_Date1_DR,MHP_TBLTOU,152))),VLOOKUP(End_Date1_DR,MHP_TBL,152))) ->  | V245: =
D246: 3 | H246: =IF(AND(Rate_DR="drtou",OR($P$11="W",$P$11="")),0,IF(J246="","",IF(Rate_DR="drtou",$J$81,0))) ->  | I246: x | J246: =IF($J$71>0,IF(AND(Rate_DR="DRTOU",SeasnlFlag_DRTOU=1),SeasFactor1_AL,Factor1_DR),"") ->  | K246: x | L246: =IF(J246="","",IF(Units_CARE>0,VLOOKUP(End_Date1_DR,MHP_TBL,153),IF(Rate_DR="drtou",IF($P$11="S",VLOOKUP(End_Date1_DR,MHP_TBLTOU,153),0)))) ->  | M246: = | Q246: =IF(AND(Rate_DR="drtou",OR($P$11="s",$P$11="")),0,IF(S246="","",IF(Rate_DR="drtou",$V$81,$V$71))) ->  | R246: x | S246: =IF($V$71>0,IF(AND(Rate_DR="DRTOU",SeasnlFlag_DRTOU=1),SeasFactor1_AL,Factor1_DR),"") ->  | T246: x | U246: =IF(S246="","",IF(Rate_DR="drtou",IF($P$11="w",IF(Units_CARE=0,VLOOKUP(End_Date1_DR,MHP_TBLTOU,153))),VLOOKUP(End_Date1_DR,MHP_TBL,153))) ->  | V246: =
D247: Over | H247: =IF(AND(Rate_DR="drtou",OR($P$11="W",$P$11="")),0,IF(J247="","",IF(Rate_DR="drtou",$J$82,0))) ->  | I247: x | J247: =IF($J$72>0,IF(AND(Rate_DR="DRTOU",SeasnlFlag_DRTOU=1),SeasFactor1_AL,Factor1_DR),"") ->  | K247: x | L247: =IF(J247="","",IF(Units_CARE>0,VLOOKUP(End_Date1_DR,MHP_TBL,154),IF(Rate_DR="drtou",IF($P$11="S",VLOOKUP(End_Date1_DR,MHP_TBLTOU,154),0)))) ->  | M247: = | Q247: =IF(AND(Rate_DR="drtou",OR($P$11="s",$P$11="")),0,IF(S247="","",IF(Rate_DR="drtou",$V$82,$V$72))) ->  | R247: x | S247: =IF($V$72>0,IF(AND(Rate_DR="DRTOU",SeasnlFlag_DRTOU=1),SeasFactor1_AL,Factor1_DR),"") ->  | T247: x | U247: =IF(S247="","",IF(Rate_DR="drtou",IF($P$11="w",IF(Units_CARE=0,VLOOKUP(End_Date1_DR,MHP_TBLTOU,154))),VLOOKUP(End_Date1_DR,MHP_TBL,154))) ->  | V247: =
J248: =IF(H248>0,Factor1_DR,"") ->  | S248: =IF(Q248>0,Factor1_DR,"") -> 
A249: 2 | B249: =IF(Rate_DR="drtou","Off Baseline","CARE Baseline") -> CARE Baseline | D249: 1 | H249: =IF(AND(Rate_DR="drtou",OR($P$12="W",$P$12="")),0,IF(J249="","",IF(Rate_DR="drtou",$J$78,0))) ->  | I249: x | J249: =IF($J$68>0,IF(AND(Rate_DR="DRTOU",SeasnlFlag_DRTOU=1),SeasFactor1_AL,Factor2_DR),"") ->  | K249: x | L249: =IF(J249="","",IF(Units_CARE>0,VLOOKUP(End_Date2_DR,MHP_TBL,150),IF(Rate_DR="drtou",IF($P$12="S",VLOOKUP(End_Date2_DR,MHP_TBLTOU,150),0)))) ->  | M249: = | Q249: =IF(AND(Rate_DR="drtou",OR($P$12="s",$P$12="")),0,IF(S249="","",IF(Rate_DR="drtou",$V$78,$V$68))) ->  | R249: x | S249: =IF($V$68>0,IF(AND(Rate_DR="DRTOU",SeasnlFlag_DRTOU=1),SeasFactor1_AL,Factor2_DR),"") ->  | T249: x | U249: =IF(S249="","",IF(Rate_DR="drtou",IF($P$12="w",IF(Units_CARE=0,VLOOKUP(End_Date2_DR,MHP_TBLTOU,150))),VLOOKUP(End_Date2_DR,MHP_TBL,150))) ->  | V249: =
D250: 1.3 | H250: =IF(AND(Rate_DR="drtou",OR($P$12="W",$P$12="")),0,IF(J250="","",IF(Rate_DR="drtou",$J$79,0))) ->  | I250: x | J250: =IF($J$69>0,IF(AND(Rate_DR="DRTOU",SeasnlFlag_DRTOU=1),SeasFactor1_AL,Factor2_DR),"") ->  | K250: x | L250: =IF(J250="","",IF(Units_CARE>0,VLOOKUP(End_Date2_DR,MHP_TBL,151),IF(Rate_DR="drtou",IF($P$12="S",VLOOKUP(End_Date2_DR,MHP_TBLTOU,151),0)))) ->  | M250: = | Q250: =IF(AND(Rate_DR="drtou",OR($P$12="s",$P$12="")),0,IF(S250="","",IF(Rate_DR="drtou",$V$79,$V$69))) ->  | R250: x | S250: =IF($V$69>0,IF(AND(Rate_DR="DRTOU",SeasnlFlag_DRTOU=1),SeasFactor1_AL,Factor2_DR),"") ->  | T250: x | U250: =IF(S250="","",IF(Rate_DR="drtou",IF($P$12="w",IF(Units_CARE=0,VLOOKUP(End_Date2_DR,MHP_TBLTOU,151))),VLOOKUP(End_Date2_DR,MHP_TBL,151))) ->  | V250: =
D251: 2 | H251: =IF(AND(Rate_DR="drtou",OR($P$12="W",$P$12="")),0,IF(J251="","",IF(Rate_DR="drtou",$J$80,0))) ->  | I251: x | J251: =IF($J$70>0,IF(AND(Rate_DR="DRTOU",SeasnlFlag_DRTOU=1),SeasFactor1_AL,Factor2_DR),"") ->  | K251: x | L251: =IF(J251="","",IF(Units_CARE>0,VLOOKUP(End_Date2_DR,MHP_TBL,152),IF(Rate_DR="drtou",IF($P$12="S",VLOOKUP(End_Date2_DR,MHP_TBLTOU,152),0)))) ->  | M251: = | Q251: =IF(AND(Rate_DR="drtou",OR($P$12="s",$P$12="")),0,IF(S251="","",IF(Rate_DR="drtou",$V$80,$V$70))) ->  | R251: x | S251: =IF($V$70>0,IF(AND(Rate_DR="DRTOU",SeasnlFlag_DRTOU=1),SeasFactor1_AL,Factor2_DR),"") ->  | T251: x | U251: =IF(S251="","",IF(Rate_DR="drtou",IF($P$12="w",IF(Units_CARE=0,VLOOKUP(End_Date2_DR,MHP_TBLTOU,152))),VLOOKUP(End_Date2_DR,MHP_TBL,152))) ->  | V251: = | Z251: =SUM(W249:W253) -> 0
D252: 3 | H252: =IF(AND(Rate_DR="drtou",OR($P$12="W",$P$12="")),0,IF(J252="","",IF(Rate_DR="drtou",$J$81,0))) ->  | I252: x | J252: =IF($J$71>0,IF(AND(Rate_DR="DRTOU",SeasnlFlag_DRTOU=1),SeasFactor1_AL,Factor2_DR),"") ->  | K252: x | L252: =IF(J252="","",IF(Units_CARE>0,VLOOKUP(End_Date2_DR,MHP_TBL,153),IF(Rate_DR="drtou",IF($P$12="S",VLOOKUP(End_Date2_DR,MHP_TBLTOU,153),0)))) ->  | M252: = | Q252: =IF(AND(Rate_DR="drtou",OR($P$12="s",$P$12="")),0,IF(S252="","",IF(Rate_DR="drtou",$V$81,$V$71))) ->  | R252: x | S252: =IF($V$71>0,IF(AND(Rate_DR="DRTOU",SeasnlFlag_DRTOU=1),SeasFactor1_AL,Factor2_DR),"") ->  | T252: x | U252: =IF(S252="","",IF(Rate_DR="drtou",IF($P$12="w",IF(Units_CARE=0,VLOOKUP(End_Date2_DR,MHP_TBLTOU,153))),VLOOKUP(End_Date2_DR,MHP_TBL,153))) ->  | V252: =
D253: Over | H253: =IF(AND(Rate_DR="drtou",OR($P$12="W",$P$12="")),0,IF(J253="","",IF(Rate_DR="drtou",$J$82,0))) ->  | I253: x | J253: =IF($J$72>0,IF(AND(Rate_DR="DRTOU",SeasnlFlag_DRTOU=1),SeasFactor1_AL,Factor2_DR),"") ->  | K253: x | L253: =IF(J253="","",IF(Units_CARE>0,VLOOKUP(End_Date2_DR,MHP_TBL,154),IF(Rate_DR="drtou",IF($P$12="S",VLOOKUP(End_Date2_DR,MHP_TBLTOU,154),0)))) ->  | M253: = | Q253: =IF(AND(Rate_DR="drtou",OR($P$12="s",$P$12="")),0,IF(S253="","",IF(Rate_DR="drtou",$V$82,$V$72))) ->  | R253: x | S253: =IF($V$72>0,IF(AND(Rate_DR="DRTOU",SeasnlFlag_DRTOU=1),SeasFactor1_AL,Factor2_DR),"") ->  | T253: x | U253: =IF(S253="","",IF(Rate_DR="drtou",IF($P$12="w",IF(Units_CARE=0,VLOOKUP(End_Date2_DR,MHP_TBLTOU,154))),VLOOKUP(End_Date2_DR,MHP_TBL,154))) ->  | V253: =
J254: =IF(H254>0,Factor1_DR,"") ->  | S254: =IF(Q254>0,Factor1_DR,"") -> 
A255: 3 | B255: =IF(Rate_DR="drtou","Off Baseline","CARE Baseline") -> CARE Baseline | D255: 1 | H255: =IF(AND(Rate_DR="drtou",OR($P$13="W",$P$13="")),0,IF(J255="","",IF(Rate_DR="drtou",$J$78,0))) ->  | I255: x | J255: =IF($J$68>0,IF(AND(Rate_DR="DRTOU",SeasnlFlag_DRTOU=1),SeasFactor1_AL,Factor3_DR),"") ->  | K255: x | L255: =IF(J255="","",IF(Units_CARE>0,VLOOKUP(End_Date3_DR,MHP_TBL,150),IF(Rate_DR="drtou",IF($P$13="S",VLOOKUP(End_Date3_DR,MHP_TBLTOU,150),0)))) ->  | M255: = | Q255: =IF(AND(Rate_DR="drtou",OR($P$13="s",$P$13="")),0,IF(S255="","",IF(Rate_DR="drtou",$V$78,$V$68))) ->  | R255: x | S255: =IF($V$68>0,IF(AND(Rate_DR="DRTOU",SeasnlFlag_DRTOU=1),SeasFactor1_AL,Factor3_DR),"") ->  | T255: x | U255: =IF(S255="","",IF(Rate_DR="drtou",IF($P$13="w",IF(Units_CARE=0,VLOOKUP(End_Date3_DR,MHP_TBLTOU,150))),VLOOKUP(End_Date3_DR,MHP_TBL,150))) ->  | V255: =
D256: 1.3 | H256: =IF(AND(Rate_DR="drtou",OR($P$13="W",$P$13="")),0,IF(J256="","",IF(Rate_DR="drtou",$J$79,0))) ->  | I256: x | J256: =IF($J$69>0,IF(AND(Rate_DR="DRTOU",SeasnlFlag_DRTOU=1),SeasFactor1_AL,Factor3_DR),"") ->  | K256: x | L256: =IF(J256="","",IF(Units_CARE>0,VLOOKUP(End_Date3_DR,MHP_TBL,151),IF(Rate_DR="drtou",IF($P$13="S",VLOOKUP(End_Date3_DR,MHP_TBLTOU,151),0)))) ->  | M256: = | Q256: =IF(AND(Rate_DR="drtou",OR($P$13="s",$P$13="")),0,IF(S256="","",IF(Rate_DR="drtou",$V$79,$V$69))) ->  | R256: x | S256: =IF($V$69>0,IF(AND(Rate_DR="DRTOU",SeasnlFlag_DRTOU=1),SeasFactor1_AL,Factor3_DR),"") ->  | T256: x | U256: =IF(S256="","",IF(Rate_DR="drtou",IF($P$13="w",IF(Units_CARE=0,VLOOKUP(End_Date3_DR,MHP_TBLTOU,151))),VLOOKUP(End_Date3_DR,MHP_TBL,151))) ->  | V256: =
D257: 2 | H257: =IF(AND(Rate_DR="drtou",OR($P$13="W",$P$13="")),0,IF(J257="","",IF(Rate_DR="drtou",$J$80,0))) ->  | I257: x | J257: =IF($J$70>0,IF(AND(Rate_DR="DRTOU",SeasnlFlag_DRTOU=1),SeasFactor1_AL,Factor3_DR),"") ->  | K257: x | L257: =IF(J257="","",IF(Units_CARE>0,VLOOKUP(End_Date3_DR,MHP_TBL,152),IF(Rate_DR="drtou",IF($P$13="S",VLOOKUP(End_Date3_DR,MHP_TBLTOU,152),0)))) ->  | M257: = | Q257: =IF(AND(Rate_DR="drtou",OR($P$13="s",$P$13="")),0,IF(S257="","",IF(Rate_DR="drtou",$V$80,$V$70))) ->  | R257: x | S257: =IF($V$70>0,IF(AND(Rate_DR="DRTOU",SeasnlFlag_DRTOU=1),SeasFactor1_AL,Factor3_DR),"") ->  | T257: x | U257: =IF(S257="","",IF(Rate_DR="drtou",IF($P$13="w",IF(Units_CARE=0,VLOOKUP(End_Date3_DR,MHP_TBLTOU,152))),VLOOKUP(End_Date3_DR,MHP_TBL,152))) ->  | V257: =
D258: 3 | H258: =IF(AND(Rate_DR="drtou",OR($P$13="W",$P$13="")),0,IF(J258="","",IF(Rate_DR="drtou",$J$81,0))) ->  | I258: x | J258: =IF($J$71>0,IF(AND(Rate_DR="DRTOU",SeasnlFlag_DRTOU=1),SeasFactor1_AL,Factor3_DR),"") ->  | K258: x | L258: =IF(J258="","",IF(Units_CARE>0,VLOOKUP(End_Date3_DR,MHP_TBL,153),IF(Rate_DR="drtou",IF($P$13="S",VLOOKUP(End_Date3_DR,MHP_TBLTOU,153),0)))) ->  | M258: = | Q258: =IF(AND(Rate_DR="drtou",OR($P$13="s",$P$13="")),0,IF(S258="","",IF(Rate_DR="drtou",$V$81,$V$71))) ->  | R258: x | S258: =IF($V$71>0,IF(AND(Rate_DR="DRTOU",SeasnlFlag_DRTOU=1),SeasFactor1_AL,Factor3_DR),"") ->  | T258: x | U258: =IF(S258="","",IF(Rate_DR="drtou",IF($P$13="w",IF(Units_CARE=0,VLOOKUP(End_Date3_DR,MHP_TBLTOU,153))),VLOOKUP(End_Date3_DR,MHP_TBL,153))) ->  | V258: =
D259: Over | H259: =IF(AND(Rate_DR="drtou",OR($P$13="W",$P$13="")),0,IF(J259="","",IF(Rate_DR="drtou",$J$82,0))) ->  | I259: x | J259: =IF($J$72>0,IF(AND(Rate_DR="DRTOU",SeasnlFlag_DRTOU=1),SeasFactor1_AL,Factor3_DR),"") ->  | K259: x | L259: =IF(J259="","",IF(Units_CARE>0,VLOOKUP(End_Date3_DR,MHP_TBL,154),IF(Rate_DR="drtou",IF($P$13="S",VLOOKUP(End_Date3_DR,MHP_TBLTOU,154),0)))) ->  | M259: = | Q259: =IF(AND(Rate_DR="drtou",OR($P$13="s",$P$13="")),0,IF(S259="","",IF(Rate_DR="drtou",$V$82,$V$72))) ->  | R259: x | S259: =IF($V$72>0,IF(AND(Rate_DR="DRTOU",SeasnlFlag_DRTOU=1),SeasFactor1_AL,Factor3_DR),"") ->  | T259: x | U259: =IF(S259="","",IF(Rate_DR="drtou",IF($P$13="w",IF(Units_CARE=0,VLOOKUP(End_Date3_DR,MHP_TBLTOU,154))),VLOOKUP(End_Date3_DR,MHP_TBL,154))) ->  | V259: =
... 177 more rows

Sheet GR-CALC (hidden)
A2: For Rates: DR - DRLI w CARE FERA & Medical | AM2: Determine Prorations:
AN4: End Date | AP4: Start Date | AR4: Num of Days
AN5: =E_Cust_End_Date -> 00:00:00 | AO5: - | AP5: =E_Cust_Start_Date -> 00:00:00 | AQ5: = | AR5: =AN5-AP5 -> 0
B6: Billing Period - Factors
AM7: Gas | AN7: Chng Dates | AO7: > Start Date
B8: Start | D8: End Date | F8: Days | J8: Sum Total | AM8: GR Rate$ | AN8: =IF(AND(Input!A63>G_Cust_Start_Date,Input!A63<=G_Cust_End_Date),Input!A63,0) -> 00:00:00
B9: =IF(G_Cust_Start_Date="","",G_Cust_Start_Date) ->  | C9: - | D9: =IF(G_Cust_End_Date="","",G_Cust_End_Date) ->  | F9: =IF(End_Date_GR="","",End_Date_GR-B9) ->  | J9: =SUM(J11:J15) -> 0 | AN9: =IF(AND(Input!A64>G_Cust_Start_Date,Input!A64<=G_Cust_End_Date),Input!A64,0) -> 00:00:00
J10: Factor | AN10: =IF(AND(Input!A65>G_Cust_Start_Date,Input!A65<=G_Cust_End_Date),Input!A65,0) -> 00:00:00
A11: 1 | B11: =B9 ->  | C11: - | D11: =IF(AU17="",End_Date_GR,AU17-1) ->  | E11: = | F11: =IF(End_Date1_GR="","",End_Date1_GR-B11) ->  | H11: =CONCATENATE(F11,"/",$F$9) -> / | J11: =IF(F11="","",ROUND(F11/$F$9,10)) ->  | AN11: =IF(AND(Input!A66>G_Cust_Start_Date,Input!A66<=G_Cust_End_Date),Input!A66,0) -> 00:00:00
A12: 2 | B12: =IF(End_Date1_GR=End_Date_GR,"",End_Date1_GR) ->  | C12: - | D12: =IF(End_Date1_GR=End_Date_GR,"",IF(AU18="",End_Date_GR,AU18-1)) ->  | E12: = | F12: =IF(B12<>"",D12-B12,"") ->  | H12: =IF(B12<>"",CONCATENATE(F12,"/",$F$9),"") ->  | J12: =IF(B12<>"",ROUND(F12/$F$9,10),"") ->  | AM12: G=PPP | AN12: =IF(AND(Input!B69>G_Cust_Start_Date,Input!B69<=G_Cust_End_Date),Input!B69,0) -> 00:00:00
A13: 3 | B13: =IF(End_Date2_GR=End_Date_GR,"",End_Date2_GR) ->  | C13: - | D13: =IF(OR(End_Date2_GR=End_Date_GR,End_Date2_GR=""),"",IF(AU19="",End_Date_GR,AU19-1)) ->  | E13: = | F13: =IF(B13<>"",D13-B13,"") ->  | H13: =IF(B13<>"",CONCATENATE(F13,"/",$F$9),"") ->  | J13: =IF(B13<>"",ROUND(F13/$F$9,10),"") ->  | AN13: =IF(AND(Input!B73>G_Cust_Start_Date,Input!B73<=G_Cust_End_Date),Input!B73,0) -> 00:00:00
A14: 4 | B14: =IF(End_Date3_GR=End_Date_GR,"",End_Date3_GR) ->  | C14: - | D14: =IF(OR(End_Date3_GR="",End_Date3_GR=End_Date_GR),"",IF(AU20="",End_Date_GR,AU20-1)) ->  | E14: = | F14: =IF(B14<>"",D14-B14,"") ->  | H14: =IF(B14<>"",CONCATENATE(F14,"/",$F$9),"") ->  | J14: =IF(B14<>"",ROUND(F14/$F$9,10),"") ->  | AM14: G-PUC | AN14: =IF(AND(Input!B83>G_Cust_Start_Date,Input!B83<=G_Cust_End_Date),Input!B83,0) -> 00:00:00
A15: 5 | B15: =IF(End_Date4_GR=End_Date_GR,"",End_Date4_GR) ->  | C15: - | D15: =IF(OR(End_Date4_GR=End_Date_GR,End_Date4_GR=""),"",IF(End_Date4_GR=End_Date_GR,"",End_Date_GR)) ->  | E15: = | F15: =IF(B15<>"",D15-B15,"") ->  | H15: =IF(B15<>"",CONCATENATE(F15,"/",$F$9),"") ->  | J15: =IF(B15<>"",ROUND(F15/$F$9,10),"") ->  | AN15: =IF(AND(Input!B86>G_Cust_Start_Date,Input!B86<=G_Cust_End_Date),Input!B86,0) -> 00:00:00 | AU15: Proration Dates | AY15: 1 | AZ15: 2 | BA15: 3 | BC15: Start Date
F16: =SUM(F11:F15) -> 0 | J16: =IF(F9="","",ROUND(F16/F9,10)) ->  | AU16: =AP5 -> 00:00:00 | AY16: Chng Dates | AZ16: Chng Dates | BA16: Chng Dates | BC16: Chng Dates
AM17: Baseline | AU17: =IF(DMIN($AN$7:$AN$15,"Chng Dates",$BC$16:$BC$17)=0,"",DMIN($AN$7:$AN$15,"Chng Dates",$BC$16:$BC$17)) ->  | AY17: =CONCATENATE(">",AU17) -> > | AZ17: =CONCATENATE(">",AU18) -> > | BA17: =CONCATENATE(">",AU19) -> > | BC17: =CONCATENATE(">",AP5+1) -> >1
L18: Billed | N18: Meter crosses 0 | AU18: =IF(DMIN($AN$7:$AN$15,"Chng Dates",$AY$16:$AY$17)=0,"",DMIN($AN$7:$AN$15,"Chng Dates",$AY$16:$AY$17)) -> 
B19: Rate_DR | D19: Heat code | F19: Climate Zone | H19: G Read Total | I19: x | J19: Therms Mult | K19: = | L19: Therms | U19: Therms | AU19: =IF(DMIN($AN$7:$AN$15,"Chng Dates",$AZ$16:$AZ$17)=0,"",DMIN($AN$7:$AN$15,"Chng Dates",$AZ$16:$AZ$17)) -> 
B20: =IF(CARE?=2,"GRLI","GR") -> GR | D20: =IF(InG_E?=2,4,1) -> 1 | F20: =InBL_LOC -> 0 | H20: =InGendRead-InGstartRead -> 0 | J20: =Input!$B$48 -> 0 | L20: =IF(Input!E43=TRUE,ROUND(U20*J20,0),ROUND(G_Read_Total*J20,0)) -> 0 | N20: =ROUNDUP(InGstartRead,-2) -> 0 | O20: - | P20: =InGstartRead -> 0 | Q20: = | R20: =N20-P20 -> 0 | S20: + | T20: =InGendRead -> 0 | U20: =IF(AND(G_Cust_End_Date<Input!E43=TRUE),SUM(T20,R20),"") ->  | AU20: =IF(DMIN($AN$7:$AN$15,"Chng Dates",$BA$16:$BA$17)=0,"",DMIN($AN$7:$AN$15,"Chng Dates",$BA$16:$BA$17)) -> 
B23: Total Units | D23: Medical Units
B24: 1 | D24: =IF(InGMedBL=5,0,InGMedBL) -> 0
B28: E&G Baseline Allowance
F29: Daily Allow | J29: Days | L29: x No. of Units | N29: Allowance x Days | P29: Whole number | R29: Decimal
A30: 1 | B30: =$B$11 ->  | C30: - | D30: =End_Date1_GR ->  | F30: =IF(End_Date1_GR<>"",VLOOKUP(End_Date1_GR,G_BSL_TBL,2),"") ->  | I30: x | J30: =IF(D30="","",D30-B30) ->  | L30: =IF(End_Date1_GR="","",$B$24) ->  | N30: =IF(End_Date1_GR="","",F30*J30) ->  | P30: =IF(N30="","",TRUNC(N30,0)) ->  | R30: =IF(N30="","",N30-INT(N30)) -> 
A31: 2 | B31: =$B$12 ->  | C31: - | D31: =End_Date2_GR ->  | F31: =IF(End_Date2_GR<>"",VLOOKUP(End_Date2_GR,G_BSL_TBL,2),"") ->  | I31: x | J31: =IF(D31="","",D31-B31) ->  | L31: =IF(End_Date2_GR="","",$B$24) ->  | N31: =IF(End_Date2_GR="","",F31*J31) ->  | P31: =IF(N31="","",TRUNC(N31,0)) ->  | R31: =IF(N31="","",N31-INT(N31)) -> 
A32: 3 | B32: =$B$13 ->  | C32: - | D32: =End_Date3_GR ->  | F32: =IF(End_Date3_GR<>"",VLOOKUP(End_Date3_GR,G_BSL_TBL,2),"") ->  | I32: x | J32: =IF(D32="","",D32-B32) ->  | L32: =IF(End_Date3_GR="","",$B$24) ->  | N32: =IF(End_Date3_GR="","",F32*J32) ->  | P32: =IF(N32="","",TRUNC(N32,0)) ->  | R32: =IF(N32="","",N32-INT(N32)) -> 
A33: 4 | B33: =$B$14 ->  | C33: - | D33: =End_Date4_GR ->  | F33: =IF(End_Date4_GR<>"",VLOOKUP(End_Date4_GR,G_BSL_TBL,2),"") ->  | I33: x | J33: =IF(D33="","",D33-B33) ->  | L33: =IF(End_Date4_GR="","",$B$24) ->  | N33: =IF(End_Date4_GR="","",F33*J33) ->  | P33: =IF(N33="","",TRUNC(N33,0)) ->  | R33: =IF(N33="","",N33-INT(N33)) ->  | S33: Sum & Round
A34: 5 | B34: =$B$15 ->  | C34: - | D34: =End_Date5_GR ->  | F34: =IF(End_Date5_GR<>"",VLOOKUP(End_Date5_GR,G_BSL_TBL,2),"") ->  | I34: x | J34: =IF(D34="","",D34-B34) ->  | L34: =IF(End_Date5_GR="","",$B$24) ->  | N34: =IF(End_Date5_GR="","",F34*J34) ->  | P34: =IF(N34="","",TRUNC(N34,0)) ->  | R34: =IF(N34="","",N34-INT(N34)) ->  | S34: BL Total
J35: =SUM(J30:J34) -> 0 | P35: =SUM(P30:P34) -> 0 | Q35: + | R35: =SUM(R30:R34) -> 0 | S35: =IF(P44=0,ROUND(SUM(P35:R35),0),ROUND(SUM(P35:R35),1)) -> 0
B37: ALL_E Baseline Allowance
F38: Daily Allow | J38: Days | L38: x No. of Units | N38: Allowance x Days | P38: Whole number | R38: Decimal
A39: 1 | B39: =$B$11 ->  | C39: - | D39: =End_Date1_GR ->  | I39: x | J39: =IF(D39="","",D39-B39) ->  | L39: 0
A40: 2 | B40: =$B$12 ->  | C40: - | D40: =End_Date2_GR ->  | I40: x | J40: =IF(D40="","",D40-B40) ->  | L40: 0
A41: 3 | B41: =$B$13 ->  | C41: - | D41: =End_Date3_GR ->  | I41: x | J41: =IF(D41="","",D41-B41) ->  | L41: 0
A42: 4 | B42: =$B$14 ->  | C42: - | D42: =End_Date4_GR ->  | I42: x | J42: =IF(D42="","",D42-B42) ->  | L42: 0 | S42: Sum & Round
A43: 5 | B43: =$B$15 ->  | C43: - | D43: =End_Date5_GR ->  | I43: x | J43: =IF(D43="","",D43-B43) ->  | L43: 0 | S43: BL Total
J44: =SUM(J39:J43) -> 0 | Q44: + | S44: =IF(P35=0,ROUND(SUM(P44:R44),0),ROUND(SUM(P44:R44),1)) -> 0
B46: MEDICAL GAS Baseline Allowance
F48: Med - Daily Allow | J48: Days | L48: x No. of Units | N48: Allowance x Days | P48: Whole number | R48: Decimal
A49: 1 | B49: =$B$11 ->  | C49: - | D49: =End_Date1_GR ->  | F49: =IF(End_Date1_GR="","",IF(G_Med_Units>0,VLOOKUP(End_Date1_GR,G_BSL_TBL,3),0)) ->  | I49: x | J49: =IF(D49="","",D49-B49) ->  | L49: =IF(End_Date1_GR="","",G_Med_Units) ->  | N49: =IF(J49="","",F49*J49*L49) ->  | P49: =IF(N49="","",TRUNC(N49,0)) ->  | R49: =IF(N49="","",N49-INT(N49)) -> 
A50: 2 | B50: =$B$12 ->  | C50: - | D50: =End_Date2_GR ->  | F50: =IF(End_Date2_GR="","",IF(G_Med_Units>0,VLOOKUP(End_Date2_GR,G_BSL_TBL,3),0)) ->  | I50: x | J50: =IF(D50="","",D50-B50) ->  | L50: =IF(End_Date2_GR="","",G_Med_Units) ->  | N50: =IF(J50="","",F50*J50*L50) ->  | P50: =IF(N50="","",TRUNC(N50,0)) ->  | R50: =IF(N50="","",N50-INT(N50)) -> 
A51: 3 | B51: =$B$13 ->  | C51: - | D51: =End_Date3_GR ->  | F51: =IF(End_Date3_GR="","",IF(G_Med_Units>0,VLOOKUP(End_Date3_GR,G_BSL_TBL,3),0)) ->  | I51: x | J51: =IF(D51="","",D51-B51) ->  | L51: =IF(End_Date3_GR="","",G_Med_Units) ->  | N51: =IF(J51="","",F51*J51*L51) ->  | P51: =IF(N51="","",TRUNC(N51,0)) ->  | R51: =IF(N51="","",N51-INT(N51)) -> 
A52: 4 | B52: =$B$14 ->  | C52: - | D52: =End_Date4_GR ->  | F52: =IF(End_Date4_GR="","",IF(G_Med_Units>0,VLOOKUP(End_Date4_GR,G_BSL_TBL,3),0)) ->  | I52: x | J52: =IF(D52="","",D52-B52) ->  | L52: =IF(End_Date4_GR="","",G_Med_Units) ->  | N52: =IF(J52="","",F52*J52*L52) ->  | P52: =IF(N52="","",TRUNC(N52,0)) ->  | R52: =IF(N52="","",N52-INT(N52)) ->  | S52: Sum & Round
A53: 5 | B53: =$B$15 ->  | C53: - | D53: =End_Date5_GR ->  | F53: =IF(End_Date5_GR="","",IF(Units_Med>0,VLOOKUP(End_Date5_GR,G_BSL_TBL,3),0)) ->  | I53: x | J53: =IF(D53="","",D53-B53) ->  | L53: =IF(End_Date5_GR="","",G_Med_Units) ->  | N53: =IF(J53="","",F53*J53*L53) ->  | P53: =IF(N53="","",TRUNC(N53,0)) ->  | R53: =IF(N53="","",N53-INT(N53)) ->  | S53: BL Total
J54: =SUM(J49:J53) -> 0 | P54: =SUM(P49:P53) -> 0 | Q54: + | R54: =SUM(R49:R53) -> 0 | S54: =ROUND(SUM(P54:R54),0) -> 0
S58: BL_Allow
B59: 1 | C59: 2 | D59: 3 | E59: 4 | F59: 5 | G59: 6 | H59: 7 | I59: 8 | J59: 9 | K59: 10 | L59: 11 | M59: 12 | N59: 13 | O59: 14 | P59: 15 | S59: =SUM(S35,S54) -> 0
B60: Effective | D60: Baseline | F60: Baseline | H60: Non-Baseline | J60: Non-Baseline | L60: G-PPP | N60: G-PPP | P60: G-PUC
B61: Date | D61: Sch. GTC | F61: Sch. GPC | H61: Sch. GTC | J61: Sch. GPC | L61: CARE | N61: Non-CARE
B62: =GPriceDate1 -> 2026-04-01 | D62: =GTC_BLPrice1 -> 2.00489 | F62: =GPC_BLPrice1 -> 0.16874 | H62: =GTC_NBLPrice1 -> 2.37832 | J62: =GPC_NBLPrice1 -> 0.16874 | L62: =IF(B62<Input!$B$73,Input!$B$70,Input!$B$74) -> 0.09652 | N62: =IF(B62<Input!$B$73,Input!$B$71,Input!$B$75) -> 0.14754 | P62: =IF(B62<Input!$B$86,Input!$B$84,Input!$B$87) -> 0.0035
B63: =GPriceDate2 -> 2026-05-01 | D63: =GTC_BLPrice2 -> 2.00489 | F63: =GPC_BLPrice2 -> 0.15947 | H63: =GTC_NBLPrice2 -> 2.37832 | J63: =GPC_NBLPrice2 -> 0.15947 | L63: =IF(B63<Input!$B$73,Input!$B$70,Input!$B$74) -> 0.09652 | N63: =IF(B63<Input!$B$73,Input!$B$71,Input!$B$75) -> 0.14754 | P63: =IF(B63<Input!$B$86,Input!$B$84,Input!$B$87) -> 0.0035
B64: =GPriceDate3 -> 2026-06-01 | D64: =GTC_BLPrice3 -> 2.00489 | F64: =GPC_BLPrice3 -> 0.26781 | H64: =GTC_NBLPrice3 -> 2.37832 | J64: =GPC_NBLPrice3 -> 0.26781 | L64: =IF(B64<Input!$B$73,Input!$B$70,Input!$B$74) -> 0.09652 | N64: =IF(B64<Input!$B$73,Input!$B$71,Input!$B$75) -> 0.14754 | P64: =IF(B64<Input!$B$86,Input!$B$84,Input!$B$87) -> 0.0035
B65: =GPriceDate4 -> 2026-07-01 | D65: =GTC_BLPrice4 -> 1.97369 | F65: =GPC_BLPrice4 -> 0.32485 | H65: =GTC_NBLPrice4 -> 2.34201 | J65: =GPC_NBLPrice4 -> 0.32485 | L65: =IF(B65<Input!$B$73,Input!$B$70,Input!$B$74) -> 0.09652 | N65: =IF(B65<Input!$B$73,Input!$B$71,Input!$B$75) -> 0.14754 | P65: =IF(B65<Input!$B$86,Input!$B$84,Input!$B$87) -> 0.0035
S67: Non-BL
S68: =IF(BilledTherms>G_BSLN,BilledTherms-G_BSLN,0) -> 0
H71: GR | Q71: GRLI - CARE - Medical
B73: UDC
D74: Billing Segment | H74: therms | J74: Factor | L74: Price | N74: Total | P74: Totals | Q74: therms | S74: Factor | U74: Price | W74: Total | X74: Totals
A75: 1 | D75: =$H$11 -> / | F75: Baseline | H75: =IF(AND(End_Date1_GR<>"",Rate_GR="GR",G_Med_Units=0),MIN(G_BSLN,BilledTherms),"") ->  | I75: x | J75: =IF(H75="","",GFactor1) ->  | K75: x | L75: =IF(H75="","",VLOOKUP(End_Date1_GR,G_Price_TBL,3)) ->  | M75: = | N75: =IF(J75="","",ROUND(H75*J75*L75,2)) ->  | Q75: =IF(AND(End_Date1_GR<>"",OR(Rate_GR="GRli",G_Med_Units>0)),MIN(G_BSLN,BilledTherms),"") ->  | R75: x | S75: =IF(Q75="","",GFactor1) ->  | T75: x | U75: =IF(Q75="","",VLOOKUP(End_Date1_GR,G_Price_TBL,3)) ->  | V75: = | W75: =IF(S75="","",ROUND(Q75*S75*U75,2)) -> 
D76: =$H$11 -> / | F76: Non-Baseline | H76: =IF(AND(End_Date1_GR<>"",Rate_GR="GR",G_Med_Units=0),NonBL,"") ->  | I76: x | J76: =IF(H76="","",GFactor1) ->  | K76: x | L76: =IF(H76="","",VLOOKUP(End_Date1_GR,G_Price_TBL,7)) ->  | M76: = | N76: =IF(J76="","",ROUND(H76*J76*L76,2)) ->  | P76: =SUM(N75:N76) -> 0 | Q76: =IF(AND(End_Date1_GR<>"",OR(Rate_GR="GRli",G_Med_Units>0)),NonBL,"") ->  | R76: x | S76: =IF(Q76="","",GFactor1) ->  | T76: x | U76: =IF(Q76="","",VLOOKUP(End_Date1_GR,G_Price_TBL,7)) ->  | V76: = | W76: =IF(S76="","",ROUND(Q76*S76*U76,2)) ->  | X76: =SUM(W75:W76) -> 0
A78: 2 | D78: =$H$12 ->  | F78: Baseline | H78: =IF(AND(End_Date2_GR<>"",Rate_GR="GR",G_Med_Units=0),MIN(G_BSLN,BilledTherms),"") ->  | I78: x | J78: =IF(H78="","",GFactor2) ->  | K78: x | L78: =IF(H78="","",VLOOKUP(End_Date2_GR,G_Price_TBL,3)) ->  | M78: = | N78: =IF(J78="","",ROUND(H78*J78*L78,2)) ->  | Q78: =IF(AND(End_Date2_GR<>"",OR(Rate_GR="GRli",G_Med_Units>0)),MIN(G_BSLN,BilledTherms),"") ->  | R78: x | S78: =IF(Q78="","",GFactor2) ->  | T78: x | U78: =IF(Q78="","",VLOOKUP(End_Date2_GR,G_Price_TBL,3)) ->  | V78: = | W78: =IF(S78="","",ROUND(Q78*S78*U78,2)) -> 
D79: =$H$12 ->  | F79: Non-Baseline | H79: =IF(AND(End_Date2_GR<>"",Rate_GR="GR",G_Med_Units=0),NonBL,"") ->  | I79: x | J79: =IF(H79="","",GFactor2) ->  | K79: x | L79: =IF(H79="","",VLOOKUP(End_Date2_GR,G_Price_TBL,7)) ->  | M79: = | N79: =IF(J79="","",ROUND(H79*J79*L79,2)) ->  | P79: =SUM(N78:N79) -> 0 | Q79: =IF(AND(End_Date2_GR<>"",OR(Rate_GR="GRli",G_Med_Units>0)),NonBL,"") ->  | R79: x | S79: =IF(Q79="","",GFactor2) ->  | T79: x | U79: =IF(Q79="","",VLOOKUP(End_Date2_GR,G_Price_TBL,7)) ->  | V79: = | W79: =IF(S79="","",ROUND(Q79*S79*U79,2)) ->  | X79: =SUM(W78:W79) -> 0
A81: 3 | D81: =$H$13 ->  | F81: Baseline | H81: =IF(AND(End_Date3_GR<>"",Rate_GR="GR",G_Med_Units=0),MIN(G_BSLN,BilledTherms),"") ->  | I81: x | J81: =IF(H81="","",GFactor3) ->  | K81: x | L81: =IF(H81="","",VLOOKUP(End_Date3_GR,G_Price_TBL,3)) ->  | M81: = | N81: =IF(J81="","",ROUND(H81*J81*L81,2)) ->  | Q81: =IF(AND(End_Date3_GR<>"",OR(Rate_GR="GRli",G_Med_Units>0)),MIN(G_BSLN,BilledTherms),"") ->  | R81: x | S81: =IF(Q81="","",GFactor3) ->  | T81: x | U81: =IF(Q81="","",VLOOKUP(End_Date3_GR,G_Price_TBL,3)) ->  | V81: = | W81: =IF(S81="","",ROUND(Q81*S81*U81,2)) -> 
D82: =$H$13 ->  | F82: Non-Baseline | H82: =IF(AND(End_Date3_GR<>"",Rate_GR="GR",G_Med_Units=0),NonBL,"") ->  | I82: x | J82: =IF(H82="","",GFactor3) ->  | K82: x | L82: =IF(H82="","",VLOOKUP(End_Date3_GR,G_Price_TBL,7)) ->  | M82: = | N82: =IF(J82="","",ROUND(H82*J82*L82,2)) ->  | P82: =SUM(N81:N82) -> 0 | Q82: =IF(AND(End_Date3_GR<>"",OR(Rate_GR="GRli",G_Med_Units>0)),NonBL,"") ->  | R82: x | S82: =IF(Q82="","",GFactor3) ->  | T82: x | U82: =IF(Q82="","",VLOOKUP(End_Date3_GR,G_Price_TBL,7)) ->  | V82: = | W82: =IF(S82="","",ROUND(Q82*S82*U82,2)) ->  | X82: =SUM(W81:W82) -> 0
A84: 4 | D84: =$H$14 ->  | F84: Baseline | H84: =IF(AND(End_Date4_GR<>"",Rate_GR="GR",G_Med_Units=0),MIN(G_BSLN,BilledTherms),"") ->  | I84: x | J84: =IF(H84="","",GFactor4) ->  | K84: x | L84: =IF(H84="","",VLOOKUP(End_Date4_GR,G_Price_TBL,3)) ->  | M84: = | N84: =IF(J84="","",ROUND(H84*J84*L84,2)) ->  | Q84: =IF(AND(End_Date4_GR<>"",OR(Rate_GR="GRli",G_Med_Units>0)),MIN(G_BSLN,BilledTherms),"") ->  | R84: x | S84: =IF(Q84="","",GFactor4) ->  | T84: x | U84: =IF(Q84="","",VLOOKUP(End_Date4_GR,G_Price_TBL,3)) ->  | V84: = | W84: =IF(S84="","",ROUND(Q84*S84*U84,2)) -> 
D85: =$H$14 ->  | F85: Non-Baseline | H85: =IF(AND(End_Date4_GR<>"",Rate_GR="GR",G_Med_Units=0),NonBL,"") ->  | I85: x | J85: =IF(H85="","",GFactor4) ->  | K85: x | L85: =IF(H85="","",VLOOKUP(End_Date4_GR,G_Price_TBL,7)) ->  | M85: = | N85: =IF(J85="","",ROUND(H85*J85*L85,2)) ->  | P85: =SUM(N84:N85) -> 0 | Q85: =IF(AND(End_Date4_GR<>"",OR(Rate_GR="GRli",G_Med_Units>0)),NonBL,"") ->  | R85: x | S85: =IF(Q85="","",GFactor4) ->  | T85: x | U85: =IF(Q85="","",VLOOKUP(End_Date4_GR,G_Price_TBL,7)) ->  | V85: = | W85: =IF(S85="","",ROUND(Q85*S85*U85,2)) ->  | X85: =SUM(W84:W85) -> 0
D86: =$H$14 -> 
A87: 5 | D87: =$H$15 ->  | F87: Baseline | H87: =IF(AND(End_Date5_GR<>"",Rate_GR="GR",G_Med_Units=0),MIN(G_BSLN,BilledTherms),"") ->  | I87: x | J87: =IF(H87="","",GFactor5) ->  | K87: x | L87: =IF(H87="","",VLOOKUP(End_Date5_GR,G_Price_TBL,3)) ->  | M87: = | N87: =IF(J87="","",ROUND(H87*J87*L87,2)) ->  | Q87: =IF(AND(End_Date5_GR<>"",OR(Rate_GR="GRli",G_Med_Units>0)),MIN(G_BSLN,BilledTherms),"") ->  | R87: x | S87: =IF(Q87="","",GFactor5) ->  | T87: x | U87: =IF(Q87="","",VLOOKUP(End_Date5_GR,G_Price_TBL,3)) ->  | V87: = | W87: =IF(S87="","",ROUND(Q87*S87*U87,2)) -> 
D88: =$H$15 ->  | F88: Non-Baseline | H88: =IF(AND(End_Date5_GR<>"",Rate_GR="GR"),NonBL,"") ->  | I88: x | J88: =IF(H88="","",GFactor5) ->  | K88: x | L88: =IF(H88="","",VLOOKUP(End_Date5_GR,G_Price_TBL,7)) ->  | M88: = | N88: =IF(J88="","",ROUND(H88*J88*L88,2)) ->  | P88: =SUM(N87:N88) -> 0 | Q88: =IF(AND(End_Date5_GR<>"",Rate_GR="GR"),NonBL,"") ->  | R88: x | S88: =IF(Q88="","",GFactor5) ->  | T88: x | U88: =IF(Q88="","",VLOOKUP(End_Date5_GR,G_Price_TBL,7)) ->  | V88: = | W88: =IF(S88="","",ROUND(Q88*S88*U88,2)) ->  | X88: =SUM(W87:W88) -> 0
F92: UDC TOTAL | H92: =SUM(H93:H94) -> 0
F93: UDC Regular | H93: =SUM(P76,P79,P82,P85,P88) -> 0
F94: UDC CARE | H94: =SUM(X76,X79,X82,X85,X88) -> 0
B97: Residential CARE Discount
P99: Discount w/ min charge
D100: Total CARE UDC | F100: Total Commodity | H100: CSI | J100: CARE Discnt | P100: G_Min_Chrg_Adj | R100: CARE Discnt
D101: =H92 -> 0 | E101: + | F101: =N147 -> 0 | G101: + | H101: =MIN('CARE-FERA'!J87,0) -> 0 | J101: -0.2 | K101: = | L101: =IF(CARE?=2,ROUND(SUM(D101,F101,H101)*-0.2, 2),0) -> 0 | P101: =G_Min_Chrg_Adj -> 0 | R101: -0.2 | S101: = | T101: =IF(CARE?=2,ROUND(P101*R101, 2),0) -> 0
B104: CSI is on the CARE FERA tab with the Elec
P106: Min Chrg
P107: Res CARE
B108: Minimum Charge Adjustment | N108: Non-Care | P108: Discount | R108: Care Min Chrg
J109: Days | L109: Rate_DR | N109: Min Charge | O109: x | P109: 0.2
J110: =MIN(MAX(0,GAS_MIN_CHG_NEW_DATE-G_Cust_Start_Date-1),G_Cust_End_Date-G_Cust_Start_Date) -> 0 | K110: x | L110: =Input!G70 -> 0.09863 | M110: = | N110: =SUM(J110*L110,J111*L111) -> 0 | O110: - | P110: =IF(AND(CARE?=0,InE_MedBL=0),0,ROUND(N117*P109,2)) -> 0 | Q110: = | R110: =N117-P110 -> 0
J111: =G_Cust_End_Date-G_Cust_Start_Date-$J$110 -> 0 | L111: =Input!G74 -> 0.13151
H112: UDC_Total | J112: Commodity_Total | L112: CSI_Charge
F113: COMPARE TOTAL CHARGES | H113: =D101 -> 0 | I113: + | J113: =F101 -> 0 | K113: + | L113: =H101 -> 0 | M113: = | N113: =SUM(H113:L113) -> 0
L116: Total | N116: =SUM(N113:N115) -> 0
N117: =IF(N110-N116>0,N110-N116,0) -> 0
B120: CA Climate Credit
B121: Check 1 | C121: =IF(OR(AND(MONTH(G_Cust_Start_Date)=3,MONTH(G_Cust_End_Date)=4),AND(MONTH(G_Cust_Start_Date)=4,DAY(G_Cust_Start_Date)=1)),1,0) -> 0 | J121: =IF(SUM(C121:C122)>0, CA_CLIM_CRED_G,0) -> 0 | K121: x | L121: 1 | M121: = | N121: =J121*L121 -> 0
B122: Check 2 | C122: =IF(OR(AND(MONTH(G_Cust_Start_Date)=9,MONTH(G_Cust_End_Date)=10),AND(MONTH(G_Cust_Start_Date)=10,DAY(G_Cust_Start_Date)=1)),0,0) -> 0
B128: Gas Energy Charges | G128: GR | Q128: CARE/Medical Baseline - GRLI
A131: 1 | B131: =H11 -> / | D131: Total Therms | H131: =IF(AND(End_Date1_GR<>"",Rate_GR="GR",G_Med_Units=0),BilledTherms,"") ->  | I131: x | J131: =IF(H131="","",GFactor1) ->  | K131: x | L131: =IF(H131="","",VLOOKUP(End_Date1_GR,G_Price_TBL,5)) ->  | M131: = | N131: =IF(J131="","",ROUND(H131*J131*L131,2)) ->  | Q131: =IF(AND(End_Date1_GR<>"",OR(Rate_GR="GRli",G_Med_Units>0)),BilledTherms,"") ->  | R131: x | S131: =IF(Q131="","",GFactor1) ->  | T131: x | U131: =IF(Q131="","",VLOOKUP(End_Date1_GR,G_Price_TBL,5)) ->  | V131: = | W131: =IF(S131="","",ROUND(Q131*S131*U131,2)) -> 
A134: 2 | B134: =H12 ->  | D134: Total Therms | H134: =IF(AND(End_Date2_GR<>"",Rate_GR="GR",G_Med_Units=0),BilledTherms,"") ->  | I134: x | J134: =IF(H134="","",GFactor2) ->  | K134: x | L134: =IF(H134="","",VLOOKUP(End_Date2_GR,G_Price_TBL,5)) ->  | M134: = | N134: =IF(J134="","",ROUND(H134*J134*L134,2)) ->  | Q134: =IF(AND(End_Date2_GR<>"",OR(Rate_GR="GRli",G_Med_Units>0)),BilledTherms,"") ->  | R134: x | S134: =IF(Q134="","",GFactor2) ->  | T134: x | U134: =IF(Q134="","",VLOOKUP(End_Date2_GR,G_Price_TBL,5)) ->  | V134: = | W134: =IF(S134="","",ROUND(Q134*S134*U134,2)) -> 
A137: 3 | B137: =H13 ->  | D137: Total Therms | H137: =IF(AND(End_Date3_GR<>"",Rate_GR="GR",G_Med_Units=0),BilledTherms,"") ->  | I137: x | J137: =IF(H137="","",GFactor3) ->  | K137: x | L137: =IF(H137="","",VLOOKUP(End_Date3_GR,G_Price_TBL,5)) ->  | M137: = | N137: =IF(J137="","",ROUND(H137*J137*L137,2)) ->  | Q137: =IF(AND(End_Date3_GR<>"",OR(Rate_GR="GRli",G_Med_Units>0)),BilledTherms,"") ->  | R137: x | S137: =IF(Q137="","",GFactor3) ->  | T137: x | U137: =IF(Q137="","",VLOOKUP(End_Date3_GR,G_Price_TBL,5)) ->  | V137: = | W137: =IF(S137="","",ROUND(Q137*S137*U137,2)) -> 
A140: 4 | B140: =H14 ->  | D140: Total Therms | H140: =IF(AND(End_Date4_GR<>"",Rate_GR="GR",G_Med_Units=0),BilledTherms,"") ->  | I140: x | J140: =IF(H140="","",GFactor4) ->  | K140: x | L140: =IF(H140="","",VLOOKUP(End_Date4_GR,G_Price_TBL,5)) ->  | M140: = | N140: =IF(J140="","",ROUND(H140*J140*L140,2)) ->  | Q140: =IF(AND(End_Date4_GR<>"",OR(Rate_GR="GRli",G_Med_Units>0)),BilledTherms,"") ->  | R140: x | S140: =IF(Q140="","",GFactor4) ->  | T140: x | U140: =IF(Q140="","",VLOOKUP(End_Date4_GR,G_Price_TBL,5)) ->  | V140: = | W140: =IF(S140="","",ROUND(Q140*S140*U140,2)) -> 
A143: 5 | B143: =H15 ->  | D143: Total Therms | H143: =IF(AND(End_Date5_GR<>"",Rate_GR="GR",G_Med_Units=0),BilledTherms,"") ->  | I143: x | J143: =IF(H143="","",GFactor5) ->  | K143: x | L143: =IF(H143="","",VLOOKUP(End_Date5_GR,G_Price_TBL,5)) ->  | M143: = | N143: =IF(J143="","",ROUND(H143*J143*L143,2)) ->  | Q143: =IF(AND(End_Date5_GR<>"",OR(Rate_GR="GRli",G_Med_Units>0)),BilledTherms,"") ->  | R143: x | S143: =IF(Q143="","",GFactor5) ->  | T143: x | U143: =IF(Q143="","",VLOOKUP(End_Date5_GR,G_Price_TBL,5)) ->  | V143: = | W143: =IF(S143="","",ROUND(Q143*S143*U143,2)) -> 
L147: Gas_Total | N147: =SUM(N148:N149) -> 0
L148: Gas_ Regular | N148: =SUM(N131:N143) -> 0
L149: Gas CARE | N149: =SUM(W131:W143) -> 0

Sheet TAX CALC (hidden)
C2: ELECTRIC & GAS | AF2: GAS | AQ2: STREET LIGHTS
A6: Taxes
A8: Taxes use the same logic as PTFF, PTMC, etc. kWh and factors are being fed from the PPP calc section from each of the calc tabs - Driven by the Tab_ID (acct RATE) on the PRINT tab. TOU kWh feeds from top of AL-calc
N9: Electric
I10: SDGE% | Y10: DWR Pice Prorated
A11: DWR EECC - Electric Energy Commodity Charge ON PEAK - or - TOTAL | I11: =IF(Input!B28<29,Input!B31,Input!B32) -> 1 | N11: Start | P11: End Date | R11: Days | V11: Sum Total | X11: Dates & Prices | Z11: Prorate flag | AA11: Prorate % | AC11: =IF(F13="","",IF($P14<$Y$12,$X$13,$Y$13))
B12: DR - kWh Total | E12: (x) | F12: Factor | G12: (x) | H12: Charge | I12: DWR% | J12: = DWR EECC $ | N12: =E_Cust_Start_Date -> 00:00:00 | O12: - | P12: =E_Cust_End_Date -> 00:00:00 | R12: =Days_Billed_DR -> 0 | V12: =SUM(V14:V18) -> 0 | X12: =DWRdate1 -> 2020-01-01 | Y12: =DWRdate2 -> 2021-02-01 | Z12: =IF(AND(N12<Y12,P12>=Y12),"Y","N") -> N
A13: 1 | B13: =IF(End_Date1_DR<>"",[0]!Total_kWh_DR,"") -> 0 | E13: (x) | F13: =Factor1_DR -> 0 | G13: (x) | H13: =IF(F13="","",$AA$19) -> -8e-05 | I13: =1-($I$11/100) -> 0.99 | J13: =IF(F13="","",ROUND(B13*F13*H13*I13,2)) -> 0 | V13: Factor | X13: =DWRprice1 -> -8e-05 | Y13: =DWRprice2 -> 0
A14: 2 | B14: =IF(End_Date2_DR<>"",[0]!Total_kWh_DR,"") ->  | E14: (x) | F14: =Factor2_DR ->  | G14: (x) | H14: =IF(F14="","",$AA$19) ->  | I14: =IF(F14="","",1-($I$11/100)) ->  | J14: =IF(F14="","",ROUND(B14*F14*H14*I14,2)) ->  | N14: ='DR-CALC '!$B$11 -> 00:00:00 | O14: - | P14: =End_Date1_DR -> 00:00:00 | Q14: = | R14: =Days1 -> 0 | T14: ='DR-CALC '!$H$11 -> 0/0 | V14: =Factor1_DR -> 0 | Z14: =IF(P14="","",IF(AND(Z12="Y",P14<Y12),1,2)) -> 2 | AA14: =SUMIF(Z14:Z18,1,V14:V18) -> 0 | AB14: =IF(F13="","",$AA$19)
A15: 3 | B15: =IF(End_Date3_DR<>"",[0]!Total_kWh_DR,"") ->  | E15: (x) | F15: =Factor3_DR ->  | G15: (x) | H15: =IF(F15="","",$AA$19) ->  | I15: =IF(F15="","",1-($I$11/100)) ->  | J15: =IF(F15="","",ROUND(B15*F15*H15*I15,2)) ->  | N15: ='DR-CALC '!$B$12 ->  | O15: - | P15: =End_Date2_DR ->  | Q15: = | R15: =Days2 ->  | T15: ='DR-CALC '!$H$12 ->  | V15: =Factor2_DR ->  | W15: =IF(S15<>"",U15-S15,"") ->  | Z15: =IF(P15="","",IF(AND(Z12="Y",P15<Y12),1,2)) ->  | AA15: =SUMIF(Z14:Z18,2,V14:V18) -> 0
A16: 4 | B16: =IF(End_Date4_DR<>"",[0]!Total_kWh_DR,"") ->  | E16: (x) | F16: =Factor4_DR ->  | G16: (x) | H16: =IF(F16="","",$AA$19) ->  | I16: =IF(F16="","",1-($I$11/100)) ->  | J16: =IF(F16="","",ROUND(B16*F16*H16*I16,2)) ->  | N16: ='DR-CALC '!$B$13 ->  | O16: - | P16: =End_Date3_DR ->  | Q16: = | R16: =Days3 ->  | T16: ='DR-CALC '!$H$13 ->  | V16: =Factor3_DR ->  | W16: =IF(S16<>"",U16-S16,"") ->  | Z16: =IF(P16="","",IF(AND(Z12="Y",P16<Y12),1,2)) -> 
A17: 5 | B17: =IF(End_Date5_DR<>"",[0]!Total_kWh_DR,"") ->  | E17: (x) | F17: =Factor5_DR ->  | G17: (x) | H17: =IF(F17="","",$AA$19) ->  | I17: =IF(F17="","",1-($I$11/100)) ->  | J17: =IF(F17="","",ROUND(B17*F17*H17*I17,2)) ->  | N17: ='DR-CALC '!$B$14 ->  | O17: - | P17: =End_Date4_DR ->  | Q17: = | R17: =Days4 ->  | T17: ='DR-CALC '!$H$14 ->  | V17: =Factor4_DR ->  | W17: =IF(S17<>"",U17-S17,"") ->  | Z17: =IF(P17="","",IF(AND(Z12="Y",P17<Y12),1,2)) -> 
I18: Total | J18: =SUM(J13:J17) -> 0 | N18: ='DR-CALC '!$B$15 ->  | O18: - | P18: =End_Date5_DR ->  | Q18: = | R18: =Days5 ->  | T18: ='DR-CALC '!$H$15 ->  | V18: =Factor5_DR ->  | W18: =IF(S18<>"",U18-S18,"") ->  | Z18: =IF(P18="","",IF(AND(Z12="Y",P18<Y12),1,2)) -> 
R19: =SUM(R14:R18) -> 0 | Z19: DWR Prorated Price | AA19: =IF(AND(Z12="N",P12<Y12),X13,IF(AND(Z12="N",P12>Y12),Y13,ROUND(ROUND(AA14*X13,10)+ROUND(Y13*AA15,10),5))) -> -8e-05
A20: SDG&E EECC - Electric Energy Commodity Charge | G20: =$
D21: Total EECC $ | E21: - | F21: DWR EECC $ | G21: =$ | H21: SDG&E EECC $ | Y21: Percentage for Elec SDFFD
B22: 1 | C22: ='DR-CALC '!$H$11 -> 0/0 | D22: =MAX('DR-CALC '!O280:P280,'DR-CALC '!X280) -> 0 | E22: - | F22: =IF(F13="","",J13) -> 0 | G22: =$ | H22: =IF(F13="","",D22-F22) -> 0 | N22: Start | P22: End Date | R22: Days | V22: Sum Total | X22: Dates & % | Z22: Prorate flag | AA22: Prorate %
B23: 2 | C23: ='DR-CALC '!$H$12 ->  | D23: =MAX('DR-CALC '!O286:P286,'DR-CALC '!X286) -> 0 | E23: - | F23: =IF(F14="","",J14) ->  | G23: =$ | H23: =IF(F14="","",D23-F23) ->  | N23: =E_Cust_Start_Date -> 00:00:00 | O23: - | P23: =E_Cust_End_Date -> 00:00:00 | R23: =Days_Billed_DR -> 0 | V23: =SUM(V25:V29) -> 0 | X23: =E_SDFFDdate1 -> 1995-05-01 | Y23: =E_SDFFDdate2 -> 2003-01-01 | Z23: =IF(AND(N23<Y23,P23>=Y23),"Y","N") -> N
B24: 3 | C24: ='DR-CALC '!$H$13 ->  | D24: =MAX('DR-CALC '!O292:P292,'DR-CALC '!X292) -> 0 | E24: - | F24: =IF(F15="","",J15) ->  | G24: =$ | H24: =IF(F15="","",D24-F24) ->  | V24: Factor | X24: =E_SDFFDprct1 -> 0.019 | Y24: =E_SDFFDprct2 -> 0.0578
B25: 4 | C25: ='DR-CALC '!$H$14 ->  | D25: =MAX('DR-CALC '!X298,'DR-CALC '!O298:P298) -> 0 | E25: - | F25: =IF(F16="","",J16) ->  | G25: =$ | H25: =IF(F16="","",D25-F25) ->  | N25: ='DR-CALC '!$B$11 -> 00:00:00 | O25: - | P25: =End_Date1_DR -> 00:00:00 | Q25: = | R25: =Days1 -> 0 | T25: ='DR-CALC '!$H$11 -> 0/0 | V25: =Factor1_DR -> 0 | Z25: =IF(P25="","",IF(AND(Z23="Y",P25<Y23),1,2)) -> 2 | AA25: =ROUND(SUMIF(Z25:Z29,1,V25:V29),10) -> 0
B26: 5 | C26: ='DR-CALC '!$H$15 ->  | D26: =MAX('DR-CALC '!O304:P304,'DR-CALC '!X304) -> 0 | E26: - | F26: =IF(F17="","",J17) ->  | G26: =$ | H26: =IF(F17="","",D26-F26) ->  | N26: ='DR-CALC '!$B$12 ->  | O26: - | P26: =End_Date2_DR ->  | Q26: = | R26: =Days2 ->  | T26: ='DR-CALC '!$H$12 ->  | V26: =Factor2_DR ->  | W26: =IF(S26<>"",U26-S26,"") ->  | Z26: =IF(P26="","",IF(AND(Z23="Y",P26<Y23),1,2)) ->  | AA26: =ROUND(SUMIF(Z25:Z29,2,V25:V29),10) -> 0
N27: ='DR-CALC '!$B$13 ->  | O27: - | P27: =End_Date3_DR ->  | Q27: = | R27: =Days3 ->  | T27: ='DR-CALC '!$H$13 ->  | V27: =Factor3_DR ->  | W27: =IF(S27<>"",U27-S27,"") ->  | Z27: =IF(P27="","",IF(AND(Z23="Y",P27<Y23),1,2)) -> 
B28: TOTALS | D28: =SUM(D22:D26) -> 0 | F28: =SUM(F22:F26) -> 0 | H28: =SUM(H22:H26) -> 0 | N28: ='DR-CALC '!$B$14 ->  | O28: - | P28: =End_Date4_DR ->  | Q28: = | R28: =Days4 ->  | T28: ='DR-CALC '!$H$14 ->  | V28: =Factor4_DR ->  | W28: =IF(S28<>"",U28-S28,"") ->  | Z28: =IF(P28="","",IF(AND(Z23="Y",P28<Y23),1,2)) -> 
N29: ='DR-CALC '!$B$15 ->  | O29: - | P29: =End_Date5_DR ->  | Q29: = | R29: =Days5 ->  | T29: ='DR-CALC '!$H$15 ->  | V29: =Factor5_DR ->  | W29: =IF(S29<>"",U29-S29,"") ->  | Z29: =IF(P29="","",IF(AND(Z23="Y",P29<Y23),1,2)) -> 
A30: San Diego Franchise Fee Differential - Town Code 01 | L30: =IF(TAX_LOC=1,SUM(I37,I41),"") ->  | R30: =SUM(R25:R29) -> 0 | Z30: DWR Prorated Price | AA30: =IF(AND(Z23="N",P23<Y23),X24,IF(AND(Z23="N",P23>Y23),Y24,ROUND(ROUND(AA25*X24,10)+ROUND(Y24*AA26,10),6))) -> 0.019
X31: Percentage for Gas SDFFD
B32: 1 | C32: ='DR-CALC '!H11 -> 0/0 | N32: Start | P32: End Date | R32: Days | V32: Sum Total | X32: Dates & % | Z32: Prorate flag | AA32: Prorate %
D33: Total Electric Charges | F33: =Output!$D$110 -> 0 | N33: =E_Cust_Start_Date -> 00:00:00 | O33: - | P33: =E_Cust_End_Date -> 00:00:00 | R33: =Days_Billed_DR -> 0 | V33: =SUM(V35:V39) -> 0 | X33: =G_SDFFDdate1 -> 1995-05-01 | Y33: =G_SDFFDdate2 -> 2003-01-01 | Z33: =IF(AND(N33<Y33,P33>=Y33),"Y","N") -> N
D34: - DWR Commod | F34: =$F$28 -> 0 | V34: Factor | X34: =G_SDFFDprct1 -> 0.01 | Y34: =G_SDFFDprct2 -> 0.0103
D35: - DWR BC/DWR REV ADJ CREDIT | F35: =DWR_Bond_Chrg+DWR_REV_ADJ -> 0 | N35: ='GR-CALC'!$B$11 ->  | O35: - | P35: ='GR-CALC'!$D$11 ->  | Q35: = | R35: ='GR-CALC'!$F$11 ->  | T35: ='GR-CALC'!$H$11 -> / | V35: =GFactor1 ->  | Z35: =IF(P35="","",IF(AND(Z33="Y",P35<Y33),1,2)) ->  | AA35: =SUMIF(Z35:Z39,1,V35:V39) -> 0
N36: ='GR-CALC'!$B$12 ->  | O36: - | P36: ='GR-CALC'!$D$12 ->  | Q36: = | R36: ='GR-CALC'!$F$12 ->  | T36: ='GR-CALC'!$H$12 ->  | V36: =GFactor2 ->  | W36: =IF(S36<>"",U36-S36,"") ->  | Z36: =IF(P36="","",IF(AND(Z33="Y",P36<Y33),1,2)) ->  | AA36: =SUMIF(Z35:Z39,2,V35:V39) -> 0
E37: Total | F37: =F33-F34-F35 -> 0 | G37: x | H37: =IF(TAX_LOC=1,AA30,1.1%) -> 0.011 | I37: =ROUND(F37*H37,2) -> 0 | N37: ='GR-CALC'!$B$13 ->  | O37: - | P37: ='GR-CALC'!$D$13 ->  | Q37: = | R37: ='GR-CALC'!$F$13 ->  | T37: ='GR-CALC'!$H$13 ->  | V37: =GFactor3 ->  | W37: =IF(S37<>"",U37-S37,"") ->  | Z37: =IF(P37="","",IF(AND(Z33="Y",P37<Y33),1,2)) -> 
B38: GAS -SDFFD | N38: ='GR-CALC'!$B$14 ->  | O38: - | P38: ='GR-CALC'!$D$14 ->  | Q38: = | R38: ='GR-CALC'!$F$14 ->  | T38: ='GR-CALC'!$H$14 ->  | V38: =GFactor4 ->  | W38: =IF(S38<>"",U38-S38,"") ->  | Z38: =IF(P38="","",IF(AND(Z33="Y",P38<Y33),1,2)) -> 
N39: ='GR-CALC'!$B$15 ->  | O39: - | P39: ='GR-CALC'!$D$15 ->  | Q39: = | R39: ='GR-CALC'!$F$15 ->  | T39: ='GR-CALC'!$H$15 ->  | V39: =GFactor5 ->  | W39: =IF(S39<>"",U39-S39,"") ->  | Z39: =IF(P39="","",IF(AND(Z33="Y",P39<Y33),1,2)) -> 
D40: Total G Chrgs | R40: =SUM(R35:R39) -> 0 | Z40: DWR Prorated Price | AA40: =IF(AND(Z33="N",P33<Y33),X34,IF(AND(Z33="N",P33>Y33),Y34,ROUND(ROUND(AA35*X34,10)+ROUND(Y34*AA36,10),5))) -> 0.01
E41: =Output!D154 -> 0 | F41: x | G41: 0.0103 | H41: = | I41: =IF(TAX_LOC=1,ROUND(E41*G41,2),"") -> 
X43: Percentage for FF by Others
A44: Franchise Fees on Energy Supplied by Others | L44: =IF($H$51<0,0,$H$51) -> 0 | N44: Start | P44: End Date | R44: Days | V44: Sum Total | X44: Dates & % | Z44: Prorate flag | AA44: Prorate %
N45: =E_Cust_Start_Date -> 00:00:00 | O45: - | P45: =E_Cust_End_Date -> 00:00:00 | R45: =Days_Billed_DR -> 0 | V45: =SUM(V47:V51) -> 0 | X45: =Input!B270 -> 2001-04-02 | Y45: =Input!B273 -> 2003-01-01 | Z45: =IF(AND(N45<Y45,P45>=Y45),"Y","N") -> N
G46: =IF(TAX_LOC=1,AA52,1.1%) -> 0.011 | V46: Factor | X46: =Input!B271 -> 0.03 | Y46: =Input!B274 -> 0.0688
B47: 1 | C47: ='DR-CALC '!H11 -> 0/0 | D47: DWR EECC | F47: =J18 -> 0 | N47: ='DR-CALC '!$B$11 -> 00:00:00 | O47: - | P47: =End_Date1_DR -> 00:00:00 | Q47: = | R47: =Days1 -> 0 | T47: ='DR-CALC '!$H$11 -> 0/0 | V47: =Factor1_DR -> 0 | Z47: =IF(P47="","",IF(AND(Z45="Y",P47<Y45),1,2)) -> 2 | AA47: =ROUND(SUMIF(Z47:Z51,1,V47:V51),10) -> 0
D48: DWR BOND/ DWR REV ADJ CRED $ | F48: =DWR_Bond_Chrg+DWR_REV_ADJ -> 0 | N48: ='DR-CALC '!$B$12 ->  | O48: - | P48: =End_Date2_DR ->  | Q48: = | R48: =Days2 ->  | T48: ='DR-CALC '!$H$12 ->  | V48: =Factor2_DR ->  | W48: =IF(S48<>"",U48-S48,"") ->  | Z48: =IF(P48="","",IF(AND(Z45="Y",P48<Y45),1,2)) ->  | AA48: =ROUND(SUMIF(Z47:Z51,2,V47:V51),10) -> 0
E49: Total | F49: =SUM(F47:F48) -> 0 | G49: x | N49: ='DR-CALC '!$B$13 ->  | O49: - | P49: =End_Date3_DR ->  | Q49: = | R49: =Days3 ->  | T49: ='DR-CALC '!$H$13 ->  | V49: =Factor3_DR ->  | W49: =IF(S49<>"",U49-S49,"") ->  | Z49: =IF(P49="","",IF(AND(Z45="Y",P49<Y45),1,2)) -> 
N50: ='DR-CALC '!$B$14 ->  | O50: - | P50: =End_Date4_DR ->  | Q50: = | R50: =Days4 ->  | T50: ='DR-CALC '!$H$14 ->  | V50: =Factor4_DR ->  | W50: =IF(S50<>"",U50-S50,"") ->  | Z50: =IF(P50="","",IF(AND(Z45="Y",P50<Y45),1,2)) -> 
G51: Total | H51: =ROUND(F49*G46,2) -> 0 | N51: ='DR-CALC '!$B$15 ->  | O51: - | P51: =End_Date5_DR ->  | Q51: = | R51: =Days5 ->  | T51: ='DR-CALC '!$H$15 ->  | V51: =Factor5_DR ->  | W51: =IF(S51<>"",U51-S51,"") ->  | Z51: =IF(P51="","",IF(AND(Z45="Y",P51<Y45),1,2)) -> 
R52: =SUM(R47:R51) -> 0 | Z52: DWR Prorated Price | AA52: =IF(AND(Z45="N",P45<Y45),X46,IF(AND(Z45="N",P45>Y45),Y46,ROUND(ROUND(AA47*X46,10)+ROUND(Y46*AA48,10),6))) -> 0.03
A53: State Surcharge Tax | L53: =SUM(J54:J58) -> 0 | X53: State Surcharge Tax
B54: 1 | C54: =Total_kWh_DR -> 0 | D54: (x) | E54: =IF(Z55="Y",V57,1) -> 1 | G54: (x) | H54: =IF(AND(Z55="Y",C54>0),AA62,IF(AND(Y55>0,N55>=Y55),Y56,X56)) -> 0.00029 | I54: = | J54: =IF(C54="","",ROUND(H54*C54,2)) -> 0 | N54: Start | P54: End Date | R54: Days | V54: Sum Total | X54: Dates & Prices | Z54: Prorate flag | AA54: Prorate %
B55: 2 | D55: (x) | E55: =IF($E$54=1,"",V58) ->  | G55: (x) | N55: =E_Cust_Start_Date -> 00:00:00 | O55: - | P55: =E_Cust_End_Date -> 00:00:00 | R55: =Days_Billed_DR -> 0 | V55: =SUM(V57:V61) -> 0 | X55: =E_St_SurchrgDate1 -> 2011-01-01 | Y55: =E_St_SurchrgDate2 -> 2019-01-01 | Z55: =IF(AND(N55<Y55,P55>=Y55),"Y","N") -> N
B56: 3 | D56: (x) | E56: =IF($E$54=1,"",V59) ->  | G56: (x) | V56: Factor | X56: =E_St_SurchrgPrice1 -> 0.00029 | Y56: =E_St_SurchrgPrice2 -> 0.0003
B57: 4 | D57: (x) | E57: =IF($E$54=1,"",V60) ->  | G57: (x) | N57: ='DR-CALC '!$B$11 -> 00:00:00 | O57: - | P57: =End_Date1_DR -> 00:00:00 | Q57: = | R57: =Days1 -> 0 | T57: ='DR-CALC '!$H$11 -> 0/0 | V57: =Factor1_DR -> 0 | Z57: =IF(P57="","",IF(AND(Z55="Y",P57<Y55),1,2)) -> 2 | AA57: =SUMIF(Z57:Z61,1,V57:V61) -> 0
B58: 5 | D58: (x) | E58: =IF($E$54=1,"",V61) ->  | G58: (x) | N58: ='DR-CALC '!$B$12 ->  | O58: - | P58: =End_Date2_DR ->  | Q58: = | R58: =Days2 ->  | T58: ='DR-CALC '!$H$12 ->  | V58: =Factor2_DR ->  | W58: =IF(S58<>"",U58-S58,"") ->  | Z58: =IF(P58="","",IF(AND(Z55="Y",P58<Y55),1,2)) ->  | AA58: =SUMIF(Z57:Z61,2,V57:V61) -> 0
N59: ='DR-CALC '!$B$13 ->  | O59: - | P59: =End_Date3_DR ->  | Q59: = | R59: =Days3 ->  | T59: ='DR-CALC '!$H$13 ->  | V59: =Factor3_DR ->  | W59: =IF(S59<>"",U59-S59,"") ->  | Z59: =IF(P59="","",IF(AND(Z55="Y",P59<Y55),1,2)) -> 
N60: ='DR-CALC '!$B$14 ->  | O60: - | P60: =End_Date4_DR ->  | Q60: = | R60: =Days4 ->  | T60: ='DR-CALC '!$H$14 ->  | V60: =Factor4_DR ->  | W60: =IF(S60<>"",U60-S60,"") ->  | Z60: =IF(P60="","",IF(AND(Z55="Y",P60<Y55),1,2)) -> 
A61: Chula Vista City Tax | L61: =IF(TAX_LOC=3,SUM(I65,E65),"") ->  | N61: ='DR-CALC '!$B$15 ->  | O61: - | P61: =End_Date5_DR ->  | Q61: = | R61: =Days5 ->  | T61: ='DR-CALC '!$H$15 ->  | V61: =Factor5_DR ->  | W61: =IF(S61<>"",U61-S61,"") ->  | Z61: =IF(P61="","",IF(AND(Z55="Y",P61<Y55),1,2)) -> 
R62: =SUM(R57:R61) -> 0 | Z62: DWR Prorated Price | AA62: =IF(AND(Z55="N",P55<Y55),X56,IF(AND(Z55="N",P55>Y55),Y56,ROUND(ROUND(AA57*X56,10)+ROUND(Y56*AA58,10),5))) -> 0.00029
D63: Total kWh | E63: =IF(Total_kWh_DR>0,Total_kWh_DR,0) -> 0 | H63: Total therms | I63: =BilledTherms -> 0
D64: x | E64: =IF(TAX_LOC=3,0.0025,0) -> 0 | H64: x | I64: 0.00919
E65: =ROUND(E63*E64,2) -> 0 | I65: =IF(AND(I63>0,TAX_LOC=3),ROUND(I63*I64,2),"") -> 
B69: NO CALCULATOR FOR THIS ELEMENT IF IT CHANGES
Y71: E - State Regulatory Fee
A72: Electric - State Regulatory Fee | L72: =SUM(J74:J78) -> 0 | N72: Start | P72: End Date | R72: Days | V72: Sum Total | X72: Dates & Prices | Z72: Prorate flag | AA72: Prorate %
D73: Total kWh | E73: (x) | H73: Charge | J73: = $ | N73: =E_Cust_Start_Date -> 00:00:00 | O73: - | P73: =E_Cust_End_Date -> 00:00:00 | R73: =Days_Billed_DR -> 0 | V73: =SUM(V75:V79) -> 0 | X73: =E_ST_Regdate1 -> 2025-01-01 | Y73: =E_St_RegDate2 -> 2026-01-01 | Z73: =IF(AND(N73<Y73,P73>=Y73),"Y","N") -> N
B74: 1 | D74: =IF(End_Date1_DR="","",[0]!Total_kWh_DR) -> 0 | E74: (x) | F74: =IF(AND(D74>0,Z73="y"),$V$45,1) -> 1 | G74: (x) | H74: =IF(AND($Z$73="Y",D54>0),$AA$80,IF(AND($Y$73>0,N75>=$Y$73),$Y$74,$X$74)) -> 0.0008 | J74: =IF(F74="","",ROUND(H74*D74*F74,2)) -> 0 | V74: Factor | X74: =E_ST_RegPrice1 -> 0.0008 | Y74: =E_St_RegPrice2 -> 0.001
B75: 2 | D75: =IF($F$74=1,"",Total_kWh_DR) ->  | F75: =IF($F$74=1,"",$V$45) ->  | H75: =IF(AND($Z$73="Y",D55>0),$AA$80,IF(AND($Y$73>0,N76>=$Y$73),$Y$74,$X$74)) -> 0.001 | J75: =IF(F75="","",ROUND(H75*D75*F75,2)) ->  | N75: ='DR-CALC '!$B$11 -> 00:00:00 | O75: - | P75: =End_Date1_DR -> 00:00:00 | Q75: = | R75: =Days1 -> 0 | T75: ='DR-CALC '!$H$11 -> 0/0 | V75: =Factor1_DR -> 0 | Z75: =IF(P75="","",IF(AND(Z73="Y",P75<Y73),1,2)) -> 2 | AA75: =SUMIF(Z75:Z79,1,V75:V79) -> 0
B76: 3 | D76: =IF($F$74=1,"",Total_kWh_DR) ->  | F76: =IF($F$74=1,"",$V$77) ->  | H76: =IF(AND($Z$73="Y",D56>0),$AA$80,IF(AND($Y$73>0,N77>=$Y$73),$Y$74,$X$74)) -> 0.001 | J76: =IF(F76="","",ROUND(H76*D76*F76,2)) ->  | N76: ='DR-CALC '!$B$12 ->  | O76: - | P76: =End_Date2_DR ->  | Q76: = | R76: =Days2 ->  | T76: ='DR-CALC '!$H$12 ->  | V76: =Factor2_DR ->  | W76: =IF(S76<>"",U76-S76,"") ->  | Z76: =IF(P76="","",IF(AND(Z73="Y",P76<Y73),1,2)) ->  | AA76: =SUMIF(Z75:Z79,2,V75:V79) -> 0
B77: 4 | D77: =IF($F$74=1,"",Total_kWh_DR) ->  | F77: =IF($F$74=1,"",$V$78) ->  | H77: =IF(AND($Z$73="Y",D57>0),$AA$80,IF(AND($Y$73>0,N78>=$Y$73),$Y$74,$X$74)) -> 0.001 | J77: =IF(F77="","",ROUND(H77*D77*F77,2)) ->  | N77: ='DR-CALC '!$B$13 ->  | O77: - | P77: =End_Date3_DR ->  | Q77: = | R77: =Days3 ->  | T77: ='DR-CALC '!$H$13 ->  | V77: =Factor3_DR ->  | W77: =IF(S77<>"",U77-S77,"") ->  | Z77: =IF(P77="","",IF(AND(Z73="Y",P77<Y73),1,2)) -> 
B78: 5 | D78: =IF($F$74=1,"",Total_kWh_DR) ->  | F78: =IF($F$74=1,"",$V$79) ->  | H78: =IF(AND($Z$73="Y",D58>0),$AA$80,IF(AND($Y$73>0,N79>=$Y$73),$Y$74,$X$74)) -> 0.001 | J78: =IF(F78="","",ROUND(H78*D78*F78,2)) ->  | N78: ='DR-CALC '!$B$14 ->  | O78: - | P78: =End_Date4_DR ->  | Q78: = | R78: =Days4 ->  | T78: ='DR-CALC '!$H$14 ->  | V78: =Factor4_DR ->  | W78: =IF(S78<>"",U78-S78,"") ->  | Z78: =IF(P78="","",IF(AND(Z73="Y",P78<Y73),1,2)) -> 
F79: =IF($F$74=1,"",$V$80) ->  | N79: ='DR-CALC '!$B$15 ->  | O79: - | P79: =End_Date5_DR ->  | Q79: = | R79: =Days5 ->  | T79: ='DR-CALC '!$H$15 ->  | V79: =Factor5_DR ->  | W79: =IF(S79<>"",U79-S79,"") ->  | Z79: =IF(P79="","",IF(AND(Z73="Y",P79<Y73),1,2)) -> 
F80: =IF($F$74=1,"",V81) ->  | R80: =SUM(R75:R79) -> 0 | Z80: DWR Prorated Price | AA80: =IF(AND(Z73="N",P73<Y73),X74,IF(AND(Z73="N",P73>Y73),Y74,ROUND(ROUND(AA75*X74,10)+ROUND(Y74*AA76,10),5))) -> 0.0008
Y82: G - PUC
A83: GAS - PUC | L83: =IF(BilledTherms=0,"",SUM(J85:J89)) ->  | N83: Start | P83: End Date | R83: Days | V83: Sum Total | X83: Dates & Prices | Z83: Prorate flag | AA83: Prorate %
D84: Total Therms | E84: (x) | H84: Charge | I84: = $ | N84: ='GR-CALC'!B9 ->  | O84: ='GR-CALC'!C9 -> - | P84: ='GR-CALC'!D9 ->  | R84: =Days_Billed_DR -> 0 | V84: =SUM(V86:V90) -> 0 | X84: =G_St_RegFeeDate1 -> 2025-01-01 | Y84: =G_St_RegFeeDate2 -> 2026-01-01 | Z84: =IF(AND(N84<Y84,P84>=Y84),"Y","N") -> N
B85: 1 | D85: =IF(End_Date1_GR="","",BilledTherms) ->  | E85: (x) | F85: 1 | G85: (x) | H85: =IF(F85="","",IF(AND($Z$84="Y",D85>0),$AA$91,IF(AND($Y$84>0,N86>=$Y$84),$Y$85,$X$85))) -> 0.0035 | J85: =IF(D85="","",ROUND(H85*D85*F85,2)) ->  | V85: Factor | X85: =G_St_RegFee_Price1 -> 0.0025 | Y85: =G_St_RegFeePrice2 -> 0.0035
B86: 2 | D86: =IF(End_Date2_GR="","",BilledTherms) ->  | E86: (x) | G86: (x) | H86: =IF(F86="","",IF(AND($Z$84="Y",D86>0),$AA$91,IF(AND($Y$84>0,N87>=$Y$84),$Y$85,$X$85))) ->  | J86: =IF(F86="","",ROUND(H86*D86*F86,2)) ->  | N86: ='GR-CALC'!$B$11 ->  | O86: - | P86: ='GR-CALC'!$D$11 ->  | Q86: = | R86: ='GR-CALC'!$F$11 ->  | T86: ='GR-CALC'!$H$11 -> / | V86: =GFactor1 ->  | Z86: 1 | AA86: =SUMIF(Z86:Z90,1,V86:V90) -> 0 | AB86: =ROUND(X85*AA86,5) -> 0
B87: 3 | D87: =IF(End_Date3_GR="","",BilledTherms) ->  | E87: (x) | F87: =GFactor3 ->  | G87: (x) | H87: =IF(F87="","",IF(AND($Z$84="Y",D87>0),$AA$91,IF(AND($Y$84>0,N88>=$Y$84),$Y$85,$X$85))) ->  | J87: =IF(F87="","",ROUND(H87*D87*F87,2)) ->  | N87: ='GR-CALC'!$B$12 ->  | O87: - | P87: ='GR-CALC'!$D$12 ->  | Q87: = | R87: ='GR-CALC'!$F$12 ->  | T87: ='GR-CALC'!$H$12 ->  | V87: =GFactor2 ->  | W87: =IF(S87<>"",U87-S87,"") ->  | Z87: =IF(P87="","",IF(AND(Z84="Y",P87<Y84),1,2)) ->  | AA87: =SUMIF(Z86:Z90,2,V86:V90) -> 0 | AB87: =ROUND(AA87*Y85,5) -> 0
B88: 4 | D88: =IF(End_Date4_GR="","",BilledTherms) ->  | E88: (x) | F88: =GFactor4 ->  | G88: (x) | H88: =IF(F88="","",IF(AND($Z$84="Y",D88>0),$AA$91,IF(AND($Y$84>0,N89>=$Y$84),$Y$85,$X$85))) ->  | J88: =IF(F88="","",ROUND(H88*D88*F88,2)) ->  | N88: ='GR-CALC'!$B$13 ->  | O88: - | P88: ='GR-CALC'!$D$13 ->  | Q88: = | R88: ='GR-CALC'!$F$13 ->  | T88: ='GR-CALC'!$H$13 ->  | V88: =GFactor3 ->  | W88: =IF(S88<>"",U88-S88,"") ->  | Z88: =IF(P88="","",IF(AND(Z84="Y",P88<Y84),1,2)) -> 
B89: 5 | D89: =IF(End_Date5_GR="","",BilledTherms) ->  | F89: =GFactor5 ->  | G89: (x) | H89: =IF(F89="","",IF(AND($Z$84="Y",D89>0),$AA$91,IF(AND($Y$84>0,N90>=$Y$84),$Y$85,$X$85))) ->  | J89: =IF(F89="","",ROUND(H89*D89*F89,2)) ->  | N89: ='GR-CALC'!$B$14 ->  | O89: - | P89: ='GR-CALC'!$D$14 ->  | Q89: = | R89: ='GR-CALC'!$F$14 ->  | T89: ='GR-CALC'!$H$14 ->  | V89: =GFactor4 ->  | W89: =IF(S89<>"",U89-S89,"") ->  | Z89: =IF(P89="","",IF(AND(Z84="Y",P89<Y84),1,2)) -> 
F90: =IF($F$74=1,"",$V$80) ->  | N90: ='GR-CALC'!$B$15 ->  | O90: - | P90: ='GR-CALC'!$D$15 ->  | Q90: = | R90: ='GR-CALC'!$F$15 ->  | T90: ='GR-CALC'!$H$15 ->  | V90: =GFactor5 ->  | W90: =IF(S90<>"",U90-S90,"") ->  | Z90: =IF(P90="","",IF(AND(Z84="Y",P90<Y84),1,2)) -> 
R91: =SUM(R86:R90) -> 0 | Z91: DWR Prorated Price | AA91: =+AB86+AB87 -> 0
A94: GAS - PPP | L94: =IF(BilledTherms=0,"",SUM(J97:J101)) ->  | Y94: G - PPP
D95: Total Therms | E95: (x) | I95: Charge | J95: = $ | N95: Start | P95: End Date | R95: Days | V95: Sum Total | X95: Dates & Prices | Z95: Prorate flag | AA95: Prorate %
N96: ='GR-CALC'!B9 ->  | O96: - | P96: =End_Date_GR ->  | R96: =Days_Billed_DR -> 0 | V96: =SUM(V98:V102) -> 0 | X96: =GPPPdate1 -> 2025-01-01 | Y96: =GPPPdate2 -> 2026-01-01 | Z96: =IF(AND(N96<Y96,P96>=Y96),"Y","N") -> N
B97: 1 | D97: =IF(End_Date1_GR="","",BilledTherms) ->  | E97: (x) | F97: =IF(Z96="Y",1,GFactor1) ->  | G97: (x) | I97: =IF(F97="","",IF(CARE?=2,$AA$104,$AA$105)) ->  | J97: =IF(F97="","",ROUND(I97*D97*F97,2)) ->  | V97: Factor | X97: =GPPP_price1CARE -> 0.07705 | Y97: =GPPP_price2CARE -> 0.09652 | AB97: CARE
B98: 2 | D98: =IF(End_Date2_GR="","",BilledTherms) ->  | E98: (x) | F98: =IF($F$97=1,"",GFactor2) ->  | G98: (x) | I98: =IF(F98="","",IF(CARE?=2,$AA$104,$AA$105)) ->  | J98: =IF(F98="","",ROUND(I98*D98*F98,2)) ->  | N98: ='GR-CALC'!$B$11 ->  | O98: ='GR-CALC'!C11 -> - | P98: ='GR-CALC'!$D$11 ->  | Q98: = | R98: ='GR-CALC'!$F$11 ->  | T98: ='GR-CALC'!$H$11 -> / | V98: =GFactor1 ->  | X98: =GPPP_price1NonCARE -> 0.11541 | Y98: =GPPP_price2NonCARE -> 0.14754 | Z98: =IF(P98="","",IF(AND($Z$96="Y",P98<$Y$96),1,2)) ->  | AA98: =SUMIF(Z98:Z102,1,V98:V102) -> 0 | AB98: NonCARE
B99: 3 | D99: =IF(End_Date3_GR="","",BilledTherms) ->  | E99: (x) | F99: =IF($F$97=1,"",GFactor3) ->  | G99: (x) | I99: =IF(F99="","",IF(CARE?=2,$AA$104,$AA$105)) ->  | J99: =IF(F99="","",ROUND(I99*D99*F99,2)) ->  | N99: ='GR-CALC'!$B$12 ->  | O99: ='GR-CALC'!C12 -> - | P99: ='GR-CALC'!$D$12 ->  | Q99: = | R99: ='GR-CALC'!$F$12 ->  | T99: ='GR-CALC'!$H$12 ->  | V99: =GFactor2 ->  | W99: =IF(S99<>"",U99-S99,"") ->  | Z99: =IF(P99="","",IF(AND($Z$96="Y",P99<$Y$96),1,2)) ->  | AA99: =SUMIF(Z98:Z102,2,V98:V102) -> 0
B100: 4 | D100: =IF(End_Date4_GR="","",BilledTherms) ->  | E100: (x) | F100: =IF($F$97=1,"",GFactor4) ->  | G100: (x) | I100: =IF(F100="","",IF(CARE?=2,$AA$104,$AA$105)) ->  | J100: =IF(F100="","",ROUND(I100*D100*F100,2)) ->  | N100: ='GR-CALC'!$B$13 ->  | O100: ='GR-CALC'!C13 -> - | P100: ='GR-CALC'!$D$13 ->  | Q100: = | R100: ='GR-CALC'!$F$13 ->  | T100: ='GR-CALC'!$H$13 ->  | V100: =GFactor3 ->  | W100: =IF(S100<>"",U100-S100,"") ->  | Z100: =IF(P100="","",IF(AND($Z$96="Y",P100<$Y$96),1,2)) -> 
B101: 5 | D101: =IF(End_Date5_GR="","",BilledTherms) ->  | E101: (x) | F101: =IF($F$97=1,"",GFactor5) ->  | G101: (x) | I101: =IF(F101="","",IF(CARE?=2,$AA$104,$AA$105)) ->  | J101: =IF(F101="","",ROUND(I101*D101*F101,2)) ->  | N101: ='GR-CALC'!$B$14 ->  | O101: ='GR-CALC'!C14 -> - | P101: ='GR-CALC'!$D$14 ->  | Q101: = | R101: ='GR-CALC'!$F$14 ->  | T101: ='GR-CALC'!$H$14 ->  | V101: =GFactor4 ->  | W101: =IF(S101<>"",U101-S101,"") ->  | Z101: =IF(P101="","",IF(AND($Z$96="Y",P101<$Y$96),1,2)) -> 
N102: ='GR-CALC'!$B$15 ->  | O102: ='GR-CALC'!C15 -> - | P102: ='GR-CALC'!$D$15 ->  | Q102: = | R102: ='GR-CALC'!$F$15 ->  | T102: ='GR-CALC'!$H$15 ->  | V102: =GFactor5 ->  | W102: =IF(S102<>"",U102-S102,"") ->  | Z102: =IF(P102="","",IF(AND($Z$96="Y",P102<$Y$96),1,2)) -> 
R103: =SUM(R98:R102) -> 0 | Z103: =IF(P103="","",IF(AND(Z97="Y",P103<Y97),1,2)) -> 
Z104: Prorated Price | AA104: =IF(CARE?=2,IF(AND(Z96="N",P96<Y96),X97,IF(AND(Z96="N",P96>Y96),Y97,ROUND(ROUND(AA98*X97,10)+ROUND(AA99*Y97,10),5))),"") ->  | AB104: CARE
AA105: =IF(CARE?=2,"",IF(AND(Z96="N",P96<Y96),X98,IF(AND(Z96="N",P96>=Y96),Y98,ROUND(ROUND(AA98*X98,10)+ROUND(AA99*Y98,10),5)))) -> 0.14754 | AB105: NonCARE

Sheet MISC-tbls (hidden)
A1: =If(Space Heat - E = OR(2,4),index,match,match on ALL ELECTRIC ALLOWANCE TABLE,index,match,match on BASIC ALLOWANCE. | O1: Be sure to enter the baseline adjustment factors with the effective date if the effective date does not fall on a seasonal
A2: =INDEX(TABLE RANGE, MATCH(DATE, DATE RANGE,1,MATCH(CLIMATE ZONE, CLIMATE ZONE RANGE,0) | O2: Efffective Date - i.e. if the effective date is 5/1 then add it with the row date of 5/1. When the season changes,
O3: the baseline factors for that season along with the season effective date (6/1 or 11/1) must be entered.
A4: SEASONAL UPDATE REQUIRED | E4: If Baseline values change on a date where NO other prices occur - the prorate logic must be updated to include the baseline date. | Z4: ELECTRIC 1/1/23
D5: Cisco Stored | G5: Excel Table | M5: Excel Table
A6: Screen | B6: DMPR | D6: Value | G6: Name | H6: BL_E_G_ALLOW | M6: Name | N6: BL_All_E
C8: BASIC ALLOWANCE - Heat Code 1 or 3 | L8: ALL ELECTRIC ALLOWANCE - Heat Code 2 Or 4 | V8: GAS Baseline
C9: BASIC - Baseline Allowance | G9: BASIC - Baseline Allowance | M9: ALL ELECTRIC - Baseline Allowance | Q9: ALL ELECTRIC - Baseline Allowance
C10: DR - DRLI - DT - DTRV - DS - | G10: DM | M10: DR - DRLI - DT - DTRV - DS - | Q10: DM
A11: DATES | B11: MEDICAL | C11: COASTAL | D11: MOUNTAIN | E11: DESERT | F11: INLAND | G11: COASTAL | H11: MOUNTAIN | I11: DESERT | J11: INLAND | L11: DATES | M11: COASTAL | N11: MOUNTAIN | O11: DESERT | P11: INLAND | Q11: COASTAL | R11: MOUNTAIN | S11: DESERT | T11: INLAND | V11: DATES | W11: Value | X11: Medical
B12: 0 | C12: 1 | D12: 2 | E12: 3 | F12: 4 | G12: 1 | H12: 2 | I12: 3 | J12: 4 | M12: 1 | N12: 2 | O12: 3 | P12: 4 | Q12: 1 | R12: 2 | S12: 3 | T12: 4 | V12: 2003-11-01 | W12: 1.546 | X12: 0.822
A13: 2003-11-01 | B13: 16.5 | C13: 10.8 | D13: 14.6 | E13: 12 | F13: 11.5 | G13: 6.5 | H13: 8.8 | I13: 7.2 | J13: 6.9 | L13: 2003-11-01 | M13: 16.6 | N13: 29.5 | O13: 22.3 | P13: 19.1 | Q13: 11.6 | R13: 17.7 | S13: 14.9 | T13: 11.6 | V13: 2004-05-01 | W13: 0.493 | X13: 0.822
A14: 2004-05-01 | B14: 16.5 | C14: 10.2 | D14: 15.5 | E14: 17.3 | F14: 11.8 | G14: 6.1 | H14: 9.3 | I14: 13.8 | J14: 7.1 | L14: 2004-05-01 | M14: 9.8 | N14: 18.4 | O14: 19.5 | P14: 11.6 | Q14: 7.3 | R14: 11.1 | S14: 15.9 | T14: 7.3 | V14: 2004-11-01 | W14: 1.546 | X14: 0.822
A15: 2004-11-01 | B15: 16.5 | C15: 10.8 | D15: 14.6 | E15: 12 | F15: 11.5 | G15: 6.5 | H15: 8.8 | I15: 7.2 | J15: 6.9 | L15: 2004-11-01 | M15: 16.6 | N15: 29.5 | O15: 22.3 | P15: 19.1 | Q15: 11.6 | R15: 17.7 | S15: 14.9 | T15: 11.6 | V15: 2005-05-01 | W15: 0.493 | X15: 0.822
A16: 2005-05-01 | B16: 16.5 | C16: 10.2 | D16: 15.5 | E16: 17.3 | F16: 11.8 | G16: 6.1 | H16: 9.3 | I16: 13.8 | J16: 7.1 | L16: 2005-05-01 | M16: 9.8 | N16: 18.4 | O16: 19.5 | P16: 11.6 | Q16: 7.3 | R16: 11.1 | S16: 15.9 | T16: 7.3 | V16: 2005-11-01 | W16: 1.546 | X16: 0.822
A17: 2005-11-01 | B17: 16.5 | C17: 10.8 | D17: 14.6 | E17: 12 | F17: 11.5 | G17: 6.5 | H17: 8.8 | I17: 7.2 | J17: 6.9 | L17: 2005-11-01 | M17: 16.6 | N17: 29.5 | O17: 22.3 | P17: 19.1 | Q17: 11.6 | R17: 17.7 | S17: 14.9 | T17: 11.6 | V17: 2006-05-01 | W17: 0.493 | X17: 0.822
A18: 2006-05-01 | B18: 16.5 | C18: 10.2 | D18: 15.5 | E18: 17.3 | F18: 11.8 | G18: 6.1 | H18: 9.3 | I18: 13.8 | J18: 7.1 | L18: 2006-05-01 | M18: 9.8 | N18: 18.4 | O18: 19.5 | P18: 11.6 | Q18: 7.3 | R18: 11.1 | S18: 15.9 | T18: 7.3 | V18: 2006-11-01 | W18: 1.546 | X18: 0.822
A19: 2006-11-01 | B19: 16.5 | C19: 10.8 | D19: 14.6 | E19: 12 | F19: 11.5 | G19: 6.5 | H19: 8.8 | I19: 7.2 | J19: 6.9 | L19: 2006-11-01 | M19: 16.6 | N19: 29.5 | O19: 22.3 | P19: 19.1 | Q19: 11.6 | R19: 17.7 | S19: 14.9 | T19: 11.6 | V19: 2007-05-01 | W19: 0.493 | X19: 0.822
A20: 2007-05-01 | B20: 2026-02-05 | C20: 10.2 | D20: 15.5 | E20: 17.3 | F20: 11.8 | G20: 6.1 | H20: 9.3 | I20: 13.8 | J20: 7.1 | L20: 2007-05-01 | M20: 9.8 | N20: 18.4 | O20: 19.5 | P20: 11.6 | Q20: 7.3 | R20: 11.1 | S20: 15.9 | T20: 7.3 | V20: 2007-11-01 | W20: 1.546 | X20: 0.822
A21: 2007-11-01 | B21: 16.5 | C21: 10.8 | D21: 14.6 | E21: 12 | F21: 11.5 | G21: 6.5 | H21: 8.8 | I21: 7.2 | J21: 6.9 | L21: 2007-11-01 | M21: 16.6 | N21: 29.5 | O21: 22.3 | P21: 19.1 | Q21: 11.6 | R21: 17.7 | S21: 14.9 | T21: 11.6 | V21: 2008-05-01 | W21: 0.493 | X21: 0.822
A22: 2008-05-01 | B22: 16.5 | C22: 10.2 | D22: 15.5 | E22: 17.3 | F22: 11.8 | G22: 6.1 | H22: 9.3 | I22: 13.8 | J22: 7.1 | L22: 2008-05-01 | M22: 9.8 | N22: 18.4 | O22: 19.5 | P22: 11.6 | Q22: 7.3 | R22: 11.1 | S22: 15.9 | T22: 7.3 | V22: 2008-11-01 | W22: 1.546 | X22: 0.822
A23: 2008-11-01 | B23: 16.5 | C23: 10.8 | D23: 14.6 | E23: 12 | F23: 11.5 | G23: 6.5 | H23: 8.8 | I23: 7.2 | J23: 6.9 | L23: 2008-11-01 | M23: 16.6 | N23: 29.5 | O23: 22.3 | P23: 19.1 | Q23: 11.6 | R23: 17.7 | S23: 14.9 | T23: 11.6 | V23: 2009-05-01 | W23: 0.493 | X23: 0.822
A24: 2009-05-01 | B24: 16.5 | C24: 10.2 | D24: 15.5 | E24: 17.3 | F24: 11.8 | G24: 6.1 | H24: 9.3 | I24: 13.8 | J24: 7.1 | L24: 2009-05-01 | M24: 9.8 | N24: 18.4 | O24: 19.5 | P24: 11.6 | Q24: 7.3 | R24: 11.1 | S24: 15.9 | T24: 7.3 | V24: 2009-11-01 | W24: 1.546 | X24: 0.822
A25: 2009-11-01 | B25: 16.5 | C25: 10.8 | D25: 14.6 | E25: 12 | F25: 11.5 | G25: 6.5 | H25: 8.8 | I25: 7.2 | J25: 6.9 | L25: 2009-11-01 | M25: 16.6 | N25: 29.5 | O25: 22.3 | P25: 19.1 | Q25: 11.6 | R25: 17.7 | S25: 14.9 | T25: 11.6 | V25: 2010-05-01 | W25: 0.493 | X25: 0.822
A26: 2010-01-01 | B26: 16.5 | C26: 10.1 | D26: 13.8 | E26: 11.2 | F26: 10.8 | L26: 2010-01-01 | M26: 16.6 | N26: 28.5 | O26: 22 | P26: 18.3 | V26: 2010-11-01 | W26: 1.546 | X26: 0.822
A27: 2010-05-01 | B27: 16.5 | C27: 9.6 | D27: 14.8 | E27: 16.4 | F27: 11.2 | G27: 6.1 | H27: 9.3 | I27: 13.8 | J27: 7.1 | L27: 2010-05-01 | M27: 9.8 | N27: 17.3 | O27: 19.5 | P27: 11 | Q27: 7.3 | R27: 11.1 | S27: 15.9 | T27: 7.3 | V27: 2011-05-01 | W27: 0.493 | X27: 0.822
A28: 2010-11-01 | B28: 16.5 | C28: 10.1 | D28: 13.8 | E28: 11.2 | F28: 10.8 | G28: 6.5 | H28: 8.8 | I28: 7.2 | J28: 6.9 | L28: 2010-11-01 | M28: 16.6 | N28: 28.5 | O28: 22 | P28: 18.3 | Q28: 11.6 | R28: 17.7 | S28: 14.9 | T28: 11.6 | V28: 2011-11-01 | W28: 1.546 | X28: 0.822
A29: 2011-05-01 | B29: 16.5 | C29: 9.6 | D29: 14.8 | E29: 16.4 | F29: 11.2 | G29: 6.1 | H29: 9.3 | I29: 13.8 | J29: 7.1 | L29: 2011-05-01 | M29: 9.8 | N29: 17.3 | O29: 19.5 | P29: 11 | Q29: 7.3 | R29: 11.1 | S29: 15.9 | T29: 7.3 | V29: 2012-05-01 | W29: 0.493 | X29: 0.822
A30: 2011-11-01 | B30: 16.5 | C30: 10.1 | D30: 13.8 | E30: 11.2 | F30: 10.8 | G30: 6.5 | H30: 8.8 | I30: 7.2 | J30: 6.9 | L30: 2011-11-01 | M30: 16.6 | N30: 28.5 | O30: 22 | P30: 18.3 | Q30: 11.6 | R30: 17.7 | S30: 14.9 | T30: 11.6 | V30: 2012-11-01 | W30: 1.546 | X30: 0.822
A31: 2012-05-01 | B31: 16.5 | C31: 9.6 | D31: 14.8 | E31: 16.4 | F31: 11.2 | G31: 6.1 | H31: 9.3 | I31: 13.8 | J31: 7.1 | L31: 2012-05-01 | M31: 9.8 | N31: 17.3 | O31: 19.5 | P31: 11 | Q31: 7.3 | R31: 11.1 | S31: 15.9 | T31: 7.3 | V31: 2013-05-01 | W31: 0.493 | X31: 0.822
A32: 2012-11-01 | B32: 16.5 | C32: 10.1 | D32: 13.8 | E32: 11.2 | F32: 10.8 | G32: 6.5 | H32: 8.8 | I32: 7.2 | J32: 6.9 | L32: 2012-11-01 | M32: 16.6 | N32: 28.5 | O32: 22 | P32: 18.3 | Q32: 11.6 | R32: 17.7 | S32: 14.9 | T32: 11.6 | V32: 2013-11-01 | W32: 1.546 | X32: 0.822
A33: 2013-05-01 | B33: 16.5 | C33: 9.6 | D33: 14.8 | E33: 16.4 | F33: 11.2 | G33: 6.1 | H33: 9.3 | I33: 13.8 | J33: 7.1 | L33: 2013-05-01 | M33: 9.8 | N33: 17.3 | O33: 19.5 | P33: 11 | Q33: 7.3 | R33: 11.1 | S33: 15.9 | T33: 7.3 | V33: 2014-05-01 | W33: 0.493 | X33: 0.822
A34: 2013-11-01 | B34: 16.5 | C34: 10.1 | D34: 13.8 | E34: 11.2 | F34: 10.8 | G34: 6.5 | H34: 8.8 | I34: 7.2 | J34: 6.9 | L34: 2013-11-01 | M34: 16.6 | N34: 28.5 | O34: 22 | P34: 18.3 | Q34: 11.6 | R34: 17.7 | S34: 14.9 | T34: 11.6 | V34: 2014-11-01 | W34: 1.546 | X34: 0.822
A35: 2014-05-01 | B35: 16.5 | C35: 9.6 | D35: 14.8 | E35: 16.4 | F35: 11.2 | G35: 6.1 | H35: 9.3 | I35: 13.8 | J35: 7.1 | L35: 2014-05-01 | M35: 9.8 | N35: 17.3 | O35: 19.5 | P35: 11 | Q35: 7.3 | R35: 11.1 | S35: 15.9 | T35: 7.3 | V35: 2015-05-01 | W35: 0.493 | X35: 0.822
A36: 2014-11-01 | B36: 16.5 | C36: 10.1 | D36: 13.8 | E36: 11.2 | F36: 10.8 | G36: 6.5 | H36: 8.8 | I36: 7.2 | J36: 6.9 | L36: 2014-11-01 | M36: 16.6 | N36: 28.5 | O36: 22 | P36: 18.3 | Q36: 11.6 | R36: 17.7 | S36: 14.9 | T36: 11.6 | V36: 2015-11-01 | W36: 1.546 | X36: 0.822
A37: 2015-05-01 | B37: 16.5 | C37: 9.6 | D37: 14.8 | E37: 16.4 | F37: 11.2 | G37: 6.1 | H37: 9.3 | I37: 13.8 | J37: 7.1 | L37: 2015-05-01 | M37: 9.8 | N37: 17.3 | O37: 19.5 | P37: 11 | Q37: 7.3 | R37: 11.1 | S37: 15.9 | T37: 7.3 | V37: 2016-05-01 | W37: 0.493 | X37: 0.822
A38: 2015-11-01 | B38: 16.5 | C38: 10.1 | D38: 13.8 | E38: 11.2 | F38: 10.8 | G38: 6.5 | H38: 8.8 | I38: 7.2 | J38: 6.9 | L38: 2015-11-01 | M38: 16.6 | N38: 28.5 | O38: 22 | P38: 18.3 | Q38: 11.6 | R38: 17.7 | S38: 14.9 | T38: 11.6 | V38: 2016-11-01 | W38: 1.546 | X38: 0.822
A39: 2016-05-01 | B39: 16.5 | C39: 9.6 | D39: 14.8 | E39: 16.4 | F39: 11.2 | G39: 6.1 | H39: 9.3 | I39: 13.8 | J39: 7.1 | L39: 2016-05-01 | M39: 9.8 | N39: 17.3 | O39: 19.5 | P39: 11 | Q39: 7.3 | R39: 11.1 | S39: 15.9 | T39: 7.3 | V39: 2017-05-01 | W39: 0.493 | X39: 0.822
A40: 2016-07-01 | B40: 16.5 | C40: 9 | D40: 13.6 | E40: 15.9 | F40: 10.4 | G40: 4.5 | H40: 6.8 | I40: 10.4 | J40: 5.2 | L40: 2016-07-01 | M40: 9 | N40: 16.9 | O40: 19 | P40: 10.6 | Q40: 4.5 | R40: 8.5 | S40: 12.4 | T40: 5.3 | V40: 2017-11-01 | W40: 1.546 | X40: 0.822
A41: 2016-11-01 | B41: 16.5 | C41: 9.2 | D41: 12.9 | E41: 10.9 | F41: 9.6 | G41: 5.1 | H41: 7.2 | I41: 6.9 | J41: 5.4 | L41: 2016-11-01 | M41: 15 | N41: 27.2 | O41: 21 | P41: 17.1 | Q41: 8.4 | R41: 15.2 | S41: 13.3 | T41: 9.5 | V41: 2018-06-01 | W41: 0.493 | X41: 0.822
A42: 2017-05-01 | B42: 16.5 | C42: 9 | D42: 13.6 | E42: 15.9 | F42: 10.4 | G42: 4.5 | H42: 6.8 | I42: 10.4 | J42: 5.2 | L42: 2017-05-01 | M42: 9 | N42: 16.9 | O42: 19 | P42: 10.6 | Q42: 4.5 | R42: 8.5 | S42: 12.4 | T42: 5.3 | V42: 2018-11-01 | W42: 1.546 | X42: 0.822
A43: 2017-11-01 | B43: 16.5 | C43: 9.2 | D43: 12.9 | E43: 10.9 | F43: 9.6 | G43: 5.1 | H43: 7.2 | I43: 6.9 | J43: 5.4 | L43: 2017-09-01 | M43: 8.3 | N43: 16.5 | O43: 18.5 | P43: 10.1 | Q43: 4.2 | R43: 8.3 | S43: 12.1 | T43: 5.1 | V43: 2019-06-01 | W43: 0.493 | X43: 0.822
A44: 2018-06-01 | B44: 16.5 | C44: 9 | D44: 13.6 | E44: 15.9 | F44: 10.4 | L44: 2017-11-01 | M44: 13.5 | N44: 26 | O44: 20 | P44: 15.8 | Q44: 7.5 | R44: 14.5 | S44: 12.7 | T44: 8.8 | V44: 2019-11-01 | W44: 1.546 | X44: 0.822
A45: 2018-11-01 | B45: 16.5 | C45: 9.2 | D45: 12.9 | E45: 10.9 | F45: 9.6 | L45: 2018-06-01 | M45: 8.3 | N45: 16.5 | O45: 18.5 | P45: 10.1 | V45: 2020-05-01 | W45: 0.493 | X45: 0.822
A46: 2019-06-01 | B46: 16.5 | C46: 9 | D46: 13.6 | E46: 15.9 | F46: 10.4 | L46: 2018-11-01 | M46: 13.5 | N46: 26 | O46: 20 | P46: 15.8 | V46: 2020-11-01 | W46: 1.546 | X46: 0.822
A47: 2019-11-01 | B47: 16.5 | C47: 9.2 | D47: 12.9 | E47: 10.9 | F47: 9.6 | L47: 2019-05-01 | M47: 11.9 | N47: 24.7 | O47: 19.1 | P47: 14.6 | V47: 2021-05-01 | W47: 0.493 | X47: 0.822
A48: 2020-06-01 | B48: 16.5 | C48: 9 | D48: 13.6 | E48: 15.9 | F48: 10.4 | L48: 2019-06-01 | M48: 7.5 | N48: 16 | O48: 18 | P48: 9.6 | V48: 2021-11-01 | W48: 1.546 | X48: 0.822 | Z48: GAS 1/1/23
A49: 2020-11-01 | B49: 16.5 | C49: 9.2 | D49: 12.9 | E49: 10.9 | F49: 9.6 | L49: 2019-11-01 | M49: 11.9 | N49: 24.7 | O49: 19.1 | P49: 14.6 | V49: 2022-05-01 | W49: 0.493 | X49: 0.822
A50: 2021-06-01 | B50: 16.5 | C50: 9 | D50: 13.6 | E50: 15.9 | F50: 10.4 | L50: 2020-01-01 | M50: 10.4 | N50: 23.4 | O50: 18.1 | P50: 13.4 | V50: 2022-11-01 | W50: 0.692 | X50: 0.822
A51: 2021-11-01 | B51: 16.5 | C51: 9.2 | D51: 12.9 | E51: 10.9 | F51: 9.6 | L51: 2020-04-01 | M51: 8.8 | N51: 22.1 | O51: 17.1 | P51: 12.2 | V51: 2022-12-01 | W51: 1.233 | X51: 0.822
A52: 2022-06-01 | B52: 16.5 | C52: 9 | D52: 13.6 | E52: 15.9 | F52: 10.4 | L52: 2020-06-01 | M52: 6 | N52: 15.2 | O52: 17 | P52: 8.7 | V52: 2023-03-01 | W52: 0.692 | X52: 0.822
A53: 2022-11-01 | B53: 16.5 | C53: 9.2 | D53: 12.9 | E53: 10.9 | F53: 9.6 | L53: 2020-11-01 | M53: 8.8 | N53: 22.1 | O53: 17.1 | P53: 12.2 | V53: 2023-05-01 | W53: 0.359 | X53: 0.822
A54: 2023-06-01 | B54: 16.5 | C54: 9 | D54: 13.6 | E54: 15.9 | F54: 10.4 | L54: 2021-06-01 | M54: 6 | N54: 15.2 | O54: 17 | P54: 8.7 | V54: 2023-11-01 | W54: 0.692 | X54: 0.822
A55: 2023-11-01 | B55: 16.5 | C55: 9.2 | D55: 12.9 | E55: 10.9 | F55: 9.6 | L55: 2021-11-01 | M55: 8.8 | N55: 22.1 | O55: 17.1 | P55: 12.2 | V55: 2023-12-01 | W55: 1.233 | X55: 0.822
A56: 2024-06-01 | B56: 16.5 | C56: 9 | D56: 13.6 | E56: 15.9 | F56: 10.4 | L56: 2022-06-01 | M56: 6 | N56: 15.2 | O56: 17 | P56: 8.7 | V56: 2024-03-01 | W56: 0.692 | X56: 0.822
A57: 2024-11-01 | B57: 16.5 | C57: 9.2 | D57: 12.9 | E57: 10.9 | F57: 9.6 | L57: 2022-11-01 | M57: 8.8 | N57: 22.1 | O57: 17.1 | P57: 12.2 | V57: 2024-05-01 | W57: 0.359 | X57: 0.822
A58: 2025-06-01 | B58: 16.5 | C58: 9 | D58: 13.6 | E58: 15.9 | F58: 10.4 | L58: 2023-06-01 | M58: 6 | N58: 15.2 | O58: 17 | P58: 8.7 | V58: 2024-11-01 | W58: 0.692 | X58: 0.822
A59: 2025-11-01 | B59: 16.5 | C59: 9.2 | D59: 12.9 | E59: 10.9 | F59: 9.6 | L59: 2023-11-01 | M59: 8.8 | N59: 22.1 | O59: 17.1 | P59: 12.2 | V59: 2024-12-01 | W59: 1.233 | X59: 0.822
A60: 2026-06-01 | B60: 16.5 | C60: 9 | D60: 13.6 | E60: 15.9 | F60: 10.4 | L60: 2024-06-01 | M60: 6 | N60: 15.2 | O60: 17 | P60: 8.7 | V60: 2025-03-01 | W60: 0.692 | X60: 0.822
A61: 2026-11-01 | B61: 16.5 | C61: 9.2 | D61: 12.9 | E61: 10.9 | F61: 9.6 | L61: 2024-11-01 | M61: 8.8 | N61: 22.1 | O61: 17.1 | P61: 12.2 | V61: 2025-05-01 | W61: 0.359 | X61: 0.822
A62: 2027-06-01 | B62: 16.5 | C62: 9 | D62: 13.6 | E62: 15.9 | F62: 10.4 | L62: 2025-06-01 | M62: 6 | N62: 15.2 | O62: 17 | P62: 8.7 | V62: 2025-11-01 | W62: 0.692 | X62: 0.822
L63: 2025-11-01 | M63: 8.8 | N63: 22.1 | O63: 17.1 | P63: 12.2 | V63: 2025-12-01 | W63: 1.233 | X63: 0.822
L64: 2026-06-01 | M64: 6 | N64: 15.2 | O64: 17 | P64: 8.7 | V64: 2026-03-01 | W64: 0.692 | X64: 0.822
L65: 2026-11-01 | M65: 8.8 | N65: 22.1 | O65: 17.1 | P65: 12.2 | V65: 2026-05-01 | W65: 0.359 | X65: 0.822
L66: 2027-06-01 | M66: 6 | N66: 15.2 | O66: 17 | P66: 8.7 | V66: 2026-11-01 | W66: 0.692 | X66: 0.822
V67: 2026-12-01 | W67: 1.233 | X67: 0.822

Sheet FAQs (hidden)
